Workbook

Sheet Calculator
N1: ***HIDE*** | O1: ***HIDE*** | P1: ***HIDE*** | Q1: ***HIDE*** | R1: ***HIDE*** | S1: ***HIDE***
A2: . . . . . . . . . . . . . . . . . . . . . . . . . . . . . . . . . . . . . . . . . . . . . . . . . . . . . . . . . . . . . . . . . . . . . .
A3: Fertilizer Efficiency Calculator | I3: Printed: | J3: =TODAY() -> 2024-01-08
D5: *** Enter changes to BLUE values only *** | K5: Version 1.53
A7: Fertilizer Cost Input (4R - Right Source)
C9: Bulk Price | E9: Fertilizer Analysis | J9: Actual Nutrient
B10: Fertilizer Type | C10: $/tonne | E10: N | F10: P2O5 | G10: K2O | H10: S | J10: $/lb
B11: ="Nitrogen ("&E11&"-"&F11&"-"&G11&"-"&H11&")" -> Nitrogen (46-0-0-0) | C11: 825 | E11: 46 | F11: 0 | G11: 0 | H11: 0 | J11: =SUM(C11/(2204.62*(E11/100))) -> 0.8135090224
B12: ="Nitrogen ("&E12&"-"&F12&"-"&G12&"-"&H12&")" -> Nitrogen (82-0-0-0) | C12: 1300 | E12: 82 | F12: 0 | G12: 0 | H12: 0 | J12: =SUM(C12/(2204.62*(E12/100))) -> 0.7191107101
B13: ="Nitrogen ("&E13&"-"&F13&"-"&G13&"-"&H13&")" -> Nitrogen (28-0-0-0) | C13: 500 | E13: 28 | F13: 0 | G13: 0 | H13: 0 | J13: =SUM(C13/(2204.62*(E13/100))) -> 0.8099873383
B14: ="Phosphate ("&E14&"-"&F14&"-"&G14&"-"&H14&")" -> Phosphate (11-52-0-0) | C14: 1075 | E14: 11 | F14: 52 | G14: 0 | H14: 0 | J14: =SUM((C14-(J11*((E14/100)*2204.62)))/(2204.62*(F14/100))) -> 0.7656276638
B15: ="Potash ("&E15&"-"&F15&"-"&G15&"-"&H15&")" -> Potash (0-0-60-0) | C15: 625 | E15: 0 | F15: 0 | G15: 60 | H15: 0 | J15: =SUM(C15/(2204.62*(G15/100))) -> 0.472492614
B16: ="Sulphur ("&E16&"-"&F16&"-"&G16&"-"&H16&")" -> Sulphur (20.5-0-0-24) | C16: 600 | E16: 20.5 | F16: 0 | G16: 0 | H16: 24 | J16: =SUM((C16-(J11*((E16/100)*2204.62))-(J14*((F16/100)*2204.62)))/(2204.62*(H16/100))) -> 0.4391099837
A18: Crop Selection
C20: Crop to be Grown | E20: Wheat
C21: Soil Moisture Zone | E21: Moist
C22: Valid Yield Range | E22: ='Chart Data (HIDE)'!A1&" to "&'Chart Data (HIDE)'!B1&" bu/ac" -> 50 to 64 bu/ac
C23: Your Target Yield (bu/ac) | E23: 63
A25: Manitoba Soil Test & Fertilizer Recommendation (4R - Right Rate)
E27: Soil Test Analysis | AK27: **insert S blend K Sul here**
E28: N | F28: P | G28: K | H28: S | N28: ***HIDE*** | O28: ***HIDE*** | P28: ***HIDE*** | Q28: ***HIDE*** | R28: ***HIDE*** | S28: ***HIDE***
E29: 0 to 24 in. | F29: Olsen Test | H29: 0 to 24 in. | O29: **if we use MB AG S guidelines, it's 0-24 inches | U29: =$B$12 -> Nitrogen (82-0-0-0) | Y29: =$B$13 -> Nitrogen (28-0-0-0) | AC29: =$B$11 -> Nitrogen (46-0-0-0) | AG29: =$B$14 -> Phosphate (11-52-0-0) | AK29: =$B$15 -> Potash (0-0-60-0) | AN29: =$B$16 -> Sulphur (20.5-0-0-24)
E30: lb/acre | F30: ppm | G30: ppm | H30: lb/acre | S30: blend | T30: blend | U30: preseed | V30: preseed | W30: preseed | X30: preseed | Y30: suppl | Z30: suppl | AA30: suppl | AB30: suppl | AC30: blend | AD30: blend | AE30: blend | AF30: blend | AG30: blend | AH30: blend | AI30: blend | AJ30: blend | AK30: blend | AL30: blend | AM30: blend | AN30: blend | AO30: blend | AP30: blend
B31: Enter Field name or number (optional) | E31: 35 | F31: 12 | G31: 75 | H31: 20 | S31: N phos | T31: N sul1 | U31: N actual | V31: N lbs | W31: N MT | X31: N cost | Y31: N actual | Z31: N lbs | AA31: N MT | AB31: N cost | AC31: N urea | AD31: N lbs | AE31: N MT | AF31: N cost | AG31: P sul | AH31: phos lbs | AI31: phos MT | AJ31: phos cost | AK31: potash | AL31: pot MT | AM31: pot cost | AN31: sul lbs | AO31: sul MT | AP31: sul cost
U32: =IF(MIN($J$11:$J$13)=$J$12,$E$35,0)*0.8 -> 85.6 | Y32: =IF(MIN($J$11:$J$13)=$J$13,$E$35,0)*0.8 -> 0 | AC32: =IF(MIN($J$11:$J$13)=$J$11,$E$35,0)*0.8 -> 0
D33: Soil Test Nutrient Recommendation Before Adjustments (lb/acre) | E33: =IF('Chart Data (HIDE)'!A6="Error","Error",'Chart Data (HIDE)'!A6-E31) -> 107 | F33: =ROUND(IF(F29="Olsen Test",VLOOKUP(E20,'Chart Data (HIDE)'!A10:D17,3,FALSE),VLOOKUP(E20,'Chart Data (HIDE)'!A10:D17,4,FALSE)),0) -> 30 | G33: =ROUND(VLOOKUP(E20,'Chart Data (HIDE)'!A10:E17,5,FALSE),0) -> 15 | H33: =ROUND(VLOOKUP(E20,'Chart Data (HIDE)'!A10:F17,6,FALSE),0) -> 15 | S33: best
D34: Adjustments (to match your soil test lab report & other nutrient considerations) | E34: 0 | F34: 0 | G34: 0 | H34: 0 | I34: *consult your trusted advisor* | O34: =$E$35-$E$116-S34-T34 -> 87.84134615 | Q34: best | R34: =X34+AB34+AF34+AJ34+AM34+AP34 -> 104.7236885 | S34: =SUM(AH34*($E$14/100)) -> 6.346153846 | T34: =SUM(AN34*($E$16/100)) -> 12.8125 | U34: =ROUND(IF(MIN($J$11:$J$13)=$J$12,$E$35-$E$116-S34-T34,0)*MIN('Formula (HIDE)'!$B$83,'Formula (HIDE)'!$B$85),0) -> 73 | V34: =MAXA(0,(U34)/($E$12/100)) -> 89.02439024 | W34: =V34/2204.62 -> 0.04038083218 | X34: =SUM(W34*$C$12) -> 52.49508184 | Y34: =ROUND(IF(MIN($J$11:$J$13)=$J$13,$E$35-$E$116-S34-T34,0)*MIN('Formula (HIDE)'!$B$82:$B$85),0) -> 0 | Z34: =MAXA(0,(Y34)/($E$13/100)) -> 0 | AA34: =Z34/2204.62 -> 0 | AB34: =SUM(AA34*$C$13) -> 0 | AC34: =ROUND(IF(MIN($J$11:$J$13)=$J$11,$E$35-$E$116-S34-T34,0)*MIN('Formula (HIDE)'!$B$82:$B$85),0) -> 0 | AD34: =MAXA(0,SUM(AC34)/($E$11/100)) -> 0 | AE34: =AD34/2204.62 -> 0 | AF34: =SUM(AE34*$C$11) -> 0 | AG34: =SUM(AN34*($F$16/100)) -> 0 | AH34: =IF($F$35=0,0,SUM($F$35-AG34)/($F$14/100))*MIN('Formula (HIDE)'!$E$82:$E$83) -> 57.69230769 | AI34: =(AH34)/2204.62 -> 0.0261688217 | AJ34: =SUM(AI34*$C$14) -> 28.13148333 | AK34: =SUM($G$35/($G$15/100))*MIN('Formula (HIDE)'!$E$85:$E$86) -> 25 | AL34: =(AK34)/2204.62 -> 0.01133982274 | AM34: =SUM(AL34*$C$15) -> 7.08738921 | AN34: =SUM($H$35/($H$16/100))*MIN('Formula (HIDE)'!$H$82:$H$83) -> 62.5 | AO34: =(AN34)/2204.62 -> 0.02834955684 | AP34: =SUM(AO34*$C$16) -> 17.0097341 | AR34: best
D35: Nutrient Recommendation (lb/acre) | E35: =IF(E33="Error","Error",IF(SUM(E33-E34)<0,0,SUM(E33-E34))) -> 107 | F35: =IF(SUM(F33-F34)<0,0,ROUND(SUM(F33-F34),0)) -> 30 | G35: =IF(SUM(G33-G34)<0,0,ROUND(SUM(G33-G34),0)) -> 15 | H35: =IF(SUM(H33-H34)<0,0,ROUND(SUM(H33-H34),0)) -> 15 | O35: =$E$35-$E$116-S35-T35 -> 81.49519231 | Q35: worst | R35: =X35+AB35+AF35+AJ35+AM35+AP35 -> 170.4253995 | S35: =SUM(AH35*($E$14/100)) -> 12.69230769 | T35: =SUM(AN35*($E$16/100)) -> 12.8125 | U35: =ROUND(IF(MAX($J$11:$J$13)=$J$12,$E$35-$E$116-S35-T35,0)*MAX('Formula (HIDE)'!$B$82:$B$85),0) -> 0 | V35: =MAXA(0,(U35)/($E$12/100)) -> 0 | W35: =V35/2204.62 -> 0 | X35: =SUM(W35*$C$12) -> 0 | Y35: =ROUND(IF(MAX($J$11:$J$13)=$J$13,$E$35-$E$116-S35-T35,0)*MAX('Formula (HIDE)'!$B$82:$B$85),0) -> 0 | Z35: =MAXA(0,(Y35)/($E$13/100)) -> 0 | AA35: =Z35/2204.62 -> 0 | AB35: =SUM(AA35*$C$13) -> 0 | AC35: =ROUND(IF(MAX($J$11:$J$13)=$J$11,$E$35-$E$116-S35-T35,0)*MAX('Formula (HIDE)'!$B$82:$B$85),0) -> 102 | AD35: =MAXA(0,SUM(AC35)/($E$11/100)) -> 221.7391304 | AE35: =AD35/2204.62 -> 0.1005792973 | AF35: =SUM(AE35*$C$11) -> 82.97792028 | AG35: =SUM(AN35*($F$16/100)) -> 0 | AH35: =IF($F$35=0,0,SUM($F$35-AG35)/($F$14/100))*MAX('Formula (HIDE)'!$E$82:$E$83) -> 115.3846154 | AI35: =(AH35)/2204.62 -> 0.0523376434 | AJ35: =SUM(AI35*$C$14) -> 56.26296665 | AK35: =SUM($G$35/($G$15/100))*MAX('Formula (HIDE)'!$E$85:$E$86) -> 50 | AL35: =(AK35)/2204.62 -> 0.02267964547 | AM35: =SUM(AL35*$C$15) -> 14.17477842 | AN35: =SUM($H$35/($H$16/100))*MAX('Formula (HIDE)'!$H$82:$H$83) -> 62.5 | AO35: =(AN35)/2204.62 -> 0.02834955684 | AP35: =SUM(AO35*$C$16) -> 17.0097341 | AR35: worst
N36: <10 | O36: ='P recs 2 (HIDE)'!C15 -> Actual crop removal for this yield is 37 lb/ac P2O5, resulting in a deficit of 7 lb/ac P2O5. To move soil test P levels into a preferred medium range (11-20 ppm), more than removal P amounts need to be applied in a seed safe manner.
A37: N recommended rates based on spring broadcast PPI (pre-plant incorporated) application. | N37: 10<20 | O37: ='P recs 2 (HIDE)'!C16 -> Actual crop removal for this yield is 37 lb/ac P2O5, resulting in a deficit of 7 lb/ac P2O5. To maintain soil test P levels in the preferred medium range (11-20 ppm), this removal P amount needs to met in a seed -safe manner.
A38: P recommended rates for cereals are based on banded with seed and canola, soybeans and corn based on banded away from seed application. | N38: >21 | O38: ='P recs 2 (HIDE)'!C17 -> Actual crop removal for this yield is 37 lb/ac P2O5, resulting in a deficit of 7 lb/ac P2O5, which will gradually deplete soil test P levels into the preferred medium range (11-20 ppm). To maintain soil test P levels in the medium range, removal P amounts need to be met in a seed-safe manner.
A39: K recommended rates for cereals based on banded with seed and canola, soybeans and corn based on banded away from seed application.
A40: =IF(F31<11,O36,IF(F31<=20,O37,O38)) -> Actual crop removal for this yield is 37 lb/ac P2O5, resulting in a deficit of 7 lb/ac P2O5. To maintain soil test P levels in the preferred medium range (11-20 ppm), this removal P amount needs to met in a seed -safe manner. | Q40: your cost | R40: =(R35-($E$138*(R35-R34))) -> 111.6128193 | S40: n x 1.25, p x 2, kx2, sx2 = worst
A43: Fertilizer Application (4R - Right Time & Right Place) | S43: n x 0.83, p x 1, kx1, sx1 = best
G45: Fertilizer Efficiency - Based on Application Method & Timing
D47: Spring | E47: Fall
D48: N | E48: N | F48: P2O5 | G48: K2O | H48: S
C49: Broadcast | D49: 1 | E49: 0.8 | F49: 0.5 | G49: 0.5 | H49: 1
C50: Banded | D50: 1.2 | E50: 1 | F50: 1 | G50: 1 | H50: 1
A52: N efficiency is indexed relative to the performance of spring broadcast application. P and K efficiency is indexed relative to the performance of banded application.
A53: P recommended rates for broadcast PPI (pre-plant incorporated) are 2X of recommended rate based on banding at time of seeding.
A54: K recommended rates for broadcast PPI (pre-plant incorporated) are 2X of recommended rate based on banding at time of seeding.
A55: All broadcast applications assume incorporation.
A56: ="Fertilizer Application #1, "&IF($C$31="","",$C$31) -> Fertilizer Application #1,
D58: Timing of Application | E58: Fall | J58: EEF? | K58: No
D59: Method of Application | E59: Banded | H59: =IF(AND(E59="Broadcast",E60='Formula (HIDE)'!$A$97),"You cannot select Broadcast for 82-0-0","") ->  | N59: ***HIDE*** | O59: ***HIDE*** | P59: ***HIDE*** | Q59: ***HIDE*** | R59: ***HIDE*** | S59: ***HIDE***
D60: Nitrogen Source | E60: Nitrogen (82-0-0-0) | J60: EEF Treatment Price ($/mt) | K60: 100 | U60: =$B$12 -> Nitrogen (82-0-0-0) | Y60: =$B$13 -> Nitrogen (28-0-0-0) | AC60: =$B$11 -> Nitrogen (46-0-0-0) | AG60: =$B$14 -> Phosphate (11-52-0-0) | AK60: =$B$15 -> Potash (0-0-60-0) | AN60: =$B$16 -> Sulphur (20.5-0-0-24)
G61: =IF(AND(K61="Yes",E58="Fall"),"You cannot select Fall Split Application","") ->  | J61: In-Season Split Application? | K61: No | P61: ***can't broadcast 82-0-0 | S61: blend | T61: blend | U61: preseed | V61: preseed | W61: preseed | X61: preseed | Y61: suppl | Z61: suppl | AA61: suppl | AB61: suppl | AC61: blend | AD61: blend | AE61: blend | AF61: blend | AG61: blend | AH61: blend | AI61: blend | AJ61: blend | AK61: blend | AL61: blend | AM61: blend | AN61: blend | AO61: blend | AP61: blend
E62: N | F62: P2O5 | G62: K2O | H62: S | I62: TOTAL | N62: =IF(K61="No",IF(K58="No",VLOOKUP(Calculator!E60,'Formula (HIDE)'!$A$125:$M$127,VLOOKUP(Calculator!E59,'Formula (HIDE)'!$O$121:$Q$122,'Formula (HIDE)'!$N$115,0),0),VLOOKUP(Calculator!E60,'Formula (HIDE)'!$A$125:$M$127,VLOOKUP(Calculator!E59,'Formula (HIDE)'!$O$126:$Q$127,'Formula (HIDE)'!$N$115,0),0)),IF(K58="No",VLOOKUP(Calculator!E60,'Formula (HIDE)'!$A$125:$M$127,VLOOKUP(Calculator!E59,'Formula (HIDE)'!$O$121:$R$122,4,0),0),VLOOKUP(Calculator!E60,'Formula (HIDE)'!$A$125:$M$127,VLOOKUP(Calculator!E59,'Formula (HIDE)'!$O$126:$R$127,4,0),0))) -> 3 | S62: N phos | T62: N sul1 | U62: N actual | V62: N lbs | W62: N MT | X62: N cost | Y62: N actual | Z62: N lbs | AA62: N MT | AB62: N cost | AC62: N urea | AD62: N lbs | AE62: N MT | AF62: N cost | AG62: P sul | AH62: phos lbs | AI62: phos MT | AJ62: phos cost | AK62: potash | AL62: pot MT | AM62: pot cost | AN62: sul lbs | AO62: sul MT | AP62: sul cost
D63: Application Method & Timing Efficiency Factor | E63: =IF(E58="Spring",VLOOKUP(E59,'Formula (HIDE)'!$J$82:$L$83,2,FALSE),VLOOKUP(E59,'Formula (HIDE)'!$J$82:$L$83,3,FALSE)) -> 1 | F63: =VLOOKUP(E59,'Formula (HIDE)'!$J$82:$M$83,4,FALSE) -> 1 | G63: =VLOOKUP(E59,'Formula (HIDE)'!$J$82:$N$83,5,FALSE) -> 1 | H63: =VLOOKUP(E59,'Formula (HIDE)'!$J$82:$O$83,6,FALSE) -> 1
D64: Nutrient Balance Remaining - based on Efficiency Factoring (lb/acre) | E64: =IF(E35=0,0,IF(E35-Q65<0,E35,ROUND(((E35-Q65)*(1/E63))+Q65,1))) -> 107 | F64: =ROUND((1/F63)*F35,0) -> 30 | G64: =ROUND((1/G63)*G35,0) -> 15 | H64: =ROUND((1/H63)*H35,0) -> 15
P65: =U65+Y65+AC65 -> 0 | Q65: =S65+T65 -> 0 | R65: =S65+T65+U65+Y65+AC65 -> 0 | S65: =SUM(AH65*($E$14/100)) -> 0 | T65: =SUM(AN65*($E$16/100)) -> 0 | U65: =ROUND(IF(E60='Formula (HIDE)'!$A$97,IF(E66=0,0,E66),0),0) -> 0 | V65: =MAXA(0,(U65)/($E$12/100)) -> 0 | W65: =V65/2204.62 -> 0 | X65: =SUM(W65*($C$12+IF(K58="Yes",K60,0))) -> 0 | Y65: =ROUND(IF(E60='Formula (HIDE)'!$A$98,IF(E66=0,0,E66),0),0) -> 0 | Z65: =MAXA(0,(Y65)/($E$13/100)) -> 0 | AA65: =Z65/2204.62 -> 0 | AB65: =SUM(AA65*($C$13+IF(K58="Yes",K60,0))) -> 0 | AC65: =ROUND(IF(E60='Formula (HIDE)'!$A$96,IF(E66=0,0,E66),0),0) -> 0 | AD65: =SUM(AC65)/($E$11/100) -> 0 | AE65: =AD65/2204.62 -> 0 | AF65: =SUM(AE65*($C$11+IF(K58="Yes",K60,0))) -> 0 | AG65: =SUM(AN65*($F$16/100)) -> 0 | AH65: =IF(F66=0,0,SUM(F66-AG65)/($F$14/100)) -> 0 | AI65: =(AH65)/2204.62 -> 0 | AJ65: =SUM(AI65*$C$14) -> 0 | AK65: =SUM(G66/($G$15/100)) -> 0 | AL65: =(AK65)/2204.62 -> 0 | AM65: =SUM(AL65*$C$15) -> 0 | AN65: =SUM(H66/($H$16/100)) -> 0 | AO65: =(AN65)/2204.62 -> 0 | AP65: =SUM(AO65*$C$16) -> 0
D66: Fertilizer Target - App. #1 (actual lb/acre) | E66: 0 | F66: 0 | G66: 0 | H66: 0
D67: Fertilizer Applied (product lb/acre) | E67: =V65+Z65+AD65 -> 0 | F67: =AH65 -> 0 | G67: =AK65 -> 0 | H67: =AN65 -> 0 | I67: =E67+F67+G67+H67 -> 0 | J67: hide and show in a blend sheet summary
D68: Fertilizer Blend Target for Input Retailer (actual lb/acre) | E68: =E66+Q65 -> 0 | F68: =F66+AG65 -> 0 | G68: =G66 -> 0 | H68: =H66 -> 0
D69: Nutrient Supplied Based on Efficiency Factor (actual lb/acre) | E69: =ROUND((S65+T65)+(E66*E63),1) -> 0 | F69: =ROUND((AG65+F66)*F63,0) -> 0 | G69: =ROUND(G66*G63,0) -> 0 | H69: =ROUND(H66*H63,0) -> 0
D70: Fertilizer Cost ($/acre) | E70: =SUM(X65+AB65+AF65) -> 0 | F70: =AJ65 -> 0 | G70: =AM65 -> 0 | H70: =AP65 -> 0 | I70: =E70+F70+G70+H70 -> 0
D72: Nutrient Requirement Balance Remaining (actual lb/acre) | E72: =IF(E35=0,0,E35-E69) -> 107 | F72: =F35-F69 -> 30 | G72: =G35-G69 -> 15 | H72: =H35-H69 -> 15
E73: =IF(E72<0,"over applied","") ->  | F73: =IF(F72<0,"over applied","") ->  | G73: =IF(G72<0,"over applied","") ->  | H73: =IF(H72<0,"over applied","") -> 
C74: Fertilizer Efficiency Gain (Loss) - (actual lb/acre) | E74: =IF(E66=0,0,(E66*E63)-E66) -> 0 | F74: =IF(F66=0,0,F69-F66) -> 0 | G74: =IF(G66=0,0,G69-G66) -> 0 | H74: =IF(H66=0,0,H69-H66) -> 0 | K74: based on dollars | S74: =SUM(AH74*($E$14/100)) -> 0 | T74: =SUM(AN74*($E$16/100)) -> 0 | U74: =IF(E60='Formula (HIDE)'!$A$97,IF(E74=0,0,E74),0) -> 0 | V74: =(U74)/($E$12/100) -> 0 | W74: =V74/2204.62 -> 0 | X74: =SUM(W74*$C$12) -> 0 | Y74: =IF(E60='Formula (HIDE)'!$A$98,IF(E74=0,0,E74),0) -> 0 | Z74: =(Y74)/($E$13/100) -> 0 | AA74: =Z74/2204.62 -> 0 | AB74: =SUM(AA74*$C$13) -> 0 | AC74: =IF(E60='Formula (HIDE)'!$A$96,IF(E74=0,0,E74),0) -> 0 | AD74: =SUM(AC74)/($E$11/100) -> 0 | AE74: =AD74/2204.62 -> 0 | AF74: =SUM(AE74*$C$11) -> 0 | AG74: =SUM(AN74*($F$16/100)) -> 0 | AH74: =IF(F74=0,0,SUM(F74-AG74)/($F$14/100)) -> 0 | AI74: =(AH74)/2204.62 -> 0 | AJ74: =SUM(AI74*$C$14) -> 0 | AK74: =SUM(G74/($G$15/100)) -> 0 | AL74: =(AK74)/2204.62 -> 0 | AM74: =SUM(AL74*$C$15) -> 0 | AN74: =SUM(H74/($H$16/100)) -> 0 | AO74: =(AN74)/2204.62 -> 0 | AP74: =SUM(AO74*$C$16) -> 0
C75: Fertilizer Efficiency Gain (Loss) Cost - ($/acre) | E75: =SUM(X74+AB74+AF74) -> 0 | F75: =AJ74 -> 0 | G75: =AM74 -> 0 | H75: =AP74 -> 0 | I75: =E75+F75+G75+H75 -> 0 | S75: Efficiency Loss
E76: =E66*'Formula (HIDE)'!K83 -> 0
C77: Nitrogen fert (actual lbs) due to inefficient N | E77: =IF(E66=0,0,E76-(E66*E63)) -> 0
A78: ="Fertilizer Application #2, "&IF($C$31="","",$C$31) -> Fertilizer Application #2,
D80: Timing of Application | E80: Spring | J80: EEF? | K80: No
D81: Method of Application | E81: Banded | H81: =IF(AND(E81="Broadcast",E82='Formula (HIDE)'!$A$97),"You cannot select Broadcast for 82-0-0","") -> 
D82: Nitrogen Source | E82: Nitrogen (46-0-0-0) | J82: EEF Treatment Price ($/mt) | K82: 100 | U82: =$B$12 -> Nitrogen (82-0-0-0) | Y82: =$B$13 -> Nitrogen (28-0-0-0) | AC82: =$B$11 -> Nitrogen (46-0-0-0) | AG82: =$B$14 -> Phosphate (11-52-0-0) | AK82: =$B$15 -> Potash (0-0-60-0) | AN82: =$B$16 -> Sulphur (20.5-0-0-24)
G83: =IF(AND(K83="Yes",E80="Fall"),"You cannot select Fall Split Application","") ->  | J83: In-Season Split Application? | K83: No | S83: blend | T83: blend | U83: preseed | V83: preseed | W83: preseed | X83: preseed | Y83: suppl | Z83: suppl | AA83: suppl | AB83: suppl | AC83: blend | AD83: blend | AE83: blend | AF83: blend | AG83: blend | AH83: blend | AI83: blend | AJ83: blend | AK83: blend | AL83: blend | AM83: blend | AN83: blend | AO83: blend | AP83: blend
E84: N | F84: P2O5 | G84: K2O | H84: S | I84: TOTAL | N84: =IF(K83="No",IF(K80="No",VLOOKUP(Calculator!E82,'Formula (HIDE)'!$A$125:$M$127,VLOOKUP(Calculator!E81,'Formula (HIDE)'!$O$121:$Q$122,'Formula (HIDE)'!$N$116,0),0),VLOOKUP(Calculator!E82,'Formula (HIDE)'!$A$125:$M$127,VLOOKUP(Calculator!E81,'Formula (HIDE)'!$O$126:$Q$127,'Formula (HIDE)'!$N$116,0),0)),IF(K80="No",VLOOKUP(Calculator!E82,'Formula (HIDE)'!$A$125:$M$127,VLOOKUP(Calculator!E81,'Formula (HIDE)'!$O$121:$R$122,4,0),0),VLOOKUP(Calculator!E82,'Formula (HIDE)'!$A$125:$M$127,VLOOKUP(Calculator!E81,'Formula (HIDE)'!$O$126:$R$127,4,0),0))) -> 3 | S84: N phos | T84: N sul1 | U84: N actual | V84: N lbs | W84: N MT | X84: N cost | Y84: N actual | Z84: N lbs | AA84: N MT | AB84: N cost | AC84: N urea | AD84: N lbs | AE84: N MT | AF84: N cost | AG84: P sul | AH84: phos lbs | AI84: phos MT | AJ84: phos cost | AK84: potash | AL84: pot MT | AM84: pot cost | AN84: sul lbs | AO84: sul MT | AP84: sul cost
D85: Application Method & Timing Efficiency Factor | E85: =IF(E80="Spring",VLOOKUP(E81,'Formula (HIDE)'!$J$82:$L$83,2,FALSE),VLOOKUP(E81,'Formula (HIDE)'!$J$82:$L$83,3,FALSE)) -> 1.2 | F85: =VLOOKUP(E81,'Formula (HIDE)'!$J$82:$M$83,4,FALSE) -> 1 | G85: =VLOOKUP(E81,'Formula (HIDE)'!$J$82:$N$83,5,FALSE) -> 1 | H85: =VLOOKUP(E81,'Formula (HIDE)'!$J$82:$O$83,6,FALSE) -> 1
D86: Nutrient Balance Remaining - based on Efficiency Factoring (lb/acre) | E86: =IF(E72<=0,0,IF(E72-Q87<0,E72,ROUND(((E72-Q87)*(1/E85))+Q87,1))) -> 92.4 | F86: =IF(F72<=0,0,ROUND((1/F85)*F72,0)) -> 30 | G86: =IF(G72<=0,0,ROUND((1/G85)*G72,0)) -> 15 | H86: =IF(H72<=0,0,ROUND((1/H85)*H72,0)) -> 15
P87: =U87+Y87+AC87 -> 73 | Q87: =S87+T87 -> 19.15865385 | R87: =S87+T87+U87+Y87+AC87 -> 92.15865385 | S87: =SUM(AH87*($E$14/100)) -> 6.346153846 | T87: =SUM(AN87*($E$16/100)) -> 12.8125 | U87: =ROUND(IF(E82='Formula (HIDE)'!$A$97,IF(E88=0,0,E88),0),0) -> 0 | V87: =MAXA(0,(U87)/($E$12/100)) -> 0 | W87: =V87/2204.62 -> 0 | X87: =SUM(W87*($C$12+IF(K80="Yes",K82,0))) -> 0 | Y87: =ROUND(IF(E82='Formula (HIDE)'!$A$98,IF(E88=0,0,E88),0),0) -> 0 | Z87: =MAXA(0,(Y87)/($E$13/100)) -> 0 | AA87: =Z87/2204.62 -> 0 | AB87: =SUM(AA87*($C$13+IF(K80="Yes",K82,0))) -> 0 | AC87: =ROUND(IF(E82='Formula (HIDE)'!$A$96,IF(E88=0,0,E88),0),0) -> 73 | AD87: =SUM(AC87)/($E$11/100) -> 158.6956522 | AE87: =AD87/2204.62 -> 0.07198322258 | AF87: =SUM(AE87*($C$11+IF(K80="Yes",K82,0))) -> 59.38615863 | AG87: =SUM(AN87*($F$16/100)) -> 0 | AH87: =IF(F88=0,0,SUM(F88-AG87)/($F$14/100)) -> 57.69230769 | AI87: =(AH87)/2204.62 -> 0.0261688217 | AJ87: =SUM(AI87*$C$14) -> 28.13148333 | AK87: =SUM(G88/($G$15/100)) -> 25 | AL87: =(AK87)/2204.62 -> 0.01133982274 | AM87: =SUM(AL87*$C$15) -> 7.08738921 | AN87: =SUM(H88/($H$16/100)) -> 62.5 | AO87: =(AN87)/2204.62 -> 0.02834955684 | AP87: =SUM(AO87*$C$16) -> 17.0097341
D88: Fertilizer Target - App. #2 (actual lb/acre) | E88: =IF((E86-Q87)<0,0,ROUND((E86-Q87),2)) -> 73.24 | F88: =F86 -> 30 | G88: =G86 -> 15 | H88: =H86 -> 15 | Q88: =S88+T88 -> 6 | S88: =ROUND(AH88*(E14/100),0) -> 3 | T88: =ROUND(AN88*(E16/100),0) -> 3 | AH88: =F88 -> 30 | AK88: =G88 -> 15 | AN88: =H88 -> 15 | AR88: =IF((AR86-BD87)<0,0,ROUND((AR86-BD87),2)) -> 0 | AS88: =AS86 -> 0 | AT88: =AT86 -> 0 | AU88: =AU86 -> 0
D89: Fertilizer Applied (product lb/acre) | E89: =V87+Z87+AD87 -> 158.6956522 | F89: =AH87 -> 57.69230769 | G89: =AK87 -> 25 | H89: =AN87 -> 62.5 | I89: =E89+F89+G89+H89 -> 303.8879599 | K89: hide and show in a blend sheet summary
D90: Fertilizer Blend Target for Input Retailer (actual lb/acre) | E90: =E88+Q87 -> 92.39865385 | F90: =F88+AG87 -> 30 | G90: =G88 -> 15 | H90: =H88 -> 15
D91: Nutrient Supplied Based on Efficiency Factor (actual lb/acre) | E91: =ROUND((S87+T87)+(E88*E85),1) -> 107 | F91: =ROUND((AG87+F88)*F85,0) -> 30 | G91: =ROUND(G88*G85,0) -> 15 | H91: =ROUND(H88*H85,0) -> 15
D92: Fertilizer Cost ($/acre) | E92: =IF(SUM(X87+AB87+AF87)<0,0,SUM(X87+AB87+AF87)) -> 59.38615863 | F92: =AJ87 -> 28.13148333 | G92: =AM87 -> 7.08738921 | H92: =AP87 -> 17.0097341 | I92: =E92+F92+G92+H92 -> 111.6147653
D94: Nutrient Requirement Balance Remaining (actual lb/acre) | E94: =IF(E35=0,0,IF((E72-E91)<3,0,E72-E91)) -> 0 | F94: =IF((F72-F91)<1,0,F72-F91) -> 0 | G94: =IF((G72-G91)<1,0,G72-G91) -> 0 | H94: =IF((H72-H91)<1,0,H72-H91) -> 0
E95: =IF(E35=0,"",IF((E72-E91)<0,"over applied","")) ->  | F95: =IF((F72-F91)<0,"over applied","") -> 
C96: Fertilizer Efficiency Gain (Loss) - (actual lb/acre) | E96: =IF(E88=0,0,(E88*E85)-E88) -> 14.648 | F96: =IF(F88=0,0,F91-F88) -> 0 | G96: =IF(G88=0,0,G91-G88) -> 0 | H96: =IF(H88=0,0,H91-H88) -> 0 | K96: based on dollars | S96: =SUM(AH96*($E$14/100)) -> 0 | T96: =SUM(AN96*($E$16/100)) -> 0 | U96: =IF(E82='Formula (HIDE)'!$A$97,IF(E96=0,0,E96),0) -> 0 | V96: =(U96)/($E$12/100) -> 0 | W96: =V96/2204.62 -> 0 | X96: =SUM(W96*$C$12) -> 0 | Y96: =IF(E82='Formula (HIDE)'!$A$98,IF(E96=0,0,E96),0) -> 0 | Z96: =(Y96)/($E$13/100) -> 0 | AA96: =Z96/2204.62 -> 0 | AB96: =SUM(AA96*$C$13) -> 0 | AC96: =IF(E82='Formula (HIDE)'!$A$96,IF(E96=0,0,E96),0) -> 14.648 | AD96: =SUM(AC96)/($E$11/100) -> 31.84347826 | AE96: =AD96/2204.62 -> 0.01444397595 | AF96: =SUM(AE96*$C$11) -> 11.91628016 | AG96: =SUM(AN96*($F$16/100)) -> 0 | AH96: =IF(F96=0,0,SUM(F96-AG96)/($F$14/100)) -> 0 | AI96: =(AH96)/2204.62 -> 0 | AJ96: =SUM(AI96*$C$14) -> 0 | AK96: =SUM(G96/($G$15/100)) -> 0 | AL96: =(AK96)/2204.62 -> 0 | AM96: =SUM(AL96*$C$15) -> 0 | AN96: =SUM(H96/($H$16/100)) -> 0 | AO96: =(AN96)/2204.62 -> 0 | AP96: =SUM(AO96*$C$16) -> 0
C97: Fertilizer Efficiency Gain (Loss) Cost - ($/acre) | E97: =SUM(X96+AB96+AF96) -> 11.91628016 | F97: =AJ96 -> 0 | G97: =AM96 -> 0 | H97: =AP96 -> 0 | I97: =E97+F97+G97+H97 -> 11.91628016 | S97: Efficiency Loss
E98: =E88*'Formula (HIDE)'!K83 -> 87.888
C99: Nitrogen fert (actual lbs) due to inefficient N | E99: =IF(E88=0,0,E98-(E88*E85)) -> 0
A100: ="Fertilizer Application #3, "&IF($C$31="","",$C$31) -> Fertilizer Application #3,
D102: Timing of Application | E102: Spring | J102: EEF? | K102: No
D103: Method of Application | E103: Banded | H103: =IF(AND(E103="Broadcast",E104='Formula (HIDE)'!$A$97),"You cannot select Broadcast for 82-0-0","") -> 
D104: Nitrogen Source | E104: Nitrogen (46-0-0-0) | J104: EEF Treatment Price ($/mt) | K104: 100 | U104: =$B$12 -> Nitrogen (82-0-0-0) | Y104: =$B$13 -> Nitrogen (28-0-0-0) | AC104: =$B$11 -> Nitrogen (46-0-0-0) | AG104: =$B$14 -> Phosphate (11-52-0-0) | AK104: =$B$15 -> Potash (0-0-60-0) | AN104: =$B$16 -> Sulphur (20.5-0-0-24)
G105: =IF(AND(K105="Yes",E102="Fall"),"You cannot select Fall Split Application","") ->  | J105: In-Season Split Application? | K105: No | S105: blend | T105: blend | U105: preseed | V105: preseed | W105: preseed | X105: preseed | Y105: suppl | Z105: suppl | AA105: suppl | AB105: suppl | AC105: blend | AD105: blend | AE105: blend | AF105: blend | AG105: blend | AH105: blend | AI105: blend | AJ105: blend | AK105: blend | AL105: blend | AM105: blend | AN105: blend | AO105: blend | AP105: blend
E106: N | F106: P2O5 | G106: K2O | H106: S | I106: TOTAL | N106: =IF(K105="No",IF(K102="No",VLOOKUP(Calculator!E104,'Formula (HIDE)'!$A$125:$M$127,VLOOKUP(Calculator!E103,'Formula (HIDE)'!$O$121:$Q$122,'Formula (HIDE)'!$N$117,0),0),VLOOKUP(Calculator!E104,'Formula (HIDE)'!$A$125:$M$127,VLOOKUP(Calculator!E103,'Formula (HIDE)'!$O$126:$Q$127,'Formula (HIDE)'!$N$117,0),0)),IF(K102="No",VLOOKUP(Calculator!E104,'Formula (HIDE)'!$A$125:$M$127,VLOOKUP(Calculator!E103,'Formula (HIDE)'!$O$121:$R$122,4,0),0),VLOOKUP(Calculator!E104,'Formula (HIDE)'!$A$125:$M$127,VLOOKUP(Calculator!E103,'Formula (HIDE)'!$O$126:$R$127,4,0),0))) -> 3 | S106: N phos | T106: N sul1 | U106: N actual | V106: N lbs | W106: N MT | X106: N cost | Y106: N actual | Z106: N lbs | AA106: N MT | AB106: N cost | AC106: N urea | AD106: N lbs | AE106: N MT | AF106: N cost | AG106: P sul | AH106: phos lbs | AI106: phos MT | AJ106: phos cost | AK106: potash | AL106: pot MT | AM106: pot cost | AN106: sul lbs | AO106: sul MT | AP106: sul cost
D107: Application Method & Timing Efficiency Factor | E107: =IF(E102="Spring",VLOOKUP(E103,'Formula (HIDE)'!$J$82:$L$83,2,FALSE),VLOOKUP(E103,'Formula (HIDE)'!$J$82:$L$83,3,FALSE)) -> 1.2 | F107: =VLOOKUP(E103,'Formula (HIDE)'!$J$82:$M$83,4,FALSE) -> 1 | G107: =VLOOKUP(E103,'Formula (HIDE)'!$J$82:$N$83,5,FALSE) -> 1 | H107: =VLOOKUP(E103,'Formula (HIDE)'!$J$82:$O$83,6,FALSE) -> 1
D108: Nutrient Balance Remaining - based on Efficiency Factoring (lb/acre) | E108: =IF(E94<=0,0,IF(E94-Q109<0,E94,ROUND(((E94-Q109)*(1/E107))+Q109,1))) -> 0 | F108: =IF(F94<=0,0,ROUND((1/F107)*F94,0)) -> 0 | G108: =IF(G94<=0,0,ROUND((1/G107)*G94,0)) -> 0 | H108: =IF(H94<=0,0,ROUND((1/H107)*H94,0)) -> 0
P109: =U109+Y109+AC109 -> 0 | Q109: =S109+T109 -> 0 | R109: =S109+T109+U109+Y109+AC109 -> 0 | S109: =SUM(AH109*($E$14/100)) -> 0 | T109: =SUM(AN109*($E$16/100)) -> 0 | U109: =ROUND(IF(E104='Formula (HIDE)'!$A$97,IF(E110=0,0,E110),0),0) -> 0 | V109: =MAXA(0,(U109)/($E$12/100)) -> 0 | W109: =V109/2204.62 -> 0 | X109: =SUM(W109*($C$12+IF(K102="Yes",K104,0))) -> 0 | Y109: =ROUND(IF(E104='Formula (HIDE)'!$A$98,IF(E110=0,0,E110),0),0) -> 0 | Z109: =MAXA(0,(Y109)/($E$13/100)) -> 0 | AA109: =Z109/2204.62 -> 0 | AB109: =SUM(AA109*($C$13+IF(K102="Yes",K104,0))) -> 0 | AC109: =ROUND(IF(E104='Formula (HIDE)'!$A$96,IF(E110=0,0,E110),0),0) -> 0 | AD109: =SUM(AC109)/($E$11/100) -> 0 | AE109: =AD109/2204.62 -> 0 | AF109: =SUM(AE109*($C$11+IF(K102="Yes",K104,0))) -> 0 | AG109: =SUM(AN109*($F$16/100)) -> 0 | AH109: =IF(F110=0,0,SUM(F110-AG109)/($F$14/100)) -> 0 | AI109: =(AH109)/2204.62 -> 0 | AJ109: =SUM(AI109*$C$14) -> 0 | AK109: =SUM(G110/($G$15/100)) -> 0 | AL109: =(AK109)/2204.62 -> 0 | AM109: =SUM(AL109*$C$15) -> 0 | AN109: =SUM(H110/($H$16/100)) -> 0 | AO109: =(AN109)/2204.62 -> 0 | AP109: =SUM(AO109*$C$16) -> 0
D110: Fertilizer Target - App. #3 (actual lb/acre) | E110: 0 | F110: =F108 -> 0 | G110: =G108 -> 0 | H110: =H108 -> 0 | Q110: =S110+T110 -> 0 | S110: =AH110*(E35/100) -> 0 | T110: =AN110*(E43/100) -> 0 | AH110: =F110 -> 0 | AK110: =G110 -> 0 | AN110: =H110 -> 0 | AR110: =IF((AR108-BD109)<0,0,ROUND((AR108-BD109),2)) -> 0 | AS110: =AS108 -> 0 | AT110: =AT108 -> 0 | AU110: =AU108 -> 0
D111: Fertilizer Applied (product lb/acre) | E111: =V109+Z109+AD109 -> 0 | F111: =AH109 -> 0 | G111: =AK109 -> 0 | H111: =AN109 -> 0 | I111: =E111+F111+G111+H111 -> 0 | K111: hide and show in a blend sheet summary
D112: Fertilizer Blend Target for Input Retailer (actual lb/acre) | E112: =E110+Q109 -> 0 | F112: =F110+AG109 -> 0 | G112: =G110 -> 0 | H112: =H110 -> 0
D113: Nutrient Supplied Based on Efficiency Factor (actual lb/acre) | E113: =ROUND((S109+T109)+ROUND(E110*E107,2),1) -> 0 | F113: =ROUND((AG109+F110)*F107,0) -> 0 | G113: =ROUND(G110*G107,0) -> 0 | H113: =ROUND(H110*H107,0) -> 0
D114: Fertilizer Cost ($/acre) | E114: =IF(SUM(X109+AB109+AF109)<0,0,SUM(X109+AB109+AF109)) -> 0 | F114: =AJ109 -> 0 | G114: =AM109 -> 0 | H114: =AP109 -> 0 | I114: =E114+F114+G114+H114 -> 0 | S114: =SUM(S109+S65) -> 0
D116: Nutrient Requirement Balance Remaining (actual lb/acre) | E116: =IF(E35=0,0,IF((E94-E113)<3,0,E94-E113)) -> 0 | F116: =IF((F94-F113)<1,0,F94-F113) -> 0 | G116: =IF((G94-G113)<1,0,G94-G113) -> 0 | H116: =IF((H94-H113)<1,0,H94-H113) -> 0 | M116: =E94-E113 -> 0 | P116: =E94-E113 -> 0
E117: =IF(E35=0,"",IF((E94-E113)<-0.1,"over applied",IF((E116)>0,"the yield target will not be met",""))) ->  | F117: =IF((F116)<0,"over applied",IF(F116>0,"the yield target will not be met","")) ->  | G117: =IF((G116)<0,"over applied",IF(G116>0,"the yield target will not be met","")) ->  | H117: =IF((H116)<0,"over applied",IF(H116>0,"the yield target will not be met","")) -> 
E118: =ROUND(E23-'Chart Data (HIDE)'!J64,1) -> 0 | F118: yield decrease (bushels) | I118: ='Chart Data (HIDE)'!J64/'Chart Data (HIDE)'!J46 -> 1 | J118: of target yield | L118: =ABS(ROUND(E118/E23,2)) -> 0 | M118: yield decrease
E119: =ROUND('Chart Data (HIDE)'!N46-('Chart Data (HIDE)'!O64),0) -> 0 | F119: decreased profit | I119: =(E35-E116)/E35 -> 1 | J119: of rec'd N | L119: =ABS(ROUND(E119/'Chart Data (HIDE)'!N46,2)) -> 0 | M119: profit reduction
E120: =ROUND(E118*HLOOKUP(Calculator!$E$20,'Production Costs'!B11:H12,2,FALSE),0) -> 0 | F120: decreased revenue | I120: =E116/E35 -> 0 | J120: reduced N
C121: Fertilizer Efficiency Gain (Loss) - (actual lb/acre) | E121: =IF(E110=0,0,(E110*E107)-E110) -> 0 | F121: =IF(F110=0,0,F113-F110) -> 0 | G121: =IF(G110=0,0,G113-G110) -> 0 | H121: =IF(H110=0,0,H113-H110) -> 0 | K121: based on dollars | S121: =SUM(AH121*($E$14/100)) -> 0 | T121: =SUM(AN121*($E$16/100)) -> 0 | U121: =IF(E104='Formula (HIDE)'!$A$97,IF(E121=0,0,E121),0) -> 0 | V121: =(U121)/($E$12/100) -> 0 | W121: =V121/2204.62 -> 0 | X121: =SUM(W121*$C$12) -> 0 | Y121: =IF(E104='Formula (HIDE)'!$A$98,IF(E121=0,0,E121),0) -> 0 | Z121: =(Y121)/($E$13/100) -> 0 | AA121: =Z121/2204.62 -> 0 | AB121: =SUM(AA121*$C$13) -> 0 | AC121: =IF(E104='Formula (HIDE)'!$A$96,IF(E121=0,0,E121),0) -> 0 | AD121: =SUM(AC121)/($E$11/100) -> 0 | AE121: =AD121/2204.62 -> 0 | AF121: =SUM(AE121*$C$11) -> 0 | AG121: =SUM(AN121*($F$16/100)) -> 0 | AH121: =IF(F121=0,0,SUM(F121-AG121)/($F$14/100)) -> 0 | AI121: =(AH121)/2204.62 -> 0 | AJ121: =SUM(AI121*$C$14) -> 0 | AK121: =SUM(G121/($G$15/100)) -> 0 | AL121: =(AK121)/2204.62 -> 0 | AM121: =SUM(AL121*$C$15) -> 0 | AN121: =SUM(H121/($H$16/100)) -> 0 | AO121: =(AN121)/2204.62 -> 0 | AP121: =SUM(AO121*$C$16) -> 0
C122: Fertilizer Efficiency Gain (Loss) Cost - ($/acre) | E122: =SUM(X121+AB121+AF121) -> 0 | F122: =AJ121 -> 0 | G122: =AM121 -> 0 | H122: =AP121 -> 0 | I122: =E122+F122+G122+H122 -> 0 | S122: Efficiency Loss
E123: =E110*'Formula (HIDE)'!K83 -> 0
C124: Nitrogen fert (actual lbs) due to inefficient N | E124: =IF(E110=0,0,E123-(E110*E107)) -> 0
A125: Fertilizer Scenario (Variable Rate) Analysis
A130: Fertilizer Efficiency Analysis
K131: TOTAL
C132: Fertilizer Efficiency Gain (Loss) - (actual lb/acre) | E132: =E121+E96+E74 -> 14.648 | F132: 0 | G132: 0 | H132: 0 | K132: =E132+F132+G132+H132 -> 14.648
C133: Fertilizer Efficiency Gain (Loss) Cost - ($/acre) | E133: 11.91628016 | F133: 0 | G133: 0 | H133: 0 | K133: =E133+F133+G133+H133 -> 11.91628016
C135: Cost Efficiency | P135: =E138 -> 0.8951453356 | R135: ='Chart Data (HIDE)'!BN37 -> 107 | S135: ='Chart Data (HIDE)'!BO37 -> 30 | T135: ='Chart Data (HIDE)'!BP37 -> 15 | U135: ='Chart Data (HIDE)'!BQ37 -> 15 | V135: =E137 -> 111.61
C136: Most Efficient | E136: ="Your "&C31&" Field" -> Your Field | H136: Least Efficient | P136: =E137-C137 -> 6.89 | S136: move to hide area
B137: Fertilizer Cost ($/acre) | C137: =ROUND(R34,2) -> 104.72 | E137: =ROUND(I114+I92+I70,2) -> 111.61 | H137: =ROUND(R35,2) -> 170.43 | S137: =H137-C137 -> 65.71 | T137: (worst minus best) | AF137: =IF(E116>0,IF(E118=0,"WARNING! N fertilizer applied ("&'Chart Data (HIDE)'!E64&" lb/ac.) does not meet target yield requirements.","WARNING! N fertilizer applied ("&'Chart Data (HIDE)'!E64&" lb/ac.) does not meet target yield requirements. Your yield may be reduced "&E118&" bu/ac ("&L118*100&"%), which decreases revenue by $"&E120&"/ac and profit by $"&E119&"/ac ("&L119*100&"%)!"),"") -> 
B138: Fertilizer Cost Efficiency Score (%) | C138: 1 | E138: =IF(OR(S138/S137<0,S138/S137>1),0%,S138/S137) -> 0.8951453356 | H138: 0 | P138: ='Chart Data (HIDE)'!M64 -> 582.75 | S138: =H137-E137 -> 58.82 | T138: (worst minus your cost)
B139: Your Field Inefficiency Cost ($/acre) | E139: =IF(E137-C137<=-0.01,"Error",TEXT(E137-C137,"$#,##0.00")&" *") -> $6.89 * | P139: ='Chart Data (HIDE)'!L64 -> 595.2829578
AI140: phos
B141: Net Profit ($/acre) | C141: ='Chart Data (HIDE)'!N63 -> -5.206928731 | E141: ='Chart Data (HIDE)'!N64 -> -12.5329578 | H141: ='Chart Data (HIDE)'!N65 -> -75.07534243 | T141: (worst minus best) | W141: =AC147-AD147 -> 36.5 | X141: AC155-AD155 | AF141: (worst minus best) | AI141: =AH35-AH34 -> 57.69230769 | AP141: =SUM(I70-O150) -> 0 | AQ141: Application #1 | AU141: =LARGE(AP141:AP143,1) -> 6.746447959 | AV141: =VLOOKUP(AU141,AP141:AQ143,2,FALSE) -> Application #2
T142: (worst minus your lb N) | W142: =AC147-W147 -> 36.5 | X142: AC155-Y155 | Y142: =IF(W141=0,1,IF(W142/W141>1,1,W142/W141)) -> 1 | AC142: worst | AD142: best | AF142: (worst minus your lb p) | AI142: =(AH35)-(AH65+AH87+AH109) -> 57.69230769 | AK142: =AI142/AI141 -> 1 | AP142: =SUM(I92-O155) -> 6.746447959 | AQ142: Application #2 | AU142: =LARGE(AP141:AP143,2) -> 0 | AV142: =VLOOKUP(AU142,AP141:AQ143,2,FALSE) -> Application #1
W143: Your | AB143: ='Formula (HIDE)'!L83 -> 1 | AC143: =MIN('Formula (HIDE)'!C82:C85) -> 0.8 | AD143: =MAX('Formula (HIDE)'!C82:C85) -> 1.2 | AG143: =SUM(AG147-1)*0.33333333 -> 0.66666666 | AP143: =SUM(I114-O158) -> 0 | AQ143: Application #3
W144: =IF(K58="yes",Y144-(Y144*$J$49),Y144) -> 0 | X144: app1 n | Y144: =P65 -> 0 | Z144: =E63 -> 1 | AA144: =1/Z144 -> 1 | AB144: =Y144/AA144 -> 0 | AC144: =(1/MIN('Formula (HIDE)'!C82:C85))*AB144 -> 0 | AD144: =(1/MAX('Formula (HIDE)'!C82:C85))*AB144 -> 0 | AF144: =N62 -> 3 | AG144: =AF144*Y144 -> 0 | AI144: =((F66/(1/'Formula (HIDE)'!J96))+(F88/(1/'Formula (HIDE)'!J97))+(F110/(1/'Formula (HIDE)'!J98)))/(F66+F88+F110) -> 1 | AP144: =SUM(AP141:AP143) -> 6.746447959 | AU144: =IF(AU141<5,"* Well done! Win-Win! You have achieved "&ROUND(E138*100,0)&"% fertilizer cost efficiency and greatly improved your on-farm environmental management score!","* Did you know? Your farm could save $"&ROUND(AU141,0)&"/ac on "&AV141&" by improving your fertilizer efficiency through choosing better timing, placement and source!") -> * Did you know? Your farm could save $7/ac on Application #2 by improving your fertilizer efficiency through choosing better timing, placement and source!
W145: =IF(K80="yes",Y145-(Y145*$J$49),Y145) -> 73 | X145: app2 n | Y145: =P87 -> 73 | Z145: =E85 -> 1.2 | AA145: =1/Z145 -> 0.8333333333 | AB145: =Y145/AA145 -> 87.6 | AC145: =(1/MIN('Formula (HIDE)'!C82:C85))*AB145 -> 109.5 | AD145: =(1/MAX('Formula (HIDE)'!C82:C85))*AB145 -> 73 | AF145: =N84 -> 3 | AG145: =AF145*Y145 -> 219 | AU145: ***blank if zero***
W146: =IF(K102="yes",Y146-(Y146*$J$49),Y146) -> 0 | X146: app3 n | Y146: =P109 -> 0 | Z146: =E107 -> 1.2 | AA146: 0.8333333333 | AB146: 0 | AC146: =(1/MIN('Formula (HIDE)'!C82:C85))*AB146 -> 0 | AD146: =(1/MAX('Formula (HIDE)'!C82:C85))*AB146 -> 0 | AF146: =N106 -> 3 | AG146: 0 | AU146: =IF(AU141<5,"* Well done! Win-Win! You have achieved "&ROUND(E138*100,0)&"% fertilizer cost efficiency!","* Did you know? Your farm could save $"&ROUND(AU141,0)&"/ac on "&AV141&" by improving your fertilizer efficiency!") -> * Did you know? Your farm could save $7/ac on Application #2 by improving your fertilizer efficiency!
W147: =SUM(W144:W146) -> 73 | Y147: =SUM(Y144:Y146) -> 73 | AB147: =SUM(AB144:AB146) -> 87.6 | AC147: 109.5 | AD147: 73 | AG147: =SUM(AG144:AG146)/Y147 -> 3 | AT147: 3.5-4 | AU147: * Congratulations! You have little to no opportunity for improvement in your N fertilizer management as you are using appropriate placement, timing and source to limit your GHG emissions.
T148: ="Scores are primarily based upon the higher N rates required with less efficient placement options. The use of Enhanced Efficiency N (EEN) will improve the score by up to "&J49*100&"% for each application when utilized. " -> Scores are primarily based upon the higher N rates required with less efficient placement options. The use of Enhanced Efficiency N (EEN) will improve the score by up to 0% for each application when utilized. | AT148: 3.0-3.4 | AU148: * You may have some opportunity to reduce your GHG emissions further by making changes to your source, timing and placement of N fertilizer.
AT149: 2.0-2.9 | AU149: * You have an opportunity to reduce your GHG emissions by making changes to your source, timing and placement of N fertilizer. You may wish to consult your trusted nutrient management advisor to explore these opportunities.
N150: best1 | O150: =X150+AB150+AF150+AJ150+AM150+AP150 -> 0 | P150: =U150+Y150+AC150 -> 0 | Q150: =S150+T150 -> 0 | R150: =S150+T150+U150+Y150+AC150 -> 0 | S150: =SUM(AH150*($E$14/100)) -> 0 | T150: =SUM(AN150*($E$16/100)) -> 0 | U150: =IF(MIN($J$11:$J$13)=$J$12,IF(E66=0,0,($E$35-$E$72)-S150-T150),0)*MIN('Formula (HIDE)'!$B$83,'Formula (HIDE)'!$B$85) -> 0 | V150: =MAXA(0,(U150)/($E$12/100)) -> 0 | W150: =V150/2204.62 -> 0 | X150: =SUM(W150*$C$12) -> 0 | Y150: =IF(MIN($J$11:$J$13)=$J$13,IF(E66=0,0,($E$35-$E$72)-S150-T150),0)*MIN('Formula (HIDE)'!$B$82:$B$85) -> 0 | Z150: =MAXA(0,(Y150)/($E$13/100)) -> 0 | AA150: =Z150/2204.62 -> 0 | AB150: =SUM(AA150*$C$13) -> 0 | AC150: =IF(MIN($J$11:$J$13)=$J$11,IF(E66=0,0,($E$35-$E$72)-S150-T150),0)*MIN('Formula (HIDE)'!$B$82:$B$85) -> 0 | AD150: =SUM(AC150)/($E$11/100) -> 0 | AE150: =AD150/2204.62 -> 0 | AF150: =SUM(AE150*$C$11) -> 0 | AG150: =SUM(AN150*($F$16/100)) -> 0 | AH150: =IF($F$66=0,0,SUM(($F$35-$F$72)-AG150)/($F$14/100))*MIN('Formula (HIDE)'!$E$82:$E$83) -> 0 | AI150: =(AH150)/2204.62 -> 0 | AJ150: =SUM(AI150*$C$14) -> 0 | AK150: =IF($G$66=0,0,SUM(($G$35-$G$72)/($G$15/100)))*MIN('Formula (HIDE)'!$E$85:$E$86) -> 0 | AL150: =(AK150)/2204.62 -> 0 | AM150: =SUM(AL150*$C$15) -> 0 | AN150: =IF($H$66=0,0,SUM(($H$35-$H$72)/($H$16/100)))*MIN('Formula (HIDE)'!$H$82:$H$83) -> 0 | AO150: =(AN150)/2204.62 -> 0 | AP150: =SUM(AO150*$C$16) -> 0 | AR150: best | AS150: best | AT150: 1.0-1.9 | AU150: * There are major opportunities for you to improve your GHG emissions. Please consult your trusted nutrient management advisor to discuss changes to your source, timing and placement of N fertilizer.
N151: worst1 | O151: =X151+AB151+AF151+AJ151+AM151+AP151 -> 0 | P151: =U151+Y151+AC151 -> 0 | Q151: =S151+T151 -> 0 | R151: =S151+T151+U151+Y151+AC151 -> 0 | S151: =SUM(AH151*($E$14/100)) -> 0 | T151: =SUM(AN151*($E$16/100)) -> 0 | U151: =IF(MAX($J$11:$J$13)=$J$12,IF(E66=0,0,($E$35-$E$72)-S151-T151),0)*MAX('Formula (HIDE)'!$B$82:$B$85) -> 0 | V151: =MAXA(0,(U151)/($E$12/100)) -> 0 | W151: =V151/2204.62 -> 0 | X151: =SUM(W151*$C$12) -> 0 | Y151: =IF(MAX($J$11:$J$13)=$J$13,IF(E66=0,0,($E$35-$E$72)-S151-T151),0)*MAX('Formula (HIDE)'!$B$82:$B$85) -> 0 | Z151: =MAXA(0,(Y151)/($E$13/100)) -> 0 | AA151: =Z151/2204.62 -> 0 | AB151: =SUM(AA151*$C$13) -> 0 | AC151: =IF(MAX($J$11:$J$13)=$J$11,IF(E66=0,0,($E$35-$E$72)-S151-T151),0)*MAX('Formula (HIDE)'!$B$82:$B$85) -> 0 | AD151: =SUM(AC151)/($E$11/100) -> 0 | AE151: =AD151/2204.62 -> 0 | AF151: =SUM(AE151*$C$11) -> 0 | AG151: =SUM(AN151*($F$16/100)) -> 0 | AH151: =IF($F$66=0,0,SUM(($F$35-$F$72)-AG151)/($F$14/100))*MAX('Formula (HIDE)'!$E$82:$E$83) -> 0 | AI151: =(AH151)/2204.62 -> 0 | AJ151: =SUM(AI151*$C$14) -> 0 | AK151: =IF($G$66=0,0,SUM(($G$35-$G$72)/($G$15/100)))*MAX('Formula (HIDE)'!$E$85:$E$86) -> 0 | AL151: =(AK151)/2204.62 -> 0 | AM151: =SUM(AL151*$C$15) -> 0 | AN151: =IF($H$66=0,0,SUM(($H$35-$H$72)/($H$16/100)))*MAX('Formula (HIDE)'!$H$82:$H$83) -> 0 | AO151: =(AN151)/2204.62 -> 0 | AP151: =SUM(AO151*$C$16) -> 0 | AR151: worst | AS151: worst
U152: =$B$12 -> Nitrogen (82-0-0-0) | Y152: =$B$13 -> Nitrogen (28-0-0-0) | AC152: =$B$11 -> Nitrogen (46-0-0-0) | AG152: =$B$14 -> Phosphate (11-52-0-0) | AK152: =$B$15 -> Potash (0-0-60-0) | AN152: =$B$16 -> Sulphur (20.5-0-0-24) | AU152: =IF(E35=0,"",IF(AG147<2,AU150,IF(AG147<3,AU149,IF(AG147<3.5,AU148,AU147)))) -> * You may have some opportunity to reduce your GHG emissions further by making changes to your source, timing and placement of N fertilizer.
S153: blend | T153: blend | U153: preseed | V153: preseed | W153: preseed | X153: preseed | Y153: suppl | Z153: suppl | AA153: suppl | AB153: suppl | AC153: blend | AD153: blend | AE153: blend | AF153: blend | AG153: blend | AH153: blend | AI153: blend | AJ153: blend | AK153: blend | AL153: blend | AM153: blend | AN153: blend | AO153: blend | AP153: blend
S154: N phos | T154: N sul1 | U154: N actual | V154: N lbs | W154: N MT | X154: N cost | Y154: N actual | Z154: N lbs | AA154: N MT | AB154: N cost | AC154: N urea | AD154: N lbs | AE154: N MT | AF154: N cost | AG154: P sul | AH154: phos lbs | AI154: phos MT | AJ154: phos cost | AK154: potash | AL154: pot MT | AM154: pot cost | AN154: sul lbs | AO154: sul MT | AP154: sul cost
N155: best2 | O155: =X155+AB155+AF155+AJ155+AM155+AP155 -> 104.8683173 | P155: =U155+Y155+AC155 -> 73.20112179 | Q155: =S155+T155 -> 19.15865385 | R155: =S155+T155+U155+Y155+AC155 -> 92.35977564 | S155: =SUM(AH155*($E$14/100)) -> 6.346153846 | T155: =SUM(AN155*($E$16/100)) -> 12.8125 | U155: =IF(MIN($J$11:$J$13)=$J$12,IF(E88=0,0,($E$72-$E$94)-S155-T155),0)*MIN('Formula (HIDE)'!$B$83,'Formula (HIDE)'!$B$85) -> 73.20112179 | V155: =MAXA(0,(U155)/($E$12/100)) -> 89.26966073 | W155: =V155/2204.62 -> 0.04049208513 | X155: =SUM(W155*$C$12) -> 52.63971067 | Y155: =IF(MIN($J$11:$J$13)=$J$13,IF(E88=0,0,($E$72-$E$94)-S155-T155),0)*MIN('Formula (HIDE)'!$B$82:$B$85) -> 0 | Z155: =MAXA(0,(Y155)/($E$13/100)) -> 0 | AA155: =Z155/2204.62 -> 0 | AB155: =SUM(AA155*$C$13) -> 0 | AC155: =IF(MIN($J$11:$J$13)=$J$11,IF(E88=0,0,($E$72-$E$94)-S155-T155),0)*MIN('Formula (HIDE)'!$B$82:$B$85) -> 0 | AD155: =SUM(AC155)/($E$11/100) -> 0 | AE155: =AD155/2204.62 -> 0 | AF155: =SUM(AE155*$C$11) -> 0 | AG155: =SUM(AN155*($F$16/100)) -> 0 | AH155: =IF($F$88=0,0,SUM(($F$72-$F$94)-AG155)/($F$14/100))*MIN('Formula (HIDE)'!$E$82:$E$83) -> 57.69230769 | AI155: =(AH155)/2204.62 -> 0.0261688217 | AJ155: =SUM(AI155*$C$14) -> 28.13148333 | AK155: =IF($G$88=0,0,SUM(($G$72-$G$94)/($G$15/100)))*MIN('Formula (HIDE)'!$E$85:$E$86) -> 25 | AL155: =(AK155)/2204.62 -> 0.01133982274 | AM155: =SUM(AL155*$C$15) -> 7.08738921 | AN155: =IF($H$88=0,0,SUM(($H$72-$H$94)/($H$16/100)))*MIN('Formula (HIDE)'!$H$82:$H$83) -> 62.5 | AO155: =(AN155)/2204.62 -> 0.02834955684 | AP155: =SUM(AO155*$C$16) -> 17.0097341 | AR155: best
N156: worst2 | O156: =X156+AB156+AF156+AJ156+AM156+AP156 -> 170.318822 | P156: =U156+Y156+AC156 -> 101.8689904 | Q156: =S156+T156 -> 25.50480769 | R156: =S156+T156+U156+Y156+AC156 -> 127.3737981 | S156: =SUM(AH156*($E$14/100)) -> 12.69230769 | T156: =SUM(AN156*($E$16/100)) -> 12.8125 | U156: =IF(MAX($J$11:$J$13)=$J$12,IF(E88=0,0,($E$72-$E$94)-S156-T156),0)*MAX('Formula (HIDE)'!$B$82:$B$85) -> 0 | V156: =MAXA(0,(U156)/($E$12/100)) -> 0 | W156: =V156/2204.62 -> 0 | X156: =SUM(W156*$C$12) -> 0 | Y156: =IF(MAX($J$11:$J$13)=$J$13,IF(E88=0,0,($E$72-$E$94)-S156-T156),0)*MAX('Formula (HIDE)'!$B$82:$B$85) -> 0 | Z156: =MAXA(0,(Y156)/($E$13/100)) -> 0 | AA156: =Z156/2204.62 -> 0 | AB156: =SUM(AA156*$C$13) -> 0 | AC156: =IF(MAX($J$11:$J$13)=$J$11,IF(E88=0,0,($E$72-$E$94)-S156-T156),0)*MAX('Formula (HIDE)'!$B$82:$B$85) -> 101.8689904 | AD156: =SUM(AC156)/($E$11/100) -> 221.4543269 | AE156: =AD156/2204.62 -> 0.1004501125 | AF156: =SUM(AE156*$C$11) -> 82.87134278 | AG156: =SUM(AN156*($F$16/100)) -> 0 | AH156: =IF($F$88=0,0,SUM(($F$72-$F$94)-AG156)/($F$14/100))*MAX('Formula (HIDE)'!$E$82:$E$83) -> 115.3846154 | AI156: =(AH156)/2204.62 -> 0.0523376434 | AJ156: =SUM(AI156*$C$14) -> 56.26296665 | AK156: =IF($G$88=0,0,SUM(($G$72-$G$94)/($G$15/100)))*MAX('Formula (HIDE)'!$E$85:$E$86) -> 50 | AL156: =(AK156)/2204.62 -> 0.02267964547 | AM156: =SUM(AL156*$C$15) -> 14.17477842 | AN156: =IF($H$88=0,0,SUM(($H$72-$H$94)/($H$16/100)))*MAX('Formula (HIDE)'!$H$82:$H$83) -> 62.5 | AO156: =(AN156)/2204.62 -> 0.02834955684 | AP156: =SUM(AO156*$C$16) -> 17.0097341 | AR156: worst
N158: best3 | O158: =X158+AB158+AF158+AJ158+AM158+AP158 -> 0 | P158: =U158+Y158+AC158 -> 0 | Q158: =S158+T158 -> 0 | R158: =S158+T158+U158+Y158+AC158 -> 0 | S158: =SUM(AH158*($E$14/100)) -> 0 | T158: =SUM(AN158*($E$16/100)) -> 0 | U158: =IF(MIN($J$11:$J$13)=$J$12,IF(E110=0,0,($E$94-$E$116)-S158-T158),0)*MIN('Formula (HIDE)'!$B$83,'Formula (HIDE)'!$B$85) -> 0 | V158: =MAXA(0,(U158)/($E$12/100)) -> 0 | W158: =V158/2204.62 -> 0 | X158: =SUM(W158*$C$12) -> 0 | Y158: =IF(MIN($J$11:$J$13)=$J$13,IF(E110=0,0,($E$94-$E$116)-S158-T158),0)*MIN('Formula (HIDE)'!$B$82:$B$85) -> 0 | Z158: =MAXA(0,(Y158)/($E$13/100)) -> 0 | AA158: =Z158/2204.62 -> 0 | AB158: =SUM(AA158*$C$13) -> 0 | AC158: =IF(MIN($J$11:$J$13)=$J$11,IF(E110=0,0,($E$94-$E$116)-S158-T158),0)*MIN('Formula (HIDE)'!$B$82:$B$85) -> 0 | AD158: =SUM(AC158)/($E$11/100) -> 0 | AE158: =AD158/2204.62 -> 0 | AF158: =SUM(AE158*$C$11) -> 0 | AG158: =SUM(AN158*($F$16/100)) -> 0 | AH158: =IF($F$110=0,0,SUM(($F$94-$F$116)-AG158)/($F$14/100))*MIN('Formula (HIDE)'!$E$82:$E$83) -> 0 | AI158: =(AH158)/2204.62 -> 0 | AJ158: =SUM(AI158*$C$14) -> 0 | AK158: =IF($G$110=0,0,SUM(($G$94-$G$116)/($G$15/100)))*MIN('Formula (HIDE)'!$E$85:$E$86) -> 0 | AL158: =(AK158)/2204.62 -> 0 | AM158: =SUM(AL158*$C$15) -> 0 | AN158: =IF($H$110=0,0,SUM(($H$94-$H$116)/($H$16/100)))*MIN('Formula (HIDE)'!$H$82:$H$83) -> 0 | AO158: =(AN158)/2204.62 -> 0 | AP158: =SUM(AO158*$C$16) -> 0 | AR158: best
N159: worst3 | O159: =X159+AB159+AF159+AJ159+AM159+AP159 -> 0 | P159: =U159+Y159+AC159 -> 0 | Q159: =S159+T159 -> 0 | R159: =S159+T159+U159+Y159+AC159 -> 0 | S159: =SUM(AH159*($E$14/100)) -> 0 | T159: =SUM(AN159*($E$16/100)) -> 0 | U159: =IF(MAX($J$11:$J$13)=$J$12,IF(E110=0,0,($E$94-$E$116)-S159-T159),0)*MAX('Formula (HIDE)'!$B$82:$B$85) -> 0 | V159: =MAXA(0,(U159)/($E$12/100)) -> 0 | W159: =V159/2204.62 -> 0 | X159: =SUM(W159*$C$12) -> 0 | Y159: =IF(MAX($J$11:$J$13)=$J$13,IF(E110=0,0,($E$94-$E$116)-S159-T159),0)*MAX('Formula (HIDE)'!$B$82:$B$85) -> 0 | Z159: =MAXA(0,(Y159)/($E$13/100)) -> 0 | AA159: =Z159/2204.62 -> 0 | AB159: =SUM(AA159*$C$13) -> 0 | AC159: =IF(MAX($J$11:$J$13)=$J$11,IF(E110=0,0,($E$94-$E$116)-S159-T159),0)*MAX('Formula (HIDE)'!$B$82:$B$85) -> 0 | AD159: =SUM(AC159)/($E$11/100) -> 0 | AE159: =AD159/2204.62 -> 0 | AF159: =SUM(AE159*$C$11) -> 0 | AG159: =SUM(AN159*($F$16/100)) -> 0 | AH159: =IF($F$110=0,0,SUM(($F$94-$F$116)-AG159)/($F$14/100))*MAX('Formula (HIDE)'!$E$82:$E$83) -> 0 | AI159: =(AH159)/2204.62 -> 0 | AJ159: =SUM(AI159*$C$14) -> 0 | AK159: =IF($G$110=0,0,SUM(($G$94-$G$116)/($G$15/100)))*MAX('Formula (HIDE)'!$E$85:$E$86) -> 0 | AL159: =(AK159)/2204.62 -> 0 | AM159: =SUM(AL159*$C$15) -> 0 | AN159: =IF($H$110=0,0,SUM(($H$94-$H$116)/($H$16/100)))*MAX('Formula (HIDE)'!$H$82:$H$83) -> 0 | AO159: =(AN159)/2204.62 -> 0 | AP159: =SUM(AO159*$C$16) -> 0 | AR159: worst
O161: =O150+O155+O158 -> 104.8683173 | P161: =SUM(R34-O161) -> -0.1446288367 | X161: =SUM(X150,X155,X158) -> 52.63971067 | AB161: =SUM(AB150,AB155,AB158) -> 0 | AC161: =SUM(AC150,AC155,AC158) -> 0 | AF161: =SUM(AF150,AF155,AF158) -> 0 | AJ161: =SUM(AJ150,AJ155,AJ158) -> 28.13148333 | AM161: =SUM(AM150,AM155,AM158) -> 7.08738921 | AP161: =SUM(AP150,AP155,AP158) -> 17.0097341
O162: =O151+O156+O159 -> 170.318822 | P162: =SUM(R35-O162) -> 0.1065775041 | X162: =SUM(X151,X156,X159) -> 0 | AB162: =SUM(AB151,AB156,AB159) -> 0 | AF162: =SUM(AF151,AF156,AF159) -> 82.87134278 | AJ162: =SUM(AJ151,AJ156,AJ159) -> 56.26296665 | AM162: =SUM(AM151,AM156,AM159) -> 14.17477842 | AP162: =SUM(AP151,AP156,AP159) -> 17.0097341
C163: Greenhouse Gas Efficiency
C164: Best | E164: Your Farm Score | H164: Worst
B165: Nitrogen Formulation Fertilizer Applied | C165: =AD147 -> 73 | E165: =W147 -> 73 | H165: =AC147 -> 109.5
B166: (actual lbs/acre)
B167: Fertilizer GHG Efficiency Score (%) | C167: 1 | E167: =W142/W141 -> 1 | H167: 0
B168: Inefficient Nitrogen Fertilizer Applied due to | E168: =E124+E99+E77 -> 0
B169: Method & Timing (actual lbs/acre)
B170: CO2 Equivalent due to Inefficient Nitrogen | E170: =E168*G173 -> 0
B171: (lbs/acre)
F173: Pounds of CO2 Equivalent per pound of Nitrogen | G173: 4.62
A175: Fertilizer Profitability & Cost Analysis
D197: Change in Nitrogen Fertilizer Rate Applied for Analysis | E197: 10 | F197: (actual lbs. per acre)
A220: Note: This budget is only a guide and is not intended as an in-depth study of soil fertility. Interpretation and use of this information is the responsibility of the user. Use is Copyright and is subject to the terms and conditions of the OpenMB Information and Data Use Licence found at https://www.gov.mb.ca/legal/copyright.html Values may differ due to rounding. If you need help with a budget, contact a Farm Management Specialist.
A223: Created and maintained by | I223: Release Date: | J223: 2024-01-01

Sheet Analysis
A1: Equivalent Nitrogen Cost (with formulation, efficiency factoring, storage and interest costs)
C3: Baseline Fertilizer Application | I3: Proposed Fertilizer Application
C5: Fall | I5: Spring
C6: Banded | I6: Banded
C7: Nitrogen (82-0-0-0) | I7: Nitrogen (46-0-0-0)
C9: =IF(C7='Formula (HIDE)'!$A$96,Calculator!$C$11,IF(C7='Formula (HIDE)'!$A$97,Calculator!$C$12,Calculator!$C$13)) -> 1300 | D9: per tonne | I9: =J15+C14+J22 -> 580.3735772 | J9: equivalent per tonne
C10: =SUM(C9/(2204.62*(IF(C7='Formula (HIDE)'!$A$96,Calculator!$E$11,IF(C7='Formula (HIDE)'!$A$97,Calculator!$E$12,Calculator!$E$13))/100))) -> 0.7191107101 | D10: per lb. actual N | I10: =SUM(I9/(2204.62*(IF(I7='Formula (HIDE)'!$A$96,Calculator!$E$11,IF(I7='Formula (HIDE)'!$A$97,Calculator!$E$12,Calculator!$E$13))/100))) -> 0.5722898684 | J10: per lb. actual N
I11: =IF(J23<0,"*($"&-J23&" extra cost per lb. N)","*($"&J23&" savings per lb. N)") -> *($0.147 savings per lb. N)
C12: Assumptions:
C13: 0 | D13: storage cost per tonne (if required)
C14: =IF(J21=0,0,ROUND((J15/(12/J21))*('Production Costs'!$C$19/100),2)) -> -27.35 | D14: interest cost per tonne
J15: =SUM(J19/J18) -> 607.7235772 | K15: equivalent $ cost per tonne with efficiency
J16: =SUM(J15/(2204.62*(IF(I7='Formula (HIDE)'!$A$96,Calculator!$E$11,IF(I7='Formula (HIDE)'!$A$97,Calculator!$E$12,Calculator!$E$13))/100))) -> 0.5992589251 | K16: equivalent $ cost per lb with efficiency
D17: =IF(C5="Spring",VLOOKUP(C6,'Formula (HIDE)'!$J$82:$L$83,2,FALSE),VLOOKUP(C6,'Formula (HIDE)'!$J$82:$L$83,3,FALSE)) -> 1 | E17: efficiency | J17: =IF(I5="Spring",VLOOKUP(I6,'Formula (HIDE)'!$J$82:$L$83,2,FALSE),VLOOKUP(I6,'Formula (HIDE)'!$J$82:$L$83,3,FALSE)) -> 1.2
J18: =J17/D17 -> 1.2 | K18: efficiency factor
J19: =(2204.62*IF(I7='Formula (HIDE)'!$A$96,Calculator!$E$11,IF(I7='Formula (HIDE)'!$A$97,Calculator!$E$12,Calculator!$E$13))/100)*C10 -> 729.2682927 | K19: equivalent $ per tonne
J20: =SUM(J19/(2204.62*(IF(I7='Formula (HIDE)'!$A$96,Calculator!$E$11,IF(I7='Formula (HIDE)'!$A$97,Calculator!$E$12,Calculator!$E$13))/100))) -> 0.7191107101 | K20: $/lb N
J21: =IF(C5=I5,0,IF(AND(C5="Fall",I5="Spring"),-6,6)) -> -6 | K21: months of carry cost
J22: =IF(J21<0,C13,0) -> 0 | K22: storage cost
J23: =ROUND(C10-I10,3) -> 0.147
A25: Equipment Purchase for Nitrogen Spring Banding Cost Benefit Analysis
C27: Baseline Fertilizer Application | I27: Proposed Fertilizer Application
C29: Fall | I29: Spring
C30: Banded | I30: Banded
C31: Nitrogen (82-0-0-0) | I31: Nitrogen (46-0-0-0)
C33: =IF(C31='Formula (HIDE)'!$A$96,Calculator!$C$11,IF(C31='Formula (HIDE)'!$A$97,Calculator!$C$12,Calculator!$C$13)) -> 1300 | D33: per tonne | I33: =J62+C38+J69 -> 580.3735772 | J33: equivalent per tonne
C34: =SUM(C33/(2204.62*(IF(C31='Formula (HIDE)'!$A$96,Calculator!$E$11,IF(C31='Formula (HIDE)'!$A$97,Calculator!$E$12,Calculator!$E$13))/100))) -> 0.7191107101 | D34: per lb. actual N | I34: =SUM(I33/(2204.62*(IF(I31='Formula (HIDE)'!$A$96,Calculator!$E$11,IF(I31='Formula (HIDE)'!$A$97,Calculator!$E$12,Calculator!$E$13))/100))) -> 0.5722898684 | J34: per lb. actual N
I35: =IF(J70<0,"*($"&-J70&" extra cost per lb. N)","*($"&J70&" savings per lb. N)") -> *($0.147 savings per lb. N)
C36: Assumptions:
C37: 0 | D37: storage cost per tonne (if required)
C38: =IF(J68=0,0,ROUND((J62/(12/J68))*('Production Costs'!$C$19/100),2)) -> -27.35 | D38: interest cost per tonne
A42: Cost Benefit Analysis:
C43: 60 | D43: lbs. actual N per acre (being changed to spring banded)
C44: 1750 | D44: acres applied per year (only N fertilizer acres)
B46: Calculation #1 - Breakven Equipment Upgrade
C47: 5 | D47: payback period (in years)
C48: 0.085 | D48: interest rate
C50: Banding Equipment Upgrade Paid For By Fertilizer Efficiency:
C51: =-PV(C48,C47,J71,0,0) -> 60823.81049 | D51: ="Breakeven Capital to Spend (based on $"&TEXT(J71,"#,###")&" annual fertilizer savings over "&C47&" years @ "&C48*100&"%)" -> Breakeven Capital to Spend (based on $15,435 annual fertilizer savings over 5 years @ 8.5%)
C52: * If the actual cost of banding equipment is less, then it likely beneficial to invest in upgrades.
A53: OR
B54: Calculation #2 - Payback Period for Equipment Upgrade
C55: 50000 | D55: equipment upgrade cost
C56: 0.085 | D56: interest rate
C58: Banding Equipment Upgrade Paid For By Fertilizer Efficiency:
C59: =NPER(C56,-J71,C55,0,0) -> 3.947831752 | D59: ="Years breakeven payback period (based on $"&TEXT(J71,"#,###")&" annual fertilizer savings @ "&C56*100&"%)" -> Years breakeven payback period (based on $15,435 annual fertilizer savings @ 8.5%)
C60: * If the actual payback period of banding equipment is less, then it likely beneficial to invest in upgrades.
J62: =SUM(J66/J65) -> 607.7235772 | K62: equivalent $ cost per tonne with efficiency
J63: =SUM(J62/(2204.62*(IF(I31='Formula (HIDE)'!$A$96,Calculator!$E$11,IF(I31='Formula (HIDE)'!$A$97,Calculator!$E$12,Calculator!$E$13))/100))) -> 0.5992589251 | K63: equivalent $ cost per lb with efficiency
D64: =IF(C29="Spring",VLOOKUP(C30,'Formula (HIDE)'!$J$82:$L$83,2,FALSE),VLOOKUP(C30,'Formula (HIDE)'!$J$82:$L$83,3,FALSE)) -> 1 | E64: efficiency | J64: =IF(I29="Spring",VLOOKUP(I30,'Formula (HIDE)'!$J$82:$L$83,2,FALSE),VLOOKUP(I30,'Formula (HIDE)'!$J$82:$L$83,3,FALSE)) -> 1.2
J65: =J64/D64 -> 1.2 | K65: efficiency factor
J66: =(2204.62*IF(I31='Formula (HIDE)'!$A$96,Calculator!$E$11,IF(I31='Formula (HIDE)'!$A$97,Calculator!$E$12,Calculator!$E$13))/100)*C34 -> 729.2682927 | K66: equivalent $ per tonne
J67: =SUM(J66/(2204.62*(IF(I31='Formula (HIDE)'!$A$96,Calculator!$E$11,IF(I31='Formula (HIDE)'!$A$97,Calculator!$E$12,Calculator!$E$13))/100))) -> 0.7191107101 | K67: $/lb N
J68: =IF(C29=I29,0,IF(AND(C29="Fall",I29="Spring"),-6,6)) -> -6 | K68: months of carry cost
J69: =IF(J68<0,C37,0) -> 0 | K69: storage cost
J70: =ROUND(C34-I34,3) -> 0.147
J71: =ROUND(J72*C44,0) -> 15435 | K71: Nitrogen Efficiency Savings per Year
J72: =C43*J70 -> 8.82 | K72: calc per acre savings
B74: P2O5 Affordability Index (Build or Maintain Cost Benefit Analysis)
E76: Current1
E77: =YEAR(Calculator!J223) -> 2024 | F77: =SUM(E77-1) -> 2023 | G77: =SUM(F77-1) -> 2022 | H77: 2021 | I77: 2020 | J77: 2019 | K77: Average
B78: P2O5 Cost ($/MT) | E78: =Calculator!$C$14 -> 1075 | F78: =ROUND('Chart Data (HIDE)'!D168,-1) -> 1260 | G78: =ROUND('Chart Data (HIDE)'!D167,-1) -> 800 | H78: =ROUND('Chart Data (HIDE)'!D166,-1) -> 620 | I78: =ROUND('Chart Data (HIDE)'!D165,-1) -> 760 | J78: =ROUND('Chart Data (HIDE)'!D164,-1) -> 660 | K78: =ROUND(AVERAGE(E78:J78),-1) -> 860
B79: Wheat Price ($/bu) | E79: ='Production Costs'!$C$12 -> 9.25 | F79: =ROUND('Chart Data (HIDE)'!C168,1) -> 11.2 | G79: =ROUND('Chart Data (HIDE)'!C167,1) -> 12.4 | H79: =ROUND('Chart Data (HIDE)'!C166,1) -> 7.4 | I79: =ROUND('Chart Data (HIDE)'!C165,1) -> 6.3 | J79: =ROUND('Chart Data (HIDE)'!C164,1) -> 6.7 | K79: =ROUND(AVERAGE(E79:J79),-1) -> 10
B80: Wheat P2O5 Affordability Index2 | E80: =SUM(E78/E79) -> 116.2162162 | F80: =SUM(F78/F79) -> 112.5 | G80: 64.51612903 | H80: 83.78378378 | I80: 120.6349206 | J80: 98.50746269 | K80: =ROUND(AVERAGE(E80:J80),-1) -> 100
B81: Canola Price ($/bu) | E81: ='Production Costs'!$D$12 -> 15.75 | F81: =ROUND('Chart Data (HIDE)'!B168,1) -> 17.8 | G81: =ROUND('Chart Data (HIDE)'!B167,1) -> 22.5 | H81: =ROUND('Chart Data (HIDE)'!B166,1) -> 15.1 | I81: =ROUND('Chart Data (HIDE)'!B165,1) -> 9.9 | J81: =ROUND('Chart Data (HIDE)'!B164,1) -> 10.1 | K81: =ROUND(AVERAGE(F81:J81),1) -> 15.1
B82: Canola P2O5 Affordability Index2 | E82: =SUM(E78/E81) -> 68.25396825 | F82: =SUM(F78/F81) -> 70.78651685 | G82: 35.55555556 | H82: 41.05960265 | I82: 76.76767677 | J82: 65.34653465 | K82: =ROUND(AVERAGE(E82:J82),-1) -> 60
B84: =IF(OR(E80<K80,E82<K82),"1. Current crop year phosphate affordability index is less than the average, potentially economically beneficial to consider building soil P levels.","1. Current crop year phosphate affordability index is greater than the average, potentially economically beneficial to consider maintaining soil P levels and wait for more favourable cost/timing.") -> 1. Current crop year phosphate affordability index is greater than the average, potentially economically beneficial to consider maintaining soil P levels and wait for more favourable cost/timing.
B86: 2. Bushels of grain needed to buy 1 tonne of phosphate fertilizer.
A107: Other Resources:
A108: Manitoba Fertilizer Cost & Efficiency

Sheet Scenario VR Analysis
A1: Fertilizer Scenario (Variable Rate Zone or Field) Analysis
C3: Baseline | I3: Scenario (Zone/Field) #1 | O3: Scenario (Zone/Field) #2 | U3: Scenario (Zone/Field) #3 | AA3: Scenario (Zone/Field) #4
AG4: *****Reset DEFAULT****
A8: Crop | C8: Wheat
A9: Field (Zone) Name or Number
A10: Target Yield (bu/ac) | C10: 63
A11: Acres | C11: 1 | I11: 1 | O11: 0 | U11: 0 | AA11: 0 | AG11: 1
C12: N | D12: P | E12: P | F12: S | I12: N | J12: P | K12: P | L12: S | O12: N | P12: P | Q12: P | R12: S | U12: N | V12: P | W12: P | X12: S | AA12: N | AB12: P | AC12: P | AD12: S | AG12: N | AH12: P | AI12: K | AJ12: S
A13: Soil Test Analysis | C13: 35 | D13: 12 | E13: 150 | F13: 25
A15: Fertilizer Application #1 | C15: N | D15: P2O5 | E15: K2O | F15: S | G15: Cost | I15: N | J15: P2O5 | K15: K2O | L15: S | M15: Cost | O15: N | P15: P2O5 | Q15: K2O | R15: S | S15: Cost | U15: N | V15: P2O5 | W15: K2O | X15: S | Y15: Cost | AA15: N | AB15: P2O5 | AC15: K2O | AD15: S | AE15: Cost | AG15: N | AH15: P | AI15: K | AJ15: S | AK15: Cost
A16: Actual Fertilizer Applied (lb/acre) | C16: 0 | D16: 0 | E16: 0 | F16: 0 | G16: 0
A17: Timing & Method of Application | C17: Spring | F17: Banded
A18: Nitrogen Source | E18: Nitrogen (46-0-0-0)
A20: Fertilizer Application #2 | C20: N | D20: P2O5 | E20: K2O | F20: S | G20: Cost | I20: N | J20: P2O5 | K20: K2O | L20: S | M20: Cost | O20: N | P20: P2O5 | Q20: K2O | R20: S | S20: Cost | U20: N | V20: P2O5 | W20: K2O | X20: S | Y20: Cost | AA20: N | AB20: P2O5 | AC20: K2O | AD20: S | AE20: Cost | AG20: N | AH20: P | AI20: K | AJ20: S | AK20: Cost
A21: Actual Fertilizer Applied (lb/acre) | C21: 90.19615385 | D21: 30 | E21: 0 | F21: 0 | G21: 127.604919
A22: Timing & Method of Application | C22: Spring | F22: Banded
A23: Nitrogen Source | E23: Nitrogen (82-0-0-0)
A25: Fertilizer Application #3 | C25: N | D25: P2O5 | E25: K2O | F25: S | G25: Cost | I25: N | J25: P2O5 | K25: K2O | L25: S | M25: Cost | O25: N | P25: P2O5 | Q25: K2O | R25: S | S25: Cost | U25: N | V25: P2O5 | W25: K2O | X25: S | Y25: Cost | AA25: N | AB25: P2O5 | AC25: K2O | AD25: S | AE25: Cost | AG25: N | AH25: P | AI25: K | AJ25: S | AK25: Cost
A26: Actual Fertilizer Applied (lb/acre) | C26: 0 | D26: 0 | E26: 0 | F26: 0 | G26: 0
A27: Timing & Method of Application | C27: Spring | F27: Banded
A28: Nitrogen Source | E28: Nitrogen (46-0-0-0)
A30: Total Fertilizer Applied | C30: N | D30: P2O5 | E30: K2O | F30: S | G30: Cost | I30: N | J30: P2O5 | K30: K2O | L30: S | M30: Cost | O30: N | P30: P2O5 | Q30: K2O | R30: S | S30: Cost | U30: N | V30: P2O5 | W30: K2O | X30: S | Y30: Cost | AA30: N | AB30: P2O5 | AC30: K2O | AD30: S | AE30: Cost | AG30: N | AH30: P | AI30: K | AJ30: S | AK30: Cost
A31: Factored Actual Fertilizer Applied (lb/acre) | C31: 107 | D31: 30 | E31: 0 | F31: 0 | G31: 127.6 | I31: 0 | J31: 0 | K31: 0 | L31: 0 | M31: 0 | O31: 0 | P31: 0 | Q31: 0 | R31: 0 | S31: 0 | U31: 0 | V31: 0 | W31: 0 | X31: 0 | Y31: 0 | AA31: 0 | AB31: 0 | AC31: 0 | AD31: 0 | AE31: 0 | AG31: 0 | AH31: 0 | AI31: 0 | AJ31: 0 | AK31: 0
A32: Actual Fertilizer Applied (lb/acre) | C32: =C16+C21+C26 -> 90.19615385 | D32: =D16+D21+D26 -> 30 | E32: 0 | F32: 0 | I32: =I16+I21+I26 -> 0 | J32: =J16+J21+J26 -> 0 | K32: 0 | L32: 0 | O32: =O16+O21+O26 -> 0 | P32: =P16+P21+P26 -> 0 | Q32: 0 | R32: 0 | U32: =U16+U21+U26 -> 0 | V32: =V16+V21+V26 -> 0 | W32: 0 | X32: 0 | AA32: =AA16+AA21+AA26 -> 0 | AB32: =AB16+AB21+AB26 -> 0 | AC32: 0 | AD32: 0
A33: Fertilizer Cost Efficiency Score (%) | G33: 1
A34: Your Field Inefficiency Cost ($/acre) | G34: 0
A36: Gross Revenue ($/acre) | G36: 661.5
A37: Total Cost ($/acre) | G37: 592.9938651
A38: Additional Cost ($/acre) | G38: 0 | M38: 0 | S38: 0 | Y38: 0 | AE38: 0
A39: Net Profit ($/acre) | G39: =SUM(G36-G37-G38) -> 68.5061349 | M39: =SUM(M36-M37-M38) -> 0 | S39: =SUM(S36-S37-S38) -> 0 | Y39: =SUM(Y36-Y37-Y38) -> 0 | AE39: =SUM(AE36-AE37-AE38) -> 0 | AK39: =SUM(AK36-AK37) -> 0
A40: Total Net Profit ($) | G40: =IF(C11=0,G39,G39*C11) -> 68.5061349 | M40: =IF(I11=0,M39,M39*I11) -> 0 | S40: =IF(O11=0,S39,S39*O11) -> 0 | Y40: =IF(U11=0,Y39,Y39*U11) -> 0 | AE40: =IF(AA11=0,AE39,AE39*AA11) -> 0 | AK40: =IF(AK39*AG11=AK39,"",AK39*AG11) -> 
A42: Cost/Benefit Analysis Summary
C44: Baseline | I44: Scenario Average | O44: Cost/Benefit Analysis
O45: Compared to Baseline | U45: *Remember to enter your acres above to compare scenarios.
U46: =IF(C11<>I11+O11+U11+AA11,"Scenario/Zone total acres do not match Baseline Acres.","") -> 
A47: Gross Revenue ($/acre) | C47: =G36 -> 661.5 | I47: =IF(($I$11+$O$11+$U$11+$AA$11)=0,0,((M36*$I$11)+(S36*$O$11)+(Y36*$U$11)+(AE36*$AA$11))/($I$11+$O$11+$U$11+$AA$11)) -> 0 | O47: =IF(I47=0,0,SUM(I47-C47)) -> 0
A48: Total Cost ($/acre) | C48: =G37+G38 -> 592.9938651 | I48: =IF(($I$11+$O$11+$U$11+$AA$11)=0,0,(((M37+M38)*$I$11)+((S37+S38)*$O$11)+((Y37+Y38)*$U$11)+((AE37+AE38)*$AA$11))/($I$11+$O$11+$U$11+$AA$11)) -> 0 | O48: =IF(I48=0,0,SUM(I48-C48)) -> 0
A49: Net Profit ($/acre) | C49: =G39 -> 68.5061349 | I49: =IF(($I$11+$O$11+$U$11+$AA$11)=0,0,((M39*$I$11)+(S39*$O$11)+(Y39*$U$11)+(AE39*$AA$11))/($I$11+$O$11+$U$11+$AA$11)) -> 0 | O49: 0
A50: Total Net Profit ($) | C50: 68.5061349 | I50: =IF(I11+O11+U11+AA11=0,0,M40+S40+Y40+AE40) -> 0 | O50: =IF(I50=0,0,SUM(I50-C50)) -> 0
A52: Equipment Purchase Cost/Benefit Analysis
A54: Calculation - Payback Period for Equipment Upgrade
A55: equipment upgrade cost | B55: 20000
A56: interest rate | B56: 0.0775
A58: Equipment Upgrade Paid For By Increased Net Profit:
A59: Years breakeven payback period * | B59: =IF(O50<1000,0,NPER(B56,-O50,B55,0,0)) -> 0 | H59: ="(based on $"&TEXT(O50,"#,###")&" annual increased net profit @ "&B56*100&"%)" -> (based on $ annual increased net profit @ 7.75%)
A60: * If the actual payback period of banding equipment is less, then it likely beneficial to invest in upgrades.
A63: Other Resources:
A64: Manitoba Fertilizer Cost & Efficiency

Sheet Production Costs
A1: Nitrogen Requirement (soil + fertilizer, lbs. N Per Bushel)
C2: Wheat | D2: Canola | E2: Soybeans | F2: Oats | G2: Corn | H2: Barley
B3: Soil Moisture Zone - Ideal | C3: 2.25 | D3: 3.3 | E3: 0 | F3: 0.8 | G3: 1.25 | H3: 1.4
B4: Soil Moisture Zone - Moist
B5: Soil Moisture Zone - Dry | G5: 1.75
B6: Soil Moisture Zone - Arid
A7: Note: These target yield based N requirements have been derived from Manitoba or eastern Prairie studies for achieving the most economical yield considering nitrogen cost and crop price.
A10: Crop Price (Dollars Per Bushel)
C11: Wheat | D11: Canola | E11: Soybeans | F11: Oats | G11: Corn | H11: Barley
B12: Target Price $ per unit | C12: 9.25 | D12: 15.75 | E12: 15.25 | F12: 5 | G12: 6.25 | H12: 6.25
A15: Crop Production Costs - Manitoba (Dollars Per Acre)
E17: *** Enter changes to BLUE values only ***
B19: Operating interest rate | C19: 9 | D19: % | E19: Carry Months (operating less fertilizer) | H19: 6
E20: Carry Months (fertilizer) | H20: 9
C21: Wheat | D21: Canola | E21: Soybeans | F21: Oats | G21: Corn | H21: Barley
A22: A. Operating Costs (without fertilizer cost)
B23: Seed & Treatment | C23: 36 | D23: 80 | E23: 90 | F23: 25 | G23: 102 | H23: 24
B24: Crop Protection | C24: 61.81 | D24: 66.76 | E24: 23.58 | F24: 23.13 | G24: 32 | H24: 50.13
B25: Fuel | C25: 38.14 | D25: 37.93 | E25: 33.05 | F25: 44.98 | G25: 46.59 | H25: 41.74
B26: Machinery Operating & Lease | C26: 25 | D26: 25 | E26: 25 | F26: 25 | G26: 25 | H26: 25
B27: Labour - Hired | C27: 5.4 | D27: 5.4 | E27: 5.4 | F27: 5.4 | G27: 5.4 | H27: 5.4
B28: Crop Insurance | C28: 13.52 | D28: 17.5 | E28: 25.95 | F28: 21.02 | G28: 50.7 | H28: 18.96
B29: Hail Insurance | C29: 11.8 | D29: 11.8 | E29: 15.34 | F29: 11.8 | G29: 11.8 | H29: 11.8
B30: Drying & Other Costs | C30: 17.75 | D30: 17.75 | E30: 17.75 | F30: 17.75 | G30: 87.75 | H30: 17.75
B31: Land Taxes | C31: 20 | D31: 20 | E31: 20 | F31: 20 | G31: 20 | H31: 20
B32: Storage Costs | C32: 17.88 | D32: 12.38 | E32: 10.45 | F32: 31.63 | G32: 37.13 | H32: 21.45
B33: Interest on Operating | C33: =ROUND((SUM(C23:C32)/(12/$H$19))*($C$19/100),2) -> 11.13 | D33: =ROUND((SUM(D23:D32)/(12/$H$19))*($C$19/100),2) -> 13.25 | E33: 11.99 | F33: 10.16 | G33: 18.83 | H33: 10.63
B34: Total Operating | C34: =SUM(C23:C33) -> 258.43 | D34: 307.77 | E34: 278.51 | F34: 235.87 | G34: 437.2 | H34: 246.86
A36: B. Fixed Costs
B37: Land Costs | C37: 101.43 | D37: =$C$37 -> 101.43 | E37: =$C$37 -> 101.43 | F37: =$C$37 -> 101.43 | G37: =$C$37 -> 101.43 | H37: =$C$37 -> 101.43
B38: Machinery Costs | C38: 89.15 | D38: =$C$38 -> 89.15 | E38: =$C$38 -> 89.15 | F38: =$C$38 -> 89.15 | G38: =$C$38 -> 89.15 | H38: =$C$38 -> 89.15
B39: Total Fixed | C39: =SUM(C37:C38) -> 190.58 | D39: 190.58 | E39: 190.58 | F39: 190.58 | G39: 190.58 | H39: 190.58
A41: C. Owners Labour & Living Costs | C41: 27 | D41: =$C$41 -> 27 | E41: =$C$41 -> 27 | F41: =$C$41 -> 27 | G41: =$C$41 -> 27 | H41: =$C$41 -> 27
A43: Total Costs (without fertilizer cost) | C43: =SUM(C41+C39+C34) -> 476.01 | D43: 525.35 | E43: 496.09 | F43: 453.45 | G43: 654.78 | H43: 464.44

Sheet User Guide
A1: Fertilizer Efficiency Calculator User Guide
A2: Follow the steps below to successfully use the calculator for your farm.
A5: Step #1 - Fertilizer Cost and Crop Selection:
C6: Fertilizer Cost - adjust fertilizer prices to reflect the average net price for the duration of the crop year.
C7: Crop to Be Grown - select your crop to be grown. Reminder to review the Production Costs Worksheet and make any changes required for your farm's actual production costs and grain market prices.
C9: Soil Moisture Zone - select your soil moisture zone that most reflects your region.
C10: Target Yield - enter your target yield. Note it must be in the valid range shown above.
A12: Step #2 - Soil Test and Fertilizer Recommendations:
C13: Soil Test Analysis Results - enter your soil nutrient values listed on the report.
C14: Adjustments to Recommendation - enter a value to adjust the calculated nutrient recommendation. For example to enter a manure or legume breaking credit of 10 pounds per acre, enter '10'. For example to enter in a different recommendation that is 10 pounds higher, enter '-10'.
C17: Final Recommendation - will be shown in pounds per acre.
A19: Step #3 - Fertilizer Application #1 to #3:
C20: Fertilizer Efficiency - adjust the fertilizer efficiency percentage if required.
C21: Nutrient Recommendation Adjusted to Application Timing and Method will be shown.
C22: Fertilizer Applications - select your application timing, method and nitrogen source from dropdowns.
C23: Enhanced Efficiency Fertilizer (EEF) - If EEF nitrogen is being used, select yes from dropdown.
C24: In-season split application - If this application is the split N application made after seeding and in-crop, select yes from dropdown.
C26: Nutrient Blend - Enter the actual pounds for the application.
C27: Fertilizer Cost per Acre will be shown for the application.
C28: Nutrient Requirement Balance Remaining (actual lb/acre) will be shown for the application. It will be shaded green if the nutrient recommendation has been applied and met, shaded red if over applied, and shaded yellow if under applied and the yield target will not be met.
A32: Step #4 - Fertilizer Efficiency Analysis:
C33: Fertilizer Cost ($/acre) - your total cost for all three applications will be shown along with the best and worst costs depending on the most or least efficient application method and timing.
C35: Fertilizer Cost Efficiency - your cost efficiency will be shown as a percentage of the Best (100%) and the Worst (0%).
C37: Nitrogen Fertilizer On-Farm Environmental Management Score - your nitrogen fertilizer environmental efficiency based on lbs applied compared to most efficient will be shown as a range of the Best and the Worst.
C39: Phosphate Fertilizer On-Farm Environmental Management Score - your phosphate fertilizer environmental safety will be shown on a range of the Best and the Worst.
A42: Step #5 - Fertilizer Profitability and Cost Analysis:
C43: Profitability - maximum profit will be shown as an 'X' on the graph will the corresponding nitrogen rate.
C44: Cost - fertilizer cost for N, P,K, and S will be shown on the graph for the best, your field and the worst.

Sheet Blend Sheet
A1: Fertilizer Blend Information
A3: ="Pounds of Actual Fertilizer Applied per Acre ("&E5&"-"&E6&"-"&E7&"-"&E8&")" -> Pounds of Actual Fertilizer Applied per Acre (92-30-15-15)
B4: Application #1 | C4: Application #2 | D4: Application #3 | E4: TOTAL
A5: Nitrogen (all sources) | B5: =Calculator!E68 -> 0 | C5: =Calculator!E90 -> 92.39865385 | D5: =Calculator!E112 -> 0 | E5: =ROUND(SUM(B5:D5),0) -> 92
A6: =Calculator!$B$14 -> Phosphate (11-52-0-0) | B6: =Calculator!F68 -> 0 | C6: =Calculator!F90 -> 30 | D6: =Calculator!F112 -> 0 | E6: =ROUND(SUM(B6:D6),0) -> 30
A7: =Calculator!$B$15 -> Potash (0-0-60-0) | B7: =Calculator!G68 -> 0 | C7: =Calculator!G90 -> 15 | D7: =Calculator!G112 -> 0 | E7: 15
A8: =Calculator!$B$16 -> Sulphur (20.5-0-0-24) | B8: =Calculator!H68 -> 0 | C8: =Calculator!H90 -> 15 | D8: =Calculator!H112 -> 0 | E8: 15
A12: Pounds of Physical Fertilizer Product Applied per Acre
B13: Application #1 | C13: Application #2 | D13: Application #3 | E13: TOTAL
A14: =Calculator!$B$11 -> Nitrogen (46-0-0-0) | B14: =Calculator!$AD$65 -> 0 | C14: =Calculator!$AD$87 -> 158.6956522 | D14: =Calculator!$AD$109 -> 0 | E14: =SUM(B14:D14) -> 158.6956522
A15: =Calculator!$B$12 -> Nitrogen (82-0-0-0) | B15: =Calculator!$V$65 -> 0 | C15: =Calculator!$V$87 -> 0 | D15: =Calculator!$V$109 -> 0 | E15: =SUM(B15:D15) -> 0
A16: =Calculator!$B$13 -> Nitrogen (28-0-0-0) | B16: =Calculator!$Z$65 -> 0 | C16: =Calculator!$Z$87 -> 0 | D16: =Calculator!$Z$109 -> 0 | E16: 0
A17: =Calculator!$B$14 -> Phosphate (11-52-0-0) | B17: =Calculator!$AH$65 -> 0 | C17: =Calculator!$AH$87 -> 57.69230769 | D17: =Calculator!$AH$109 -> 0 | E17: 57.69230769
A18: =Calculator!$B$15 -> Potash (0-0-60-0) | B18: =Calculator!$AK$65 -> 0 | C18: =Calculator!$AK$87 -> 25 | D18: =Calculator!$AK$109 -> 0 | E18: 25
A19: =Calculator!$B$16 -> Sulphur (20.5-0-0-24) | B19: =Calculator!$AN$65 -> 0 | C19: =Calculator!$AN$87 -> 62.5 | D19: =Calculator!$AN$109 -> 0 | E19: 62.5
A20: TOTAL | B20: =SUM(B14:B19) -> 0 | C20: =SUM(C14:C19) -> 303.8879599 | D20: =SUM(D14:D19) -> 0 | E20: =SUM(B20:D20) -> 303.8879599
A23: Fertilizer Cost per Acre
B24: Application #1 | C24: Application #2 | D24: Application #3 | E24: TOTAL
A25: Blend Cost | B25: =Calculator!I70 -> 0 | C25: =Calculator!I92 -> 111.6147653 | D25: =Calculator!I114 -> 0 | E25: =ROUND(B25+C25+D25,3) -> 111.615

Sheet Assumptions
A1: Assumptions
A2: Soil Fertility Guide
A3: You can download the entire | E3: Soil Fertility Guide (PDF 1.0MB) | H3: or contact your nearest
A4: Manitoba Agriculture/MASC Service Centre | F4: for a print version.
A6: Agronomically, Economically and Environmentally Sensible Target Yields
A7: Most nitrogen and some other nutrient recommendations are based on expected yield goal or target yield. Setting this target yield will have a large effect on the rate of fertilizer or manure recommended, so it is important that a realistic and appropriate level be set. This yield goal can be estimated in a number of ways. Following are a number of suggestions:
A11: A) | B11: Developing a base yield.
B12: 1. Develop a base yield based on your historical average for that field and your farm. The base yield can be determined from your own records, or crop insurance records for your area. Consider a recent 5 year average yield, or if yields vary widely, drop the lowest and highest yields and use a 3 year average.
A15: 2. Consider the field’s soil capability and specific production limiting factors such as soil salinity and drainage.
B16: 3. Once a reasonable base yield is set, add about 5-10% to account for new technology such as new varieties, seeding or fertilizing systems or crop protection products.
A18: B) | B18: If rainfall and stored soil moisture limit yields, one may choose to use a climate and rainfall probability model to set yield potential. Stored soil moisture can be measured or estimated prior to seeding based upon the depth of moist soil and soil texture. You might wish to select a range of moisture conditions for consideration and base your final decision closer to seeding. Also, keep in mind that soil moisture in spring and grain yield at the end of the growing season are often poorly related, unless moisture reserve is large, relative to growing season rainfall. Furthermore, in some fields or regions where excess water is a frequent problem, large moisture reserves may not be helpful for raising yield potential.
A24: C) | B24: Consider the top crop yields that are commonly harvested in your area. These may be from research or test plots or fields under optimum growing conditions. These are the top yield potential for your area and will not be achievable every year. When using these values, ensure that your own practices (e.g. timeliness of seeding, weed control, etc.) are consistent with these high yields. In most cases this approach would need downward adjustment in this base yield to account for production limiting factors in fields.Your target yield is reasonable when they are actually achieved. Your target is too low if it is exceeded 2 years in 5 and too high if it is never achieved.
A31: Adjustments to Fertilizer Rates
A32: Nitrogen, phosphorus, potassium and sulphur requirements should be adjusted for available credits, including livestock manure or biosolids, previous pulse crops, forages or green manures.
A35: Phosphorus (P) and potassium (K) rate guidelines are based on the short-term sufficiency approach which should provide good returns. However these rates are often insufficient to meet crop removal amounts, leading to soil depletion. Maintenance rates should be considered for phosphorus
A39: Relative Efficiencies of Nitrogen Applications
A40: The relative efficiency of N fertilizers, as affected by the time and method of application, varies greatly with factors such as soil moisture, soil temperature, soil type and weed growth. Average relative values for Manitoba based on time and method of placement, when spring broadcast N is given a value of 100, have been calculated as follows in Table 1.
A44: Table 1. Nitrogen efficiency based on application time and placement.
A45: Time and Method | E45: Relative Values
A46: Spring broadcast | E46: 1
A47: Spring banded | E47: 1.2
A48: Fall broadcast | E48: 0.8
A49: Fall banded | E49: 1
A51: Efficiency values are calculated based on N uptake by plants. Broadcast values assume urea-based N carriers are incorporated, where necessary, to minimize losses through ammonia volatilization. This is particularly important on soils with a high pH or which contain free lime in the surface. Banded values are based on any subsurface band application. This includes with-the-seed band, as long as the rate applied does not exceed the safe limit at which damage to germination and seedling emergence may occur. For maximum benefit, bands should not be disturbed prior to or during the seeding operation. Nitrogen losses due to leaching, gaseous loss, immobilization and weed growth are probably higher for fall-applied than for spring-applied nitrogen. These losses may be greater if the nitrogen is applied too early in the fall (prior to mid-September) or when soil temperatures at the 4” depth are greater than 5°C . Loss of N accounts for much of the difference in efficiency between fall and spring applications. Under dry soil conditions, the efficiency of nitrogen banded in late fall can approach that of spring banded because potential losses due to leaching or denitrification are low. Efficiency of fall-applied N can be substantially lower than those indicated in Table 1 under excessive moisture conditions in spring or fall and/or an early fall application before soils have cooled to 5°C.
A66: Enhanced Efficiency Fertilizer Products (EEF)
A67: Recent Manitoba research has identified rather consistent reduction in N2O emissions with some enhanced efficiency fertilizer products (EEF). Those products such as polymer coated urea (such as ESN) or effective nitrification inhibitors, can reduce N2O emissions by 25-35%. However, EEF use did not increase yield in these same studies. The additional cost of such products is generally an additional $0.10 to 0.15/lb N ($100 to $150 per tonne for urea 46-0-0, and $200 to $300 per tonne for ammonia 82-0-0).
A74: In-Season Split Applications of Nitrogen
A75: Split applications of N, where a portion is applied after seeding during the growing season decreases N2O emissions substantially (over 40%) in recent Manitoba studies. This approach has performed well in corn where subsurface placement into the soil is an option, but still has agronomic risk when N is placed on the soil surface. Surface applied N will require timely rainfall to prevent surface stranding, and urease inhibitors (EEF) may be warranted to reduce volatilization losses.
A80: Other Resources:
A81: Manitoba Fertilizer Cost & Efficiency
A82: Manitoba Fertilizer Guidelines Based on Soil Test
A83: Fertilizer Guidelines for Soil Tests
A84: Developing Fertilizer Recommendations without a Soil Test
A85: Developing a Fertilizer Recommendation Rate
A86: Agronomically, Economically and Environmentally Sensible Target Yields
A87: General Fertilizer Recommendations without a Soil Test
A88: Phosphorus Fertilization Strategies for Long Term Agronomic and Environmental Sustainability
A89: Phosphorus Balance Calculator for a Rotation

Sheet Calc Eg. (HIDE) (hidden)
B4: Fertilizer Cost Efficiency Score %
B6: = ((worst cost - your field cost)/(worst cost - best cost)) x 100
B7: =" i.e. (("&TEXT(Calculator!H137,"$0.00")&"- "&TEXT(Calculator!E137,"$0.00")&")/("&TEXT(Calculator!H137,"$0.00")&"- "&TEXT(Calculator!C137,"$0.00")&") x 100 = "&ROUND(Calculator!E138*100,0)&"%" -> i.e. (($170.43- $111.61)/($170.43- $104.72) x 100 = 90%
B9: Best Cost = cheapest source & most efficient timing/placement
B10: Worst Cost = most expensive source & least efficient timing/placement
B13: Nitrogen Fertilizer Greenhouse Gas Efficiency Score %
B15: = ((worst lbs. N - your field lbs. N)/(worst lbs. N - best lbs. N)) x 100
B16: =" i.e. (("&ROUND(Calculator!AC147,0)&"- "&ROUND(Calculator!W147,0)&")/("&ROUND(Calculator!AC147,0)&"- "&ROUND(Calculator!AD147,0)&") x 100 = "&ROUND(Calculator!Y142*100,0)&"%" -> i.e. ((110- 73)/(110- 73) x 100 = 100%
B18: Best N Greenhouse Gas Efficiency = lowest actual pounds N applied
B19: Worst N Greenhouse Gas Efficiency = highest actual pounds N applied
B22: Phosphate Fertilizer Environmental Safety Score %
B24: = ((worst lbs. P - your field lbs. P)/(worst lbs. P - best lbs. P)) x 100
B25: =" i.e. (("&ROUND(Calculator!AH35,0)&"- "&ROUND(Calculator!AH65+Calculator!AH87+Calculator!AH109,0)&")/("&ROUND(Calculator!AH35,0)&"- "&ROUND(Calculator!AH34,0)&") x 100 = "&ROUND(Calculator!AK142*100,0)&"%" -> i.e. ((115- 58)/(115- 58) x 100 = 100%
B27: Best P Environmental Safety = lowest actual pounds P applied
B28: Worst P Environmental Safety = highest actual pounds P applied

Sheet Dashboard (HIDE) (hidden)
J2: Performance Label | K2: Value | M2: Labels | N2: Values | P2: Labels | Q2: Values
J3: Worst | K3: 20 | M3: 10 | N3: 10 | P3: Pointer | Q3: =Calculator!AG143*100 -> 66.666666
K4: 60 | M4: =M3+10 -> 20 | N4: 10 | P4: Thickness | Q4: 1
J5: Best | K5: 20 | M5: 30 | N5: 10 | P5: Rest | Q5: =200-Q3-Q4 -> 132.333334
J6: Total | K6: =SUBTOTAL(109,K3:K5) -> 100 | M6: 40 | N6: 10
M7: 50 | N7: 10
J8: off track & needs attention | M8: 60 | N8: 10
J9: off track | M9: 70 | N9: 10
J10: on track | M10: 80 | N10: 10 | P10: ="Your Field Score - "&ROUND(Q3,0)&"%" -> Your Field Score - 67%
M11: 90 | N11: 10
M12: 100 | N12: 10
M13: Total | N13: =SUBTOTAL(109,'Dashboard (HIDE)'!$N$3:$N$12) -> 100
J22: Performance Label | K22: Value | M22: Labels | N22: Values | P22: Labels | Q22: Values
J23: Worst | K23: 50 | M23: 10 | N23: 10 | P23: Pointer | Q23: =Calculator!E138*100 -> 89.51453356
K24: 40 | M24: =M23+10 -> 20 | N24: 10 | P24: Thickness | Q24: 1
J25: Best | K25: 10 | M25: 30 | N25: 10 | P25: Rest | Q25: =200-Q23-Q24 -> 109.4854664
J26: Total | K26: =SUBTOTAL(109,K23:K25) -> 100 | M26: 40 | N26: 10
M27: 50 | N27: 10
J28: off track & needs attention | M28: 60 | N28: 10
J29: off track | M29: 70 | N29: 10
J30: on track | M30: 80 | N30: 10 | P30: ="Your Field Score - "&ROUND(Q23,0)&"%" -> Your Field Score - 90%
M31: 90 | N31: 10
M32: 100 | N32: 10
M33: Total | N33: =SUBTOTAL(109,'Dashboard (HIDE)'!$N$3:$N$12) -> 100
J43: Performance Label | K43: Value | M43: Labels | N43: Values | P43: Labels | Q43: Values
J44: Worst | K44: 50 | M44: 10 | N44: 10 | P44: Pointer | Q44: ='Formula (HIDE)'!J135*100 -> 100
K45: 40 | M45: =M44+10 -> 20 | N45: 10 | P45: Thickness | Q45: 1
J46: Best | K46: 10 | M46: 30 | N46: 10 | P46: Rest | Q46: =200-Q44-Q45 -> 99
J47: Total | K47: =SUBTOTAL(109,K44:K46) -> 100 | M47: 40 | N47: 10
M48: 50 | N48: 10
J49: off track & needs attention | M49: 60 | N49: 10
J50: off track | M50: 70 | N50: 10
J51: on track | M51: 80 | N51: 10 | P51: ="Your Field Score - "&ROUND(Q44,0)&"%" -> Your Field Score - 100%
M52: 90 | N52: 10
M53: 100 | N53: 10
M54: Total | N54: =SUBTOTAL(109,'Dashboard (HIDE)'!$N$3:$N$12) -> 100

Sheet Version Notes (HIDE) (hidden)
A1: Date | B1: Version | C1: Comments
A2: 2022-08-08 | B2: 1.1 | C2: start
A3: 2022-08-16 | B3: 1.2 | C3: auto-calc on app 2 &3 for macros required.
C4: changed the N in P & S to 100% rather than the N efficiency factor
C5: round nutrient recommendation
C6: changed N app cost so it can't go into the negative with no N purchase but with a P and/or S purchase
C7: added MB AG P, K, and S guideline tabs
C8: conditional format N nutrient target when no N applied but P and/or S appliend in app 2 and 3
C9: changed the yield range on canola 40-53 dry/arid and 55-63 moist
C10: ***(do we change the canola moist back dwn to +25.9?)
A11: 2022-08-24 | B11: 1.3 | C11: changed to soil moisture zone
C12: changed the nutrient rec'd calc to use 100%N for P and S
A13: 2022-08-25 | B13: 1.4 | C13: change the canola moist back dwn to +25.9
C14: changed phos to MB AG, deleted Bray calcs
A15: 2022-08-26 | B15: 1.6 | C15: adding in oats, corn, soybeans N, P, K, S
C16: changed Canola P rec from band with seed to band away from seed (otherwise there will be a
C17: deficiency with requirements over 20 lbs/ac)
A18: 2022-09-01 | B18: 1.7 | C18: added in oats, corn and soybeans in data calcs
C19: *need to add production cost data for oats, corn and soybeans
C20: *need to set low and high yields for moisture zone for oats, corn and soybeans
C21: *need to finalize N rec for oats and corn and then create N rec(2)

Sheet P recs 2 (HIDE) (hidden)
A1: Phosphate Fertilizer Requirements (lbs. P2O5 Per Bushel)
C2: Wheat | D2: Canola | E2: Soybeans | F2: Oats | G2: Corn | H2: Barley
B3: Soil Moisture Zone (all) | C3: 0.59 | D3: 1.04 | E3: 0.84 | F3: 0.26 | G3: 0.44 | H3: 0.42
H4: .
C5: 2 | D5: 3 | E5: 4 | F5: 5 | G5: 6 | H5: 7
C6: Wheat | D6: Barley | E6: Canola | F6: Oats | G6: Corn | H6: Soybeans
A7: Input Rec. P lb/bu | C7: ='P recs 2 (HIDE)'!$C$3 -> 0.59 | D7: ='P recs 2 (HIDE)'!$H$3 -> 0.42 | E7: ='P recs 2 (HIDE)'!$D$3 -> 1.04 | F7: ='P recs 2 (HIDE)'!$F$3 -> 0.26 | G7: ='P recs 2 (HIDE)'!$G$3 -> 0.44 | H7: ='P recs 2 (HIDE)'!E3 -> 0.84
A8: Your Target Yield | C8: =Calculator!$E$23 -> 63 | D8: =Calculator!$E$23 -> 63 | E8: =Calculator!$E$23 -> 63 | F8: =Calculator!$E$23 -> 63 | G8: =Calculator!$E$23 -> 63 | H8: =Calculator!$E$23 -> 63
A9: Removal P lb | C9: =C8*C7 -> 37.17 | D9: =D8*D7 -> 26.46 | E9: =E8*E7 -> 65.52 | F9: 16.38 | G9: 27.72 | H9: 52.92
A12: rec + adj | C12: Removal | D12: depletion | F12: soil test
A13: =Calculator!F35 -> 30 | C13: ='Chart Data (HIDE)'!K18 -> 37 | D13: ='Chart Data (HIDE)'!L18 -> 7 | F13: =Calculator!F31 -> 12
A15: <11 | C15: =IF(D13<0,"Actual crop removal for this yield is "&C13&" lb/ac P2O5, which is less than P application rate. The surplus applied P rate will gradually raise soil test P levels to the preferred medium range (11-20 ppm).",IF(D13=0,"Actual crop removal for this yield is "&C13&" lb/ac P2O5.","Actual crop removal for this yield is "&C13&" lb/ac P2O5, resulting in a deficit of "&D13&" lb/ac P2O5. To move soil test P levels into a preferred medium range (11-20 ppm), more than removal P amounts need to be applied in a seed safe manner.")) -> Actual crop removal for this yield is 37 lb/ac P2O5, resulting in a deficit of 7 lb/ac P2O5. To move soil test P levels into a preferred medium range (11-20 ppm), more than removal P amounts need to be applied in a seed safe manner.
A16: 11<20 | C16: =IF(D13<=0,"Actual crop removal for this yield is "&C13&" lb/ac P2O5, which is less than P application rate. The surplus applied P will maintain soil test P levels in the preferred medium range (11-20 ppm).","Actual crop removal for this yield is "&C13&" lb/ac P2O5, resulting in a deficit of "&D13&" lb/ac P2O5. To maintain soil test P levels in the preferred medium range (11-20 ppm), this removal P amount needs to met in a seed -safe manner.") -> Actual crop removal for this yield is 37 lb/ac P2O5, resulting in a deficit of 7 lb/ac P2O5. To maintain soil test P levels in the preferred medium range (11-20 ppm), this removal P amount needs to met in a seed -safe manner.
A17: >21 | C17: =IF(D13<=0,"Actual crop removal for this yield is "&C13&" lb/ac P2O5. The applied rate will maintain soil test P levels.","Actual crop removal for this yield is "&C13&" lb/ac P2O5, resulting in a deficit of "&D13&" lb/ac P2O5, which will gradually deplete soil test P levels into the preferred medium range (11-20 ppm). To maintain soil test P levels in the medium range, removal P amounts need to be met in a seed-safe manner.") -> Actual crop removal for this yield is 37 lb/ac P2O5, resulting in a deficit of 7 lb/ac P2O5, which will gradually deplete soil test P levels into the preferred medium range (11-20 ppm). To maintain soil test P levels in the medium range, removal P amounts need to be met in a seed-safe manner.

Sheet N recs 3 (HIDE) (hidden)
C1: 2 | D1: 3 | E1: 4 | F1: 5 | G1: 6 | H1: 7 | I1: 8 | J1: 9 | K1: 10 | L1: 11 | M1: 12 | N1: 13 | O1: 14
B2: 1 | C2: Wheat N Fert Recommendation | G2: Barley N Fert Recommendation | J2: Canola N Rec | K2: Oats N Fert Rec | L2: Corn N Rec | O2: Soybeans N Rec | P2: wheat
A3: Yield | B3: 2 | C3: ='Formula (HIDE)'!B88 -> Ideal | D3: ='Formula (HIDE)'!B89 -> Moist | E3: ='Formula (HIDE)'!B90 -> Dry | F3: ='Formula (HIDE)'!B91 -> Arid | G3: ='Formula (HIDE)'!B89 -> Moist | H3: ='Formula (HIDE)'!B90 -> Dry | I3: ='Formula (HIDE)'!B91 -> Arid | J3: ='Formula (HIDE)'!B89 -> Moist | L3: Ideal | M3: Moist | N3: Dry | P3: industry
A4: Urea N Cost/lb | B4: 3 | C4: =Calculator!$J$11 -> 0.8135090224 | D4: =Calculator!$J$11 -> 0.8135090224 | E4: =Calculator!$J$11 -> 0.8135090224 | F4: =Calculator!$J$11 -> 0.8135090224 | G4: =Calculator!$J$11 -> 0.8135090224 | H4: =Calculator!$J$11 -> 0.8135090224 | I4: =Calculator!$J$11 -> 0.8135090224 | J4: =Calculator!$J$11 -> 0.8135090224 | L4: =Calculator!$J$11 -> 0.8135090224 | M4: =Calculator!$J$11 -> 0.8135090224 | N4: =Calculator!$J$11 -> 0.8135090224
A5: Price/bu | B5: 4 | C5: ='Production Costs'!$C$12 -> 9.25 | D5: ='Production Costs'!$C$12 -> 9.25 | E5: ='Production Costs'!$C$12 -> 9.25 | F5: ='Production Costs'!$C$12 -> 9.25 | G5: ='Production Costs'!$H$12 -> 6.25 | H5: ='Production Costs'!$H$12 -> 6.25 | I5: ='Production Costs'!$H$12 -> 6.25 | J5: ='Production Costs'!$D$12 -> 15.75 | L5: ='Production Costs'!$G$12 -> 6.25 | M5: ='Production Costs'!$G$12 -> 6.25 | N5: ='Production Costs'!$G$12 -> 6.25
A6: Bushel Wt lbs. | B6: 5 | C6: 60 | D6: 60 | E6: 60 | F6: 60 | G6: 48 | H6: 48 | I6: 48 | J6: 50 | L6: 56 | M6: 56 | N6: 56
A7: $/lb | B7: 6 | C7: =C5/C6 -> 0.1541666667 | D7: 0.1541666667 | E7: 0.1541666667 | F7: 0.1541666667 | G7: 0.1302083333 | H7: 0.1302083333 | I7: 0.1302083333 | J7: 0.315 | L7: =L5/L6 -> 0.1116071429 | M7: =M5/M6 -> 0.1116071429 | N7: =N5/N6 -> 0.1116071429
A8: Price Ratio $N/$crop | B8: 7 | C8: =C4/C7 -> 5.27681528 | D8: 5.27681528 | E8: 5.27681528 | F8: 5.27681528 | G8: 6.247749292 | H8: 6.247749292 | I8: 6.247749292 | J8: 2.582568325 | L8: =L4/L7 -> 7.28904084 | M8: =M4/M7 -> 7.28904084 | N8: =N4/N7 -> 7.28904084
B9: 8
A10: MERN lb N/ac | B10: 9 | C10: =((C8/C6)-0.3917)/(2*-0.0008) -> 189.8456742 | D10: =((D8/D6)-0.4902)/(2*-0.0015) -> 134.0843596 | E10: =((E8/E6)-0.4159)/(2*-0.0013) -> 126.1357995 | F10: =((F8/F6)-0.5464)/(2*-0.0038) -> 60.32277351 | G10: =((G8/G6)-1.152)/(2*-0.0037) -> 138.0862914 | H10: =((H8/H6)-1.556)/(2*-0.0082) -> 86.94137539 | I10: =((I8/I6)-0.671)/(2*-0.0032) -> 84.50602444 | J10: =((J8/J6)-0.232)/(2*-0.0005) -> 180.3486335 | L10: =((L8/L6)-0.4681)/(2*-0.0009) -> 187.7436425 | M10: =((M8/M6)-0.5181)/(2*-0.001) -> 193.9692782 | N10: =((N8/N6)-0.5682)/(2*-0.0012) -> 182.5160652
A11: Yield at MERN bu/ac | B11: 10 | C11: =37.71+(0.3917*C10)-(0.0008*C10*C10) -> 83.23944657 | D11: =24.75+(0.4902*D10)-(0.0015*D10*D10) -> 63.51022984 | E11: =14.22+(0.4159*E10)-(0.0013*E10*E10) -> 45.99656712 | F11: =14.22+(0.5464*F10)-(0.0038*F10*F10) -> 33.35278283 | G11: =34.75+(1.152*G10)-(0.0037*G10*G10) -> 123.2744594 | H11: =31.73+(1.556*H10)-(0.0082*H10*H10) -> 105.0285975 | I11: =23.93+(0.671*I10)-(0.0032*I10*I10) -> 57.78148427 | J11: =25.9+(0.232*J10)-(0.0005*J10*J10) -> 51.47806817 | L11: =113+(0.4681*L10)-(0.0009*L10*L10) -> 169.1598913 | M11: =79+(0.5181*M10)-(0.001*M10*M10) -> 141.8714022 | N11: =44.9+(0.5682*N10)-(0.0012*N10*N10) -> 108.6310914
A12: N Lb/bu at MERN | B12: 11 | C12: =C10/C11 -> 2.28071764 | D12: 2.1112246 | E12: 2.742287248 | F12: 1.808627898 | G12: 1.120153291 | H12: 0.8277876449 | I12: 1.462510448 | J12: 3.503407177 | L12: =L10/L11 -> 1.109859087 | M12: =M10/M11 -> 1.367219012 | N12: =N10/N11 -> 1.680145738
B13: 12
A14: Input Rec. N lb/bu | B14: 13 | C14: ='Production Costs'!$C$3 -> 2.25 | D14: ='Production Costs'!$C$3 -> 2.25 | E14: ='Production Costs'!$C$3 -> 2.25 | F14: ='Production Costs'!$C$3 -> 2.25 | G14: ='Production Costs'!$H$3 -> 1.4 | H14: ='Production Costs'!H3 -> 1.4 | I14: ='Production Costs'!H3 -> 1.4 | J14: ='Production Costs'!$D$3 -> 3.3 | K14: ='Production Costs'!$F$3 -> 0.8 | L14: ='Production Costs'!$G$3 -> 1.25 | M14: ='Production Costs'!$G$3 -> 1.25 | N14: ='Production Costs'!$G$5 -> 1.75
A15: Your Target Yield | B15: 14 | C15: =Calculator!$E$23 -> 63 | D15: =Calculator!$E$23 -> 63 | E15: =Calculator!$E$23 -> 63 | F15: =Calculator!$E$23 -> 63 | G15: =Calculator!$E$23 -> 63 | H15: =Calculator!$E$23 -> 63 | I15: =Calculator!$E$23 -> 63 | J15: =Calculator!$E$23 -> 63 | K15: =Calculator!$E$23 -> 63 | L15: =Calculator!$E$23 -> 63 | M15: =Calculator!$E$23 -> 63 | N15: =Calculator!$E$23 -> 63 | O15: =Calculator!$E$23 -> 63
A16: Rec N lb (Total) | B16: 15 | C16: =C15*C14 -> 141.75 | D16: =D15*D14 -> 141.75 | E16: =E15*E14 -> 141.75 | F16: 141.75 | G16: 88.2 | H16: 88.2 | I16: 88.2 | J16: 207.9 | K16: 50.4 | L16: 78.75 | M16: 78.75 | N16: 110.25 | O16: 0
A17: - soil test | B17: 16 | C17: =Calculator!$E$31 -> 35 | D17: =Calculator!$E$31 -> 35 | E17: =Calculator!$E$31 -> 35 | F17: =Calculator!$E$31 -> 35 | G17: =Calculator!$E$31 -> 35 | H17: =Calculator!$E$31 -> 35 | I17: =Calculator!$E$31 -> 35 | J17: =Calculator!$E$31 -> 35 | K17: =Calculator!$E$31 -> 35 | L17: =Calculator!$E$31 -> 35 | M17: =Calculator!$E$31 -> 35 | N17: =Calculator!$E$31 -> 35 | O17: 0
A18: - adjusment | B18: =B17+1 -> 17 | C18: =Calculator!$E$34 -> 0 | D18: =Calculator!$E$34 -> 0 | E18: =Calculator!$E$34 -> 0 | F18: =Calculator!$E$34 -> 0 | G18: =Calculator!$E$34 -> 0 | H18: =Calculator!$E$34 -> 0 | I18: =Calculator!$E$34 -> 0 | J18: =Calculator!$E$34 -> 0 | K18: =Calculator!$E$34 -> 0 | L18: =Calculator!$E$34 -> 0 | M18: =Calculator!$E$34 -> 0 | N18: =Calculator!$E$34 -> 0 | O18: 0
A19: Rec N lb | B19: 18 | C19: =SUM(C16-C17-C18) -> 106.75 | D19: =SUM(D16-D17-D18) -> 106.75 | E19: 106.75 | F19: 106.75 | G19: =SUM(G16-G17-G18) -> 53.2 | H19: =SUM(H16-H17-H18) -> 53.2 | I19: =SUM(I16-I17-I18) -> 53.2 | J19: =SUM(J16-J17-J18) -> 172.9 | K19: =SUM(K16-K17-K18) -> 15.4 | L19: =SUM(L16-L17-L18) -> 43.75 | M19: =SUM(M16-M17-M18) -> 43.75 | N19: =SUM(N16-N17-N18) -> 75.25 | O19: 0
A20: Applied | B20: 19 | C20: =C19-Calculator!$E$116 -> 106.75 | D20: =D19-Calculator!$E$116 -> 106.75 | E20: =E19-Calculator!$E$116 -> 106.75 | F20: =F19-Calculator!$E$116 -> 106.75 | G20: =G19-Calculator!$E$116 -> 53.2 | H20: =H19-Calculator!$E$116 -> 53.2 | I20: =I19-Calculator!$E$116 -> 53.2 | J20: =J19-Calculator!$E$116 -> 172.9 | K20: =K19-Calculator!$E$116 -> 15.4 | L20: =L19-Calculator!$E$116 -> 43.75 | M20: =M19-Calculator!$E$116 -> 43.75 | N20: =N19-Calculator!$E$116 -> 75.25 | O20: 0
B21: 20
A22: Factor | B22: 21 | C22: =IF(C34<C15,C34,C15)/(37.71+(0.3917*(C20+C17+C18))-(0.0008*(C20+C17+C18)*(C20+C17+C18))) -> 0.8164955428 | D22: =IF(D34<D15,D34,D15)/(24.75+(0.4902*(D20+D17+D18))-(0.0015*(D20+D17+D18)*(D20+D17+D18))) -> 0.9828967195 | E22: =IF(E34<E15,E34,E15)/(14.22+(0.4159*(E20+E17+E18))-(0.0013*(E20+E17+E18)*(E20+E17+E18))) -> 1 | F22: =IF(F34<F15,F34,F15)/(14.22+(0.5464*(F20+F17+F18))-(0.0038*(F20+F17+F18)*(F20+F17+F18))) -> 1 | G22: =IF(G34<G15,G34,G15)/(34.75+(1.152*(G20+G17+G18))-(0.0037*(G20+G17+G18)*(G20+G17+G18))) -> 0.5856476611 | H22: =IF(H34<H15,H34,H15)/(31.73+(1.556*(H20+H17+H18))-(0.0082*(H20+H17+H18)*(H20+H17+H18))) -> 0.5989764235 | I22: =IF(I34<I15,I34,I15)/(23.93+(0.671*(I20+I17+I18))-(0.0032*(I20+I17+I18)*(I20+I17+I18))) -> 1 | J22: =IF(J34<J15,J34,J15)/(25.9+(0.232*(J20+J17+J18))-(0.0005*(J20+J17+J18)*(J20+J17+J18))) -> 1 | L22: =IF(L34<L15,L34,L15)/(113+(0.4681*(L20+L17+L18))-(0.0009*(L20+L17+L18)*(L20+L17+L18))) -> 0.4366465115 | M22: =IF(M34<M15,M34,M15)/(79+(0.5181*(M20+M17+M18))-(0.001*(M20+M17+M18)*(M20+M17+M18))) -> 0.554583262 | N22: =IF(N34<N15,N34,N15)/(44.9+(0.5682*(N20+N17+N18))-(0.0012*(N20+N17+N18)*(N20+N17+N18))) -> 0.6777256067
A23: -5x = Yield | B23: 22 | C23: =(37.71+(0.3917*(C20-(5*Calculator!$E$197)+C17+C18))-(0.0008*(C20-(5*Calculator!$E$197)+C17+C18)*(C20-(5*Calculator!$E$197)+C17+C18)))*$C$22 -> 54.63500316 | D23: =(24.75+(0.4902*(D20-(5*Calculator!$E$197)+D17+D18))-(0.0015*(D20-(5*Calculator!$E$197)+D17+D18)*(D20-(5*Calculator!$E$197)+D17+D18)))*$D$22 -> 56.12218021 | E23: =(14.22+(0.4159*(E20-(5*Calculator!$E$197)+E17+E18))-(0.0013*(E20-(5*Calculator!$E$197)+E17+E18)*(E20-(5*Calculator!$E$197)+E17+E18)))*$E$22 -> 41.43534375 | F23: =(14.22+(0.5464*(F20-(5*Calculator!$E$197)+F17+F18))-(0.0038*(F20-(5*Calculator!$E$197)+F17+F18)*(F20-(5*Calculator!$E$197)+F17+F18)))*$F$22 -> 32.3635625 | G23: =(34.75+(1.152*(G20-(5*Calculator!$E$197)+G17+G18))-(0.0037*(G20-(5*Calculator!$E$197)+G17+G18)*(G20-(5*Calculator!$E$197)+G17+G18)))*$G$22 -> 42.96147963 | H23: =(31.73+(1.556*(H20-(5*Calculator!$E$197)+H17+H18))-(0.0082*(H20-(5*Calculator!$E$197)+H17+H18)*(H20-(5*Calculator!$E$197)+H17+H18)))*$H$22 -> 47.44098842 | I23: =(23.93+(0.671*(I20-(5*Calculator!$E$197)+I17+I18))-(0.0032*(I20-(5*Calculator!$E$197)+I17+I18)*(I20-(5*Calculator!$E$197)+I17+I18)))*$I$22 -> 44.892632 | J23: =(25.9+(0.232*(J20-(5*Calculator!$E$197)+J17+J18))-(0.0005*(J20-(5*Calculator!$E$197)+J17+J18)*(J20-(5*Calculator!$E$197)+J17+J18)))*$J$22 -> 50.066595 | K23: =(K20-(5*Calculator!$E$197)+K17+K18) -> 0.4 | L23: =(113+(0.4681*(L20-(5*Calculator!$E$197)+L17+L18))-(0.0009*(L20-(5*Calculator!$E$197)+L17+L18)*(L20-(5*Calculator!$E$197)+L17+L18)))*$L$22 -> 54.8925659 | M23: =(79+(0.5181*(M20-(5*Calculator!$E$197)+M17+M18))-(0.001*(M20-(5*Calculator!$E$197)+M17+M18)*(M20-(5*Calculator!$E$197)+M17+M18)))*$M$22 -> 51.61440563 | N23: =(44.9+(0.5682*(N20-(5*Calculator!$E$197)+N17+N18))-(0.0012*(N20-(5*Calculator!$E$197)+N17+N18)*(N20-(5*Calculator!$E$197)+N17+N18)))*$N$22 -> 50.67894847 | O23: =Calculator!$E$23 -> 63
A24: -4x | B24: 23 | C24: =(37.71+(0.3917*(C20-(4*Calculator!$E$197)+C17+C18))-(0.0008*(C20-(4*Calculator!$E$197)+C17+C18)*(C20-(4*Calculator!$E$197)+C17+C18)))*$C$22 -> 56.5692811 | D24: =(24.75+(0.4902*(D20-(4*Calculator!$E$197)+D17+D18))-(0.0015*(D20-(4*Calculator!$E$197)+D17+D18)*(D20-(4*Calculator!$E$197)+D17+D18)))*$D$22 -> 58.0874822 | E24: =(14.22+(0.4159*(E20-(4*Calculator!$E$197)+E17+E18))-(0.0013*(E20-(4*Calculator!$E$197)+E17+E18)*(E20-(4*Calculator!$E$197)+E17+E18)))*$E$22 -> 43.07884375 | F24: =(14.22+(0.5464*(F20-(4*Calculator!$E$197)+F17+F18))-(0.0038*(F20-(4*Calculator!$E$197)+F17+F18)*(F20-(4*Calculator!$E$197)+F17+F18)))*$F$22 -> 30.4745625 | G24: =(34.75+(1.152*(G20-(4*Calculator!$E$197)+G17+G18))-(0.0037*(G20-(4*Calculator!$E$197)+G17+G18)*(G20-(4*Calculator!$E$197)+G17+G18)))*$G$22 -> 47.83594224 | H24: =(31.73+(1.556*(H20-(4*Calculator!$E$197)+H17+H18))-(0.0082*(H20-(4*Calculator!$E$197)+H17+H18)*(H20-(4*Calculator!$E$197)+H17+H18)))*$H$22 -> 52.51743341 | I24: =(23.93+(0.671*(I20-(4*Calculator!$E$197)+I17+I18))-(0.0032*(I20-(4*Calculator!$E$197)+I17+I18)*(I20-(4*Calculator!$E$197)+I17+I18)))*$I$22 -> 48.837832 | J24: =(25.9+(0.232*(J20-(4*Calculator!$E$197)+J17+J18))-(0.0005*(J20-(4*Calculator!$E$197)+J17+J18)*(J20-(4*Calculator!$E$197)+J17+J18)))*$J$22 -> 50.757595 | K24: =(K20-(4*Calculator!$E$197)+K17+K18) -> 10.4 | L24: =(113+(0.4681*(L20-(4*Calculator!$E$197)+L17+L18))-(0.0009*(L20-(4*Calculator!$E$197)+L17+L18)*(L20-(4*Calculator!$E$197)+L17+L18)))*$L$22 -> 56.67124546 | M24: =(79+(0.5181*(M20-(4*Calculator!$E$197)+M17+M18))-(0.001*(M20-(4*Calculator!$E$197)+M17+M18)*(M20-(4*Calculator!$E$197)+M17+M18)))*$M$22 -> 54.11335781 | N24: =(44.9+(0.5682*(N20-(4*Calculator!$E$197)+N17+N18))-(0.0012*(N20-(4*Calculator!$E$197)+N17+N18)*(N20-(4*Calculator!$E$197)+N17+N18)))*$N$22 -> 53.46846707 | O24: =Calculator!$E$23 -> 63
A25: -3x | B25: 24 | C25: =(37.71+(0.3917*(C20-(3*Calculator!$E$197)+C17+C18))-(0.0008*(C20-(3*Calculator!$E$197)+C17+C18)*(C20-(3*Calculator!$E$197)+C17+C18)))*$C$22 -> 58.37291976 | D25: =(24.75+(0.4902*(D20-(3*Calculator!$E$197)+D17+D18))-(0.0015*(D20-(3*Calculator!$E$197)+D17+D18)*(D20-(3*Calculator!$E$197)+D17+D18)))*$D$22 -> 59.75791517 | E25: =(14.22+(0.4159*(E20-(3*Calculator!$E$197)+E17+E18))-(0.0013*(E20-(3*Calculator!$E$197)+E17+E18)*(E20-(3*Calculator!$E$197)+E17+E18)))*$E$22 -> 44.46234375 | F25: =(14.22+(0.5464*(F20-(3*Calculator!$E$197)+F17+F18))-(0.0038*(F20-(3*Calculator!$E$197)+F17+F18)*(F20-(3*Calculator!$E$197)+F17+F18)))*$F$22 -> 27.8255625 | G25: =(34.75+(1.152*(G20-(3*Calculator!$E$197)+G17+G18))-(0.0037*(G20-(3*Calculator!$E$197)+G17+G18)*(G20-(3*Calculator!$E$197)+G17+G18)))*$G$22 -> 52.27702559 | H25: =(31.73+(1.556*(H20-(3*Calculator!$E$197)+H17+H18))-(0.0082*(H20-(3*Calculator!$E$197)+H17+H18)*(H20-(3*Calculator!$E$197)+H17+H18)))*$H$22 -> 56.61155706 | I25: =(23.93+(0.671*(I20-(3*Calculator!$E$197)+I17+I18))-(0.0032*(I20-(3*Calculator!$E$197)+I17+I18)*(I20-(3*Calculator!$E$197)+I17+I18)))*$I$22 -> 52.143032 | J25: =(25.9+(0.232*(J20-(3*Calculator!$E$197)+J17+J18))-(0.0005*(J20-(3*Calculator!$E$197)+J17+J18)*(J20-(3*Calculator!$E$197)+J17+J18)))*$J$22 -> 51.348595 | K25: =(K20-(3*Calculator!$E$197)+K17+K18) -> 20.4 | L25: =(113+(0.4681*(L20-(3*Calculator!$E$197)+L17+L18))-(0.0009*(L20-(3*Calculator!$E$197)+L17+L18)*(L20-(3*Calculator!$E$197)+L17+L18)))*$L$22 -> 58.37132866 | M25: =(79+(0.5181*(M20-(3*Calculator!$E$197)+M17+M18))-(0.001*(M20-(3*Calculator!$E$197)+M17+M18)*(M20-(3*Calculator!$E$197)+M17+M18)))*$M$22 -> 56.50139334 | N25: =(44.9+(0.5682*(N20-(3*Calculator!$E$197)+N17+N18))-(0.0012*(N20-(3*Calculator!$E$197)+N17+N18)*(N20-(3*Calculator!$E$197)+N17+N18)))*$N$22 -> 56.09533152 | O25: =Calculator!$E$23 -> 63
A26: -2x | B26: 25 | C26: =(37.71+(0.3917*(C20-(2*Calculator!$E$197)+C17+C18))-(0.0008*(C20-(2*Calculator!$E$197)+C17+C18)*(C20-(2*Calculator!$E$197)+C17+C18)))*$C$22 -> 60.04591913 | D26: =(24.75+(0.4902*(D20-(2*Calculator!$E$197)+D17+D18))-(0.0015*(D20-(2*Calculator!$E$197)+D17+D18)*(D20-(2*Calculator!$E$197)+D17+D18)))*$D$22 -> 61.13347913 | E26: =(14.22+(0.4159*(E20-(2*Calculator!$E$197)+E17+E18))-(0.0013*(E20-(2*Calculator!$E$197)+E17+E18)*(E20-(2*Calculator!$E$197)+E17+E18)))*$E$22 -> 45.58584375 | F26: =(14.22+(0.5464*(F20-(2*Calculator!$E$197)+F17+F18))-(0.0038*(F20-(2*Calculator!$E$197)+F17+F18)*(F20-(2*Calculator!$E$197)+F17+F18)))*$F$22 -> 24.4165625 | G26: =(34.75+(1.152*(G20-(2*Calculator!$E$197)+G17+G18))-(0.0037*(G20-(2*Calculator!$E$197)+G17+G18)*(G20-(2*Calculator!$E$197)+G17+G18)))*$G$22 -> 56.28472966 | H26: =(31.73+(1.556*(H20-(2*Calculator!$E$197)+H17+H18))-(0.0082*(H20-(2*Calculator!$E$197)+H17+H18)*(H20-(2*Calculator!$E$197)+H17+H18)))*$H$22 -> 59.72335937 | I26: =(23.93+(0.671*(I20-(2*Calculator!$E$197)+I17+I18))-(0.0032*(I20-(2*Calculator!$E$197)+I17+I18)*(I20-(2*Calculator!$E$197)+I17+I18)))*$I$22 -> 54.808232 | J26: =(25.9+(0.232*(J20-(2*Calculator!$E$197)+J17+J18))-(0.0005*(J20-(2*Calculator!$E$197)+J17+J18)*(J20-(2*Calculator!$E$197)+J17+J18)))*$J$22 -> 51.839595 | K26: =(K20-(2*Calculator!$E$197)+K17+K18) -> 30.4 | L26: =(113+(0.4681*(L20-(2*Calculator!$E$197)+L17+L18))-(0.0009*(L20-(2*Calculator!$E$197)+L17+L18)*(L20-(2*Calculator!$E$197)+L17+L18)))*$L$22 -> 59.99281548 | M26: =(79+(0.5181*(M20-(2*Calculator!$E$197)+M17+M18))-(0.001*(M20-(2*Calculator!$E$197)+M17+M18)*(M20-(2*Calculator!$E$197)+M17+M18)))*$M$22 -> 58.77851221 | N26: =(44.9+(0.5682*(N20-(2*Calculator!$E$197)+N17+N18))-(0.0012*(N20-(2*Calculator!$E$197)+N17+N18)*(N20-(2*Calculator!$E$197)+N17+N18)))*$N$22 -> 58.55954183 | O26: =Calculator!$E$23 -> 63
A27: -1x | B27: 26 | C27: =(37.71+(0.3917*(C20-(1*Calculator!$E$197)+C17+C18))-(0.0008*(C20-(1*Calculator!$E$197)+C17+C18)*(C20-(1*Calculator!$E$197)+C17+C18)))*$C$22 -> 61.58827921 | D27: =(24.75+(0.4902*(D20-(1*Calculator!$E$197)+D17+D18))-(0.0015*(D20-(1*Calculator!$E$197)+D17+D18)*(D20-(1*Calculator!$E$197)+D17+D18)))*$D$22 -> 62.21417407 | E27: =(14.22+(0.4159*(E20-(1*Calculator!$E$197)+E17+E18))-(0.0013*(E20-(1*Calculator!$E$197)+E17+E18)*(E20-(1*Calculator!$E$197)+E17+E18)))*$E$22 -> 46.44934375 | F27: =(14.22+(0.5464*(F20-(1*Calculator!$E$197)+F17+F18))-(0.0038*(F20-(1*Calculator!$E$197)+F17+F18)*(F20-(1*Calculator!$E$197)+F17+F18)))*$F$22 -> 20.2475625 | G27: =(34.75+(1.152*(G20-(1*Calculator!$E$197)+G17+G18))-(0.0037*(G20-(1*Calculator!$E$197)+G17+G18)*(G20-(1*Calculator!$E$197)+G17+G18)))*$G$22 -> 59.85905446 | H27: =(31.73+(1.556*(H20-(1*Calculator!$E$197)+H17+H18))-(0.0082*(H20-(1*Calculator!$E$197)+H17+H18)*(H20-(1*Calculator!$E$197)+H17+H18)))*$H$22 -> 61.85284035 | I27: =(23.93+(0.671*(I20-(1*Calculator!$E$197)+I17+I18))-(0.0032*(I20-(1*Calculator!$E$197)+I17+I18)*(I20-(1*Calculator!$E$197)+I17+I18)))*$I$22 -> 56.833432 | J27: =(25.9+(0.232*(J20-(1*Calculator!$E$197)+J17+J18))-(0.0005*(J20-(1*Calculator!$E$197)+J17+J18)*(J20-(1*Calculator!$E$197)+J17+J18)))*$J$22 -> 52.230595 | K27: =(K20-(1*Calculator!$E$197)+K17+K18) -> 40.4 | L27: =(113+(0.4681*(L20-(1*Calculator!$E$197)+L17+L18))-(0.0009*(L20-(1*Calculator!$E$197)+L17+L18)*(L20-(1*Calculator!$E$197)+L17+L18)))*$L$22 -> 61.53570592 | M27: =(79+(0.5181*(M20-(1*Calculator!$E$197)+M17+M18))-(0.001*(M20-(1*Calculator!$E$197)+M17+M18)*(M20-(1*Calculator!$E$197)+M17+M18)))*$M$22 -> 60.94471443 | N27: =(44.9+(0.5682*(N20-(1*Calculator!$E$197)+N17+N18))-(0.0012*(N20-(1*Calculator!$E$197)+N17+N18)*(N20-(1*Calculator!$E$197)+N17+N18)))*$N$22 -> 60.86109799 | O27: =Calculator!$E$23 -> 63
A28: Applied | B28: 27 | C28: =(37.71+(0.3917*(C20+C17+C18))-(0.0008*(C20+C17+C18)*(C20+C17+C18)))*$C$22 -> 63 | D28: =(24.75+(0.4902*(D20+D17+D18))-(0.0015*(D20+D17+D18)*(D20+D17+D18)))*$D$22 -> 63 | E28: =(14.22+(0.4159*(E20+E17+E18))-(0.0013*(E20+E17+E18)*(E20+E17+E18)))*$E$22 -> 47.05284375 | F28: =(14.22+(0.5464*(F20+F17+F18))-(0.0038*(F20+F17+F18)*(F20+F17+F18)))*$F$22 -> 15.3185625 | G28: =(34.75+(1.152*(G20+G17+G18))-(0.0037*(G20+G17+G18)*(G20+G17+G18)))*$G$22 -> 63 | H28: =(31.73+(1.556*(H20+H17+H18))-(0.0082*(H20+H17+H18)*(H20+H17+H18)))*$H$22 -> 63 | I28: =(23.93+(0.671*(I20+I17+I18))-(0.0032*(I20+I17+I18)*(I20+I17+I18)))*$I$22 -> 58.218632 | J28: =(25.9+(0.232*(J20+J17+J18))-(0.0005*(J20+J17+J18)*(J20+J17+J18)))*$J$22 -> 52.521595 | K28: =(K20+K17+K18) -> 50.4 | L28: =(113+(0.4681*(L20+L17+L18))-(0.0009*(L20+L17+L18)*(L20+L17+L18)))*$L$22 -> 63 | M28: =(79+(0.5181*(M20+M17+M18))-(0.001*(M20+M17+M18)*(M20+M17+M18)))*$M$22 -> 63 | N28: =(44.9+(0.5682*(N20+N17+N18))-(0.0012*(N20+N17+N18)*(N20+N17+N18)))*$N$22 -> 63 | O28: =Calculator!$E$23 -> 63
A29: 1x | B29: 28 | C29: =(37.71+(0.3917*(C20+(1*Calculator!$E$197)+C17+C18))-(0.0008*(C20+(1*Calculator!$E$197)+C17+C18)*(C20+(1*Calculator!$E$197)+C17+C18)))*$C$22 -> 64.28108151 | D29: =(24.75+(0.4902*(D20+(1*Calculator!$E$197)+D17+D18))-(0.0015*(D20+(1*Calculator!$E$197)+D17+D18)*(D20+(1*Calculator!$E$197)+D17+D18)))*$D$22 -> 63.49095691 | E29: =(14.22+(0.4159*(E20+(1*Calculator!$E$197)+E17+E18))-(0.0013*(E20+(1*Calculator!$E$197)+E17+E18)*(E20+(1*Calculator!$E$197)+E17+E18)))*$E$22 -> 47.39634375 | F29: =(14.22+(0.5464*(F20+(1*Calculator!$E$197)+F17+F18))-(0.0038*(F20+(1*Calculator!$E$197)+F17+F18)*(F20+(1*Calculator!$E$197)+F17+F18)))*$F$22 -> 9.6295625 | G29: =(34.75+(1.152*(G20+(1*Calculator!$E$197)+G17+G18))-(0.0037*(G20+(1*Calculator!$E$197)+G17+G18)*(G20+(1*Calculator!$E$197)+G17+G18)))*$G$22 -> 65.70756627 | H29: =(31.73+(1.556*(H20+(1*Calculator!$E$197)+H17+H18))-(0.0082*(H20+(1*Calculator!$E$197)+H17+H18)*(H20+(1*Calculator!$E$197)+H17+H18)))*$H$22 -> 63.16483831 | I29: =(23.93+(0.671*(I20+(1*Calculator!$E$197)+I17+I18))-(0.0032*(I20+(1*Calculator!$E$197)+I17+I18)*(I20+(1*Calculator!$E$197)+I17+I18)))*$I$22 -> 58.963832 | J29: =(25.9+(0.232*(J20+(1*Calculator!$E$197)+J17+J18))-(0.0005*(J20+(1*Calculator!$E$197)+J17+J18)*(J20+(1*Calculator!$E$197)+J17+J18)))*$J$22 -> 52.712595 | K29: =(K20+(1*Calculator!$E$197)+K17+K18) -> 60.4 | L29: =(113+(0.4681*(L20+(1*Calculator!$E$197)+L17+L18))-(0.0009*(L20+(1*Calculator!$E$197)+L17+L18)*(L20+(1*Calculator!$E$197)+L17+L18)))*$L$22 -> 64.3856977 | M29: =(79+(0.5181*(M20+(1*Calculator!$E$197)+M17+M18))-(0.001*(M20+(1*Calculator!$E$197)+M17+M18)*(M20+(1*Calculator!$E$197)+M17+M18)))*$M$22 -> 64.94436892 | N29: =(44.9+(0.5682*(N20+(1*Calculator!$E$197)+N17+N18))-(0.0012*(N20+(1*Calculator!$E$197)+N17+N18)*(N20+(1*Calculator!$E$197)+N17+N18)))*$N$22 -> 64.97624787 | O29: =Calculator!$E$23 -> 63
A30: 2x | B30: 29 | C30: =(37.71+(0.3917*(C20+(2*Calculator!$E$197)+C17+C18))-(0.0008*(C20+(2*Calculator!$E$197)+C17+C18)*(C20+(2*Calculator!$E$197)+C17+C18)))*$C$22 -> 65.43152373 | D30: =(24.75+(0.4902*(D20+(2*Calculator!$E$197)+D17+D18))-(0.0015*(D20+(2*Calculator!$E$197)+D17+D18)*(D20+(2*Calculator!$E$197)+D17+D18)))*$D$22 -> 63.68704481 | E30: =(14.22+(0.4159*(E20+(2*Calculator!$E$197)+E17+E18))-(0.0013*(E20+(2*Calculator!$E$197)+E17+E18)*(E20+(2*Calculator!$E$197)+E17+E18)))*$E$22 -> 47.47984375 | F30: =(14.22+(0.5464*(F20+(2*Calculator!$E$197)+F17+F18))-(0.0038*(F20+(2*Calculator!$E$197)+F17+F18)*(F20+(2*Calculator!$E$197)+F17+F18)))*$F$22 -> 3.1805625 | G30: =(34.75+(1.152*(G20+(2*Calculator!$E$197)+G17+G18))-(0.0037*(G20+(2*Calculator!$E$197)+G17+G18)*(G20+(2*Calculator!$E$197)+G17+G18)))*$G$22 -> 67.98175326 | H30: =(31.73+(1.556*(H20+(2*Calculator!$E$197)+H17+H18))-(0.0082*(H20+(2*Calculator!$E$197)+H17+H18)*(H20+(2*Calculator!$E$197)+H17+H18)))*$H$22 -> 62.34735529 | I30: =(23.93+(0.671*(I20+(2*Calculator!$E$197)+I17+I18))-(0.0032*(I20+(2*Calculator!$E$197)+I17+I18)*(I20+(2*Calculator!$E$197)+I17+I18)))*$I$22 -> 59.069032 | J30: =(25.9+(0.232*(J20+(2*Calculator!$E$197)+J17+J18))-(0.0005*(J20+(2*Calculator!$E$197)+J17+J18)*(J20+(2*Calculator!$E$197)+J17+J18)))*$J$22 -> 52.803595 | K30: =(K20+(2*Calculator!$E$197)+K17+K18) -> 70.4 | L30: =(113+(0.4681*(L20+(2*Calculator!$E$197)+L17+L18))-(0.0009*(L20+(2*Calculator!$E$197)+L17+L18)*(L20+(2*Calculator!$E$197)+L17+L18)))*$L$22 -> 65.69279904 | M30: =(79+(0.5181*(M20+(2*Calculator!$E$197)+M17+M18))-(0.001*(M20+(2*Calculator!$E$197)+M17+M18)*(M20+(2*Calculator!$E$197)+M17+M18)))*$M$22 -> 66.77782118 | N30: =(44.9+(0.5682*(N20+(2*Calculator!$E$197)+N17+N18))-(0.0012*(N20+(2*Calculator!$E$197)+N17+N18)*(N20+(2*Calculator!$E$197)+N17+N18)))*$N$22 -> 66.78984159 | O30: =Calculator!$E$23 -> 63
A31: 3x | B31: 30 | C31: =(37.71+(0.3917*(C20+(3*Calculator!$E$197)+C17+C18))-(0.0008*(C20+(3*Calculator!$E$197)+C17+C18)*(C20+(3*Calculator!$E$197)+C17+C18)))*$C$22 -> 66.45132666 | D31: =(24.75+(0.4902*(D20+(3*Calculator!$E$197)+D17+D18))-(0.0015*(D20+(3*Calculator!$E$197)+D17+D18)*(D20+(3*Calculator!$E$197)+D17+D18)))*$D$22 -> 63.58826369 | E31: =(14.22+(0.4159*(E20+(3*Calculator!$E$197)+E17+E18))-(0.0013*(E20+(3*Calculator!$E$197)+E17+E18)*(E20+(3*Calculator!$E$197)+E17+E18)))*$E$22 -> 47.30334375 | F31: =(14.22+(0.5464*(F20+(3*Calculator!$E$197)+F17+F18))-(0.0038*(F20+(3*Calculator!$E$197)+F17+F18)*(F20+(3*Calculator!$E$197)+F17+F18)))*$F$22 -> -4.0284375 | G31: =(34.75+(1.152*(G20+(3*Calculator!$E$197)+G17+G18))-(0.0037*(G20+(3*Calculator!$E$197)+G17+G18)*(G20+(3*Calculator!$E$197)+G17+G18)))*$G$22 -> 69.82256099 | H31: =(31.73+(1.556*(H20+(3*Calculator!$E$197)+H17+H18))-(0.0082*(H20+(3*Calculator!$E$197)+H17+H18)*(H20+(3*Calculator!$E$197)+H17+H18)))*$H$22 -> 60.54755093 | I31: =(23.93+(0.671*(I20+(3*Calculator!$E$197)+I17+I18))-(0.0032*(I20+(3*Calculator!$E$197)+I17+I18)*(I20+(3*Calculator!$E$197)+I17+I18)))*$I$22 -> 58.534232 | J31: =(25.9+(0.232*(J20+(3*Calculator!$E$197)+J17+J18))-(0.0005*(J20+(3*Calculator!$E$197)+J17+J18)*(J20+(3*Calculator!$E$197)+J17+J18)))*$J$22 -> 52.794595 | K31: =(K20+(3*Calculator!$E$197)+K17+K18) -> 80.4 | L31: =(113+(0.4681*(L20+(3*Calculator!$E$197)+L17+L18))-(0.0009*(L20+(3*Calculator!$E$197)+L17+L18)*(L20+(3*Calculator!$E$197)+L17+L18)))*$L$22 -> 66.921304 | M31: =(79+(0.5181*(M20+(3*Calculator!$E$197)+M17+M18))-(0.001*(M20+(3*Calculator!$E$197)+M17+M18)*(M20+(3*Calculator!$E$197)+M17+M18)))*$M$22 -> 68.50035679 | N31: =(44.9+(0.5682*(N20+(3*Calculator!$E$197)+N17+N18))-(0.0012*(N20+(3*Calculator!$E$197)+N17+N18)*(N20+(3*Calculator!$E$197)+N17+N18)))*$N$22 -> 68.44078117 | O31: =Calculator!$E$23 -> 63
A32: 4x | B32: 31 | C32: =(37.71+(0.3917*(C20+(4*Calculator!$E$197)+C17+C18))-(0.0008*(C20+(4*Calculator!$E$197)+C17+C18)*(C20+(4*Calculator!$E$197)+C17+C18)))*$C$22 -> 67.34049031 | D32: =(24.75+(0.4902*(D20+(4*Calculator!$E$197)+D17+D18))-(0.0015*(D20+(4*Calculator!$E$197)+D17+D18)*(D20+(4*Calculator!$E$197)+D17+D18)))*$D$22 -> 63.19461355 | E32: =(14.22+(0.4159*(E20+(4*Calculator!$E$197)+E17+E18))-(0.0013*(E20+(4*Calculator!$E$197)+E17+E18)*(E20+(4*Calculator!$E$197)+E17+E18)))*$E$22 -> 46.86684375 | F32: =(14.22+(0.5464*(F20+(4*Calculator!$E$197)+F17+F18))-(0.0038*(F20+(4*Calculator!$E$197)+F17+F18)*(F20+(4*Calculator!$E$197)+F17+F18)))*$F$22 -> -11.9974375 | G32: =(34.75+(1.152*(G20+(4*Calculator!$E$197)+G17+G18))-(0.0037*(G20+(4*Calculator!$E$197)+G17+G18)*(G20+(4*Calculator!$E$197)+G17+G18)))*$G$22 -> 71.22998945 | H32: =(31.73+(1.556*(H20+(4*Calculator!$E$197)+H17+H18))-(0.0082*(H20+(4*Calculator!$E$197)+H17+H18)*(H20+(4*Calculator!$E$197)+H17+H18)))*$H$22 -> 57.76542524 | I32: =(23.93+(0.671*(I20+(4*Calculator!$E$197)+I17+I18))-(0.0032*(I20+(4*Calculator!$E$197)+I17+I18)*(I20+(4*Calculator!$E$197)+I17+I18)))*$I$22 -> 57.359432 | J32: =(25.9+(0.232*(J20+(4*Calculator!$E$197)+J17+J18))-(0.0005*(J20+(4*Calculator!$E$197)+J17+J18)*(J20+(4*Calculator!$E$197)+J17+J18)))*$J$22 -> 52.685595 | K32: =(K20+(4*Calculator!$E$197)+K17+K18) -> 90.4 | L32: =(113+(0.4681*(L20+(4*Calculator!$E$197)+L17+L18))-(0.0009*(L20+(4*Calculator!$E$197)+L17+L18)*(L20+(4*Calculator!$E$197)+L17+L18)))*$L$22 -> 68.07121258 | M32: =(79+(0.5181*(M20+(4*Calculator!$E$197)+M17+M18))-(0.001*(M20+(4*Calculator!$E$197)+M17+M18)*(M20+(4*Calculator!$E$197)+M17+M18)))*$M$22 -> 70.11197575 | N32: =(44.9+(0.5682*(N20+(4*Calculator!$E$197)+N17+N18))-(0.0012*(N20+(4*Calculator!$E$197)+N17+N18)*(N20+(4*Calculator!$E$197)+N17+N18)))*$N$22 -> 69.9290666 | O32: =Calculator!$E$23 -> 63
B33: 32
A34: Short situation | C34: =(37.71+(0.3917*(C20+C17+C18))-(0.0008*(C20+C17+C18)*(C20+C17+C18))) -> 77.159025 | D34: =(24.75+(0.4902*(D20+D17+D18))-(0.0015*(D20+D17+D18)*(D20+D17+D18))) -> 64.09625625 | E34: =(14.22+(0.4159*(E20+E17+E18))-(0.0013*(E20+E17+E18)*(E20+E17+E18))) -> 47.05284375 | F34: =(14.22+(0.5464*(F20+F17+F18))-(0.0038*(F20+F17+F18)*(F20+F17+F18))) -> 15.3185625 | G34: =(34.75+(1.152*(G20+G17+G18))-(0.0037*(G20+G17+G18)*(G20+G17+G18))) -> 107.573212 | H34: =(31.73+(1.556*(H20+H17+H18))-(0.0082*(H20+H17+H18)*(H20+H17+H18))) -> 105.179432 | I34: =(23.93+(0.671*(I20+I17+I18))-(0.0032*(I20+I17+I18)*(I20+I17+I18))) -> 58.218632 | J34: =(25.9+(0.232*(J20+J17+J18))-(0.0005*(J20+J17+J18)*(J20+J17+J18))) -> 52.521595 | L34: =(113+(0.4681*(L20+L17+L18))-(0.0009*(L20+L17+L18)*(L20+L17+L18))) -> 144.2814688 | M34: =(79+(0.5181*(M20+M17+M18))-(0.001*(M20+M17+M18)*(M20+M17+M18))) -> 113.5988125 | N34: =(44.9+(0.5682*(N20+N17+N18))-(0.0012*(N20+N17+N18)*(N20+N17+N18))) -> 92.957975
A36: 10 | C36: =IFERROR((-0.3917+SQRT(0.3917^2-(4*-0.0008*-(A36-37.714))))/(2*-0.0008),-0.3917/(2*-0.0008)) -> -62.71905961 | D36: =IFERROR((-0.4902+SQRT(0.4902^2-(4*-0.0015*-(A36-24.75))))/(2*-0.0015),-0.4902/(2*-0.0015)) -> -27.73579815 | E36: =IFERROR((-0.4159+SQRT(0.4159^2-(4*-0.0013*-(A36-14.22))))/(2*-0.0013),-0.4159/(2*-0.0013)) -> -9.843784285 | F36: =IFERROR((-0.5464+SQRT(0.5464^2-(4*-0.0038*-(A36-14.22))))/(2*-0.0038),-0.5464/(2*-0.0038)) -> -7.347799093 | G36: =IFERROR((-1.152+SQRT(1.152^2-(4*-0.0037*-(A36-34.75))))/(2*-0.0037),-1.152/(2*-0.0037)) -> -20.17683408 | H36: =IFERROR((-1.556+SQRT(1.556^2-(4*-0.0082*-(A36-31.73))))/(2*-0.0082),-1.556/(2*-0.0082)) -> -13.06565942 | I36: =IFERROR((-0.671+SQRT(0.671^2-(4*-0.0032*-(A36-23.93))))/(2*-0.0032),-0.671/(2*-0.0032)) -> -19.03254682 | J36: =IFERROR((-0.232+SQRT(0.232^2-(4*-0.0005*-(A36-25.9))))/(2*-0.0005),-0.232/(2*-0.0005)) -> -60.61578905 | K36: =A36 -> 10 | L36: =IFERROR((-0.4681+SQRT(0.4681^2-(4*-0.0009*-(A36-113))))/(2*-0.0009),-0.4681/(2*-0.0009)) -> -166.6449676 | M36: =IFERROR((-0.5181+SQRT(0.5181^2-(4*-0.001*-(A36-79))))/(2*-0.001),-0.5181/(2*-0.001)) -> -109.8766899 | N36: =IFERROR((-0.5682+SQRT(0.5682^2-(4*-0.0012*-(A36-44.9))))/(2*-0.0012),-0.5682/(2*-0.0012)) -> -55.02713384 | O36: 0 | P36: 20

Sheet Chart Data (HIDE) (hidden)
A1: =ROUND(VLOOKUP(Calculator!E20,'Formula (HIDE)'!A105:M110,VLOOKUP(Calculator!E21,'Formula (HIDE)'!D96:G99,3,FALSE),FALSE),0) -> 50 | B1: =ROUND(VLOOKUP(Calculator!E20,'Formula (HIDE)'!A105:M110,VLOOKUP(Calculator!E21,'Formula (HIDE)'!D96:G99,4,FALSE),FALSE),0) -> 64 | C1: **Hide** | H1: Calc E20 =crop
H2: Calc E21 =moisture zone
A3: nutrient formula (soil and fert total) | H3: Calc E23 =yield
A4: N | F4: Baseline Target Yield | H4: Formula (HIDE)'!$B$112:$F$118 = crop & colum number for ideal/moist/dry/arid (1 to 14)
A5: =IFERROR(ROUND(VLOOKUP(IF(OR(Calculator!E23<A1,Calculator!E23>B1),0,Calculator!E23),#REF!,VLOOKUP(Calculator!E20,'Formula (HIDE)'!B112:F115,VLOOKUP(Calculator!E21,'Formula (HIDE)'!D96:E99,2,FALSE),FALSE),FALSE),0),"Error") -> Error | F5: =ROUND(VLOOKUP(Calculator!E20,'Formula (HIDE)'!A105:E110,VLOOKUP(Calculator!E21,'Formula (HIDE)'!D96:E99,2,FALSE),FALSE),0) -> 60 | H5: Formula (HIDE)'!$D$96:$E$99 = column number for above lookup for ideal/moist/dry/arid
A6: =IFERROR(ROUND(VLOOKUP(IF(OR(Calculator!E23<A1,Calculator!E23>B1),0,15),'N recs 3 (HIDE)'!B2:O33,VLOOKUP(Calculator!$E$20,'Formula (HIDE)'!$B$112:$F$118,VLOOKUP(Calculator!$E$21,'Formula (HIDE)'!$D$96:$E$99,2,FALSE),FALSE),FALSE),0),"Error") -> 142 | H6: =IFERROR(ROUND(VLOOKUP(IF(OR(Calculator!E23<A1,Calculator!E23>B1),0,15),'N recs 3 (HIDE)'!B2:O33,VLOOKUP(Calculator!$E$20,'Formula (HIDE)'!$B$112:$F$118,VLOOKUP(Calculator!$E$21,'Formula (HIDE)'!$D$96:$E$99,2,FALSE),FALSE),FALSE),0),"Error") -> 142 | I6: **(this can be copied to the formula bar for A6)**
A8: *hide | C8: Recommendation | K8: Phosphate
B9: Yield | C9: Olson P | D9: Bray P | E9: K | F9: S | K9: Removal | L9: depletion
A10: Wheat | B10: =Calculator!$E$23 -> 63 | C10: =IF(Calculator!$F$31>=76,0,VLOOKUP($B$10,'Wheat P - Olson test MB AG'!$A$3:$BZ$143,Calculator!$F$31+2,FALSE)) -> 30 | E10: =IF(Calculator!$G$31>=751,0,VLOOKUP($B$10,'Wheat K - w seed MB AG'!$A$3:$ABY$143,Calculator!$G$31+2,FALSE)) -> 15 | F10: =IF(Calculator!$H$31>=31,0,VLOOKUP($B$10,'Cereals S - MB AG'!$A$3:$AG$143,Calculator!$H$31+2,FALSE)) -> 15 | I10: Wheat | K10: =IF(Calculator!$F$31>=76,0,ROUND('P recs 2 (HIDE)'!C9,0)) -> 37 | L10: =SUM(K10-Calculator!$F$35) -> 7
A12: =ROUND(VLOOKUP(Calculator!B34,'Formula (HIDE)'!A116:M121,VLOOKUP(Calculator!B35,'Formula (HIDE)'!D107:G110,3,FALSE),FALSE),0) ->  | B12: =ROUND(VLOOKUP(Calculator!B34,'Formula (HIDE)'!A116:M121,VLOOKUP(Calculator!B35,'Formula (HIDE)'!D107:G110,4,FALSE),FALSE),0) ->  | C12: **Hide**
A13: Barley | B13: =Calculator!$E$23 -> 63 | C13: =IF(Calculator!$F$31>=76,0,VLOOKUP(B13,'Barley P - Olson MB AG'!$A$3:$BZ$143,Calculator!$F$31+2,FALSE)) -> 30 | E13: =IF(Calculator!$G$31>=751,0,VLOOKUP(B13,'Barley K - w seed MB AG'!$A$3:$ABY$143,Calculator!$G$31+2,FALSE)) -> 15 | F13: =IF(Calculator!$H$31>=31,0,VLOOKUP(B13,'Cereals S - MB AG'!$A$3:$AG$143,Calculator!$H$31+2,FALSE)) -> 15 | I13: Barley | K13: =IF(Calculator!$F$31>=76,0,ROUND('P recs 2 (HIDE)'!D9,0)) -> 26 | L13: =SUM(K13-Calculator!$F$35) -> -4
A14: Canola | B14: =Calculator!$E$23 -> 63 | C14: =IF(Calculator!$F$31>=76,0,VLOOKUP(B14,'Canola P - Olson test MB AG'!$A$3:$BZ$143,Calculator!$F$31+2,FALSE)) -> 30 | E14: =IF(Calculator!$G$31>=751,0,VLOOKUP(B14,'Canola K - band MB AG'!$A$3:$ABY$143,Calculator!$G$31+2,FALSE)) -> 15 | F14: =IF(Calculator!$H$31>=31,0,VLOOKUP(B14,'Canola Corn S - MB AG'!$A$3:$AG$143,Calculator!$H$31+2,FALSE)) -> 20 | I14: Canola | K14: =IF(Calculator!$F$31>=76,0,ROUND('P recs 2 (HIDE)'!E9,0)) -> 66 | L14: =SUM(K14-Calculator!$F$35) -> 36
A15: Oats | B15: =Calculator!$E$23 -> 63 | C15: =IF(Calculator!$F$31>=76,0,VLOOKUP(B15,'Oats P - Olson Test MB AG'!$A$3:$BZ$143,Calculator!$F$31+2,FALSE)) -> 30 | E15: =IF(Calculator!$G$31>=751,0,VLOOKUP(B15,'Oats K - w seed MB AG'!$A$3:$ABY$143,Calculator!$G$31+2,FALSE)) -> 15 | F15: =IF(Calculator!$H$31>=31,0,VLOOKUP(B15,'Cereals S - MB AG'!$A$3:$AG$143,Calculator!$H$31+2,FALSE)) -> 15 | I15: Oats | K15: =IF(Calculator!$F$31>=76,0,ROUND('P recs 2 (HIDE)'!F9,0)) -> 16 | L15: =SUM(K15-Calculator!$F$35) -> -14
A16: Corn | B16: =Calculator!$E$23 -> 63 | C16: =IF(Calculator!$F$31>=76,0,VLOOKUP(B16,'Corn P - Olson Test MB AG'!$A$3:$BZ$193,Calculator!$F$31+2,FALSE)) -> 30 | E16: =IF(Calculator!$G$31>=751,0,VLOOKUP(B16,'Corn K - band MB AG'!$A$3:$ABY$193,Calculator!$G$31+2,FALSE)) -> 75 | F16: =IF(Calculator!$H$31>=31,0,VLOOKUP(B16,'Canola Corn S - MB AG'!$A$3:$AG$193,Calculator!$H$31+2,FALSE)) -> 20 | I16: Corn | K16: =IF(Calculator!$F$31>=76,0,ROUND('P recs 2 (HIDE)'!G9,0)) -> 28 | L16: =SUM(K16-Calculator!$F$35) -> -2
A17: Soybeans | B17: =Calculator!$E$23 -> 63 | C17: =IF(Calculator!$F$31>=76,0,VLOOKUP(B17,'Soybean P - Olson test MB AG'!$A$3:$BZ$143,Calculator!$F$31+2,FALSE)) -> 30 | E17: =IF(Calculator!$G$31>=751,0,VLOOKUP(B17,'Soybeans K - band MB AG'!$A$3:$ABY$143,Calculator!$G$31+2,FALSE)) -> 15 | F17: =IF(Calculator!$H$31>=31,0,VLOOKUP(B17,'Canola Corn S - MB AG'!$A$3:$AG$143,Calculator!$H$31+2,FALSE)) -> 20 | I17: Soybeans | K17: =IF(Calculator!$F$31>=76,0,ROUND('P recs 2 (HIDE)'!H9,0)) -> 53 | L17: =SUM(K17-Calculator!$F$35) -> 23
K18: =ROUND(VLOOKUP(Calculator!E20,'Chart Data (HIDE)'!I10:L17,3,FALSE),0) -> 37 | L18: =ROUND(VLOOKUP(Calculator!E20,'Chart Data (HIDE)'!I10:L17,4,FALSE),0) -> 7
B20: change N rec rate | D20: "=ROUND(VLOOKUP($A$4*****+soil test n*****,'N recs (2)'!$A$4:$K$3000,VLOOKUP(Calculator!$B$14,'DATA n formula'!$B$110:$F$113,VLOOKUP(Calculator!$B$15,'DATA n formula'!$D$94:$E$97,2,FALSE),FALSE)),0)
A22: -1x ln N | D22: 61.842 | H22: -2x ln N | K22: 60.36 | O22: -3x ln N | R22: 58.578 | V22: 1x ln N | Y22: 63.906 | AC22: 2x ln N | AF22: 64.488 | AJ22: 3x ln N | AM22: 64.77 | AQ22: 4x ln N | AT22: 64.752 | AX22: -4x ln N | BA22: 56.474 | BE22: -5x ln N | BH22: 54.089 | BL22: actual | BO22: 63.024
A23: =IF(A6=0,0,ROUND($A$6-ABS(Calculator!$E$197)-Calculator!$E$31-Calculator!$E$116,0)) -> 97 | B23: lbs of N | H23: =IF(A6=0,0,ROUND($A$6-ABS(Calculator!$E$197*2)-Calculator!$E$31-Calculator!$E$116,0)) -> 87 | I23: lbs of N | O23: =IF(A6=0,0,ROUND($A$6-ABS(Calculator!$E$197*3)-Calculator!$E$31-Calculator!$E$116,0)) -> 77 | P23: lbs of N | V23: =IF(A6=0,0,ROUND($A$6+ABS(Calculator!$E$197)-Calculator!$E$31-Calculator!$E$116,0)) -> 117 | W23: lbs of N | AC23: =IF(A6=0,0,ROUND($A$6+ABS(Calculator!$E$197*2)-Calculator!$E$31-Calculator!$E$116,0)) -> 127 | AD23: lbs of N | AJ23: =IF(A6=0,0,ROUND($A$6+ABS(Calculator!$E$197*3)-Calculator!$E$31-Calculator!$E$116,0)) -> 137 | AK23: lbs of N | AQ23: =IF(A6=0,0,ROUND($A$6+ABS(Calculator!$E$197*4)-Calculator!$E$31-Calculator!$E$116,0)) -> 147 | AR23: lbs of N | AX23: =IF(A6=0,0,ROUND($A$6-ABS(Calculator!$E$197*4)-Calculator!$E$31-Calculator!$E$116,0)) -> 67 | AY23: lbs of N | BE23: =IF(A6=0,0,ROUND($A$6-ABS(Calculator!$E$197*5)-Calculator!$E$31-Calculator!$E$116,0)) -> 57 | BF23: lbs of N | BL23: =IF(A6=0,0,ROUND($A$6-Calculator!$E$31-Calculator!$E$116,0)) -> 107 | BM23: lbs of N
A25: *hide | C25: Recommendation | H25: *hide | J25: Recommendation | O25: *hide | Q25: Recommendation | V25: *hide | X25: Recommendation | AC25: *hide | AE25: Recommendation | AJ25: *hide | AL25: Recommendation | AQ25: *hide | AS25: Recommendation | AX25: *hide | AZ25: Recommendation | BE25: *hide | BG25: Recommendation | BL25: *hide | BN25: Recommendation
B26: Yield | C26: Olson P | D26: Bray P | E26: K | F26: S | I26: Yield | J26: Olson P | K26: Bray P | L26: K | M26: S | P26: Yield | Q26: Olson P | R26: Bray P | S26: K | T26: S | W26: Yield | X26: Olson P | Y26: Bray P | Z26: K | AA26: S | AD26: Yield | AE26: Olson P | AF26: Bray P | AG26: K | AH26: S | AK26: Yield | AL26: Olson P | AM26: Bray P | AN26: K | AO26: S | AR26: Yield | AS26: Olson P | AT26: Bray P | AU26: K | AV26: S | AY26: Yield | AZ26: Olson P | BA26: Bray P | BB26: K | BC26: S | BF26: Yield | BG26: Olson P | BH26: Bray P | BI26: K | BJ26: S | BM26: Yield | BN26: Olson P | BO26: Bray P | BP26: K | BQ26: S
A27: Wheat | B27: =IFERROR(ROUND(VLOOKUP(IF(OR(Calculator!E23<A1,Calculator!E23>B1),0,26),'N recs 3 (HIDE)'!B2:O33,VLOOKUP(Calculator!$E$20,'Formula (HIDE)'!$B$112:$F$118,VLOOKUP(Calculator!$E$21,'Formula (HIDE)'!$D$96:$E$99,2,FALSE),FALSE),FALSE),0),"Error") -> 62 | C27: =IF(Calculator!$F$31>=76,0,VLOOKUP($B$27,'Wheat P - Olson test MB AG'!$A$3:$BZ$143,Calculator!$F$31+2,FALSE)) -> 30 | E27: =IF(Calculator!$G$31>=751,0,VLOOKUP($B$27,'Wheat K - w seed MB AG'!$A$3:$ABY$143,Calculator!$G$31+2,FALSE)) -> 15 | F27: =IF(Calculator!$H$31>=31,0,VLOOKUP($B$27,'Cereals S - MB AG'!$A$3:$AG$143,Calculator!$H$31+2,FALSE)) -> 15 | H27: Wheat | I27: =IFERROR(ROUND(VLOOKUP(IF(OR(Calculator!E23<A1,Calculator!E23>B1),0,25),'N recs 3 (HIDE)'!B2:O33,VLOOKUP(Calculator!$E$20,'Formula (HIDE)'!$B$112:$F$118,VLOOKUP(Calculator!$E$21,'Formula (HIDE)'!$D$96:$E$99,2,FALSE),FALSE),FALSE),0),"Error") -> 61 | J27: =IF(Calculator!$F$31>=76,0,VLOOKUP(I27,'Wheat P - Olson test MB AG'!$A$3:$BZ$143,Calculator!$F$31+2,FALSE)) -> 30 | L27: =IF(Calculator!$G$31>=751,0,VLOOKUP(I27,'Wheat K - w seed MB AG'!$A$3:$ABY$143,Calculator!$G$31+2,FALSE)) -> 15 | M27: =IF(Calculator!$H$31>=31,0,VLOOKUP(I27,'Cereals S - MB AG'!$A$3:$AG$143,Calculator!$H$31+2,FALSE)) -> 15 | O27: Wheat | P27: =IFERROR(ROUND(VLOOKUP(IF(OR(Calculator!E23<A1,Calculator!E23>B1),0,24),'N recs 3 (HIDE)'!B2:O33,VLOOKUP(Calculator!$E$20,'Formula (HIDE)'!$B$112:$F$118,VLOOKUP(Calculator!$E$21,'Formula (HIDE)'!$D$96:$E$99,2,FALSE),FALSE),FALSE),0),"Error") -> 60 | Q27: =IF(Calculator!$F$31>=76,0,VLOOKUP(P27,'Wheat P - Olson test MB AG'!$A$3:$BZ$143,Calculator!$F$31+2,FALSE)) -> 30 | S27: =IF(Calculator!$G$31>=751,0,VLOOKUP(P27,'Wheat K - w seed MB AG'!$A$3:$ABY$143,Calculator!$G$31+2,FALSE)) -> 15 | T27: =IF(Calculator!$H$31>=31,0,VLOOKUP(P27,'Cereals S - MB AG'!$A$3:$AG$143,Calculator!$H$31+2,FALSE)) -> 15 | V27: Wheat | W27: =IFERROR(ROUND(VLOOKUP(IF(OR(Calculator!E23<A1,Calculator!E23>B1),0,28),'N recs 3 (HIDE)'!B2:O33,VLOOKUP(Calculator!$E$20,'Formula (HIDE)'!$B$112:$F$118,VLOOKUP(Calculator!$E$21,'Formula (HIDE)'!$D$96:$E$99,2,FALSE),FALSE),FALSE),0),"Error") -> 63 | X27: =IF(Calculator!$F$31>=76,0,VLOOKUP(W27,'Wheat P - Olson test MB AG'!$A$3:$BZ$143,Calculator!$F$31+2,FALSE)) -> 30 | Z27: =IF(Calculator!$G$31>=751,0,VLOOKUP(W27,'Wheat K - w seed MB AG'!$A$3:$ABY$143,Calculator!$G$31+2,FALSE)) -> 15 | AA27: =IF(Calculator!$H$31>=31,0,VLOOKUP(W27,'Cereals S - MB AG'!$A$3:$AG$143,Calculator!$H$31+2,FALSE)) -> 15 | AC27: Wheat | AD27: =IFERROR(ROUND(VLOOKUP(IF(OR(Calculator!E23<A1,Calculator!E23>B1),0,29),'N recs 3 (HIDE)'!B2:O33,VLOOKUP(Calculator!$E$20,'Formula (HIDE)'!$B$112:$F$118,VLOOKUP(Calculator!$E$21,'Formula (HIDE)'!$D$96:$E$99,2,FALSE),FALSE),FALSE),0),"Error") -> 64 | AE27: =IF(Calculator!$F$31>=76,0,VLOOKUP(AD27,'Wheat P - Olson test MB AG'!$A$3:$BZ$143,Calculator!$F$31+2,FALSE)) -> 30 | AG27: =IF(Calculator!$G$31>=751,0,VLOOKUP(AD27,'Wheat K - w seed MB AG'!$A$3:$ABY$143,Calculator!$G$31+2,FALSE)) -> 15 | AH27: =IF(Calculator!$H$31>=31,0,VLOOKUP(AD27,'Cereals S - MB AG'!$A$3:$AG$143,Calculator!$H$31+2,FALSE)) -> 15 | AJ27: Wheat | AK27: =IFERROR(ROUND(VLOOKUP(IF(OR(Calculator!E23<A1,Calculator!E23>B1),0,30),'N recs 3 (HIDE)'!B2:O33,VLOOKUP(Calculator!$E$20,'Formula (HIDE)'!$B$112:$F$118,VLOOKUP(Calculator!$E$21,'Formula (HIDE)'!$D$96:$E$99,2,FALSE),FALSE),FALSE),0),"Error") -> 64 | AL27: =IF(Calculator!$F$31>=76,0,VLOOKUP(AK27,'Wheat P - Olson test MB AG'!$A$3:$BZ$143,Calculator!$F$31+2,FALSE)) -> 30 | AN27: =IF(Calculator!$G$31>=751,0,VLOOKUP(AK27,'Wheat K - w seed MB AG'!$A$3:$ABY$143,Calculator!$G$31+2,FALSE)) -> 15 | AO27: =IF(Calculator!$H$31>=31,0,VLOOKUP(AK27,'Cereals S - MB AG'!$A$3:$AG$143,Calculator!$H$31+2,FALSE)) -> 15 | AQ27: Wheat | AR27: =IFERROR(ROUND(VLOOKUP(IF(OR(Calculator!E23<A1,Calculator!E23>B1),0,31),'N recs 3 (HIDE)'!B2:O33,VLOOKUP(Calculator!$E$20,'Formula (HIDE)'!$B$112:$F$118,VLOOKUP(Calculator!$E$21,'Formula (HIDE)'!$D$96:$E$99,2,FALSE),FALSE),FALSE),0),"Error") -> 63 | AS27: =IF(Calculator!$F$31>=76,0,VLOOKUP(AR27,'Wheat P - Olson test MB AG'!$A$3:$BZ$143,Calculator!$F$31+2,FALSE)) -> 30 | AU27: =IF(Calculator!$G$31>=751,0,VLOOKUP(AR27,'Wheat K - w seed MB AG'!$A$3:$ABY$143,Calculator!$G$31+2,FALSE)) -> 15 | AV27: =IF(Calculator!$H$31>=31,0,VLOOKUP(AR27,'Cereals S - MB AG'!$A$3:$AG$143,Calculator!$H$31+2,FALSE)) -> 15 | AX27: Wheat | AY27: =IFERROR(ROUND(VLOOKUP(IF(OR(Calculator!E23<A1,Calculator!E23>B1),0,23),'N recs 3 (HIDE)'!B2:O33,VLOOKUP(Calculator!$E$20,'Formula (HIDE)'!$B$112:$F$118,VLOOKUP(Calculator!$E$21,'Formula (HIDE)'!$D$96:$E$99,2,FALSE),FALSE),FALSE),0),"Error") -> 58 | AZ27: =IF(Calculator!$F$31>=76,0,VLOOKUP(AY27,'Wheat P - Olson test MB AG'!$A$3:$BZ$143,Calculator!$F$31+2,FALSE)) -> 30 | BB27: =IF(Calculator!$G$31>=751,0,VLOOKUP(AY27,'Wheat K - w seed MB AG'!$A$3:$ABY$143,Calculator!$G$31+2,FALSE)) -> 15 | BC27: =IF(Calculator!$H$31>=31,0,VLOOKUP(AY27,'Cereals S - MB AG'!$A$3:$AG$143,Calculator!$H$31+2,FALSE)) -> 15 | BE27: Wheat | BF27: =IFERROR(ROUND(VLOOKUP(IF(OR(Calculator!E23<A1,Calculator!E23>B1),0,22),'N recs 3 (HIDE)'!B2:O33,VLOOKUP(Calculator!$E$20,'Formula (HIDE)'!$B$112:$F$118,VLOOKUP(Calculator!$E$21,'Formula (HIDE)'!$D$96:$E$99,2,FALSE),FALSE),FALSE),0),"Error") -> 56 | BG27: =IF(Calculator!$F$31>=76,0,VLOOKUP(BF27,'Wheat P - Olson test MB AG'!$A$3:$BZ$143,Calculator!$F$31+2,FALSE)) -> 30 | BI27: =IF(Calculator!$G$31>=751,0,VLOOKUP(BF27,'Wheat K - w seed MB AG'!$A$3:$ABY$143,Calculator!$G$31+2,FALSE)) -> 15 | BJ27: =IF(Calculator!$H$31>=31,0,VLOOKUP(BF27,'Cereals S - MB AG'!$A$3:$AG$143,Calculator!$H$31+2,FALSE)) -> 15 | BL27: Wheat | BM27: =IFERROR(ROUND(VLOOKUP(IF(OR(Calculator!E23<A1,Calculator!E23>B1),0,27),'N recs 3 (HIDE)'!B2:O33,VLOOKUP(Calculator!$E$20,'Formula (HIDE)'!$B$112:$F$118,VLOOKUP(Calculator!$E$21,'Formula (HIDE)'!$D$96:$E$99,2,FALSE),FALSE),FALSE),0),"Error") -> 63 | BN27: =IF(Calculator!$F$31>=76,0,VLOOKUP(BM27,'Wheat P - Olson test MB AG'!$A$3:$BZ$143,Calculator!$F$31+2,FALSE)) -> 30 | BP27: =IF(Calculator!$G$31>=751,0,VLOOKUP(BM27,'Wheat K - w seed MB AG'!$A$3:$ABY$143,Calculator!$G$31+2,FALSE)) -> 15 | BQ27: =IF(Calculator!$H$31>=31,0,VLOOKUP(BM27,'Cereals S - MB AG'!$A$3:$AG$143,Calculator!$H$31+2,FALSE)) -> 15
B28: =IFERROR(ROUND(VLOOKUP(IF(OR(Calculator!E23<A1,Calculator!E23>B1),0,26),'N recs 3 (HIDE)'!B2:O33,VLOOKUP(Calculator!$E$20,'Formula (HIDE)'!$B$112:$F$118,VLOOKUP(Calculator!$E$21,'Formula (HIDE)'!$D$96:$E$99,2,FALSE),FALSE),FALSE),3),"Error") -> 62.214 | I28: =IFERROR(ROUND(VLOOKUP(IF(OR(Calculator!E23<A1,Calculator!E23>B1),0,25),'N recs 3 (HIDE)'!B2:O33,VLOOKUP(Calculator!$E$20,'Formula (HIDE)'!$B$112:$F$118,VLOOKUP(Calculator!$E$21,'Formula (HIDE)'!$D$96:$E$99,2,FALSE),FALSE),FALSE),3),"Error") -> 61.133 | P28: =IFERROR(ROUND(VLOOKUP(IF(OR(Calculator!E23<A1,Calculator!E23>B1),0,24),'N recs 3 (HIDE)'!B2:O33,VLOOKUP(Calculator!$E$20,'Formula (HIDE)'!$B$112:$F$118,VLOOKUP(Calculator!$E$21,'Formula (HIDE)'!$D$96:$E$99,2,FALSE),FALSE),FALSE),3),"Error") -> 59.758 | W28: =IFERROR(ROUND(VLOOKUP(IF(OR(Calculator!E23<A1,Calculator!E23>B1),0,28),'N recs 3 (HIDE)'!B2:O33,VLOOKUP(Calculator!$E$20,'Formula (HIDE)'!$B$112:$F$118,VLOOKUP(Calculator!$E$21,'Formula (HIDE)'!$D$96:$E$99,2,FALSE),FALSE),FALSE),3),"Error") -> 63.491 | AD28: =IFERROR(ROUND(VLOOKUP(IF(OR(Calculator!E23<A1,Calculator!E23>B1),0,29),'N recs 3 (HIDE)'!B2:O33,VLOOKUP(Calculator!$E$20,'Formula (HIDE)'!$B$112:$F$118,VLOOKUP(Calculator!$E$21,'Formula (HIDE)'!$D$96:$E$99,2,FALSE),FALSE),FALSE),3),"Error") -> 63.687 | AK28: =IFERROR(ROUND(VLOOKUP(IF(OR(Calculator!E23<A1,Calculator!E23>B1),0,30),'N recs 3 (HIDE)'!B2:O33,VLOOKUP(Calculator!$E$20,'Formula (HIDE)'!$B$112:$F$118,VLOOKUP(Calculator!$E$21,'Formula (HIDE)'!$D$96:$E$99,2,FALSE),FALSE),FALSE),3),"Error") -> 63.588 | AR28: =IFERROR(ROUND(VLOOKUP(IF(OR(Calculator!E23<A1,Calculator!E23>B1),0,31),'N recs 3 (HIDE)'!B2:O33,VLOOKUP(Calculator!$E$20,'Formula (HIDE)'!$B$112:$F$118,VLOOKUP(Calculator!$E$21,'Formula (HIDE)'!$D$96:$E$99,2,FALSE),FALSE),FALSE),3),"Error") -> 63.195 | AY28: =IFERROR(ROUND(VLOOKUP(IF(OR(Calculator!E23<A1,Calculator!E23>B1),0,23),'N recs 3 (HIDE)'!B2:O33,VLOOKUP(Calculator!$E$20,'Formula (HIDE)'!$B$112:$F$118,VLOOKUP(Calculator!$E$21,'Formula (HIDE)'!$D$96:$E$99,2,FALSE),FALSE),FALSE),3),"Error") -> 58.087 | BF28: =IFERROR(ROUND(VLOOKUP(IF(OR(Calculator!E23<A1,Calculator!E23>B1),0,22),'N recs 3 (HIDE)'!B2:O33,VLOOKUP(Calculator!$E$20,'Formula (HIDE)'!$B$112:$F$118,VLOOKUP(Calculator!$E$21,'Formula (HIDE)'!$D$96:$E$99,2,FALSE),FALSE),FALSE),3),"Error") -> 56.122 | BM28: =IFERROR(ROUND(VLOOKUP(IF(OR(Calculator!E23<A1,Calculator!E23>B1),0,27),'N recs 3 (HIDE)'!B2:O33,VLOOKUP(Calculator!$E$20,'Formula (HIDE)'!$B$112:$F$118,VLOOKUP(Calculator!$E$21,'Formula (HIDE)'!$D$96:$E$99,2,FALSE),FALSE),FALSE),3),"Error") -> 63
A29: =ROUND(VLOOKUP(#REF!,'Formula (HIDE)'!H116:T121,VLOOKUP(Calculator!I35,'Formula (HIDE)'!K107:N110,3,FALSE),FALSE),0) ->  | B29: =ROUND(VLOOKUP(#REF!,'Formula (HIDE)'!H116:T121,VLOOKUP(Calculator!I35,'Formula (HIDE)'!K107:N110,4,FALSE),FALSE),0) ->  | C29: **Hide** | H29: =ROUND(VLOOKUP(Calculator!P34,'Formula (HIDE)'!O116:AA121,VLOOKUP(Calculator!P35,'Formula (HIDE)'!R107:U110,3,FALSE),FALSE),0) ->  | I29: =ROUND(VLOOKUP(Calculator!P34,'Formula (HIDE)'!O116:AA121,VLOOKUP(Calculator!P35,'Formula (HIDE)'!R107:U110,4,FALSE),FALSE),0) ->  | J29: **Hide** | O29: =ROUND(VLOOKUP(Calculator!W34,'Formula (HIDE)'!V116:AH121,VLOOKUP(Calculator!W35,'Formula (HIDE)'!Y107:AB110,3,FALSE),FALSE),0) ->  | P29: =ROUND(VLOOKUP(Calculator!W34,'Formula (HIDE)'!V116:AH121,VLOOKUP(Calculator!W35,'Formula (HIDE)'!Y107:AB110,4,FALSE),FALSE),0) ->  | Q29: **Hide** | V29: =ROUND(VLOOKUP(Calculator!AD34,'Formula (HIDE)'!AC116:AO121,VLOOKUP(Calculator!AD35,'Formula (HIDE)'!AF107:AI110,3,FALSE),FALSE),0) ->  | W29: =ROUND(VLOOKUP(Calculator!AD34,'Formula (HIDE)'!AC116:AO121,VLOOKUP(Calculator!AD35,'Formula (HIDE)'!AF107:AI110,4,FALSE),FALSE),0) ->  | X29: **Hide** | AC29: =ROUND(VLOOKUP(Calculator!AK34,'Formula (HIDE)'!AJ116:AV121,VLOOKUP(Calculator!AK35,'Formula (HIDE)'!AM107:AP110,3,FALSE),FALSE),0) ->  | AD29: =ROUND(VLOOKUP(Calculator!AK34,'Formula (HIDE)'!AJ116:AV121,VLOOKUP(Calculator!AK35,'Formula (HIDE)'!AM107:AP110,4,FALSE),FALSE),0) ->  | AE29: **Hide** | AJ29: =ROUND(VLOOKUP(Calculator!#REF!,'Formula (HIDE)'!AQ116:BC121,VLOOKUP(Calculator!#REF!,'Formula (HIDE)'!AT107:AW110,3,FALSE),FALSE),0) ->  | AK29: =ROUND(VLOOKUP(Calculator!#REF!,'Formula (HIDE)'!AQ116:BC121,VLOOKUP(Calculator!#REF!,'Formula (HIDE)'!AT107:AW110,4,FALSE),FALSE),0) ->  | AL29: **Hide** | AQ29: =ROUND(VLOOKUP(Calculator!AY34,'Formula (HIDE)'!AX116:BJ121,VLOOKUP(Calculator!AY35,'Formula (HIDE)'!BA107:BD110,3,FALSE),FALSE),0) ->  | AR29: =ROUND(VLOOKUP(Calculator!AY34,'Formula (HIDE)'!AX116:BJ121,VLOOKUP(Calculator!AY35,'Formula (HIDE)'!BA107:BD110,4,FALSE),FALSE),0) ->  | AS29: **Hide** | AX29: =ROUND(VLOOKUP(Calculator!BF34,'Formula (HIDE)'!BE116:BQ121,VLOOKUP(Calculator!BF35,'Formula (HIDE)'!BH107:BK110,3,FALSE),FALSE),0) ->  | AY29: =ROUND(VLOOKUP(Calculator!BF34,'Formula (HIDE)'!BE116:BQ121,VLOOKUP(Calculator!BF35,'Formula (HIDE)'!BH107:BK110,4,FALSE),FALSE),0) ->  | AZ29: **Hide** | BE29: =ROUND(VLOOKUP(Calculator!BM34,'Formula (HIDE)'!BL116:BX121,VLOOKUP(Calculator!BM35,'Formula (HIDE)'!BO107:BR110,3,FALSE),FALSE),0) ->  | BF29: =ROUND(VLOOKUP(Calculator!BM34,'Formula (HIDE)'!BL116:BX121,VLOOKUP(Calculator!BM35,'Formula (HIDE)'!BO107:BR110,4,FALSE),FALSE),0) ->  | BG29: **Hide** | BL29: =ROUND(VLOOKUP(Calculator!BT34,'Formula (HIDE)'!BS116:CE121,VLOOKUP(Calculator!BT35,'Formula (HIDE)'!BV107:BY110,3,FALSE),FALSE),0) ->  | BM29: =ROUND(VLOOKUP(Calculator!BT34,'Formula (HIDE)'!BS116:CE121,VLOOKUP(Calculator!BT35,'Formula (HIDE)'!BV107:BY110,4,FALSE),FALSE),0) ->  | BN29: **Hide**
A30: Barley | B30: =IFERROR(ROUND(VLOOKUP(IF(OR(Calculator!E23<A1,Calculator!E23>B1),0,26),'N recs 3 (HIDE)'!B2:O33,VLOOKUP(Calculator!$E$20,'Formula (HIDE)'!$B$112:$F$118,VLOOKUP(Calculator!$E$21,'Formula (HIDE)'!$D$96:$E$99,2,FALSE),FALSE),FALSE),0),"Error") -> 62 | C30: =IF(Calculator!$F$31>=76,0,VLOOKUP(B30,'Barley P - Olson MB AG'!$A$3:$BZ$143,Calculator!$F$31+2,FALSE)) -> 30 | E30: =IF(Calculator!$G$31>=751,0,VLOOKUP(B30,'Barley K - w seed MB AG'!$A$3:$ABY$143,Calculator!$G$31+2,FALSE)) -> 15 | F30: =IF(Calculator!$H$31>=31,0,VLOOKUP(B30,'Cereals S - MB AG'!$A$3:$AG$143,Calculator!$H$31+2,FALSE)) -> 15 | H30: Barley | I30: =IFERROR(ROUND(VLOOKUP(IF(OR(Calculator!E23<A1,Calculator!E23>B1),0,25),'N recs 3 (HIDE)'!B2:O33,VLOOKUP(Calculator!$E$20,'Formula (HIDE)'!$B$112:$F$118,VLOOKUP(Calculator!$E$21,'Formula (HIDE)'!$D$96:$E$99,2,FALSE),FALSE),FALSE),0),"Error") -> 61 | J30: =IF(Calculator!$F$31>=76,0,VLOOKUP(I30,'Barley P - Olson MB AG'!$A$3:$BZ$143,Calculator!$F$31+2,FALSE)) -> 30 | L30: =IF(Calculator!$G$31>=751,0,VLOOKUP(I30,'Barley K - w seed MB AG'!$A$3:$ABY$143,Calculator!$G$31+2,FALSE)) -> 15 | M30: =IF(Calculator!$H$31>=31,0,VLOOKUP(I30,'Cereals S - MB AG'!$A$3:$AG$143,Calculator!$H$31+2,FALSE)) -> 15 | O30: Barley | P30: =IFERROR(ROUND(VLOOKUP(IF(OR(Calculator!E23<A1,Calculator!E23>B1),0,24),'N recs 3 (HIDE)'!B2:O33,VLOOKUP(Calculator!$E$20,'Formula (HIDE)'!$B$112:$F$118,VLOOKUP(Calculator!$E$21,'Formula (HIDE)'!$D$96:$E$99,2,FALSE),FALSE),FALSE),0),"Error") -> 60 | Q30: =IF(Calculator!$F$31>=76,0,VLOOKUP(P30,'Barley P - Olson MB AG'!$A$3:$BZ$143,Calculator!$F$31+2,FALSE)) -> 30 | S30: =IF(Calculator!$G$31>=751,0,VLOOKUP(P30,'Barley K - w seed MB AG'!$A$3:$ABY$143,Calculator!$G$31+2,FALSE)) -> 15 | T30: =IF(Calculator!$H$31>=31,0,VLOOKUP(P30,'Cereals S - MB AG'!$A$3:$AG$143,Calculator!$H$31+2,FALSE)) -> 15 | V30: Barley | W30: =IFERROR(ROUND(VLOOKUP(IF(OR(Calculator!E23<A1,Calculator!E23>B1),0,28),'N recs 3 (HIDE)'!B2:O33,VLOOKUP(Calculator!$E$20,'Formula (HIDE)'!$B$112:$F$118,VLOOKUP(Calculator!$E$21,'Formula (HIDE)'!$D$96:$E$99,2,FALSE),FALSE),FALSE),0),"Error") -> 63 | X30: =IF(Calculator!$F$31>=76,0,VLOOKUP(W30,'Barley P - Olson MB AG'!$A$3:$BZ$143,Calculator!$F$31+2,FALSE)) -> 30 | Z30: =IF(Calculator!$G$31>=751,0,VLOOKUP(W30,'Barley K - w seed MB AG'!$A$3:$ABY$143,Calculator!$G$31+2,FALSE)) -> 15 | AA30: =IF(Calculator!$H$31>=31,0,VLOOKUP(W30,'Cereals S - MB AG'!$A$3:$AG$143,Calculator!$H$31+2,FALSE)) -> 15 | AC30: Barley | AD30: =IFERROR(ROUND(VLOOKUP(IF(OR(Calculator!E23<A1,Calculator!E23>B1),0,29),'N recs 3 (HIDE)'!B2:O33,VLOOKUP(Calculator!$E$20,'Formula (HIDE)'!$B$112:$F$118,VLOOKUP(Calculator!$E$21,'Formula (HIDE)'!$D$96:$E$99,2,FALSE),FALSE),FALSE),0),"Error") -> 64 | AE30: =IF(Calculator!$F$31>=76,0,VLOOKUP(AD30,'Barley P - Olson MB AG'!$A$3:$BZ$143,Calculator!$F$31+2,FALSE)) -> 30 | AG30: =IF(Calculator!$G$31>=751,0,VLOOKUP(AD30,'Barley K - w seed MB AG'!$A$3:$ABY$143,Calculator!$G$31+2,FALSE)) -> 15 | AH30: =IF(Calculator!$H$31>=31,0,VLOOKUP(AD30,'Cereals S - MB AG'!$A$3:$AG$143,Calculator!$H$31+2,FALSE)) -> 15 | AJ30: Barley | AK30: =IFERROR(ROUND(VLOOKUP(IF(OR(Calculator!E23<A1,Calculator!E23>B1),0,30),'N recs 3 (HIDE)'!B2:O33,VLOOKUP(Calculator!$E$20,'Formula (HIDE)'!$B$112:$F$118,VLOOKUP(Calculator!$E$21,'Formula (HIDE)'!$D$96:$E$99,2,FALSE),FALSE),FALSE),0),"Error") -> 64 | AL30: =IF(Calculator!$F$31>=76,0,VLOOKUP(AK30,'Barley P - Olson MB AG'!$A$3:$BZ$143,Calculator!$F$31+2,FALSE)) -> 30 | AN30: =IF(Calculator!$G$31>=751,0,VLOOKUP(AK30,'Barley K - w seed MB AG'!$A$3:$ABY$143,Calculator!$G$31+2,FALSE)) -> 15 | AO30: =IF(Calculator!$H$31>=31,0,VLOOKUP(AK30,'Cereals S - MB AG'!$A$3:$AG$143,Calculator!$H$31+2,FALSE)) -> 15 | AQ30: Barley | AR30: =IFERROR(ROUND(VLOOKUP(IF(OR(Calculator!E23<A1,Calculator!E23>B1),0,31),'N recs 3 (HIDE)'!B2:O33,VLOOKUP(Calculator!$E$20,'Formula (HIDE)'!$B$112:$F$118,VLOOKUP(Calculator!$E$21,'Formula (HIDE)'!$D$96:$E$99,2,FALSE),FALSE),FALSE),0),"Error") -> 63 | AS30: =IF(Calculator!$F$31>=76,0,VLOOKUP(AR30,'Barley P - Olson MB AG'!$A$3:$BZ$143,Calculator!$F$31+2,FALSE)) -> 30 | AU30: =IF(Calculator!$G$31>=751,0,VLOOKUP(AR30,'Barley K - w seed MB AG'!$A$3:$ABY$143,Calculator!$G$31+2,FALSE)) -> 15 | AV30: =IF(Calculator!$H$31>=31,0,VLOOKUP(AR30,'Cereals S - MB AG'!$A$3:$AG$143,Calculator!$H$31+2,FALSE)) -> 15 | AX30: Barley | AY30: =IFERROR(ROUND(VLOOKUP(IF(OR(Calculator!E23<A1,Calculator!E23>B1),0,23),'N recs 3 (HIDE)'!B2:O33,VLOOKUP(Calculator!$E$20,'Formula (HIDE)'!$B$112:$F$118,VLOOKUP(Calculator!$E$21,'Formula (HIDE)'!$D$96:$E$99,2,FALSE),FALSE),FALSE),0),"Error") -> 58 | AZ30: =IF(Calculator!$F$31>=76,0,VLOOKUP(AY30,'Barley P - Olson MB AG'!$A$3:$BZ$143,Calculator!$F$31+2,FALSE)) -> 30 | BB30: =IF(Calculator!$G$31>=751,0,VLOOKUP(AY30,'Barley K - w seed MB AG'!$A$3:$ABY$143,Calculator!$G$31+2,FALSE)) -> 15 | BC30: =IF(Calculator!$H$31>=31,0,VLOOKUP(AY30,'Cereals S - MB AG'!$A$3:$AG$143,Calculator!$H$31+2,FALSE)) -> 15 | BE30: Barley | BF30: =IFERROR(ROUND(VLOOKUP(IF(OR(Calculator!E23<A1,Calculator!E23>B1),0,22),'N recs 3 (HIDE)'!B2:O33,VLOOKUP(Calculator!$E$20,'Formula (HIDE)'!$B$112:$F$118,VLOOKUP(Calculator!$E$21,'Formula (HIDE)'!$D$96:$E$99,2,FALSE),FALSE),FALSE),0),"Error") -> 56 | BG30: =IF(Calculator!$F$31>=76,0,VLOOKUP(BF30,'Barley P - Olson MB AG'!$A$3:$BZ$143,Calculator!$F$31+2,FALSE)) -> 30 | BI30: =IF(Calculator!$G$31>=751,0,VLOOKUP(BF30,'Barley K - w seed MB AG'!$A$3:$ABY$143,Calculator!$G$31+2,FALSE)) -> 15 | BJ30: =IF(Calculator!$H$31>=31,0,VLOOKUP(BF30,'Cereals S - MB AG'!$A$3:$AG$143,Calculator!$H$31+2,FALSE)) -> 15 | BL30: Barley | BM30: =IFERROR(ROUND(VLOOKUP(IF(OR(Calculator!E23<A1,Calculator!E23>B1),0,27),'N recs 3 (HIDE)'!B2:O33,VLOOKUP(Calculator!$E$20,'Formula (HIDE)'!$B$112:$F$118,VLOOKUP(Calculator!$E$21,'Formula (HIDE)'!$D$96:$E$99,2,FALSE),FALSE),FALSE),0),"Error") -> 63 | BN30: =IF(Calculator!$F$31>=76,0,VLOOKUP(BM30,'Barley P - Olson MB AG'!$A$3:$BZ$143,Calculator!$F$31+2,FALSE)) -> 30 | BP30: =IF(Calculator!$G$31>=751,0,VLOOKUP(BM30,'Barley K - w seed MB AG'!$A$3:$ABY$143,Calculator!$G$31+2,FALSE)) -> 15 | BQ30: =IF(Calculator!$H$31>=31,0,VLOOKUP(BM30,'Cereals S - MB AG'!$A$3:$AG$143,Calculator!$H$31+2,FALSE)) -> 15
A31: Canola | B31: =IFERROR(ROUND(VLOOKUP(IF(OR(Calculator!E23<A1,Calculator!E23>B1),0,26),'N recs 3 (HIDE)'!B2:O33,VLOOKUP(Calculator!$E$20,'Formula (HIDE)'!$B$112:$F$118,VLOOKUP(Calculator!$E$21,'Formula (HIDE)'!$D$96:$E$99,2,FALSE),FALSE),FALSE),0),"Error") -> 62 | C31: =IF(Calculator!$F$31>=76,0,VLOOKUP(B31,'Canola P - Olson test MB AG'!$A$3:$BZ$143,Calculator!$F$31+2,FALSE)) -> 30 | E31: =IF(Calculator!$G$31>=751,0,VLOOKUP(B31,'Canola K - band MB AG'!$A$3:$ABY$143,Calculator!$G$31+2,FALSE)) -> 15 | F31: =IF(Calculator!$H$31>=31,0,VLOOKUP(B31,'Canola Corn S - MB AG'!$A$3:$AG$143,Calculator!$H$31+2,FALSE)) -> 20 | H31: Canola | I31: =IFERROR(ROUND(VLOOKUP(IF(OR(Calculator!E23<A1,Calculator!E23>B1),0,25),'N recs 3 (HIDE)'!B2:O33,VLOOKUP(Calculator!$E$20,'Formula (HIDE)'!$B$112:$F$118,VLOOKUP(Calculator!$E$21,'Formula (HIDE)'!$D$96:$E$99,2,FALSE),FALSE),FALSE),0),"Error") -> 61 | J31: =IF(Calculator!$F$31>=76,0,VLOOKUP(I31,'Canola P - Olson test MB AG'!$A$3:$BZ$143,Calculator!$F$31+2,FALSE)) -> 30 | L31: =IF(Calculator!$G$31>=751,0,VLOOKUP(I31,'Canola K - band MB AG'!$A$3:$ABY$143,Calculator!$G$31+2,FALSE)) -> 15 | M31: =IF(Calculator!$H$31>=31,0,VLOOKUP(I31,'Canola Corn S - MB AG'!$A$3:$AG$143,Calculator!$H$31+2,FALSE)) -> 20 | O31: Canola | P31: =IFERROR(ROUND(VLOOKUP(IF(OR(Calculator!E23<A1,Calculator!E23>B1),0,24),'N recs 3 (HIDE)'!B2:O33,VLOOKUP(Calculator!$E$20,'Formula (HIDE)'!$B$112:$F$118,VLOOKUP(Calculator!$E$21,'Formula (HIDE)'!$D$96:$E$99,2,FALSE),FALSE),FALSE),0),"Error") -> 60 | Q31: =IF(Calculator!$F$31>=76,0,VLOOKUP(P31,'Canola P - Olson test MB AG'!$A$3:$BZ$143,Calculator!$F$31+2,FALSE)) -> 30 | S31: =IF(Calculator!$G$31>=751,0,VLOOKUP(P31,'Canola K - band MB AG'!$A$3:$ABY$143,Calculator!$G$31+2,FALSE)) -> 15 | T31: =IF(Calculator!$H$31>=31,0,VLOOKUP(P31,'Canola Corn S - MB AG'!$A$3:$AG$143,Calculator!$H$31+2,FALSE)) -> 20 | V31: Canola | W31: =IFERROR(ROUND(VLOOKUP(IF(OR(Calculator!E23<A1,Calculator!E23>B1),0,28),'N recs 3 (HIDE)'!B2:O33,VLOOKUP(Calculator!$E$20,'Formula (HIDE)'!$B$112:$F$118,VLOOKUP(Calculator!$E$21,'Formula (HIDE)'!$D$96:$E$99,2,FALSE),FALSE),FALSE),0),"Error") -> 63 | X31: =IF(Calculator!$F$31>=76,0,VLOOKUP(W31,'Canola P - Olson test MB AG'!$A$3:$BZ$143,Calculator!$F$31+2,FALSE)) -> 30 | Z31: =IF(Calculator!$G$31>=751,0,VLOOKUP(W31,'Canola K - band MB AG'!$A$3:$ABY$143,Calculator!$G$31+2,FALSE)) -> 15 | AA31: =IF(Calculator!$H$31>=31,0,VLOOKUP(W31,'Canola Corn S - MB AG'!$A$3:$AG$143,Calculator!$H$31+2,FALSE)) -> 20 | AC31: Canola | AD31: =IFERROR(ROUND(VLOOKUP(IF(OR(Calculator!E23<A1,Calculator!E23>B1),0,29),'N recs 3 (HIDE)'!B2:O33,VLOOKUP(Calculator!$E$20,'Formula (HIDE)'!$B$112:$F$118,VLOOKUP(Calculator!$E$21,'Formula (HIDE)'!$D$96:$E$99,2,FALSE),FALSE),FALSE),0),"Error") -> 64 | AE31: =IF(Calculator!$F$31>=76,0,VLOOKUP(AD31,'Canola P - Olson test MB AG'!$A$3:$BZ$143,Calculator!$F$31+2,FALSE)) -> 30 | AG31: =IF(Calculator!$G$31>=751,0,VLOOKUP(AD31,'Canola K - band MB AG'!$A$3:$ABY$143,Calculator!$G$31+2,FALSE)) -> 15 | AH31: =IF(Calculator!$H$31>=31,0,VLOOKUP(AD31,'Canola Corn S - MB AG'!$A$3:$AG$143,Calculator!$H$31+2,FALSE)) -> 20 | AJ31: Canola | AK31: =IFERROR(ROUND(VLOOKUP(IF(OR(Calculator!E23<A1,Calculator!E23>B1),0,30),'N recs 3 (HIDE)'!B2:O33,VLOOKUP(Calculator!$E$20,'Formula (HIDE)'!$B$112:$F$118,VLOOKUP(Calculator!$E$21,'Formula (HIDE)'!$D$96:$E$99,2,FALSE),FALSE),FALSE),0),"Error") -> 64 | AL31: =IF(Calculator!$F$31>=76,0,VLOOKUP(AK31,'Canola P - Olson test MB AG'!$A$3:$BZ$143,Calculator!$F$31+2,FALSE)) -> 30 | AN31: =IF(Calculator!$G$31>=751,0,VLOOKUP(AK31,'Canola K - band MB AG'!$A$3:$ABY$143,Calculator!$G$31+2,FALSE)) -> 15 | AO31: =IF(Calculator!$H$31>=31,0,VLOOKUP(AK31,'Canola Corn S - MB AG'!$A$3:$AG$143,Calculator!$H$31+2,FALSE)) -> 20 | AQ31: Canola | AR31: =IFERROR(ROUND(VLOOKUP(IF(OR(Calculator!E23<A1,Calculator!E23>B1),0,31),'N recs 3 (HIDE)'!B2:O33,VLOOKUP(Calculator!$E$20,'Formula (HIDE)'!$B$112:$F$118,VLOOKUP(Calculator!$E$21,'Formula (HIDE)'!$D$96:$E$99,2,FALSE),FALSE),FALSE),0),"Error") -> 63 | AS31: =IF(Calculator!$F$31>=76,0,VLOOKUP(AR31,'Canola P - Olson test MB AG'!$A$3:$BZ$143,Calculator!$F$31+2,FALSE)) -> 30 | AU31: =IF(Calculator!$G$31>=751,0,VLOOKUP(AR31,'Canola K - band MB AG'!$A$3:$ABY$143,Calculator!$G$31+2,FALSE)) -> 15 | AV31: =IF(Calculator!$H$31>=31,0,VLOOKUP(AR31,'Canola Corn S - MB AG'!$A$3:$AG$143,Calculator!$H$31+2,FALSE)) -> 20 | AX31: Canola | AY31: =IFERROR(ROUND(VLOOKUP(IF(OR(Calculator!E23<A1,Calculator!E23>B1),0,23),'N recs 3 (HIDE)'!B2:O33,VLOOKUP(Calculator!$E$20,'Formula (HIDE)'!$B$112:$F$118,VLOOKUP(Calculator!$E$21,'Formula (HIDE)'!$D$96:$E$99,2,FALSE),FALSE),FALSE),0),"Error") -> 58 | AZ31: =IF(Calculator!$F$31>=76,0,VLOOKUP(AY31,'Canola P - Olson test MB AG'!$A$3:$BZ$143,Calculator!$F$31+2,FALSE)) -> 30 | BB31: =IF(Calculator!$G$31>=751,0,VLOOKUP(AY31,'Canola K - band MB AG'!$A$3:$ABY$143,Calculator!$G$31+2,FALSE)) -> 15 | BC31: =IF(Calculator!$H$31>=31,0,VLOOKUP(AY31,'Canola Corn S - MB AG'!$A$3:$AG$143,Calculator!$H$31+2,FALSE)) -> 20 | BE31: Canola | BF31: =IFERROR(ROUND(VLOOKUP(IF(OR(Calculator!E23<A1,Calculator!E23>B1),0,22),'N recs 3 (HIDE)'!B2:O33,VLOOKUP(Calculator!$E$20,'Formula (HIDE)'!$B$112:$F$118,VLOOKUP(Calculator!$E$21,'Formula (HIDE)'!$D$96:$E$99,2,FALSE),FALSE),FALSE),0),"Error") -> 56 | BG31: =IF(Calculator!$F$31>=76,0,VLOOKUP(BF31,'Canola P - Olson test MB AG'!$A$3:$BZ$143,Calculator!$F$31+2,FALSE)) -> 30 | BI31: =IF(Calculator!$G$31>=751,0,VLOOKUP(BF31,'Canola K - band MB AG'!$A$3:$ABY$143,Calculator!$G$31+2,FALSE)) -> 15 | BJ31: =IF(Calculator!$H$31>=31,0,VLOOKUP(BF31,'Canola Corn S - MB AG'!$A$3:$AG$143,Calculator!$H$31+2,FALSE)) -> 20 | BL31: Canola | BM31: =IFERROR(ROUND(VLOOKUP(IF(OR(Calculator!E23<A1,Calculator!E23>B1),0,27),'N recs 3 (HIDE)'!B2:O33,VLOOKUP(Calculator!$E$20,'Formula (HIDE)'!$B$112:$F$118,VLOOKUP(Calculator!$E$21,'Formula (HIDE)'!$D$96:$E$99,2,FALSE),FALSE),FALSE),0),"Error") -> 63 | BN31: =IF(Calculator!$F$31>=76,0,VLOOKUP(BM31,'Canola P - Olson test MB AG'!$A$3:$BZ$143,Calculator!$F$31+2,FALSE)) -> 30 | BP31: =IF(Calculator!$G$31>=751,0,VLOOKUP(BM31,'Canola K - band MB AG'!$A$3:$ABY$143,Calculator!$G$31+2,FALSE)) -> 15 | BQ31: =IF(Calculator!$H$31>=31,0,VLOOKUP(BM31,'Canola Corn S - MB AG'!$A$3:$AG$143,Calculator!$H$31+2,FALSE)) -> 20
A32: Oats | B32: =IFERROR(ROUND(VLOOKUP(IF(OR(Calculator!E23<A1,Calculator!E23>B1),0,26),'N recs 3 (HIDE)'!B2:O33,VLOOKUP(Calculator!$E$20,'Formula (HIDE)'!$B$112:$F$118,VLOOKUP(Calculator!$E$21,'Formula (HIDE)'!$D$96:$E$99,2,FALSE),FALSE),FALSE),0),"Error") -> 62 | C32: =IF(Calculator!$F$31>=76,0,VLOOKUP(B32,'Oats P - Olson Test MB AG'!$A$3:$BZ$143,Calculator!$F$31+2,FALSE)) -> 30 | E32: =IF(Calculator!$G$31>=751,0,VLOOKUP(B32,'Oats K - w seed MB AG'!$A$3:$ABY$143,Calculator!$G$31+2,FALSE)) -> 15 | F32: =IF(Calculator!$H$31>=31,0,VLOOKUP(B32,'Cereals S - MB AG'!$A$3:$AG$143,Calculator!$H$31+2,FALSE)) -> 15 | H32: Oats | I32: =IFERROR(ROUND(VLOOKUP(IF(OR(Calculator!E23<A1,Calculator!E23>B1),0,25),'N recs 3 (HIDE)'!B2:O33,VLOOKUP(Calculator!$E$20,'Formula (HIDE)'!$B$112:$F$118,VLOOKUP(Calculator!$E$21,'Formula (HIDE)'!$D$96:$E$99,2,FALSE),FALSE),FALSE),0),"Error") -> 61 | J32: =IF(Calculator!$F$31>=76,0,VLOOKUP(I32,'Oats P - Olson Test MB AG'!$A$3:$BZ$143,Calculator!$F$31+2,FALSE)) -> 30 | L32: =IF(Calculator!$G$31>=751,0,VLOOKUP(I32,'Oats K - w seed MB AG'!$A$3:$ABY$143,Calculator!$G$31+2,FALSE)) -> 15 | M32: =IF(Calculator!$H$31>=31,0,VLOOKUP(I32,'Cereals S - MB AG'!$A$3:$AG$143,Calculator!$H$31+2,FALSE)) -> 15 | O32: Oats | P32: =IFERROR(ROUND(VLOOKUP(IF(OR(Calculator!E23<A1,Calculator!E23>B1),0,24),'N recs 3 (HIDE)'!B2:O33,VLOOKUP(Calculator!$E$20,'Formula (HIDE)'!$B$112:$F$118,VLOOKUP(Calculator!$E$21,'Formula (HIDE)'!$D$96:$E$99,2,FALSE),FALSE),FALSE),0),"Error") -> 60 | Q32: =IF(Calculator!$F$31>=76,0,VLOOKUP(P32,'Oats P - Olson Test MB AG'!$A$3:$BZ$143,Calculator!$F$31+2,FALSE)) -> 30 | S32: =IF(Calculator!$G$31>=751,0,VLOOKUP(P32,'Oats K - w seed MB AG'!$A$3:$ABY$143,Calculator!$G$31+2,FALSE)) -> 15 | T32: =IF(Calculator!$H$31>=31,0,VLOOKUP(P32,'Cereals S - MB AG'!$A$3:$AG$143,Calculator!$H$31+2,FALSE)) -> 15 | V32: Oats | W32: =IFERROR(ROUND(VLOOKUP(IF(OR(Calculator!E23<A1,Calculator!E23>B1),0,28),'N recs 3 (HIDE)'!B2:O33,VLOOKUP(Calculator!$E$20,'Formula (HIDE)'!$B$112:$F$118,VLOOKUP(Calculator!$E$21,'Formula (HIDE)'!$D$96:$E$99,2,FALSE),FALSE),FALSE),0),"Error") -> 63 | X32: =IF(Calculator!$F$31>=76,0,VLOOKUP(W32,'Oats P - Olson Test MB AG'!$A$3:$BZ$143,Calculator!$F$31+2,FALSE)) -> 30 | Z32: =IF(Calculator!$G$31>=751,0,VLOOKUP(W32,'Oats K - w seed MB AG'!$A$3:$ABY$143,Calculator!$G$31+2,FALSE)) -> 15 | AA32: =IF(Calculator!$H$31>=31,0,VLOOKUP(W32,'Cereals S - MB AG'!$A$3:$AG$143,Calculator!$H$31+2,FALSE)) -> 15 | AC32: Oats | AD32: =IFERROR(ROUND(VLOOKUP(IF(OR(Calculator!E23<A1,Calculator!E23>B1),0,29),'N recs 3 (HIDE)'!B2:O33,VLOOKUP(Calculator!$E$20,'Formula (HIDE)'!$B$112:$F$118,VLOOKUP(Calculator!$E$21,'Formula (HIDE)'!$D$96:$E$99,2,FALSE),FALSE),FALSE),0),"Error") -> 64 | AE32: =IF(Calculator!$F$31>=76,0,VLOOKUP(AD32,'Oats P - Olson Test MB AG'!$A$3:$BZ$143,Calculator!$F$31+2,FALSE)) -> 30 | AG32: =IF(Calculator!$G$31>=751,0,VLOOKUP(AD32,'Oats K - w seed MB AG'!$A$3:$ABY$143,Calculator!$G$31+2,FALSE)) -> 15 | AH32: =IF(Calculator!$H$31>=31,0,VLOOKUP(AD32,'Cereals S - MB AG'!$A$3:$AG$143,Calculator!$H$31+2,FALSE)) -> 15 | AJ32: Oats | AK32: =IFERROR(ROUND(VLOOKUP(IF(OR(Calculator!E23<A1,Calculator!E23>B1),0,30),'N recs 3 (HIDE)'!B2:O33,VLOOKUP(Calculator!$E$20,'Formula (HIDE)'!$B$112:$F$118,VLOOKUP(Calculator!$E$21,'Formula (HIDE)'!$D$96:$E$99,2,FALSE),FALSE),FALSE),0),"Error") -> 64 | AL32: =IF(Calculator!$F$31>=76,0,VLOOKUP(AK32,'Oats P - Olson Test MB AG'!$A$3:$BZ$143,Calculator!$F$31+2,FALSE)) -> 30 | AN32: =IF(Calculator!$G$31>=751,0,VLOOKUP(AK32,'Oats K - w seed MB AG'!$A$3:$ABY$143,Calculator!$G$31+2,FALSE)) -> 15 | AO32: =IF(Calculator!$H$31>=31,0,VLOOKUP(AK32,'Cereals S - MB AG'!$A$3:$AG$143,Calculator!$H$31+2,FALSE)) -> 15 | AQ32: Oats | AR32: =IFERROR(ROUND(VLOOKUP(IF(OR(Calculator!E23<A1,Calculator!E23>B1),0,31),'N recs 3 (HIDE)'!B2:O33,VLOOKUP(Calculator!$E$20,'Formula (HIDE)'!$B$112:$F$118,VLOOKUP(Calculator!$E$21,'Formula (HIDE)'!$D$96:$E$99,2,FALSE),FALSE),FALSE),0),"Error") -> 63 | AS32: =IF(Calculator!$F$31>=76,0,VLOOKUP(AR32,'Oats P - Olson Test MB AG'!$A$3:$BZ$143,Calculator!$F$31+2,FALSE)) -> 30 | AU32: =IF(Calculator!$G$31>=751,0,VLOOKUP(AR32,'Oats K - w seed MB AG'!$A$3:$ABY$143,Calculator!$G$31+2,FALSE)) -> 15 | AV32: =IF(Calculator!$H$31>=31,0,VLOOKUP(AR32,'Cereals S - MB AG'!$A$3:$AG$143,Calculator!$H$31+2,FALSE)) -> 15 | AX32: Oats | AY32: =IFERROR(ROUND(VLOOKUP(IF(OR(Calculator!E23<A1,Calculator!E23>B1),0,23),'N recs 3 (HIDE)'!B2:O33,VLOOKUP(Calculator!$E$20,'Formula (HIDE)'!$B$112:$F$118,VLOOKUP(Calculator!$E$21,'Formula (HIDE)'!$D$96:$E$99,2,FALSE),FALSE),FALSE),0),"Error") -> 58 | AZ32: =IF(Calculator!$F$31>=76,0,VLOOKUP(AY32,'Oats P - Olson Test MB AG'!$A$3:$BZ$143,Calculator!$F$31+2,FALSE)) -> 30 | BB32: =IF(Calculator!$G$31>=751,0,VLOOKUP(AY32,'Oats K - w seed MB AG'!$A$3:$ABY$143,Calculator!$G$31+2,FALSE)) -> 15 | BC32: =IF(Calculator!$H$31>=31,0,VLOOKUP(AY32,'Cereals S - MB AG'!$A$3:$AG$143,Calculator!$H$31+2,FALSE)) -> 15 | BE32: Oats | BF32: =IFERROR(ROUND(VLOOKUP(IF(OR(Calculator!E23<A1,Calculator!E23>B1),0,22),'N recs 3 (HIDE)'!B2:O33,VLOOKUP(Calculator!$E$20,'Formula (HIDE)'!$B$112:$F$118,VLOOKUP(Calculator!$E$21,'Formula (HIDE)'!$D$96:$E$99,2,FALSE),FALSE),FALSE),0),"Error") -> 56 | BG32: =IF(Calculator!$F$31>=76,0,VLOOKUP(BF32,'Oats P - Olson Test MB AG'!$A$3:$BZ$143,Calculator!$F$31+2,FALSE)) -> 30 | BI32: =IF(Calculator!$G$31>=751,0,VLOOKUP(BF32,'Oats K - w seed MB AG'!$A$3:$ABY$143,Calculator!$G$31+2,FALSE)) -> 15 | BJ32: =IF(Calculator!$H$31>=31,0,VLOOKUP(BF32,'Cereals S - MB AG'!$A$3:$AG$143,Calculator!$H$31+2,FALSE)) -> 15 | BL32: Oats | BM32: =IFERROR(ROUND(VLOOKUP(IF(OR(Calculator!E23<A1,Calculator!E23>B1),0,27),'N recs 3 (HIDE)'!B2:O33,VLOOKUP(Calculator!$E$20,'Formula (HIDE)'!$B$112:$F$118,VLOOKUP(Calculator!$E$21,'Formula (HIDE)'!$D$96:$E$99,2,FALSE),FALSE),FALSE),0),"Error") -> 63 | BN32: =IF(Calculator!$F$31>=76,0,VLOOKUP(BM32,'Oats P - Olson Test MB AG'!$A$3:$BZ$143,Calculator!$F$31+2,FALSE)) -> 30 | BP32: =IF(Calculator!$G$31>=751,0,VLOOKUP(BM32,'Oats K - w seed MB AG'!$A$3:$ABY$143,Calculator!$G$31+2,FALSE)) -> 15 | BQ32: =IF(Calculator!$H$31>=31,0,VLOOKUP(BM32,'Cereals S - MB AG'!$A$3:$AG$143,Calculator!$H$31+2,FALSE)) -> 15
A33: Corn | B33: =IFERROR(ROUND(VLOOKUP(IF(OR(Calculator!E23<A1,Calculator!E23>B1),0,26),'N recs 3 (HIDE)'!B2:O33,VLOOKUP(Calculator!$E$20,'Formula (HIDE)'!$B$112:$F$118,VLOOKUP(Calculator!$E$21,'Formula (HIDE)'!$D$96:$E$99,2,FALSE),FALSE),FALSE),0),"Error") -> 62 | C33: =IF(Calculator!$F$31>=76,0,VLOOKUP(B33,'Corn P - Olson Test MB AG'!$A$3:$BZ$193,Calculator!$F$31+2,FALSE)) -> 30 | E33: =IF(Calculator!$G$31>=751,0,VLOOKUP(B33,'Corn K - band MB AG'!$A$3:$ABY$193,Calculator!$G$31+2,FALSE)) -> 75 | F33: =IF(Calculator!$H$31>=31,0,VLOOKUP(B33,'Canola Corn S - MB AG'!$A$3:$AG$193,Calculator!$H$31+2,FALSE)) -> 20 | H33: Corn | I33: =IFERROR(ROUND(VLOOKUP(IF(OR(Calculator!E23<A1,Calculator!E23>B1),0,25),'N recs 3 (HIDE)'!B2:O33,VLOOKUP(Calculator!$E$20,'Formula (HIDE)'!$B$112:$F$118,VLOOKUP(Calculator!$E$21,'Formula (HIDE)'!$D$96:$E$99,2,FALSE),FALSE),FALSE),0),"Error") -> 61 | J33: =IF(Calculator!$F$31>=76,0,VLOOKUP(I33,'Corn P - Olson Test MB AG'!$A$3:$BZ$193,Calculator!$F$31+2,FALSE)) -> 30 | L33: =IF(Calculator!$G$31>=751,0,VLOOKUP(I33,'Corn K - band MB AG'!$A$3:$ABY$193,Calculator!$G$31+2,FALSE)) -> 75 | M33: =IF(Calculator!$H$31>=31,0,VLOOKUP(I33,'Canola Corn S - MB AG'!$A$3:$AG$193,Calculator!$H$31+2,FALSE)) -> 20 | O33: Corn | P33: =IFERROR(ROUND(VLOOKUP(IF(OR(Calculator!E23<A1,Calculator!E23>B1),0,24),'N recs 3 (HIDE)'!B2:O33,VLOOKUP(Calculator!$E$20,'Formula (HIDE)'!$B$112:$F$118,VLOOKUP(Calculator!$E$21,'Formula (HIDE)'!$D$96:$E$99,2,FALSE),FALSE),FALSE),0),"Error") -> 60 | Q33: =IF(Calculator!$F$31>=76,0,VLOOKUP(P33,'Corn P - Olson Test MB AG'!$A$3:$BZ$193,Calculator!$F$31+2,FALSE)) -> 30 | S33: =IF(Calculator!$G$31>=751,0,VLOOKUP(P33,'Corn K - band MB AG'!$A$3:$ABY$193,Calculator!$G$31+2,FALSE)) -> 75 | T33: =IF(Calculator!$H$31>=31,0,VLOOKUP(P33,'Canola Corn S - MB AG'!$A$3:$AG$193,Calculator!$H$31+2,FALSE)) -> 20 | V33: Corn | W33: =IFERROR(ROUND(VLOOKUP(IF(OR(Calculator!E23<A1,Calculator!E23>B1),0,28),'N recs 3 (HIDE)'!B2:O33,VLOOKUP(Calculator!$E$20,'Formula (HIDE)'!$B$112:$F$118,VLOOKUP(Calculator!$E$21,'Formula (HIDE)'!$D$96:$E$99,2,FALSE),FALSE),FALSE),0),"Error") -> 63 | X33: =IF(Calculator!$F$31>=76,0,VLOOKUP(W33,'Corn P - Olson Test MB AG'!$A$3:$BZ$193,Calculator!$F$31+2,FALSE)) -> 30 | Z33: =IF(Calculator!$G$31>=751,0,VLOOKUP(W33,'Corn K - band MB AG'!$A$3:$ABY$193,Calculator!$G$31+2,FALSE)) -> 75 | AA33: =IF(Calculator!$H$31>=31,0,VLOOKUP(W33,'Canola Corn S - MB AG'!$A$3:$AG$193,Calculator!$H$31+2,FALSE)) -> 20 | AC33: Corn | AD33: =IFERROR(ROUND(VLOOKUP(IF(OR(Calculator!E23<A1,Calculator!E23>B1),0,29),'N recs 3 (HIDE)'!B2:O33,VLOOKUP(Calculator!$E$20,'Formula (HIDE)'!$B$112:$F$118,VLOOKUP(Calculator!$E$21,'Formula (HIDE)'!$D$96:$E$99,2,FALSE),FALSE),FALSE),0),"Error") -> 64 | AE33: =IF(Calculator!$F$31>=76,0,VLOOKUP(AD33,'Corn P - Olson Test MB AG'!$A$3:$BZ$193,Calculator!$F$31+2,FALSE)) -> 30 | AG33: =IF(Calculator!$G$31>=751,0,VLOOKUP(AD33,'Corn K - band MB AG'!$A$3:$ABY$193,Calculator!$G$31+2,FALSE)) -> 75 | AH33: =IF(Calculator!$H$31>=31,0,VLOOKUP(AD33,'Canola Corn S - MB AG'!$A$3:$AG$193,Calculator!$H$31+2,FALSE)) -> 20 | AJ33: Corn | AK33: =IFERROR(ROUND(VLOOKUP(IF(OR(Calculator!E23<A1,Calculator!E23>B1),0,30),'N recs 3 (HIDE)'!B2:O33,VLOOKUP(Calculator!$E$20,'Formula (HIDE)'!$B$112:$F$118,VLOOKUP(Calculator!$E$21,'Formula (HIDE)'!$D$96:$E$99,2,FALSE),FALSE),FALSE),0),"Error") -> 64 | AL33: =IF(Calculator!$F$31>=76,0,VLOOKUP(AK33,'Corn P - Olson Test MB AG'!$A$3:$BZ$193,Calculator!$F$31+2,FALSE)) -> 30 | AN33: =IF(Calculator!$G$31>=751,0,VLOOKUP(AK33,'Corn K - band MB AG'!$A$3:$ABY$193,Calculator!$G$31+2,FALSE)) -> 75 | AO33: =IF(Calculator!$H$31>=31,0,VLOOKUP(AK33,'Canola Corn S - MB AG'!$A$3:$AG$193,Calculator!$H$31+2,FALSE)) -> 20 | AQ33: Corn | AR33: =IFERROR(ROUND(VLOOKUP(IF(OR(Calculator!E23<A1,Calculator!E23>B1),0,31),'N recs 3 (HIDE)'!B2:O33,VLOOKUP(Calculator!$E$20,'Formula (HIDE)'!$B$112:$F$118,VLOOKUP(Calculator!$E$21,'Formula (HIDE)'!$D$96:$E$99,2,FALSE),FALSE),FALSE),0),"Error") -> 63 | AS33: =IF(Calculator!$F$31>=76,0,VLOOKUP(AR33,'Corn P - Olson Test MB AG'!$A$3:$BZ$193,Calculator!$F$31+2,FALSE)) -> 30 | AU33: =IF(Calculator!$G$31>=751,0,VLOOKUP(AR33,'Corn K - band MB AG'!$A$3:$ABY$193,Calculator!$G$31+2,FALSE)) -> 75 | AV33: =IF(Calculator!$H$31>=31,0,VLOOKUP(AR33,'Canola Corn S - MB AG'!$A$3:$AG$193,Calculator!$H$31+2,FALSE)) -> 20 | AX33: Corn | AY33: =IFERROR(ROUND(VLOOKUP(IF(OR(Calculator!E23<A1,Calculator!E23>B1),0,23),'N recs 3 (HIDE)'!B2:O33,VLOOKUP(Calculator!$E$20,'Formula (HIDE)'!$B$112:$F$118,VLOOKUP(Calculator!$E$21,'Formula (HIDE)'!$D$96:$E$99,2,FALSE),FALSE),FALSE),0),"Error") -> 58 | AZ33: =IF(Calculator!$F$31>=76,0,VLOOKUP(AY33,'Corn P - Olson Test MB AG'!$A$3:$BZ$193,Calculator!$F$31+2,FALSE)) -> 30 | BB33: =IF(Calculator!$G$31>=751,0,VLOOKUP(AY33,'Corn K - band MB AG'!$A$3:$ABY$193,Calculator!$G$31+2,FALSE)) -> 75 | BC33: =IF(Calculator!$H$31>=31,0,VLOOKUP(AY33,'Canola Corn S - MB AG'!$A$3:$AG$193,Calculator!$H$31+2,FALSE)) -> 20 | BE33: Corn | BF33: =IFERROR(ROUND(VLOOKUP(IF(OR(Calculator!E23<A1,Calculator!E23>B1),0,22),'N recs 3 (HIDE)'!B2:O33,VLOOKUP(Calculator!$E$20,'Formula (HIDE)'!$B$112:$F$118,VLOOKUP(Calculator!$E$21,'Formula (HIDE)'!$D$96:$E$99,2,FALSE),FALSE),FALSE),0),"Error") -> 56 | BG33: =IF(Calculator!$F$31>=76,0,VLOOKUP(BF33,'Corn P - Olson Test MB AG'!$A$3:$BZ$193,Calculator!$F$31+2,FALSE)) -> 30 | BI33: =IF(Calculator!$G$31>=751,0,VLOOKUP(BF33,'Corn K - band MB AG'!$A$3:$ABY$193,Calculator!$G$31+2,FALSE)) -> 75 | BJ33: =IF(Calculator!$H$31>=31,0,VLOOKUP(BF33,'Canola Corn S - MB AG'!$A$3:$AG$193,Calculator!$H$31+2,FALSE)) -> 20 | BL33: Corn | BM33: =IFERROR(ROUND(VLOOKUP(IF(OR(Calculator!E23<A1,Calculator!E23>B1),0,27),'N recs 3 (HIDE)'!B2:O33,VLOOKUP(Calculator!$E$20,'Formula (HIDE)'!$B$112:$F$118,VLOOKUP(Calculator!$E$21,'Formula (HIDE)'!$D$96:$E$99,2,FALSE),FALSE),FALSE),0),"Error") -> 63 | BN33: =IF(Calculator!$F$31>=76,0,VLOOKUP(BM33,'Corn P - Olson Test MB AG'!$A$3:$BZ$193,Calculator!$F$31+2,FALSE)) -> 30 | BP33: =IF(Calculator!$G$31>=751,0,VLOOKUP(BM33,'Corn K - band MB AG'!$A$3:$ABY$193,Calculator!$G$31+2,FALSE)) -> 75 | BQ33: =IF(Calculator!$H$31>=31,0,VLOOKUP(BM33,'Canola Corn S - MB AG'!$A$3:$AG$193,Calculator!$H$31+2,FALSE)) -> 20
A34: Soybeans | B34: =IFERROR(ROUND(VLOOKUP(IF(OR(Calculator!E23<A1,Calculator!E23>B1),0,26),'N recs 3 (HIDE)'!B2:O33,VLOOKUP(Calculator!$E$20,'Formula (HIDE)'!$B$112:$F$118,VLOOKUP(Calculator!$E$21,'Formula (HIDE)'!$D$96:$E$99,2,FALSE),FALSE),FALSE),0),"Error") -> 62 | C34: =IF(Calculator!$F$31>=76,0,VLOOKUP(B34,'Soybean P - Olson test MB AG'!$A$3:$BZ$143,Calculator!$F$31+2,FALSE)) -> 30 | E34: =IF(Calculator!$G$31>=751,0,VLOOKUP(B34,'Soybeans K - band MB AG'!$A$3:$ABY$143,Calculator!$G$31+2,FALSE)) -> 15 | F34: =IF(Calculator!$H$31>=31,0,VLOOKUP(B34,'Canola Corn S - MB AG'!$A$3:$AG$143,Calculator!$H$31+2,FALSE)) -> 20 | H34: Soybeans | I34: =IFERROR(ROUND(VLOOKUP(IF(OR(Calculator!E23<A1,Calculator!E23>B1),0,25),'N recs 3 (HIDE)'!B2:O33,VLOOKUP(Calculator!$E$20,'Formula (HIDE)'!$B$112:$F$118,VLOOKUP(Calculator!$E$21,'Formula (HIDE)'!$D$96:$E$99,2,FALSE),FALSE),FALSE),0),"Error") -> 61 | J34: =IF(Calculator!$F$31>=76,0,VLOOKUP(I34,'Soybean P - Olson test MB AG'!$A$3:$BZ$143,Calculator!$F$31+2,FALSE)) -> 30 | L34: =IF(Calculator!$G$31>=751,0,VLOOKUP(I34,'Soybeans K - band MB AG'!$A$3:$ABY$143,Calculator!$G$31+2,FALSE)) -> 15 | M34: =IF(Calculator!$H$31>=31,0,VLOOKUP(I34,'Canola Corn S - MB AG'!$A$3:$AG$143,Calculator!$H$31+2,FALSE)) -> 20 | O34: Soybeans | P34: =IFERROR(ROUND(VLOOKUP(IF(OR(Calculator!E23<A1,Calculator!E23>B1),0,24),'N recs 3 (HIDE)'!B2:O33,VLOOKUP(Calculator!$E$20,'Formula (HIDE)'!$B$112:$F$118,VLOOKUP(Calculator!$E$21,'Formula (HIDE)'!$D$96:$E$99,2,FALSE),FALSE),FALSE),0),"Error") -> 60 | Q34: =IF(Calculator!$F$31>=76,0,VLOOKUP(P34,'Soybean P - Olson test MB AG'!$A$3:$BZ$143,Calculator!$F$31+2,FALSE)) -> 30 | S34: =IF(Calculator!$G$31>=751,0,VLOOKUP(P34,'Soybeans K - band MB AG'!$A$3:$ABY$143,Calculator!$G$31+2,FALSE)) -> 15 | T34: =IF(Calculator!$H$31>=31,0,VLOOKUP(P34,'Canola Corn S - MB AG'!$A$3:$AG$143,Calculator!$H$31+2,FALSE)) -> 20 | V34: Soybeans | W34: =IFERROR(ROUND(VLOOKUP(IF(OR(Calculator!E23<A1,Calculator!E23>B1),0,28),'N recs 3 (HIDE)'!B2:O33,VLOOKUP(Calculator!$E$20,'Formula (HIDE)'!$B$112:$F$118,VLOOKUP(Calculator!$E$21,'Formula (HIDE)'!$D$96:$E$99,2,FALSE),FALSE),FALSE),0),"Error") -> 63 | X34: =IF(Calculator!$F$31>=76,0,VLOOKUP(W34,'Soybean P - Olson test MB AG'!$A$3:$BZ$143,Calculator!$F$31+2,FALSE)) -> 30 | Z34: =IF(Calculator!$G$31>=751,0,VLOOKUP(W34,'Soybeans K - band MB AG'!$A$3:$ABY$143,Calculator!$G$31+2,FALSE)) -> 15 | AA34: =IF(Calculator!$H$31>=31,0,VLOOKUP(W34,'Canola Corn S - MB AG'!$A$3:$AG$143,Calculator!$H$31+2,FALSE)) -> 20 | AC34: Soybeans | AD34: =IFERROR(ROUND(VLOOKUP(IF(OR(Calculator!E23<A1,Calculator!E23>B1),0,29),'N recs 3 (HIDE)'!B2:O33,VLOOKUP(Calculator!$E$20,'Formula (HIDE)'!$B$112:$F$118,VLOOKUP(Calculator!$E$21,'Formula (HIDE)'!$D$96:$E$99,2,FALSE),FALSE),FALSE),0),"Error") -> 64 | AE34: =IF(Calculator!$F$31>=76,0,VLOOKUP(AD34,'Soybean P - Olson test MB AG'!$A$3:$BZ$143,Calculator!$F$31+2,FALSE)) -> 30 | AG34: =IF(Calculator!$G$31>=751,0,VLOOKUP(AD34,'Soybeans K - band MB AG'!$A$3:$ABY$143,Calculator!$G$31+2,FALSE)) -> 15 | AH34: =IF(Calculator!$H$31>=31,0,VLOOKUP(AD34,'Canola Corn S - MB AG'!$A$3:$AG$143,Calculator!$H$31+2,FALSE)) -> 20 | AJ34: Soybeans | AK34: =IFERROR(ROUND(VLOOKUP(IF(OR(Calculator!E23<A1,Calculator!E23>B1),0,30),'N recs 3 (HIDE)'!B2:O33,VLOOKUP(Calculator!$E$20,'Formula (HIDE)'!$B$112:$F$118,VLOOKUP(Calculator!$E$21,'Formula (HIDE)'!$D$96:$E$99,2,FALSE),FALSE),FALSE),0),"Error") -> 64 | AL34: =IF(Calculator!$F$31>=76,0,VLOOKUP(AK34,'Soybean P - Olson test MB AG'!$A$3:$BZ$143,Calculator!$F$31+2,FALSE)) -> 30 | AN34: =IF(Calculator!$G$31>=751,0,VLOOKUP(AK34,'Soybeans K - band MB AG'!$A$3:$ABY$143,Calculator!$G$31+2,FALSE)) -> 15 | AO34: =IF(Calculator!$H$31>=31,0,VLOOKUP(AK34,'Canola Corn S - MB AG'!$A$3:$AG$143,Calculator!$H$31+2,FALSE)) -> 20 | AQ34: Soybeans | AR34: =IFERROR(ROUND(VLOOKUP(IF(OR(Calculator!E23<A1,Calculator!E23>B1),0,31),'N recs 3 (HIDE)'!B2:O33,VLOOKUP(Calculator!$E$20,'Formula (HIDE)'!$B$112:$F$118,VLOOKUP(Calculator!$E$21,'Formula (HIDE)'!$D$96:$E$99,2,FALSE),FALSE),FALSE),0),"Error") -> 63 | AS34: =IF(Calculator!$F$31>=76,0,VLOOKUP(AR34,'Soybean P - Olson test MB AG'!$A$3:$BZ$143,Calculator!$F$31+2,FALSE)) -> 30 | AU34: =IF(Calculator!$G$31>=751,0,VLOOKUP(AR34,'Soybeans K - band MB AG'!$A$3:$ABY$143,Calculator!$G$31+2,FALSE)) -> 15 | AV34: =IF(Calculator!$H$31>=31,0,VLOOKUP(AR34,'Canola Corn S - MB AG'!$A$3:$AG$143,Calculator!$H$31+2,FALSE)) -> 20 | AX34: Soybeans | AY34: =IFERROR(ROUND(VLOOKUP(IF(OR(Calculator!E23<A1,Calculator!E23>B1),0,23),'N recs 3 (HIDE)'!B2:O33,VLOOKUP(Calculator!$E$20,'Formula (HIDE)'!$B$112:$F$118,VLOOKUP(Calculator!$E$21,'Formula (HIDE)'!$D$96:$E$99,2,FALSE),FALSE),FALSE),0),"Error") -> 58 | AZ34: =IF(Calculator!$F$31>=76,0,VLOOKUP(AY34,'Soybean P - Olson test MB AG'!$A$3:$BZ$143,Calculator!$F$31+2,FALSE)) -> 30 | BB34: =IF(Calculator!$G$31>=751,0,VLOOKUP(AY34,'Soybeans K - band MB AG'!$A$3:$ABY$143,Calculator!$G$31+2,FALSE)) -> 15 | BC34: =IF(Calculator!$H$31>=31,0,VLOOKUP(AY34,'Canola Corn S - MB AG'!$A$3:$AG$143,Calculator!$H$31+2,FALSE)) -> 20 | BE34: Soybeans | BF34: =IFERROR(ROUND(VLOOKUP(IF(OR(Calculator!E23<A1,Calculator!E23>B1),0,22),'N recs 3 (HIDE)'!B2:O33,VLOOKUP(Calculator!$E$20,'Formula (HIDE)'!$B$112:$F$118,VLOOKUP(Calculator!$E$21,'Formula (HIDE)'!$D$96:$E$99,2,FALSE),FALSE),FALSE),0),"Error") -> 56 | BG34: =IF(Calculator!$F$31>=76,0,VLOOKUP(BF34,'Soybean P - Olson test MB AG'!$A$3:$BZ$143,Calculator!$F$31+2,FALSE)) -> 30 | BI34: =IF(Calculator!$G$31>=751,0,VLOOKUP(BF34,'Soybeans K - band MB AG'!$A$3:$ABY$143,Calculator!$G$31+2,FALSE)) -> 15 | BJ34: =IF(Calculator!$H$31>=31,0,VLOOKUP(BF34,'Canola Corn S - MB AG'!$A$3:$AG$143,Calculator!$H$31+2,FALSE)) -> 20 | BL34: Soybeans | BM34: =IFERROR(ROUND(VLOOKUP(IF(OR(Calculator!E23<A1,Calculator!E23>B1),0,27),'N recs 3 (HIDE)'!B2:O33,VLOOKUP(Calculator!$E$20,'Formula (HIDE)'!$B$112:$F$118,VLOOKUP(Calculator!$E$21,'Formula (HIDE)'!$D$96:$E$99,2,FALSE),FALSE),FALSE),0),"Error") -> 63 | BN34: =IF(Calculator!$F$31>=76,0,VLOOKUP(BM34,'Soybean P - Olson test MB AG'!$A$3:$BZ$143,Calculator!$F$31+2,FALSE)) -> 30 | BP34: =IF(Calculator!$G$31>=751,0,VLOOKUP(BM34,'Soybeans K - band MB AG'!$A$3:$ABY$143,Calculator!$G$31+2,FALSE)) -> 15 | BQ34: =IF(Calculator!$H$31>=31,0,VLOOKUP(BM34,'Canola Corn S - MB AG'!$A$3:$AG$143,Calculator!$H$31+2,FALSE)) -> 20
C36: N | D36: P | E36: K | F36: S | J36: N | K36: P | L36: K | M36: S | Q36: N | R36: P | S36: K | T36: S | X36: N | Y36: P | Z36: K | AA36: S | AE36: N | AF36: P | AG36: K | AH36: S | AL36: N | AM36: P | AN36: K | AO36: S | AS36: N | AT36: P | AU36: K | AV36: S | AZ36: N | BA36: P | BB36: K | BC36: S | BG36: N | BH36: P | BI36: K | BJ36: S | BN36: N | BO36: P | BP36: K | BQ36: S
C37: =$A$23-Calculator!$E$34 -> 97 | D37: =VLOOKUP(Calculator!$E$20,A27:D34,3,FALSE)-Calculator!$F$34 -> 30 | E37: =VLOOKUP(Calculator!$E$20,A27:E34,5,FALSE)-Calculator!$G$34 -> 15 | F37: =VLOOKUP(Calculator!$E$20,A27:F34,6,FALSE)-Calculator!$H$34 -> 15 | J37: =$H$23-Calculator!$E$34-Calculator!$E$31+Calculator!$E$31 -> 87 | K37: =VLOOKUP(Calculator!$E$20,H27:K34,3,FALSE)-Calculator!$F$34 -> 30 | L37: =VLOOKUP(Calculator!$E$20,H27:L34,5,FALSE)-Calculator!$G$34 -> 15 | M37: =VLOOKUP(Calculator!$E$20,H27:M34,6,FALSE)-Calculator!$H$34 -> 15 | Q37: =$O$23-Calculator!$E$34-Calculator!$E$31+Calculator!$E$31 -> 77 | R37: =VLOOKUP(Calculator!$E$20,O27:R34,3,FALSE)-Calculator!$F$34 -> 30 | S37: =VLOOKUP(Calculator!$E$20,O27:S34,5,FALSE)-Calculator!$G$34 -> 15 | T37: =VLOOKUP(Calculator!$E$20,O27:T34,6,FALSE)-Calculator!$H$34 -> 15 | X37: =$V$23-Calculator!$E$34-Calculator!$E$31+Calculator!$E$31 -> 117 | Y37: =VLOOKUP(Calculator!$E$20,V27:Y34,3,FALSE)-Calculator!$F$34 -> 30 | Z37: =VLOOKUP(Calculator!$E$20,V27:Z34,5,FALSE)-Calculator!$G$34 -> 15 | AA37: =VLOOKUP(Calculator!$E$20,V27:AA34,6,FALSE)-Calculator!$H$34 -> 15 | AE37: =$AC$23-Calculator!$E$34-Calculator!$E$31+Calculator!$E$31 -> 127 | AF37: =VLOOKUP(Calculator!$E$20,AC27:AF34,3,FALSE)-Calculator!$F$34 -> 30 | AG37: =VLOOKUP(Calculator!$E$20,AC27:AG34,5,FALSE)-Calculator!$G$34 -> 15 | AH37: =VLOOKUP(Calculator!$E$20,AC27:AH34,6,FALSE)-Calculator!$H$34 -> 15 | AL37: =$AJ$23-Calculator!$E$34-Calculator!$E$31+Calculator!$E$31 -> 137 | AM37: =VLOOKUP(Calculator!$E$20,AJ27:AM34,3,FALSE)-Calculator!$F$34 -> 30 | AN37: =VLOOKUP(Calculator!$E$20,AJ27:AN34,5,FALSE)-Calculator!$G$34 -> 15 | AO37: =VLOOKUP(Calculator!$E$20,AJ27:AO34,6,FALSE)-Calculator!$H$34 -> 15 | AS37: =$AQ$23-Calculator!$E$34-Calculator!$E$31+Calculator!$E$31 -> 147 | AT37: =VLOOKUP(Calculator!$E$20,AQ27:AT34,3,FALSE)-Calculator!$F$34 -> 30 | AU37: =VLOOKUP(Calculator!$E$20,AQ27:AU34,5,FALSE)-Calculator!$G$34 -> 15 | AV37: =VLOOKUP(Calculator!$E$20,AQ27:AV34,6,FALSE)-Calculator!$H$34 -> 15 | AZ37: =$AX$23-Calculator!$E$34-Calculator!$E$31+Calculator!$E$31 -> 67 | BA37: =VLOOKUP(Calculator!$E$20,AX27:BA34,3,FALSE)-Calculator!$F$34 -> 30 | BB37: =VLOOKUP(Calculator!$E$20,AX27:BB34,5,FALSE)-Calculator!$G$34 -> 15 | BC37: =VLOOKUP(Calculator!$E$20,AX27:BC34,6,FALSE)-Calculator!$H$34 -> 15 | BG37: =$BE$23-Calculator!$E$34-Calculator!$E$31+Calculator!$E$31 -> 57 | BH37: =VLOOKUP(Calculator!$E$20,BE27:BH34,3,FALSE)-Calculator!$F$34 -> 30 | BI37: =VLOOKUP(Calculator!$E$20,BE27:BI34,5,FALSE)-Calculator!$G$34 -> 15 | BJ37: =VLOOKUP(Calculator!$E$20,BE27:BJ34,6,FALSE)-Calculator!$H$34 -> 15 | BN37: =$BL$23-Calculator!$E$34-Calculator!$E$31+Calculator!$E$31 -> 107 | BO37: =VLOOKUP(Calculator!$E$20,BL27:BO34,3,FALSE)-Calculator!$F$34 -> 30 | BP37: =VLOOKUP(Calculator!$E$20,BL27:BP34,5,FALSE)-Calculator!$G$34 -> 15 | BQ37: =VLOOKUP(Calculator!$E$20,BL27:BQ34,6,FALSE)-Calculator!$H$34 -> 15
U39: =Calculator!$B$12 -> Nitrogen (82-0-0-0) | Y39: =Calculator!$B$13 -> Nitrogen (28-0-0-0) | AC39: =Calculator!$B$11 -> Nitrogen (46-0-0-0) | AG39: =Calculator!$B$14 -> Phosphate (11-52-0-0) | AK39: =Calculator!$B$15 -> Potash (0-0-60-0) | AN39: =Calculator!$B$16 -> Sulphur (20.5-0-0-24)
S40: blend | T40: blend | U40: preseed | V40: preseed | W40: preseed | X40: preseed | Y40: suppl | Z40: suppl | AA40: suppl | AB40: suppl | AC40: blend | AD40: blend | AE40: blend | AF40: blend | AG40: blend | AH40: blend | AI40: blend | AJ40: blend | AK40: blend | AL40: blend | AM40: blend | AN40: blend | AO40: blend | AP40: blend
S41: N phos | T41: N sul1 | U41: N actual | V41: N lbs | W41: N MT | X41: N cost | Y41: N actual | Z41: N lbs | AA41: N MT | AB41: N cost | AC41: N urea | AD41: N lbs | AE41: N MT | AF41: N cost | AG41: P sul | AH41: phos lbs | AI41: phos MT | AJ41: phos cost | AK41: potash | AL41: pot MT | AM41: pot cost | AN41: sul lbs | AO41: sul MT | AP41: sul cost
K42: Your fert | L42: Total Cost | M42: Total | U42: =IF(MIN(Calculator!$J$11:$J$13)=Calculator!$J$12,Calculator!$E$35,0)*0.8 -> 85.6 | Y42: =IF(MIN(Calculator!$J$11:$J$13)=Calculator!$J$13,Calculator!$E$35,0)*0.8 -> 0 | AC42: =IF(MIN(Calculator!$J$11:$J$13)=Calculator!$J$11,Calculator!$E$35,0)*0.8 -> 0
E43: N | F43: P | G43: K | H43: S | J43: Yield | K43: cost/ac | L43: Cost | M43: Revenue | N43: Profit
Q45: best | R45: =X45+AB45+AF45+AJ45+AM45+AP45 -> 104.8683173 | S45: =SUM(AH45*(Calculator!$E$14/100)) -> 6.346153846 | T45: =SUM(AN45*(Calculator!$E$16/100)) -> 12.8125 | U45: =IF(MIN(Calculator!$J$11:$J$13)=Calculator!$J$12,E46-S45-T45,0)*'Formula (HIDE)'!$B$83 -> 73.20112179 | V45: =MAXA(0,(U45)/(Calculator!$E$12/100)) -> 89.26966073 | W45: =V45/2204.62 -> 0.04049208513 | X45: =SUM(W45*Calculator!$C$12) -> 52.63971067 | Y45: =IF(MIN(Calculator!$J$11:$J$13)=Calculator!$J$13,E46-S45-T45,0)*'Formula (HIDE)'!$B$83 -> 0 | Z45: =MAXA(0,(Y45)/(Calculator!$E$13/100)) -> 0 | AA45: =Z45/2204.62 -> 0 | AB45: =SUM(AA45*Calculator!$C$13) -> 0 | AC45: =IF(MIN(Calculator!$J$11:$J$13)=Calculator!$J$11,E46-S45-T45,0)*'Formula (HIDE)'!$B$83 -> 0 | AD45: =SUM(AC45)/(Calculator!$E$11/100) -> 0 | AE45: =AD45/2204.62 -> 0 | AF45: =SUM(AE45*Calculator!$C$11) -> 0 | AG45: =SUM(AN45*(Calculator!$F$16/100)) -> 0 | AH45: =IF(F46=0,0,SUM(F46-AG45)/(Calculator!$F$14/100))*'Formula (HIDE)'!$E$83 -> 57.69230769 | AI45: =(AH45)/2204.62 -> 0.0261688217 | AJ45: =SUM(AI45*Calculator!$C$14) -> 28.13148333 | AK45: =SUM(G46/(Calculator!$G$15/100))*'Formula (HIDE)'!$E$86 -> 25 | AL45: =(AK45)/2204.62 -> 0.01133982274 | AM45: =SUM(AL45*Calculator!$C$15) -> 7.08738921 | AN45: =SUM(H46/(Calculator!$H$16/100))*'Formula (HIDE)'!$H$83 -> 62.5 | AO45: =(AN45)/2204.62 -> 0.02834955684 | AP45: =SUM(AO45*Calculator!$C$16) -> 17.0097341
C46: Nutrient Recommendation (lb/acre) | E46: =Calculator!E35 -> 107 | F46: =Calculator!F35 -> 30 | G46: =Calculator!G35 -> 15 | H46: =Calculator!H35 -> 15 | I46: =E46/J46 -> 1.698412698 | J46: =Calculator!E23 -> 63 | K46: =(R46-(Calculator!$E$138*(R46-R45))) -> 111.731108 | L46: =HLOOKUP(Calculator!$E$20,'Production Costs'!$A$21:$H$43,23,FALSE)+((K46/(12/'Production Costs'!$H$20))*('Production Costs'!$C$19/100))+K46 -> 595.2829578 | M46: =HLOOKUP(Calculator!$E$20,'Production Costs'!$A$11:$H$12,2,FALSE)*J46 -> 582.75 | N46: =M46-L46 -> -12.5329578 | Q46: worst | R46: =X46+AB46+AF46+AJ46+AM46+AP46 -> 170.318822 | S46: =SUM(AH46*(Calculator!$E$14/100)) -> 12.69230769 | T46: =SUM(AN46*(Calculator!$E$16/100)) -> 12.8125 | U46: =IF(MAX(Calculator!$J$11:$J$13)=Calculator!$J$12,E46-S46-T46,0)*'Formula (HIDE)'!$B$85 -> 0 | V46: =MAXA(0,(U46)/(Calculator!$E$12/100)) -> 0 | W46: =V46/2204.62 -> 0 | X46: =SUM(W46*Calculator!$C$12) -> 0 | Y46: =IF(MAX(Calculator!$J$11:$J$13)=Calculator!$J$13,E46-S46-T46,0)*'Formula (HIDE)'!$B$84 -> 0 | Z46: =MAXA(0,(Y46)/(Calculator!$E$13/100)) -> 0 | AA46: =Z46/2204.62 -> 0 | AB46: =SUM(AA46*Calculator!$C$13) -> 0 | AC46: =IF(MAX(Calculator!$J$11:$J$13)=Calculator!$J$11,E46-S46-T46,0)*'Formula (HIDE)'!$B$84 -> 101.8689904 | AD46: =SUM(AC46)/(Calculator!$E$11/100) -> 221.4543269 | AE46: =AD46/2204.62 -> 0.1004501125 | AF46: =SUM(AE46*Calculator!$C$11) -> 82.87134278 | AG46: =SUM(AN46*(Calculator!$F$16/100)) -> 0 | AH46: =IF(F46=0,0,SUM(F46-AG46)/(Calculator!$F$14/100))*'Formula (HIDE)'!$E$82 -> 115.3846154 | AI46: =(AH46)/2204.62 -> 0.0523376434 | AJ46: =SUM(AI46*Calculator!$C$14) -> 56.26296665 | AK46: =SUM(G46/(Calculator!$G$15/100))*'Formula (HIDE)'!$E$85 -> 50 | AL46: =(AK46)/2204.62 -> 0.02267964547 | AM46: =SUM(AL46*Calculator!$C$15) -> 14.17477842 | AN46: =SUM(H46/(Calculator!$H$16/100))*'Formula (HIDE)'!$H$82 -> 62.5 | AO46: =(AN46)/2204.62 -> 0.02834955684 | AP46: =SUM(AO46*Calculator!$C$16) -> 17.0097341
L48: =HLOOKUP(Calculator!$E$20,'Production Costs'!$A$21:$H$43,23,FALSE)+((R48/(12/'Production Costs'!$H$20))*('Production Costs'!$C$19/100))+R48 -> 555.9714836 | N48: =M49-L48 -> -36.84298361 | Q48: best | R48: =X48+AB48+AF48+AJ48+AM48+AP48 -> 74.90537106 | S48: =SUM(AH48*(Calculator!$E$14/100)) -> 6.346153846 | T48: =SUM(AN48*(Calculator!$E$16/100)) -> 12.8125 | U48: =IF(MIN(Calculator!$J$11:$J$13)=Calculator!$J$12,E49-S48-T48,0)*'Formula (HIDE)'!$B$83 -> 31.53445513 | V48: =MAXA(0,(U48)/(Calculator!$E$12/100)) -> 38.4566526 | W48: =V48/2204.62 -> 0.01744366494 | X48: =SUM(W48*Calculator!$C$12) -> 22.67676442 | Y48: =IF(MIN(Calculator!$J$11:$J$13)=Calculator!$J$13,E49-S48-T48,0)*'Formula (HIDE)'!$B$83 -> 0 | Z48: =MAXA(0,(Y48)/(Calculator!$E$13/100)) -> 0 | AA48: =Z48/2204.62 -> 0 | AB48: =SUM(AA48*Calculator!$C$13) -> 0 | AC48: =IF(MIN(Calculator!$J$11:$J$13)=Calculator!$J$11,E49-S48-T48,0)*'Formula (HIDE)'!$B$83 -> 0 | AD48: =SUM(AC48)/(Calculator!$E$11/100) -> 0 | AE48: =AD48/2204.62 -> 0 | AF48: =SUM(AE48*Calculator!$C$11) -> 0 | AG48: =SUM(AN48*(Calculator!$F$16/100)) -> 0 | AH48: =IF(F49=0,0,SUM(F49-AG48)/(Calculator!$F$14/100))*'Formula (HIDE)'!$E$83 -> 57.69230769 | AI48: =(AH48)/2204.62 -> 0.0261688217 | AJ48: =SUM(AI48*Calculator!$C$14) -> 28.13148333 | AK48: =SUM(G49/(Calculator!$G$15/100))*'Formula (HIDE)'!$E$86 -> 25 | AL48: =(AK48)/2204.62 -> 0.01133982274 | AM48: =SUM(AL48*Calculator!$C$15) -> 7.08738921 | AN48: =SUM(H49/(Calculator!$H$16/100))*'Formula (HIDE)'!$H$83 -> 62.5 | AO48: =(AN48)/2204.62 -> 0.02834955684 | AP48: =SUM(AO48*Calculator!$C$16) -> 17.0097341
A49: -5x lb N | C49: Nutrient Recommendation (lb/acre) | E49: ='Chart Data (HIDE)'!BG37 -> 57 | F49: ='Chart Data (HIDE)'!BH37 -> 30 | G49: ='Chart Data (HIDE)'!BI37 -> 15 | H49: ='Chart Data (HIDE)'!BJ37 -> 15 | I49: =E49/J49 -> 1.015644489 | J49: ='Chart Data (HIDE)'!BF28 -> 56.122 | K49: =(R50-(Calculator!$E$138*(R50-R48))) -> 79.57865296 | L49: =HLOOKUP(Calculator!$E$20,'Production Costs'!$A$21:$H$43,23,FALSE)+((K49/(12/'Production Costs'!$H$20))*('Production Costs'!$C$19/100))+K49 -> 560.960212 | M49: =HLOOKUP(Calculator!$E$20,'Production Costs'!$A$11:$H$12,2,FALSE)*J49 -> 519.1285 | N49: =M49-L49 -> -41.83171204
L50: =HLOOKUP(Calculator!$E$20,'Production Costs'!$A$21:$H$43,23,FALSE)+((R50/(12/'Production Costs'!$H$20))*('Production Costs'!$C$19/100))+R50 -> 603.5490373 | N50: =M49-L50 -> -84.42053735 | Q50: worst | R50: =X50+AB50+AF50+AJ50+AM50+AP50 -> 119.4745081 | S50: =SUM(AH50*(Calculator!$E$14/100)) -> 12.69230769 | T50: =SUM(AN50*(Calculator!$E$16/100)) -> 12.8125 | U50: =IF(MAX(Calculator!$J$11:$J$13)=Calculator!$J$12,E49-S50-T50,0)*'Formula (HIDE)'!$B$85 -> 0 | V50: =MAXA(0,(U50)/(Calculator!$E$12/100)) -> 0 | W50: =V50/2204.62 -> 0 | X50: =SUM(W50*Calculator!$C$12) -> 0 | Y50: =IF(MAX(Calculator!$J$11:$J$13)=Calculator!$J$13,E49-S50-T50,0)*'Formula (HIDE)'!$B$84 -> 0 | Z50: =MAXA(0,(Y50)/(Calculator!$E$13/100)) -> 0 | AA50: =Z50/2204.62 -> 0 | AB50: =SUM(AA50*Calculator!$C$13) -> 0 | AC50: =IF(MAX(Calculator!$J$11:$J$13)=Calculator!$J$11,E49-S50-T50,0)*'Formula (HIDE)'!$B$84 -> 39.36899038 | AD50: =SUM(AC50)/(Calculator!$E$11/100) -> 85.58476171 | AE50: =AD50/2204.62 -> 0.03882064107 | AF50: =SUM(AE50*Calculator!$C$11) -> 32.02702888 | AG50: =SUM(AN50*(Calculator!$F$16/100)) -> 0 | AH50: =IF(F49=0,0,SUM(F49-AG50)/(Calculator!$F$14/100))*'Formula (HIDE)'!$E$82 -> 115.3846154 | AI50: =(AH50)/2204.62 -> 0.0523376434 | AJ50: =SUM(AI50*Calculator!$C$14) -> 56.26296665 | AK50: =SUM(G49/(Calculator!$G$15/100))*'Formula (HIDE)'!$E$85 -> 50 | AL50: =(AK50)/2204.62 -> 0.02267964547 | AM50: =SUM(AL50*Calculator!$C$15) -> 14.17477842 | AN50: =SUM(H49/(Calculator!$H$16/100))*'Formula (HIDE)'!$H$82 -> 62.5 | AO50: =(AN50)/2204.62 -> 0.02834955684 | AP50: =SUM(AO50*Calculator!$C$16) -> 17.0097341
L51: =HLOOKUP(Calculator!$E$20,'Production Costs'!$A$21:$H$43,23,FALSE)+((R51/(12/'Production Costs'!$H$20))*('Production Costs'!$C$19/100))+R51 -> 562.3685726 | N51: =M52-L51 -> -25.06382263 | Q51: best | R51: =X51+AB51+AF51+AJ51+AM51+AP51 -> 80.89796031 | S51: =SUM(AH51*(Calculator!$E$14/100)) -> 6.346153846 | T51: =SUM(AN51*(Calculator!$E$16/100)) -> 12.8125 | U51: =IF(MIN(Calculator!$J$11:$J$13)=Calculator!$J$12,E52-S51-T51,0)*'Formula (HIDE)'!$B$83 -> 39.86778846 | V51: =MAXA(0,(U51)/(Calculator!$E$12/100)) -> 48.61925422 | W51: =V51/2204.62 -> 0.02205334898 | X51: =SUM(W51*Calculator!$C$12) -> 28.66935367 | Y51: =IF(MIN(Calculator!$J$11:$J$13)=Calculator!$J$13,E52-S51-T51,0)*'Formula (HIDE)'!$B$83 -> 0 | Z51: =MAXA(0,(Y51)/(Calculator!$E$13/100)) -> 0 | AA51: =Z51/2204.62 -> 0 | AB51: =SUM(AA51*Calculator!$C$13) -> 0 | AC51: =IF(MIN(Calculator!$J$11:$J$13)=Calculator!$J$11,E52-S51-T51,0)*'Formula (HIDE)'!$B$83 -> 0 | AD51: =SUM(AC51)/(Calculator!$E$11/100) -> 0 | AE51: =AD51/2204.62 -> 0 | AF51: =SUM(AE51*Calculator!$C$11) -> 0 | AG51: =SUM(AN51*(Calculator!$F$16/100)) -> 0 | AH51: =IF(F52=0,0,SUM(F52-AG51)/(Calculator!$F$14/100))*'Formula (HIDE)'!$E$83 -> 57.69230769 | AI51: =(AH51)/2204.62 -> 0.0261688217 | AJ51: =SUM(AI51*Calculator!$C$14) -> 28.13148333 | AK51: =SUM(G52/(Calculator!$G$15/100))*'Formula (HIDE)'!$E$86 -> 25 | AL51: =(AK51)/2204.62 -> 0.01133982274 | AM51: =SUM(AL51*Calculator!$C$15) -> 7.08738921 | AN51: =SUM(H52/(Calculator!$H$16/100))*'Formula (HIDE)'!$H$83 -> 62.5 | AO51: =(AN51)/2204.62 -> 0.02834955684 | AP51: =SUM(AO51*Calculator!$C$16) -> 17.0097341
A52: -4x lb N | C52: Nutrient Recommendation (lb/acre) | E52: ='Chart Data (HIDE)'!AZ37 -> 67 | F52: ='Chart Data (HIDE)'!BA37 -> 30 | G52: ='Chart Data (HIDE)'!BB37 -> 15 | H52: ='Chart Data (HIDE)'!BC37 -> 15 | I52: =E52/J52 -> 1.15344225 | J52: ='Chart Data (HIDE)'!AY28 -> 58.087 | K52: =(R53-(Calculator!$E$138*(R53-R51))) -> 86.00914397 | L52: =HLOOKUP(Calculator!$E$20,'Production Costs'!$A$21:$H$43,23,FALSE)+((K52/(12/'Production Costs'!$H$20))*('Production Costs'!$C$19/100))+K52 -> 567.8247612 | M52: =HLOOKUP(Calculator!$E$20,'Production Costs'!$A$11:$H$12,2,FALSE)*J52 -> 537.30475 | N52: =M52-L52 -> -30.52001119
L53: =HLOOKUP(Calculator!$E$20,'Production Costs'!$A$21:$H$43,23,FALSE)+((R53/(12/'Production Costs'!$H$20))*('Production Costs'!$C$19/100))+R53 -> 614.4042984 | N53: =M52-L53 -> -77.09954836 | Q53: worst | R53: =X53+AB53+AF53+AJ53+AM53+AP53 -> 129.6433708 | S53: =SUM(AH53*(Calculator!$E$14/100)) -> 12.69230769 | T53: =SUM(AN53*(Calculator!$E$16/100)) -> 12.8125 | U53: =IF(MAX(Calculator!$J$11:$J$13)=Calculator!$J$12,E52-S53-T53,0)*'Formula (HIDE)'!$B$85 -> 0 | V53: =MAXA(0,(U53)/(Calculator!$E$12/100)) -> 0 | W53: =V53/2204.62 -> 0 | X53: =SUM(W53*Calculator!$C$12) -> 0 | Y53: =IF(MAX(Calculator!$J$11:$J$13)=Calculator!$J$13,E52-S53-T53,0)*'Formula (HIDE)'!$B$84 -> 0 | Z53: =MAXA(0,(Y53)/(Calculator!$E$13/100)) -> 0 | AA53: =Z53/2204.62 -> 0 | AB53: =SUM(AA53*Calculator!$C$13) -> 0 | AC53: =IF(MAX(Calculator!$J$11:$J$13)=Calculator!$J$11,E52-S53-T53,0)*'Formula (HIDE)'!$B$84 -> 51.86899038 | AD53: =SUM(AC53)/(Calculator!$E$11/100) -> 112.7586747 | AE53: =AD53/2204.62 -> 0.05114653534 | AF53: =SUM(AE53*Calculator!$C$11) -> 42.19589166 | AG53: =SUM(AN53*(Calculator!$F$16/100)) -> 0 | AH53: =IF(F52=0,0,SUM(F52-AG53)/(Calculator!$F$14/100))*'Formula (HIDE)'!$E$82 -> 115.3846154 | AI53: =(AH53)/2204.62 -> 0.0523376434 | AJ53: =SUM(AI53*Calculator!$C$14) -> 56.26296665 | AK53: =SUM(G52/(Calculator!$G$15/100))*'Formula (HIDE)'!$E$85 -> 50 | AL53: =(AK53)/2204.62 -> 0.02267964547 | AM53: =SUM(AL53*Calculator!$C$15) -> 14.17477842 | AN53: =SUM(H52/(Calculator!$H$16/100))*'Formula (HIDE)'!$H$82 -> 62.5 | AO53: =(AN53)/2204.62 -> 0.02834955684 | AP53: =SUM(AO53*Calculator!$C$16) -> 17.0097341
L54: =HLOOKUP(Calculator!$E$20,'Production Costs'!$A$21:$H$43,23,FALSE)+((R54/(12/'Production Costs'!$H$20))*('Production Costs'!$C$19/100))+R54 -> 568.7656617 | N54: =M55-L54 -> -16.00416166 | Q54: best | R54: =X54+AB54+AF54+AJ54+AM54+AP54 -> 86.89054956 | S54: =SUM(AH54*(Calculator!$E$14/100)) -> 6.346153846 | T54: =SUM(AN54*(Calculator!$E$16/100)) -> 12.8125 | U54: =IF(MIN(Calculator!$J$11:$J$13)=Calculator!$J$12,E55-S54-T54,0)*'Formula (HIDE)'!$B$83 -> 48.20112179 | V54: =MAXA(0,(U54)/(Calculator!$E$12/100)) -> 58.78185585 | W54: =V54/2204.62 -> 0.02666303302 | X54: =SUM(W54*Calculator!$C$12) -> 34.66194292 | Y54: =IF(MIN(Calculator!$J$11:$J$13)=Calculator!$J$13,E55-S54-T54,0)*'Formula (HIDE)'!$B$83 -> 0 | Z54: =MAXA(0,(Y54)/(Calculator!$E$13/100)) -> 0 | AA54: =Z54/2204.62 -> 0 | AB54: =SUM(AA54*Calculator!$C$13) -> 0 | AC54: =IF(MIN(Calculator!$J$11:$J$13)=Calculator!$J$11,E55-S54-T54,0)*'Formula (HIDE)'!$B$83 -> 0 | AD54: =SUM(AC54)/(Calculator!$E$11/100) -> 0 | AE54: =AD54/2204.62 -> 0 | AF54: =SUM(AE54*Calculator!$C$11) -> 0 | AG54: =SUM(AN54*(Calculator!$F$16/100)) -> 0 | AH54: =IF(F55=0,0,SUM(F55-AG54)/(Calculator!$F$14/100))*'Formula (HIDE)'!$E$83 -> 57.69230769 | AI54: =(AH54)/2204.62 -> 0.0261688217 | AJ54: =SUM(AI54*Calculator!$C$14) -> 28.13148333 | AK54: =SUM(G55/(Calculator!$G$15/100))*'Formula (HIDE)'!$E$86 -> 25 | AL54: =(AK54)/2204.62 -> 0.01133982274 | AM54: =SUM(AL54*Calculator!$C$15) -> 7.08738921 | AN54: =SUM(H55/(Calculator!$H$16/100))*'Formula (HIDE)'!$H$83 -> 62.5 | AO54: =(AN54)/2204.62 -> 0.02834955684 | AP54: =SUM(AO54*Calculator!$C$16) -> 17.0097341
A55: -3x lb N | C55: Nutrient Recommendation (lb/acre) | E55: ='Chart Data (HIDE)'!Q37 -> 77 | F55: ='Chart Data (HIDE)'!R37 -> 30 | G55: ='Chart Data (HIDE)'!S37 -> 15 | H55: ='Chart Data (HIDE)'!T37 -> 15 | I55: =E55/J55 -> 1.288530406 | J55: ='Chart Data (HIDE)'!P28 -> 59.758 | K55: =(R56-(Calculator!$E$138*(R56-R54))) -> 92.43963498 | L55: =HLOOKUP(Calculator!$E$20,'Production Costs'!$A$21:$H$43,23,FALSE)+((K55/(12/'Production Costs'!$H$20))*('Production Costs'!$C$19/100))+K55 -> 574.6893103 | M55: =HLOOKUP(Calculator!$E$20,'Production Costs'!$A$11:$H$12,2,FALSE)*J55 -> 552.7615 | N55: =M55-L55 -> -21.92781034
L56: =HLOOKUP(Calculator!$E$20,'Production Costs'!$A$21:$H$43,23,FALSE)+((R56/(12/'Production Costs'!$H$20))*('Production Costs'!$C$19/100))+R56 -> 625.2595594 | N56: =M55-L56 -> -72.49805938 | Q56: worst | R56: =X56+AB56+AF56+AJ56+AM56+AP56 -> 139.8122336 | S56: =SUM(AH56*(Calculator!$E$14/100)) -> 12.69230769 | T56: =SUM(AN56*(Calculator!$E$16/100)) -> 12.8125 | U56: =IF(MAX(Calculator!$J$11:$J$13)=Calculator!$J$12,E55-S56-T56,0)*'Formula (HIDE)'!$B$85 -> 0 | V56: =MAXA(0,(U56)/(Calculator!$E$12/100)) -> 0 | W56: =V56/2204.62 -> 0 | X56: =SUM(W56*Calculator!$C$12) -> 0 | Y56: =IF(MAX(Calculator!$J$11:$J$13)=Calculator!$J$13,E55-S56-T56,0)*'Formula (HIDE)'!$B$84 -> 0 | Z56: =MAXA(0,(Y56)/(Calculator!$E$13/100)) -> 0 | AA56: =Z56/2204.62 -> 0 | AB56: =SUM(AA56*Calculator!$C$13) -> 0 | AC56: =IF(MAX(Calculator!$J$11:$J$13)=Calculator!$J$11,E55-S56-T56,0)*'Formula (HIDE)'!$B$84 -> 64.36899038 | AD56: =SUM(AC56)/(Calculator!$E$11/100) -> 139.9325878 | AE56: =AD56/2204.62 -> 0.06347242962 | AF56: =SUM(AE56*Calculator!$C$11) -> 52.36475444 | AG56: =SUM(AN56*(Calculator!$F$16/100)) -> 0 | AH56: =IF(F55=0,0,SUM(F55-AG56)/(Calculator!$F$14/100))*'Formula (HIDE)'!$E$82 -> 115.3846154 | AI56: =(AH56)/2204.62 -> 0.0523376434 | AJ56: =SUM(AI56*Calculator!$C$14) -> 56.26296665 | AK56: =SUM(G55/(Calculator!$G$15/100))*'Formula (HIDE)'!$E$85 -> 50 | AL56: =(AK56)/2204.62 -> 0.02267964547 | AM56: =SUM(AL56*Calculator!$C$15) -> 14.17477842 | AN56: =SUM(H55/(Calculator!$H$16/100))*'Formula (HIDE)'!$H$82 -> 62.5 | AO56: =(AN56)/2204.62 -> 0.02834955684 | AP56: =SUM(AO56*Calculator!$C$16) -> 17.0097341
L57: =HLOOKUP(Calculator!$E$20,'Production Costs'!$A$21:$H$43,23,FALSE)+((R57/(12/'Production Costs'!$H$20))*('Production Costs'!$C$19/100))+R57 -> 575.1627507 | N57: =M58-L57 -> -9.68250068 | Q57: best | R57: =X57+AB57+AF57+AJ57+AM57+AP57 -> 92.88313881 | S57: =SUM(AH57*(Calculator!$E$14/100)) -> 6.346153846 | T57: =SUM(AN57*(Calculator!$E$16/100)) -> 12.8125 | U57: =IF(MIN(Calculator!$J$11:$J$13)=Calculator!$J$12,E58-S57-T57,0)*'Formula (HIDE)'!$B$83 -> 56.53445513 | V57: =MAXA(0,(U57)/(Calculator!$E$12/100)) -> 68.94445747 | W57: =V57/2204.62 -> 0.03127271705 | X57: =SUM(W57*Calculator!$C$12) -> 40.65453217 | Y57: =IF(MIN(Calculator!$J$11:$J$13)=Calculator!$J$13,E58-S57-T57,0)*'Formula (HIDE)'!$B$83 -> 0 | Z57: =MAXA(0,(Y57)/(Calculator!$E$13/100)) -> 0 | AA57: =Z57/2204.62 -> 0 | AB57: =SUM(AA57*Calculator!$C$13) -> 0 | AC57: =IF(MIN(Calculator!$J$11:$J$13)=Calculator!$J$11,E58-S57-T57,0)*'Formula (HIDE)'!$B$83 -> 0 | AD57: =SUM(AC57)/(Calculator!$E$11/100) -> 0 | AE57: =AD57/2204.62 -> 0 | AF57: =SUM(AE57*Calculator!$C$11) -> 0 | AG57: =SUM(AN57*(Calculator!$F$16/100)) -> 0 | AH57: =IF(F58=0,0,SUM(F58-AG57)/(Calculator!$F$14/100))*'Formula (HIDE)'!$E$83 -> 57.69230769 | AI57: =(AH57)/2204.62 -> 0.0261688217 | AJ57: =SUM(AI57*Calculator!$C$14) -> 28.13148333 | AK57: =SUM(G58/(Calculator!$G$15/100))*'Formula (HIDE)'!$E$86 -> 25 | AL57: =(AK57)/2204.62 -> 0.01133982274 | AM57: =SUM(AL57*Calculator!$C$15) -> 7.08738921 | AN57: =SUM(H58/(Calculator!$H$16/100))*'Formula (HIDE)'!$H$83 -> 62.5 | AO57: =(AN57)/2204.62 -> 0.02834955684 | AP57: =SUM(AO57*Calculator!$C$16) -> 17.0097341
A58: -2x lb N | C58: Nutrient Recommendation (lb/acre) | E58: ='Chart Data (HIDE)'!J37 -> 87 | F58: ='Chart Data (HIDE)'!K37 -> 30 | G58: ='Chart Data (HIDE)'!L37 -> 15 | H58: ='Chart Data (HIDE)'!M37 -> 15 | I58: =E58/J58 -> 1.423126626 | J58: ='Chart Data (HIDE)'!I28 -> 61.133 | K58: =(R59-(Calculator!$E$138*(R59-R57))) -> 98.87012599 | L58: =HLOOKUP(Calculator!$E$20,'Production Costs'!$A$21:$H$43,23,FALSE)+((K58/(12/'Production Costs'!$H$20))*('Production Costs'!$C$19/100))+K58 -> 581.5538595 | M58: =HLOOKUP(Calculator!$E$20,'Production Costs'!$A$11:$H$12,2,FALSE)*J58 -> 565.48025 | N58: =M58-L58 -> -16.0736095
L59: =HLOOKUP(Calculator!$E$20,'Production Costs'!$A$21:$H$43,23,FALSE)+((R59/(12/'Production Costs'!$H$20))*('Production Costs'!$C$19/100))+R59 -> 636.1148204 | N59: =M58-L59 -> -70.6345704 | Q59: worst | R59: =X59+AB59+AF59+AJ59+AM59+AP59 -> 149.9810964 | S59: =SUM(AH59*(Calculator!$E$14/100)) -> 12.69230769 | T59: =SUM(AN59*(Calculator!$E$16/100)) -> 12.8125 | U59: =IF(MAX(Calculator!$J$11:$J$13)=Calculator!$J$12,E58-S59-T59,0)*'Formula (HIDE)'!$B$85 -> 0 | V59: =MAXA(0,(U59)/(Calculator!$E$12/100)) -> 0 | W59: =V59/2204.62 -> 0 | X59: =SUM(W59*Calculator!$C$12) -> 0 | Y59: =IF(MAX(Calculator!$J$11:$J$13)=Calculator!$J$13,E58-S59-T59,0)*'Formula (HIDE)'!$B$84 -> 0 | Z59: =MAXA(0,(Y59)/(Calculator!$E$13/100)) -> 0 | AA59: =Z59/2204.62 -> 0 | AB59: =SUM(AA59*Calculator!$C$13) -> 0 | AC59: =IF(MAX(Calculator!$J$11:$J$13)=Calculator!$J$11,E58-S59-T59,0)*'Formula (HIDE)'!$B$84 -> 76.86899038 | AD59: =SUM(AC59)/(Calculator!$E$11/100) -> 167.1065008 | AE59: =AD59/2204.62 -> 0.0757983239 | AF59: =SUM(AE59*Calculator!$C$11) -> 62.53361722 | AG59: =SUM(AN59*(Calculator!$F$16/100)) -> 0 | AH59: =IF(F58=0,0,SUM(F58-AG59)/(Calculator!$F$14/100))*'Formula (HIDE)'!$E$82 -> 115.3846154 | AI59: =(AH59)/2204.62 -> 0.0523376434 | AJ59: =SUM(AI59*Calculator!$C$14) -> 56.26296665 | AK59: =SUM(G58/(Calculator!$G$15/100))*'Formula (HIDE)'!$E$85 -> 50 | AL59: =(AK59)/2204.62 -> 0.02267964547 | AM59: =SUM(AL59*Calculator!$C$15) -> 14.17477842 | AN59: =SUM(H58/(Calculator!$H$16/100))*'Formula (HIDE)'!$H$82 -> 62.5 | AO59: =(AN59)/2204.62 -> 0.02834955684 | AP59: =SUM(AO59*Calculator!$C$16) -> 17.0097341
L60: =HLOOKUP(Calculator!$E$20,'Production Costs'!$A$21:$H$43,23,FALSE)+((R60/(12/'Production Costs'!$H$20))*('Production Costs'!$C$19/100))+R60 -> 581.5598397 | N60: =M61-L60 -> -6.080339705 | Q60: best | R60: =X60+AB60+AF60+AJ60+AM60+AP60 -> 98.87572806 | S60: =SUM(AH60*(Calculator!$E$14/100)) -> 6.346153846 | T60: =SUM(AN60*(Calculator!$E$16/100)) -> 12.8125 | U60: =IF(MIN(Calculator!$J$11:$J$13)=Calculator!$J$12,E61-S60-T60,0)*'Formula (HIDE)'!$B$83 -> 64.86778846 | V60: =MAXA(0,(U60)/(Calculator!$E$12/100)) -> 79.1070591 | W60: =V60/2204.62 -> 0.03588240109 | X60: =SUM(W60*Calculator!$C$12) -> 46.64712142 | Y60: =IF(MIN(Calculator!$J$11:$J$13)=Calculator!$J$13,E61-S60-T60,0)*'Formula (HIDE)'!$B$83 -> 0 | Z60: =MAXA(0,(Y60)/(Calculator!$E$13/100)) -> 0 | AA60: =Z60/2204.62 -> 0 | AB60: =SUM(AA60*Calculator!$C$13) -> 0 | AC60: =IF(MIN(Calculator!$J$11:$J$13)=Calculator!$J$11,E61-S60-T60,0)*'Formula (HIDE)'!$B$83 -> 0 | AD60: =SUM(AC60)/(Calculator!$E$11/100) -> 0 | AE60: =AD60/2204.62 -> 0 | AF60: =SUM(AE60*Calculator!$C$11) -> 0 | AG60: =SUM(AN60*(Calculator!$F$16/100)) -> 0 | AH60: =IF(F61=0,0,SUM(F61-AG60)/(Calculator!$F$14/100))*'Formula (HIDE)'!$E$83 -> 57.69230769 | AI60: =(AH60)/2204.62 -> 0.0261688217 | AJ60: =SUM(AI60*Calculator!$C$14) -> 28.13148333 | AK60: =SUM(G61/(Calculator!$G$15/100))*'Formula (HIDE)'!$E$86 -> 25 | AL60: =(AK60)/2204.62 -> 0.01133982274 | AM60: =SUM(AL60*Calculator!$C$15) -> 7.08738921 | AN60: =SUM(H61/(Calculator!$H$16/100))*'Formula (HIDE)'!$H$83 -> 62.5 | AO60: =(AN60)/2204.62 -> 0.02834955684 | AP60: =SUM(AO60*Calculator!$C$16) -> 17.0097341
A61: -1x lb N | C61: Nutrient Recommendation (lb/acre) | E61: ='Chart Data (HIDE)'!C37 -> 97 | F61: ='Chart Data (HIDE)'!D37 -> 30 | G61: ='Chart Data (HIDE)'!E37 -> 15 | H61: ='Chart Data (HIDE)'!F37 -> 15 | I61: =E61/J61 -> 1.5591346 | J61: =B28 -> 62.214 | K61: =(R62-(Calculator!$E$138*(R62-R60))) -> 105.300617 | L61: =HLOOKUP(Calculator!$E$20,'Production Costs'!$A$21:$H$43,23,FALSE)+((K61/(12/'Production Costs'!$H$20))*('Production Costs'!$C$19/100))+K61 -> 588.4184087 | M61: =HLOOKUP(Calculator!$E$20,'Production Costs'!$A$11:$H$12,2,FALSE)*J61 -> 575.4795 | N61: =M61-L61 -> -12.93890865
L62: =HLOOKUP(Calculator!$E$20,'Production Costs'!$A$21:$H$43,23,FALSE)+((R62/(12/'Production Costs'!$H$20))*('Production Costs'!$C$19/100))+R62 -> 646.9700814 | N62: =M61-L62 -> -71.49058142 | Q62: worst | R62: =X62+AB62+AF62+AJ62+AM62+AP62 -> 160.1499592 | S62: =SUM(AH62*(Calculator!$E$14/100)) -> 12.69230769 | T62: =SUM(AN62*(Calculator!$E$16/100)) -> 12.8125 | U62: =IF(MAX(Calculator!$J$11:$J$13)=Calculator!$J$12,E61-S62-T62,0)*'Formula (HIDE)'!$B$85 -> 0 | V62: =MAXA(0,(U62)/(Calculator!$E$12/100)) -> 0 | W62: =V62/2204.62 -> 0 | X62: =SUM(W62*Calculator!$C$12) -> 0 | Y62: =IF(MAX(Calculator!$J$11:$J$13)=Calculator!$J$13,E61-S62-T62,0)*'Formula (HIDE)'!$B$84 -> 0 | Z62: =MAXA(0,(Y62)/(Calculator!$E$13/100)) -> 0 | AA62: =Z62/2204.62 -> 0 | AB62: =SUM(AA62*Calculator!$C$13) -> 0 | AC62: =IF(MAX(Calculator!$J$11:$J$13)=Calculator!$J$11,E61-S62-T62,0)*'Formula (HIDE)'!$B$84 -> 89.36899038 | AD62: =SUM(AC62)/(Calculator!$E$11/100) -> 194.2804139 | AE62: =AD62/2204.62 -> 0.08812421818 | AF62: =SUM(AE62*Calculator!$C$11) -> 72.70248 | AG62: =SUM(AN62*(Calculator!$F$16/100)) -> 0 | AH62: =IF(F61=0,0,SUM(F61-AG62)/(Calculator!$F$14/100))*'Formula (HIDE)'!$E$82 -> 115.3846154 | AI62: =(AH62)/2204.62 -> 0.0523376434 | AJ62: =SUM(AI62*Calculator!$C$14) -> 56.26296665 | AK62: =SUM(G61/(Calculator!$G$15/100))*'Formula (HIDE)'!$E$85 -> 50 | AL62: =(AK62)/2204.62 -> 0.02267964547 | AM62: =SUM(AL62*Calculator!$C$15) -> 14.17477842 | AN62: =SUM(H61/(Calculator!$H$16/100))*'Formula (HIDE)'!$H$82 -> 62.5 | AO62: =(AN62)/2204.62 -> 0.02834955684 | AP62: =SUM(AO62*Calculator!$C$16) -> 17.0097341
L63: =HLOOKUP(Calculator!$E$20,'Production Costs'!$A$21:$H$43,23,FALSE)+((R63/(12/'Production Costs'!$H$20))*('Production Costs'!$C$19/100))+R63 -> 587.9569287 | N63: =M64-L63 -> -5.206928731 | Q63: best | R63: =X63+AB63+AF63+AJ63+AM63+AP63 -> 104.8683173 | S63: =SUM(AH63*(Calculator!$E$14/100)) -> 6.346153846 | T63: =SUM(AN63*(Calculator!$E$16/100)) -> 12.8125 | U63: =IF(MIN(Calculator!$J$11:$J$13)=Calculator!$J$12,E64-S63-T63,0)*'Formula (HIDE)'!$B$83 -> 73.20112179 | V63: =MAXA(0,(U63)/(Calculator!$E$12/100)) -> 89.26966073 | W63: =V63/2204.62 -> 0.04049208513 | X63: =SUM(W63*Calculator!$C$12) -> 52.63971067 | Y63: =IF(MIN(Calculator!$J$11:$J$13)=Calculator!$J$13,E64-S63-T63,0)*'Formula (HIDE)'!$B$83 -> 0 | Z63: =MAXA(0,(Y63)/(Calculator!$E$13/100)) -> 0 | AA63: =Z63/2204.62 -> 0 | AB63: =SUM(AA63*Calculator!$C$13) -> 0 | AC63: =IF(MIN(Calculator!$J$11:$J$13)=Calculator!$J$11,E64-S63-T63,0)*'Formula (HIDE)'!$B$83 -> 0 | AD63: =SUM(AC63)/(Calculator!$E$11/100) -> 0 | AE63: =AD63/2204.62 -> 0 | AF63: =SUM(AE63*Calculator!$C$11) -> 0 | AG63: =SUM(AN63*(Calculator!$F$16/100)) -> 0 | AH63: =IF(F64=0,0,SUM(F64-AG63)/(Calculator!$F$14/100))*'Formula (HIDE)'!$E$83 -> 57.69230769 | AI63: =(AH63)/2204.62 -> 0.0261688217 | AJ63: =SUM(AI63*Calculator!$C$14) -> 28.13148333 | AK63: =SUM(G64/(Calculator!$G$15/100))*'Formula (HIDE)'!$E$86 -> 25 | AL63: =(AK63)/2204.62 -> 0.01133982274 | AM63: =SUM(AL63*Calculator!$C$15) -> 7.08738921 | AN63: =SUM(H64/(Calculator!$H$16/100))*'Formula (HIDE)'!$H$83 -> 62.5 | AO63: =(AN63)/2204.62 -> 0.02834955684 | AP63: =SUM(AO63*Calculator!$C$16) -> 17.0097341
C64: Applied (lb/acre) | D64: =E64/E46 -> 1 | E64: =BN37 -> 107 | F64: =Calculator!F35 -> 30 | G64: =Calculator!G35 -> 15 | H64: =Calculator!H35 -> 15 | I64: =E64/J64 -> 1.698412698 | J64: =IFERROR(BM28,B10) -> 63 | K64: =(R65-(Calculator!$E$138*(R65-R63))) -> 111.731108 | L64: =HLOOKUP(Calculator!$E$20,'Production Costs'!$A$21:$H$43,23,FALSE)+((K64/(12/'Production Costs'!$H$20))*('Production Costs'!$C$19/100))+K64 -> 595.2829578 | M64: =HLOOKUP(Calculator!$E$20,'Production Costs'!$A$11:$H$12,2,FALSE)*J64 -> 582.75 | N64: =M64-L64 -> -12.5329578 | O64: =((ROUND('Chart Data (HIDE)'!J64,1)*HLOOKUP(Calculator!$E$20,'Production Costs'!$A$11:$H$12,2,FALSE))-'Chart Data (HIDE)'!L64) -> -12.5329578 | P64: ='Chart Data (HIDE)'!M46-((ROUND('Chart Data (HIDE)'!J64,0)*HLOOKUP(Calculator!$E$20,'Production Costs'!$A$11:$H$12,2,FALSE))) -> 0
L65: =HLOOKUP(Calculator!$E$20,'Production Costs'!$A$21:$H$43,23,FALSE)+((R65/(12/'Production Costs'!$H$20))*('Production Costs'!$C$19/100))+R65 -> 657.8253424 | N65: =M64-L65 -> -75.07534243 | Q65: worst | R65: =X65+AB65+AF65+AJ65+AM65+AP65 -> 170.318822 | S65: =SUM(AH65*(Calculator!$E$14/100)) -> 12.69230769 | T65: =SUM(AN65*(Calculator!$E$16/100)) -> 12.8125 | U65: =IF(MAX(Calculator!$J$11:$J$13)=Calculator!$J$12,E64-S65-T65,0)*'Formula (HIDE)'!$B$85 -> 0 | V65: =MAXA(0,(U65)/(Calculator!$E$12/100)) -> 0 | W65: =V65/2204.62 -> 0 | X65: =SUM(W65*Calculator!$C$12) -> 0 | Y65: =IF(MAX(Calculator!$J$11:$J$13)=Calculator!$J$13,E64-S65-T65,0)*'Formula (HIDE)'!$B$84 -> 0 | Z65: =MAXA(0,(Y65)/(Calculator!$E$13/100)) -> 0 | AA65: =Z65/2204.62 -> 0 | AB65: =SUM(AA65*Calculator!$C$13) -> 0 | AC65: =IF(MAX(Calculator!$J$11:$J$13)=Calculator!$J$11,E64-S65-T65,0)*'Formula (HIDE)'!$B$84 -> 101.8689904 | AD65: =SUM(AC65)/(Calculator!$E$11/100) -> 221.4543269 | AE65: =AD65/2204.62 -> 0.1004501125 | AF65: =SUM(AE65*Calculator!$C$11) -> 82.87134278 | AG65: =SUM(AN65*(Calculator!$F$16/100)) -> 0 | AH65: =IF(F64=0,0,SUM(F64-AG65)/(Calculator!$F$14/100))*'Formula (HIDE)'!$E$82 -> 115.3846154 | AI65: =(AH65)/2204.62 -> 0.0523376434 | AJ65: =SUM(AI65*Calculator!$C$14) -> 56.26296665 | AK65: =SUM(G64/(Calculator!$G$15/100))*'Formula (HIDE)'!$E$85 -> 50 | AL65: =(AK65)/2204.62 -> 0.02267964547 | AM65: =SUM(AL65*Calculator!$C$15) -> 14.17477842 | AN65: =SUM(H64/(Calculator!$H$16/100))*'Formula (HIDE)'!$H$82 -> 62.5 | AO65: =(AN65)/2204.62 -> 0.02834955684 | AP65: =SUM(AO65*Calculator!$C$16) -> 17.0097341
L66: =HLOOKUP(Calculator!$E$20,'Production Costs'!$A$21:$H$43,23,FALSE)+((R66/(12/'Production Costs'!$H$20))*('Production Costs'!$C$19/100))+R66 -> 594.3540178 | N66: =M67-L66 -> -7.062267756 | Q66: best | R66: =X66+AB66+AF66+AJ66+AM66+AP66 -> 110.8609066 | S66: =SUM(AH66*(Calculator!$E$14/100)) -> 6.346153846 | T66: =SUM(AN66*(Calculator!$E$16/100)) -> 12.8125 | U66: =IF(MIN(Calculator!$J$11:$J$13)=Calculator!$J$12,E67-S66-T66,0)*'Formula (HIDE)'!$B$83 -> 81.53445513 | V66: =MAXA(0,(U66)/(Calculator!$E$12/100)) -> 99.43226235 | W66: =V66/2204.62 -> 0.04510176917 | X66: =SUM(W66*Calculator!$C$12) -> 58.63229992 | Y66: =IF(MIN(Calculator!$J$11:$J$13)=Calculator!$J$13,E67-S66-T66,0)*'Formula (HIDE)'!$B$83 -> 0 | Z66: =MAXA(0,(Y66)/(Calculator!$E$13/100)) -> 0 | AA66: =Z66/2204.62 -> 0 | AB66: =SUM(AA66*Calculator!$C$13) -> 0 | AC66: =IF(MIN(Calculator!$J$11:$J$13)=Calculator!$J$11,E67-S66-T66,0)*'Formula (HIDE)'!$B$83 -> 0 | AD66: =SUM(AC66)/(Calculator!$E$11/100) -> 0 | AE66: =AD66/2204.62 -> 0 | AF66: =SUM(AE66*Calculator!$C$11) -> 0 | AG66: =SUM(AN66*(Calculator!$F$16/100)) -> 0 | AH66: =IF(F67=0,0,SUM(F67-AG66)/(Calculator!$F$14/100))*'Formula (HIDE)'!$E$83 -> 57.69230769 | AI66: =(AH66)/2204.62 -> 0.0261688217 | AJ66: =SUM(AI66*Calculator!$C$14) -> 28.13148333 | AK66: =SUM(G67/(Calculator!$G$15/100))*'Formula (HIDE)'!$E$86 -> 25 | AL66: =(AK66)/2204.62 -> 0.01133982274 | AM66: =SUM(AL66*Calculator!$C$15) -> 7.08738921 | AN66: =SUM(H67/(Calculator!$H$16/100))*'Formula (HIDE)'!$H$83 -> 62.5 | AO66: =(AN66)/2204.62 -> 0.02834955684 | AP66: =SUM(AO66*Calculator!$C$16) -> 17.0097341
A67: 1x lb N | C67: Nutrient Recommendation (lb/acre) | E67: ='Chart Data (HIDE)'!X37 -> 117 | F67: ='Chart Data (HIDE)'!Y37 -> 30 | G67: ='Chart Data (HIDE)'!Z37 -> 15 | H67: ='Chart Data (HIDE)'!AA37 -> 15 | I67: =E67/J67 -> 1.842780867 | J67: ='Chart Data (HIDE)'!W28 -> 63.491 | K67: =(R68-(Calculator!$E$138*(R68-R66))) -> 118.161599 | L67: =HLOOKUP(Calculator!$E$20,'Production Costs'!$A$21:$H$43,23,FALSE)+((K67/(12/'Production Costs'!$H$20))*('Production Costs'!$C$19/100))+K67 -> 602.147507 | M67: =HLOOKUP(Calculator!$E$20,'Production Costs'!$A$11:$H$12,2,FALSE)*J67 -> 587.29175 | N67: =M67-L67 -> -14.85575696
L68: =HLOOKUP(Calculator!$E$20,'Production Costs'!$A$21:$H$43,23,FALSE)+((R68/(12/'Production Costs'!$H$20))*('Production Costs'!$C$19/100))+R68 -> 668.6806034 | N68: =M67-L68 -> -81.38885345 | Q68: worst | R68: =X68+AB68+AF68+AJ68+AM68+AP68 -> 180.4876847 | S68: =SUM(AH68*(Calculator!$E$14/100)) -> 12.69230769 | T68: =SUM(AN68*(Calculator!$E$16/100)) -> 12.8125 | U68: =IF(MAX(Calculator!$J$11:$J$13)=Calculator!$J$12,E67-S68-T68,0)*'Formula (HIDE)'!$B$85 -> 0 | V68: =MAXA(0,(U68)/(Calculator!$E$12/100)) -> 0 | W68: =V68/2204.62 -> 0 | X68: =SUM(W68*Calculator!$C$12) -> 0 | Y68: =IF(MAX(Calculator!$J$11:$J$13)=Calculator!$J$13,E67-S68-T68,0)*'Formula (HIDE)'!$B$84 -> 0 | Z68: =MAXA(0,(Y68)/(Calculator!$E$13/100)) -> 0 | AA68: =Z68/2204.62 -> 0 | AB68: =SUM(AA68*Calculator!$C$13) -> 0 | AC68: =IF(MAX(Calculator!$J$11:$J$13)=Calculator!$J$11,E67-S68-T68,0)*'Formula (HIDE)'!$B$84 -> 114.3689904 | AD68: =SUM(AC68)/(Calculator!$E$11/100) -> 248.62824 | AE68: =AD68/2204.62 -> 0.1127760067 | AF68: =SUM(AE68*Calculator!$C$11) -> 93.04020556 | AG68: =SUM(AN68*(Calculator!$F$16/100)) -> 0 | AH68: =IF(F67=0,0,SUM(F67-AG68)/(Calculator!$F$14/100))*'Formula (HIDE)'!$E$82 -> 115.3846154 | AI68: =(AH68)/2204.62 -> 0.0523376434 | AJ68: =SUM(AI68*Calculator!$C$14) -> 56.26296665 | AK68: =SUM(G67/(Calculator!$G$15/100))*'Formula (HIDE)'!$E$85 -> 50 | AL68: =(AK68)/2204.62 -> 0.02267964547 | AM68: =SUM(AL68*Calculator!$C$15) -> 14.17477842 | AN68: =SUM(H67/(Calculator!$H$16/100))*'Formula (HIDE)'!$H$82 -> 62.5 | AO68: =(AN68)/2204.62 -> 0.02834955684 | AP68: =SUM(AO68*Calculator!$C$16) -> 17.0097341
L69: =HLOOKUP(Calculator!$E$20,'Production Costs'!$A$21:$H$43,23,FALSE)+((R69/(12/'Production Costs'!$H$20))*('Production Costs'!$C$19/100))+R69 -> 600.7511068 | N69: =M70-L69 -> -11.64635678 | Q69: best | R69: =X69+AB69+AF69+AJ69+AM69+AP69 -> 116.8534958 | S69: =SUM(AH69*(Calculator!$E$14/100)) -> 6.346153846 | T69: =SUM(AN69*(Calculator!$E$16/100)) -> 12.8125 | U69: =IF(MIN(Calculator!$J$11:$J$13)=Calculator!$J$12,E70-S69-T69,0)*'Formula (HIDE)'!$B$83 -> 89.86778846 | V69: =MAXA(0,(U69)/(Calculator!$E$12/100)) -> 109.594864 | W69: =V69/2204.62 -> 0.04971145321 | X69: =SUM(W69*Calculator!$C$12) -> 64.62488917 | Y69: =IF(MIN(Calculator!$J$11:$J$13)=Calculator!$J$13,E70-S69-T69,0)*'Formula (HIDE)'!$B$83 -> 0 | Z69: =MAXA(0,(Y69)/(Calculator!$E$13/100)) -> 0 | AA69: =Z69/2204.62 -> 0 | AB69: =SUM(AA69*Calculator!$C$13) -> 0 | AC69: =IF(MIN(Calculator!$J$11:$J$13)=Calculator!$J$11,E70-S69-T69,0)*'Formula (HIDE)'!$B$83 -> 0 | AD69: =SUM(AC69)/(Calculator!$E$11/100) -> 0 | AE69: =AD69/2204.62 -> 0 | AF69: =SUM(AE69*Calculator!$C$11) -> 0 | AG69: =SUM(AN69*(Calculator!$F$16/100)) -> 0 | AH69: =IF(F70=0,0,SUM(F70-AG69)/(Calculator!$F$14/100))*'Formula (HIDE)'!$E$83 -> 57.69230769 | AI69: =(AH69)/2204.62 -> 0.0261688217 | AJ69: =SUM(AI69*Calculator!$C$14) -> 28.13148333 | AK69: =SUM(G70/(Calculator!$G$15/100))*'Formula (HIDE)'!$E$86 -> 25 | AL69: =(AK69)/2204.62 -> 0.01133982274 | AM69: =SUM(AL69*Calculator!$C$15) -> 7.08738921 | AN69: =SUM(H70/(Calculator!$H$16/100))*'Formula (HIDE)'!$H$83 -> 62.5 | AO69: =(AN69)/2204.62 -> 0.02834955684 | AP69: =SUM(AO69*Calculator!$C$16) -> 17.0097341
A70: 2x lb N | C70: Nutrient Recommendation (lb/acre) | E70: ='Chart Data (HIDE)'!AE37 -> 127 | F70: ='Chart Data (HIDE)'!AF37 -> 30 | G70: ='Chart Data (HIDE)'!AG37 -> 15 | H70: ='Chart Data (HIDE)'!AH37 -> 15 | I70: =E70/J70 -> 1.99412753 | J70: ='Chart Data (HIDE)'!AD28 -> 63.687 | K70: =(R71-(Calculator!$E$138*(R71-R69))) -> 124.59209 | L70: =HLOOKUP(Calculator!$E$20,'Production Costs'!$A$21:$H$43,23,FALSE)+((K70/(12/'Production Costs'!$H$20))*('Production Costs'!$C$19/100))+K70 -> 609.0120561 | M70: =HLOOKUP(Calculator!$E$20,'Production Costs'!$A$11:$H$12,2,FALSE)*J70 -> 589.10475 | N70: =M70-L70 -> -19.90730611
L71: =HLOOKUP(Calculator!$E$20,'Production Costs'!$A$21:$H$43,23,FALSE)+((R71/(12/'Production Costs'!$H$20))*('Production Costs'!$C$19/100))+R71 -> 679.5358645 | N71: =M70-L71 -> -90.43111447 | Q71: worst | R71: =X71+AB71+AF71+AJ71+AM71+AP71 -> 190.6565475 | S71: =SUM(AH71*(Calculator!$E$14/100)) -> 12.69230769 | T71: =SUM(AN71*(Calculator!$E$16/100)) -> 12.8125 | U71: =IF(MAX(Calculator!$J$11:$J$13)=Calculator!$J$12,E70-S71-T71,0)*'Formula (HIDE)'!$B$85 -> 0 | V71: =MAXA(0,(U71)/(Calculator!$E$12/100)) -> 0 | W71: =V71/2204.62 -> 0 | X71: =SUM(W71*Calculator!$C$12) -> 0 | Y71: =IF(MAX(Calculator!$J$11:$J$13)=Calculator!$J$13,E70-S71-T71,0)*'Formula (HIDE)'!$B$84 -> 0 | Z71: =MAXA(0,(Y71)/(Calculator!$E$13/100)) -> 0 | AA71: =Z71/2204.62 -> 0 | AB71: =SUM(AA71*Calculator!$C$13) -> 0 | AC71: =IF(MAX(Calculator!$J$11:$J$13)=Calculator!$J$11,E70-S71-T71,0)*'Formula (HIDE)'!$B$84 -> 126.8689904 | AD71: =SUM(AC71)/(Calculator!$E$11/100) -> 275.802153 | AE71: =AD71/2204.62 -> 0.125101901 | AF71: =SUM(AE71*Calculator!$C$11) -> 103.2090683 | AG71: =SUM(AN71*(Calculator!$F$16/100)) -> 0 | AH71: =IF(F70=0,0,SUM(F70-AG71)/(Calculator!$F$14/100))*'Formula (HIDE)'!$E$82 -> 115.3846154 | AI71: =(AH71)/2204.62 -> 0.0523376434 | AJ71: =SUM(AI71*Calculator!$C$14) -> 56.26296665 | AK71: =SUM(G70/(Calculator!$G$15/100))*'Formula (HIDE)'!$E$85 -> 50 | AL71: =(AK71)/2204.62 -> 0.02267964547 | AM71: =SUM(AL71*Calculator!$C$15) -> 14.17477842 | AN71: =SUM(H70/(Calculator!$H$16/100))*'Formula (HIDE)'!$H$82 -> 62.5 | AO71: =(AN71)/2204.62 -> 0.02834955684 | AP71: =SUM(AO71*Calculator!$C$16) -> 17.0097341
L72: =HLOOKUP(Calculator!$E$20,'Production Costs'!$A$21:$H$43,23,FALSE)+((R72/(12/'Production Costs'!$H$20))*('Production Costs'!$C$19/100))+R72 -> 607.1481958 | N72: =M73-L72 -> -18.95919581 | Q72: best | R72: =X72+AB72+AF72+AJ72+AM72+AP72 -> 122.8460851 | S72: =SUM(AH72*(Calculator!$E$14/100)) -> 6.346153846 | T72: =SUM(AN72*(Calculator!$E$16/100)) -> 12.8125 | U72: =IF(MIN(Calculator!$J$11:$J$13)=Calculator!$J$12,E73-S72-T72,0)*'Formula (HIDE)'!$B$83 -> 98.20112179 | V72: =MAXA(0,(U72)/(Calculator!$E$12/100)) -> 119.7574656 | W72: =V72/2204.62 -> 0.05432113725 | X72: =SUM(W72*Calculator!$C$12) -> 70.61747842 | Y72: =IF(MIN(Calculator!$J$11:$J$13)=Calculator!$J$13,E73-S72-T72,0)*'Formula (HIDE)'!$B$83 -> 0 | Z72: =MAXA(0,(Y72)/(Calculator!$E$13/100)) -> 0 | AA72: =Z72/2204.62 -> 0 | AB72: =SUM(AA72*Calculator!$C$13) -> 0 | AC72: =IF(MIN(Calculator!$J$11:$J$13)=Calculator!$J$11,E73-S72-T72,0)*'Formula (HIDE)'!$B$83 -> 0 | AD72: =SUM(AC72)/(Calculator!$E$11/100) -> 0 | AE72: =AD72/2204.62 -> 0 | AF72: =SUM(AE72*Calculator!$C$11) -> 0 | AG72: =SUM(AN72*(Calculator!$F$16/100)) -> 0 | AH72: =IF(F73=0,0,SUM(F73-AG72)/(Calculator!$F$14/100))*'Formula (HIDE)'!$E$83 -> 57.69230769 | AI72: =(AH72)/2204.62 -> 0.0261688217 | AJ72: =SUM(AI72*Calculator!$C$14) -> 28.13148333 | AK72: =SUM(G73/(Calculator!$G$15/100))*'Formula (HIDE)'!$E$86 -> 25 | AL72: =(AK72)/2204.62 -> 0.01133982274 | AM72: =SUM(AL72*Calculator!$C$15) -> 7.08738921 | AN72: =SUM(H73/(Calculator!$H$16/100))*'Formula (HIDE)'!$H$83 -> 62.5 | AO72: =(AN72)/2204.62 -> 0.02834955684 | AP72: =SUM(AO72*Calculator!$C$16) -> 17.0097341
A73: 3x lb N | C73: Nutrient Recommendation (lb/acre) | E73: ='Chart Data (HIDE)'!AL37 -> 137 | F73: ='Chart Data (HIDE)'!AM37 -> 30 | G73: ='Chart Data (HIDE)'!AN37 -> 15 | H73: ='Chart Data (HIDE)'!AO37 -> 15 | I73: =E73/J73 -> 2.154494559 | J73: ='Chart Data (HIDE)'!AK28 -> 63.588 | K73: =(R74-(Calculator!$E$138*(R74-R72))) -> 131.022581 | L73: =HLOOKUP(Calculator!$E$20,'Production Costs'!$A$21:$H$43,23,FALSE)+((K73/(12/'Production Costs'!$H$20))*('Production Costs'!$C$19/100))+K73 -> 615.8766053 | M73: =HLOOKUP(Calculator!$E$20,'Production Costs'!$A$11:$H$12,2,FALSE)*J73 -> 588.189 | N73: =M73-L73 -> -27.68760526
L74: =HLOOKUP(Calculator!$E$20,'Production Costs'!$A$21:$H$43,23,FALSE)+((R74/(12/'Production Costs'!$H$20))*('Production Costs'!$C$19/100))+R74 -> 690.3911255 | N74: =M73-L74 -> -102.2021255 | Q74: worst | R74: =X74+AB74+AF74+AJ74+AM74+AP74 -> 200.8254103 | S74: =SUM(AH74*(Calculator!$E$14/100)) -> 12.69230769 | T74: =SUM(AN74*(Calculator!$E$16/100)) -> 12.8125 | U74: =IF(MAX(Calculator!$J$11:$J$13)=Calculator!$J$12,E73-S74-T74,0)*'Formula (HIDE)'!$B$85 -> 0 | V74: =MAXA(0,(U74)/(Calculator!$E$12/100)) -> 0 | W74: =V74/2204.62 -> 0 | X74: =SUM(W74*Calculator!$C$12) -> 0 | Y74: =IF(MAX(Calculator!$J$11:$J$13)=Calculator!$J$13,E73-S74-T74,0)*'Formula (HIDE)'!$B$84 -> 0 | Z74: =MAXA(0,(Y74)/(Calculator!$E$13/100)) -> 0 | AA74: =Z74/2204.62 -> 0 | AB74: =SUM(AA74*Calculator!$C$13) -> 0 | AC74: =IF(MAX(Calculator!$J$11:$J$13)=Calculator!$J$11,E73-S74-T74,0)*'Formula (HIDE)'!$B$84 -> 139.3689904 | AD74: =SUM(AC74)/(Calculator!$E$11/100) -> 302.9760661 | AE74: =AD74/2204.62 -> 0.1374277953 | AF74: =SUM(AE74*Calculator!$C$11) -> 113.3779311 | AG74: =SUM(AN74*(Calculator!$F$16/100)) -> 0 | AH74: =IF(F73=0,0,SUM(F73-AG74)/(Calculator!$F$14/100))*'Formula (HIDE)'!$E$82 -> 115.3846154 | AI74: =(AH74)/2204.62 -> 0.0523376434 | AJ74: =SUM(AI74*Calculator!$C$14) -> 56.26296665 | AK74: =SUM(G73/(Calculator!$G$15/100))*'Formula (HIDE)'!$E$85 -> 50 | AL74: =(AK74)/2204.62 -> 0.02267964547 | AM74: =SUM(AL74*Calculator!$C$15) -> 14.17477842 | AN74: =SUM(H73/(Calculator!$H$16/100))*'Formula (HIDE)'!$H$82 -> 62.5 | AO74: =(AN74)/2204.62 -> 0.02834955684 | AP74: =SUM(AO74*Calculator!$C$16) -> 17.0097341
L75: =HLOOKUP(Calculator!$E$20,'Production Costs'!$A$21:$H$43,23,FALSE)+((R75/(12/'Production Costs'!$H$20))*('Production Costs'!$C$19/100))+R75 -> 613.5452848 | N75: =M76-L75 -> -28.99153483 | Q75: best | R75: =X75+AB75+AF75+AJ75+AM75+AP75 -> 128.8386743 | S75: =SUM(AH75*(Calculator!$E$14/100)) -> 6.346153846 | T75: =SUM(AN75*(Calculator!$E$16/100)) -> 12.8125 | U75: =IF(MIN(Calculator!$J$11:$J$13)=Calculator!$J$12,E76-S75-T75,0)*'Formula (HIDE)'!$B$83 -> 106.5344551 | V75: =MAXA(0,(U75)/(Calculator!$E$12/100)) -> 129.9200672 | W75: =V75/2204.62 -> 0.05893082129 | X75: =SUM(W75*Calculator!$C$12) -> 76.61006768 | Y75: =IF(MIN(Calculator!$J$11:$J$13)=Calculator!$J$13,E76-S75-T75,0)*'Formula (HIDE)'!$B$83 -> 0 | Z75: =MAXA(0,(Y75)/(Calculator!$E$13/100)) -> 0 | AA75: =Z75/2204.62 -> 0 | AB75: =SUM(AA75*Calculator!$C$13) -> 0 | AC75: =IF(MIN(Calculator!$J$11:$J$13)=Calculator!$J$11,E76-S75-T75,0)*'Formula (HIDE)'!$B$83 -> 0 | AD75: =SUM(AC75)/(Calculator!$E$11/100) -> 0 | AE75: =AD75/2204.62 -> 0 | AF75: =SUM(AE75*Calculator!$C$11) -> 0 | AG75: =SUM(AN75*(Calculator!$F$16/100)) -> 0 | AH75: =IF(F76=0,0,SUM(F76-AG75)/(Calculator!$F$14/100))*'Formula (HIDE)'!$E$83 -> 57.69230769 | AI75: =(AH75)/2204.62 -> 0.0261688217 | AJ75: =SUM(AI75*Calculator!$C$14) -> 28.13148333 | AK75: =SUM(G76/(Calculator!$G$15/100))*'Formula (HIDE)'!$E$86 -> 25 | AL75: =(AK75)/2204.62 -> 0.01133982274 | AM75: =SUM(AL75*Calculator!$C$15) -> 7.08738921 | AN75: =SUM(H76/(Calculator!$H$16/100))*'Formula (HIDE)'!$H$83 -> 62.5 | AO75: =(AN75)/2204.62 -> 0.02834955684 | AP75: =SUM(AO75*Calculator!$C$16) -> 17.0097341
A76: 4x lb N | C76: Nutrient Recommendation (lb/acre) | E76: ='Chart Data (HIDE)'!AS37 -> 147 | F76: ='Chart Data (HIDE)'!AT37 -> 30 | G76: ='Chart Data (HIDE)'!AU37 -> 15 | H76: ='Chart Data (HIDE)'!AV37 -> 15 | I76: =E76/J76 -> 2.326133397 | J76: ='Chart Data (HIDE)'!AR28 -> 63.195 | K76: =(R77-(Calculator!$E$138*(R77-R75))) -> 137.4530721 | L76: =HLOOKUP(Calculator!$E$20,'Production Costs'!$A$21:$H$43,23,FALSE)+((K76/(12/'Production Costs'!$H$20))*('Production Costs'!$C$19/100))+K76 -> 622.7411544 | M76: =HLOOKUP(Calculator!$E$20,'Production Costs'!$A$11:$H$12,2,FALSE)*J76 -> 584.55375 | N76: =M76-L76 -> -38.18740442
L77: =HLOOKUP(Calculator!$E$20,'Production Costs'!$A$21:$H$43,23,FALSE)+((R77/(12/'Production Costs'!$H$20))*('Production Costs'!$C$19/100))+R77 -> 701.2463865 | N77: =M76-L77 -> -116.6926365 | Q77: worst | R77: =X77+AB77+AF77+AJ77+AM77+AP77 -> 210.9942731 | S77: =SUM(AH77*(Calculator!$E$14/100)) -> 12.69230769 | T77: =SUM(AN77*(Calculator!$E$16/100)) -> 12.8125 | U77: =IF(MAX(Calculator!$J$11:$J$13)=Calculator!$J$12,E76-S77-T77,0)*'Formula (HIDE)'!$B$85 -> 0 | V77: =MAXA(0,(U77)/(Calculator!$E$12/100)) -> 0 | W77: =V77/2204.62 -> 0 | X77: =SUM(W77*Calculator!$C$12) -> 0 | Y77: =IF(MAX(Calculator!$J$11:$J$13)=Calculator!$J$13,E76-S77-T77,0)*'Formula (HIDE)'!$B$84 -> 0 | Z77: =MAXA(0,(Y77)/(Calculator!$E$13/100)) -> 0 | AA77: =Z77/2204.62 -> 0 | AB77: =SUM(AA77*Calculator!$C$13) -> 0 | AC77: =IF(MAX(Calculator!$J$11:$J$13)=Calculator!$J$11,E76-S77-T77,0)*'Formula (HIDE)'!$B$84 -> 151.8689904 | AD77: =SUM(AC77)/(Calculator!$E$11/100) -> 330.1499791 | AE77: =AD77/2204.62 -> 0.1497536896 | AF77: =SUM(AE77*Calculator!$C$11) -> 123.5467939 | AG77: =SUM(AN77*(Calculator!$F$16/100)) -> 0 | AH77: =IF(F76=0,0,SUM(F76-AG77)/(Calculator!$F$14/100))*'Formula (HIDE)'!$E$82 -> 115.3846154 | AI77: =(AH77)/2204.62 -> 0.0523376434 | AJ77: =SUM(AI77*Calculator!$C$14) -> 56.26296665 | AK77: =SUM(G76/(Calculator!$G$15/100))*'Formula (HIDE)'!$E$85 -> 50 | AL77: =(AK77)/2204.62 -> 0.02267964547 | AM77: =SUM(AL77*Calculator!$C$15) -> 14.17477842 | AN77: =SUM(H76/(Calculator!$H$16/100))*'Formula (HIDE)'!$H$82 -> 62.5 | AO77: =(AN77)/2204.62 -> 0.02834955684 | AP77: =SUM(AO77*Calculator!$C$16) -> 17.0097341
L80: Lb. Nitrogen | M80: Yield | N80: N Rate for Maximum Yield | O80: Fertilizer Cost/bu | P80: Your Field | Q80: ="N Rate for Maximum Profit @ $"&TEXT(HLOOKUP(Calculator!$E$20,'Production Costs'!$A$11:$H$12,2,FALSE),"#.00")&" per bu" -> N Rate for Maximum Profit @ $9.25 per bu | R80: 4R Most Efficient Profitability | S80: ="N Rate for Maximum Profit @ $"&TEXT(HLOOKUP(Calculator!$E$20,'Production Costs'!$A$22:$H$48,26,FALSE),"#.00")&" per bu" ->  | T80: Least Efficient Profitability | U80: ="N Rate for Maximum Profit @ $"&TEXT(HLOOKUP(Calculator!$E$20,'Production Costs'!$A$22:$H$48,26,FALSE),"#.00")&" per bu" -> 
L81: =E49 -> 57 | M81: =J49 -> 56.122 | N81: =IF(MAX($M$81:$M$90)=M81,MAX($M$81:$M$90),NA()) ->  | O81: =K49/J49 -> 1.417958251 | P81: =N49 -> -41.83171204 | Q81: =IF(MAX($P$81:$P$90)=P81,MAX($P$81:$P$90),NA()) ->  | R81: =N48 -> -36.84298361 | S81: =IF(MAX($R$81:$R$90)=R81,MAX($R$81:$R$90),NA()) ->  | T81: =N50 -> -84.42053735 | U81: =IF(MAX($T$81:$T$90)=T81,MAX($T$81:$T$90),NA()) -> 
L82: =E52 -> 67 | M82: =J52 -> 58.087 | O82: =K52/J52 -> 1.480695233 | P82: =N52 -> -30.52001119 | R82: =N51 -> -25.06382263 | S82: =IF(MAX($R$81:$R$90)=R82,MAX($R$81:$R$90),NA()) ->  | T82: =N53 -> -77.09954836 | U82: =IF(MAX($T$81:$T$90)=T82,MAX($T$81:$T$90),NA()) -> 
L83: =E55 -> 77 | M83: =J55 -> 59.758 | O83: =K55/J55 -> 1.546899745 | P83: =N55 -> -21.92781034 | R83: =N54 -> -16.00416166 | T83: =N56 -> -72.49805938
L84: =E58 -> 87 | M84: =J58 -> 61.133 | O84: =K58/M84 -> 1.617295503 | P84: =N58 -> -16.0736095 | R84: =N57 -> -9.68250068 | T84: =N59 -> -70.6345704 | U84: -70.6345704
L85: =E61 -> 97 | M85: =J61 -> 62.214 | O85: =K61/J61 -> 1.692555004 | P85: =N61 -> -12.93890865 | R85: =N60 -> -6.080339705 | T85: =N62 -> -71.49058142
L86: =E64 -> 107 | M86: =J64 -> 63 | O86: =K64/J64 -> 1.773509651 | P86: =N64 -> -12.5329578 | Q86: -12.5329578 | R86: =N63 -> -5.206928731 | S86: -5.206928731 | T86: =N65 -> -75.07534243
B87: =Calculator!E20&" Profitability - "&Calculator!E21&" Soil Zone (based on "&Calculator!E31&" lb/acre soil test)" -> Wheat Profitability - Moist Soil Zone (based on 35 lb/acre soil test) | L87: =E67 -> 117 | M87: =J67 -> 63.491 | O87: =K67/J67 -> 1.861076358 | P87: =N67 -> -14.85575696 | R87: =N66 -> -7.062267756 | T87: =N68 -> -81.38885345 | V87: =MAX($M$81:$M$90) -> 63.687
B88: =Calculator!E20&" Yield Response (Nitrogen Yield Curve) - "&Calculator!E21&" Soil (based on "&Calculator!E31&" lb/acre soil test)" -> Wheat Yield Response (Nitrogen Yield Curve) - Moist Soil (based on 35 lb/acre soil test) | L88: =E70 -> 127 | M88: =J70 -> 63.687 | N88: 63.687 | O88: =K70/J70 -> 1.95631903 | P88: =N70 -> -19.90730611 | R88: =N69 -> -11.64635678 | T88: =N71 -> -90.43111447
L89: =E73 -> 137 | M89: =J73 -> 63.588 | O89: =K73/J73 -> 2.060492248 | P89: =N73 -> -27.68760526 | R89: =N72 -> -18.95919581 | T89: =N74 -> -102.2021255 | V89: =VLOOKUP(V87,L81:N90,1,FALSE) -> 
L90: =E76 -> 147 | M90: =J76 -> 63.195 | O90: =K76/J76 -> 2.175062458 | P90: =N76 -> -38.18740442 | R90: =N75 -> -28.99153483 | T90: =N77 -> -116.6926365
C111: app1 | D111: app2 | E111: app3 | G111: Most Efficient | H111: Your Field | I111: Least Efficient
C112: =Calculator!X65+Calculator!AB65+Calculator!AF65 -> 0 | D112: =Calculator!X87+Calculator!AB87+Calculator!AF87 -> 59.38615863 | E112: =Calculator!X109+Calculator!AB109+Calculator!AF109 -> 0 | F112: Nitrogen (N) | G112: =Calculator!X34+Calculator!AB34+Calculator!AF34 -> 52.49508184 | H112: =SUM(C112:E112) -> 59.38615863 | I112: =Calculator!X35+Calculator!AB35+Calculator!AF35 -> 82.97792028 | K112: =J64&" Bu/Ac "&Calculator!E20&" Fertilizer Cost - "&Calculator!E21&" Soil Zone (based on "&Calculator!E31&" lb/acre soil test)" -> 63 Bu/Ac Wheat Fertilizer Cost - Moist Soil Zone (based on 35 lb/acre soil test)
C113: =Calculator!AJ65 -> 0 | D113: =Calculator!AJ87 -> 28.13148333 | E113: =Calculator!AJ109 -> 0 | F113: Phosphate (P) | G113: =Calculator!AJ34 -> 28.13148333 | H113: =SUM(C113:E113) -> 28.13148333 | I113: =Calculator!AJ35 -> 56.26296665
C114: =Calculator!AM65 -> 0 | D114: =Calculator!AM87 -> 7.08738921 | E114: =Calculator!AM109 -> 0 | F114: Potassium (K) | G114: =Calculator!AM34 -> 7.08738921 | H114: =SUM(C114:E114) -> 7.08738921 | I114: =Calculator!AM35 -> 14.17477842
C115: =Calculator!AP65 -> 0 | D115: =Calculator!AP87 -> 17.0097341 | E115: =Calculator!AP109 -> 0 | F115: Sulphur (S) | G115: =Calculator!AP34 -> 17.0097341 | H115: =SUM(C115:E115) -> 17.0097341 | I115: =Calculator!AP35 -> 17.0097341
F116: Total | G116: =SUM(G112:G115) -> 104.7236885 | H116: =SUM(H112:H115) -> 111.6147653 | I116: =SUM(I112:I115) -> 170.4253995
A140: Short N | H140: -2x ln N
A141: =ROUND(Calculator!$E$116-Calculator!$E$35,0) -> -107 | B141: lbs of N | H141: =ROUND($A$6-ABS(Calculator!$E$197*2)-Calculator!$E$31,0) -> 87 | I141: lbs of N
A143: *hide | C143: Recommendation | H143: *hide | J143: Recommendation
B144: Yield | C144: Olson P | D144: Bray P | E144: K | F144: S | I144: Yield | J144: Olson P | K144: Bray P | L144: K | M144: S
A145: Wheat | B145: =ROUND(VLOOKUP($A$23,#REF!,VLOOKUP(Calculator!$E$20,'Formula (HIDE)'!$B$112:$F$118,VLOOKUP(Calculator!$E$21,'Formula (HIDE)'!$D$96:$E$99,2,FALSE),FALSE)),0) ->  | C145: =IF(Calculator!$F$31>=76,0,VLOOKUP($B$27,'Wheat P - Olson test MB AG'!$A$3:$BZ$143,Calculator!$F$31+2,FALSE)) -> 30 | E145: =IF(Calculator!$G$31>=751,0,VLOOKUP($B$27,'Wheat K - w seed MB AG'!$A$3:$ABY$143,Calculator!$G$31+2,FALSE)) -> 15 | F145: =IF(Calculator!$H$31>=31,0,VLOOKUP($B$27,'Cereals S - MB AG'!$A$3:$AG$143,Calculator!$H$31+2,FALSE)) -> 15 | H145: Wheat | I145: =ROUND(VLOOKUP($H$23,#REF!,VLOOKUP(Calculator!$E$20,'Formula (HIDE)'!$B$112:$F$118,VLOOKUP(Calculator!$E$21,'Formula (HIDE)'!$D$96:$E$99,2,FALSE),FALSE)),0) ->  | J145: =IF(Calculator!$F$31>=76,0,VLOOKUP(I145,'Wheat P - Olson test MB AG'!$A$3:$BZ$143,Calculator!$F$31+2,FALSE)) ->  | L145: =IF(Calculator!$G$31>=751,0,VLOOKUP(I145,'Wheat K - w seed MB AG'!$A$3:$ABY$143,Calculator!$G$31+2,FALSE)) ->  | M145: =IF(Calculator!$H$31>=31,0,VLOOKUP(I145,'Cereals S - MB AG'!$A$3:$AG$143,Calculator!$H$31+2,FALSE)) -> 
B146: =ROUND(VLOOKUP($A$23,#REF!,VLOOKUP(Calculator!$E$20,'Formula (HIDE)'!$B$112:$F$118,VLOOKUP(Calculator!$E$21,'Formula (HIDE)'!$D$96:$E$99,2,FALSE),FALSE)),3) ->  | I146: =ROUND(VLOOKUP($H$23,#REF!,VLOOKUP(Calculator!$E$20,'Formula (HIDE)'!$B$112:$F$118,VLOOKUP(Calculator!$E$21,'Formula (HIDE)'!$D$96:$E$99,2,FALSE),FALSE)),3) -> 
A147: =ROUND(VLOOKUP(#REF!,'Formula (HIDE)'!H222:T227,VLOOKUP(Calculator!I163,'Formula (HIDE)'!K213:N216,3,FALSE),FALSE),0) ->  | B147: =ROUND(VLOOKUP(#REF!,'Formula (HIDE)'!H222:T227,VLOOKUP(Calculator!I163,'Formula (HIDE)'!K213:N216,4,FALSE),FALSE),0) ->  | C147: **Hide** | H147: =ROUND(VLOOKUP(Calculator!P162,'Formula (HIDE)'!O222:AA227,VLOOKUP(Calculator!P163,'Formula (HIDE)'!R213:U216,3,FALSE),FALSE),0) ->  | I147: =ROUND(VLOOKUP(Calculator!P162,'Formula (HIDE)'!O222:AA227,VLOOKUP(Calculator!P163,'Formula (HIDE)'!R213:U216,4,FALSE),FALSE),0) ->  | J147: **Hide**
A148: Barley | B148: =ROUND(VLOOKUP($A$23,#REF!,VLOOKUP(Calculator!$E$20,'Formula (HIDE)'!$B$112:$F$118,VLOOKUP(Calculator!$E$21,'Formula (HIDE)'!$D$96:$E$99,2,FALSE),FALSE)),0) ->  | C148: =IF(Calculator!$F$31>=76,0,VLOOKUP(B148,'Barley P - Olson MB AG'!$A$3:$BZ$143,Calculator!$F$31+2,FALSE)) ->  | E148: =IF(Calculator!$G$31>=751,0,VLOOKUP(B148,'Barley K - w seed MB AG'!$A$3:$ABY$143,Calculator!$G$31+2,FALSE)) ->  | F148: =IF(Calculator!$H$31>=31,0,VLOOKUP(B148,'Cereals S - MB AG'!$A$3:$AG$143,Calculator!$H$31+2,FALSE)) ->  | H148: Barley | I148: =ROUND(VLOOKUP($H$23,#REF!,VLOOKUP(Calculator!$E$20,'Formula (HIDE)'!$B$112:$F$118,VLOOKUP(Calculator!$E$21,'Formula (HIDE)'!$D$96:$E$99,2,FALSE),FALSE)),0) ->  | J148: =IF(Calculator!$F$31>=76,0,VLOOKUP(I148,'Barley P - Olson MB AG'!$A$3:$BZ$143,Calculator!$F$31+2,FALSE)) ->  | L148: =IF(Calculator!$G$31>=751,0,VLOOKUP(I148,'Barley K - w seed MB AG'!$A$3:$ABY$143,Calculator!$G$31+2,FALSE)) ->  | M148: =IF(Calculator!$H$31>=31,0,VLOOKUP(I148,'Cereals S - MB AG'!$A$3:$AG$143,Calculator!$H$31+2,FALSE)) -> 
A149: Canola | B149: =ROUND(VLOOKUP($A$23,#REF!,VLOOKUP(Calculator!$E$20,'Formula (HIDE)'!$B$112:$F$118,VLOOKUP(Calculator!$E$21,'Formula (HIDE)'!$D$96:$E$99,2,FALSE),FALSE)),0) ->  | C149: =IF(Calculator!$F$31>=76,0,VLOOKUP(B149,'Canola P - Olson test MB AG'!$A$3:$BZ$143,Calculator!$F$31+2,FALSE)) ->  | E149: =IF(Calculator!$G$31>=751,0,VLOOKUP(B149,'Canola K - band MB AG'!$A$3:$ABY$143,Calculator!$G$31+2,FALSE)) ->  | F149: =IF(Calculator!$H$31>=31,10,VLOOKUP(B149,'Canola Corn S - MB AG'!$A$3:$AG$143,Calculator!$H$31+2,FALSE)) ->  | H149: Canola | I149: =ROUND(VLOOKUP($H$23,#REF!,VLOOKUP(Calculator!$E$20,'Formula (HIDE)'!$B$112:$F$118,VLOOKUP(Calculator!$E$21,'Formula (HIDE)'!$D$96:$E$99,2,FALSE),FALSE)),0) ->  | J149: =IF(Calculator!$F$31>=76,0,VLOOKUP(I149,'Canola P - Olson test MB AG'!$A$3:$BZ$143,Calculator!$F$31+2,FALSE)) ->  | L149: =IF(Calculator!$G$31>=751,0,VLOOKUP(I149,'Canola K - band MB AG'!$A$3:$ABY$143,Calculator!$G$31+2,FALSE)) ->  | M149: =IF(Calculator!$H$31>=31,10,VLOOKUP(I149,'Canola Corn S - MB AG'!$A$3:$AG$143,Calculator!$H$31+2,FALSE)) -> 
A150: Oats | B150: =ROUND(VLOOKUP($A$23,#REF!,VLOOKUP(Calculator!$E$20,'Formula (HIDE)'!$B$112:$F$118,VLOOKUP(Calculator!$E$21,'Formula (HIDE)'!$D$96:$E$99,2,FALSE),FALSE)),0) ->  | C150: =IF(Calculator!$F$31>=76,0,VLOOKUP(B150,'Oats P - Olson Test MB AG'!$A$3:$BZ$143,Calculator!$F$31+2,FALSE)) ->  | E150: =IF(Calculator!$G$31>=751,0,VLOOKUP(B150,'Oats K - w seed MB AG'!$A$3:$ABY$143,Calculator!$G$31+2,FALSE)) ->  | F150: =IF(Calculator!$H$31>=31,0,VLOOKUP(B150,'Cereals S - MB AG'!$A$3:$AG$143,Calculator!$H$31+2,FALSE)) ->  | H150: Oats | I150: =ROUND(VLOOKUP($H$23,#REF!,VLOOKUP(Calculator!$E$20,'Formula (HIDE)'!$B$112:$F$118,VLOOKUP(Calculator!$E$21,'Formula (HIDE)'!$D$96:$E$99,2,FALSE),FALSE)),0) ->  | J150: =IF(Calculator!$F$31>=76,0,VLOOKUP(I150,'Oats P - Olson Test MB AG'!$A$3:$BZ$143,Calculator!$F$31+2,FALSE)) ->  | L150: =IF(Calculator!$G$31>=751,0,VLOOKUP(I150,'Oats K - w seed MB AG'!$A$3:$ABY$143,Calculator!$G$31+2,FALSE)) ->  | M150: =IF(Calculator!$H$31>=31,0,VLOOKUP(I150,'Cereals S - MB AG'!$A$3:$AG$143,Calculator!$H$31+2,FALSE)) -> 
A151: Corn | B151: =ROUND(VLOOKUP($A$23,#REF!,VLOOKUP(Calculator!$E$20,'Formula (HIDE)'!$B$112:$F$118,VLOOKUP(Calculator!$E$21,'Formula (HIDE)'!$D$96:$E$99,2,FALSE),FALSE)),0) ->  | C151: =IF(Calculator!$F$31>=76,0,VLOOKUP(B151,'Corn P - Olson Test MB AG'!$A$3:$BZ$143,Calculator!$F$31+2,FALSE)) ->  | E151: =IF(Calculator!$G$31>=751,0,VLOOKUP(B151,'Corn K - band MB AG'!$A$3:$ABY$143,Calculator!$G$31+2,FALSE)) ->  | F151: =IF(Calculator!$H$31>=31,0,VLOOKUP(B151,'Canola Corn S - MB AG'!$A$3:$AG$143,Calculator!$H$31+2,FALSE)) ->  | H151: Corn | I151: =ROUND(VLOOKUP($H$23,#REF!,VLOOKUP(Calculator!$E$20,'Formula (HIDE)'!$B$112:$F$118,VLOOKUP(Calculator!$E$21,'Formula (HIDE)'!$D$96:$E$99,2,FALSE),FALSE)),0) ->  | J151: =IF(Calculator!$F$31>=76,0,VLOOKUP(I151,'Corn P - Olson Test MB AG'!$A$3:$BZ$143,Calculator!$F$31+2,FALSE)) ->  | L151: =IF(Calculator!$G$31>=751,0,VLOOKUP(I151,'Corn K - band MB AG'!$A$3:$ABY$143,Calculator!$G$31+2,FALSE)) ->  | M151: =IF(Calculator!$H$31>=31,0,VLOOKUP(I151,'Canola Corn S - MB AG'!$A$3:$AG$143,Calculator!$H$31+2,FALSE)) -> 
A152: Soybeans | B152: =ROUND(VLOOKUP($A$23,#REF!,VLOOKUP(Calculator!$E$20,'Formula (HIDE)'!$B$112:$F$118,VLOOKUP(Calculator!$E$21,'Formula (HIDE)'!$D$96:$E$99,2,FALSE),FALSE)),0) ->  | C152: =IF(Calculator!$F$31>=76,0,VLOOKUP(B152,'Soybean P - Olson test MB AG'!$A$3:$BZ$143,Calculator!$F$31+2,FALSE)) ->  | E152: =IF(Calculator!$G$31>=751,0,VLOOKUP(B152,'Soybeans K - band MB AG'!$A$3:$ABY$143,Calculator!$G$31+2,FALSE)) ->  | F152: =IF(Calculator!$H$31>=31,0,VLOOKUP(B152,'Canola Corn S - MB AG'!$A$3:$AG$143,Calculator!$H$31+2,FALSE)) ->  | H152: Soybeans | I152: =ROUND(VLOOKUP($H$23,#REF!,VLOOKUP(Calculator!$E$20,'Formula (HIDE)'!$B$112:$F$118,VLOOKUP(Calculator!$E$21,'Formula (HIDE)'!$D$96:$E$99,2,FALSE),FALSE)),0) ->  | J152: =IF(Calculator!$F$31>=76,0,VLOOKUP(I152,'Soybean P - Olson test MB AG'!$A$3:$BZ$143,Calculator!$F$31+2,FALSE)) ->  | L152: =IF(Calculator!$G$31>=751,0,VLOOKUP(I152,'Soybeans K - band MB AG'!$A$3:$ABY$143,Calculator!$G$31+2,FALSE)) ->  | M152: =IF(Calculator!$H$31>=31,0,VLOOKUP(I152,'Canola Corn S - MB AG'!$A$3:$AG$143,Calculator!$H$31+2,FALSE)) -> 
C154: N | D154: P | E154: K | F154: S | J154: N | K154: P | L154: K | M154: S
C155: =$A$23-Calculator!$E$34-Calculator!$E$31+Calculator!$E$31 -> 97 | D155: =VLOOKUP(Calculator!$E$20,A145:D152,3,FALSE)-Calculator!$F$34 -> 30 | E155: =VLOOKUP(Calculator!$E$20,A145:E152,5,FALSE)-Calculator!$G$34 -> 15 | F155: =VLOOKUP(Calculator!$E$20,A145:F152,6,FALSE)-Calculator!$H$34 -> 15 | J155: =$H$23-Calculator!$E$34-Calculator!$E$31+Calculator!$E$31 -> 87 | K155: =VLOOKUP(Calculator!$E$20,H145:K152,3,FALSE)-Calculator!$F$34 ->  | L155: =VLOOKUP(Calculator!$E$20,H145:L152,5,FALSE)-Calculator!$G$34 ->  | M155: =VLOOKUP(Calculator!$E$20,H145:M152,6,FALSE)-Calculator!$H$34 -> 
Q157: best | R157: =X157+AB157+AF157+AJ157+AM157+AP157 -> 0 | S157: =SUM(AH157*(Calculator!$E$14/100)) -> 0 | T157: =SUM(AN157*(Calculator!$E$16/100)) -> 0 | U157: =IF(MIN(Calculator!$J$11:$J$13)=Calculator!$J$12,E158-S157-T157,0)*'Formula (HIDE)'!$B$83 -> 0 | V157: =MAXA(0,(U157)/(Calculator!$E$12/100)) -> 0 | W157: =V157/2204.62 -> 0 | X157: =SUM(W157*Calculator!$C$12) -> 0 | Y157: =IF(MIN(Calculator!$J$11:$J$13)=Calculator!$J$13,E158-S157-T157,0)*'Formula (HIDE)'!$B$83 -> 0 | Z157: =MAXA(0,(Y157)/(Calculator!$E$13/100)) -> 0 | AA157: =Z157/2204.62 -> 0 | AB157: =SUM(AA157*Calculator!$C$13) -> 0 | AC157: =IF(MIN(Calculator!$J$11:$J$13)=Calculator!$J$11,E158-S157-T157,0)*'Formula (HIDE)'!$B$83 -> 0 | AD157: =SUM(AC157)/(Calculator!$E$11/100) -> 0 | AE157: =AD157/2204.62 -> 0 | AF157: =SUM(AE157*Calculator!$C$11) -> 0 | AG157: =SUM(AN157*(Calculator!$F$16/100)) -> 0 | AH157: =IF(F158=0,0,SUM(F158-AG157)/(Calculator!$F$14/100))*'Formula (HIDE)'!$E$83 -> 0 | AI157: =(AH157)/2204.62 -> 0 | AJ157: =SUM(AI157*Calculator!$C$14) -> 0 | AK157: =SUM(G158/(Calculator!$G$15/100))*'Formula (HIDE)'!$E$86 -> 0 | AL157: =(AK157)/2204.62 -> 0 | AM157: =SUM(AL157*Calculator!$C$15) -> 0 | AN157: =SUM(H158/(Calculator!$H$16/100))*'Formula (HIDE)'!$H$83 -> 0 | AO157: =(AN157)/2204.62 -> 0 | AP157: =SUM(AO157*Calculator!$C$16) -> 0
A158: 4x lb N | E158: ='Chart Data (HIDE)'!AS40 -> 0 | F158: ='Chart Data (HIDE)'!AT40 -> 0 | G158: ='Chart Data (HIDE)'!AU40 -> 0 | H158: ='Chart Data (HIDE)'!AV40 -> 0 | I158: =E158/J158 -> 0 | J158: ='Chart Data (HIDE)'!AR31 -> 63 | K158: =(R158-(Calculator!$E$138*(R158-R157))) -> 0 | L158: =HLOOKUP(Calculator!$E$20,'Production Costs'!$A$22:$H$48,23,FALSE)+((K158/2)*('Production Costs'!$C$19/100))+K158 ->  | M158: =HLOOKUP(Calculator!$E$20,'Production Costs'!$A$22:$H$48,26,FALSE)*J158 ->  | N158: =M158-L158 ->  | Q158: worst | R158: =X158+AB158+AF158+AJ158+AM158+AP158 -> 0 | S158: =SUM(AH158*(Calculator!$E$14/100)) -> 0 | T158: =SUM(AN158*(Calculator!$E$16/100)) -> 0 | U158: =IF(MAX(Calculator!$J$11:$J$13)=Calculator!$J$12,E158-S158-T158,0)*'Formula (HIDE)'!$B$85 -> 0 | V158: =MAXA(0,(U158)/(Calculator!$E$12/100)) -> 0 | W158: =V158/2204.62 -> 0 | X158: =SUM(W158*Calculator!$C$12) -> 0 | Y158: =IF(MAX(Calculator!$J$11:$J$13)=Calculator!$J$13,E158-S158-T158,0)*'Formula (HIDE)'!$B$84 -> 0 | Z158: =MAXA(0,(Y158)/(Calculator!$E$13/100)) -> 0 | AA158: =Z158/2204.62 -> 0 | AB158: =SUM(AA158*Calculator!$C$13) -> 0 | AC158: =IF(MAX(Calculator!$J$11:$J$13)=Calculator!$J$11,E158-S158-T158,0)*'Formula (HIDE)'!$B$84 -> 0 | AD158: =SUM(AC158)/(Calculator!$E$11/100) -> 0 | AE158: =AD158/2204.62 -> 0 | AF158: =SUM(AE158*Calculator!$C$11) -> 0 | AG158: =SUM(AN158*(Calculator!$F$16/100)) -> 0 | AH158: =IF(F158=0,0,SUM(F158-AG158)/(Calculator!$F$14/100))*'Formula (HIDE)'!$E$82 -> 0 | AI158: =(AH158)/2204.62 -> 0 | AJ158: =SUM(AI158*Calculator!$C$14) -> 0 | AK158: =SUM(G158/(Calculator!$G$15/100))*'Formula (HIDE)'!$E$85 -> 0 | AL158: =(AK158)/2204.62 -> 0 | AM158: =SUM(AL158*Calculator!$C$15) -> 0 | AN158: =SUM(H158/(Calculator!$H$16/100))*'Formula (HIDE)'!$H$82 -> 0 | AO158: =(AN158)/2204.62 -> 0 | AP158: =SUM(AO158*Calculator!$C$16) -> 0
D162: fall/spring avg | F162: Long Term Fertilizer Affordability - Bushels of Grain Required to Purchase 1 Tonne of Phosphate
A163: Year | B163: canola | C163: Wheat | D163: Phos | F163: Canola | G163: Wheat | I163: Avg. Canola | J163: Avg. Wheat
A164: 17/18 | B164: 10.13 | C164: 6.71 | D164: 656.5 | F164: =Analysis!J82 -> 65.34653465 | G164: =Analysis!J80 -> 98.50746269 | I164: =Analysis!$K$82 -> 60 | J164: =Analysis!$K$80 -> 100
A165: 18/19 | B165: 9.87 | C165: 6.33 | D165: 757 | F165: =Analysis!I82 -> 76.76767677 | G165: =Analysis!I80 -> 120.6349206 | I165: =Analysis!$K$82 -> 60 | J165: =Analysis!$K$80 -> 100
A166: 19/20 | B166: 15.06 | C166: 7.44 | D166: 621.5 | F166: =Analysis!H82 -> 41.05960265 | G166: =Analysis!H80 -> 83.78378378 | I166: =Analysis!$K$82 -> 60 | J166: =Analysis!$K$80 -> 100
A167: 20/21 | B167: 22.46 | C167: 12.41 | D167: 797 | F167: =Analysis!G82 -> 35.55555556 | G167: =Analysis!G80 -> 64.51612903 | I167: =Analysis!$K$82 -> 60 | J167: =Analysis!$K$80 -> 100
A168: 21/22 | B168: 17.82 | C168: 11.19 | D168: 1262.5 | F168: =Analysis!F82 -> 70.78651685 | G168: =Analysis!F80 -> 112.5 | I168: =Analysis!$K$82 -> 60 | J168: =Analysis!$K$80 -> 100
A169: 22/23 | B169: 16.05 | C169: 9.44 | D169: 1230 | F169: =Analysis!E82 -> 68.25396825 | G169: =Analysis!E80 -> 116.2162162 | I169: =Analysis!$K$82 -> 60 | J169: =Analysis!$K$80 -> 100

Sheet Formula (HIDE) (hidden)
A1: 2009 N Calculator formulas
B2: Wheat | D2: lbs total n req'd | F2: 30 | G2: soil test N lb
B3: yield | D3: (applied + residual) | F3: ="N Rate applied (req'd minus "&F2&" lb soil test)" -> N Rate applied (req'd minus 30 lb soil test)
B4: 45.5 | D4: =(-0.4902+SQRT(0.4902^2-(4*-0.0015*-(B4-24.75))))/(2*-0.0015) -> 49.97060933 | F4: =ROUND(IF(SUM(D4-$F$2)<0,0,SUM(D4-$F$2)),0) -> 20 | H4: (results match the calculator exactly - formulas work)
B5: 48.8 | D5: =(-0.4902+SQRT(0.4902^2-(4*-0.0015*-(B5-24.75))))/(2*-0.0015) -> 60.12257426 | F5: 30
B6: 51.7 | D6: 69.95004905 | F6: 40
B7: 54.4 | D7: 80.13600218 | F7: 50
B8: 56.7 | D8: 89.9183016 | F8: 60
B9: 58.8 | D9: 100.1579254 | F9: 70
B10: 60.5 | D10: 109.8628478 | F10: 80
B11: 62 | D11: 120.2001543 | F11: 90
B12: 63.1 | D12: 129.7415191 | F12: 100
B13: 64 | D13: 140.3155175 | F13: 110
B14: 65
B16: 45.5 | D16: =IFERROR((-0.4902+SQRT(0.4902^2-(4*-0.0015*-(B16-24.75))))/(2*-0.0015),-0.4902/(2*-0.0015)) -> 49.97060933 | F16: =ROUND(IF(SUM(D16-$F$2)<0,0,SUM(D16-$F$2)),0) -> 20 | H16: (this formula sets limit at top of curve to remove the #num! error)
B17: 48.8 | D17: =IFERROR((-0.4902+SQRT(0.4902^2-(4*-0.0015*-(B17-24.75))))/(2*-0.0015),-0.4902/(2*-0.0015)) -> 60.12257426 | F17: 30
B18: 51.7 | D18: 69.95004905 | F18: 40
B19: 54.4 | D19: 80.13600218 | F19: 50
B20: 56.7 | D20: 89.9183016 | F20: 60
B21: 58.8 | D21: 100.1579254 | F21: 70
B22: 60.5 | D22: 109.8628478 | F22: 80
B23: 62 | D23: 120.2001543 | F23: 90
B24: 63.1 | D24: 129.7415191 | F24: 100
B25: 64 | D25: 140.3155175 | F25: 110
B26: 65 | D26: 163.4 | F26: 133
B27: 66 | D27: 163.4 | F27: 133
B28: 67 | D28: 163.4 | F28: 133
B29: 68 | D29: 163.4 | F29: 133
B30: 69 | D30: 163.4 | F30: 133
A33: John's formula for 2022 Yield indexed to max yield of 85 bu/ac formulas
B34: Wheat | D34: lbs total n req'd
B35: yield | D35: (applied + residual) | F35: ="N Rate applied (req'd minus "&F2&" lb soil test)" -> N Rate applied (req'd minus 30 lb soil test)
B36: 40 | D36: =IFERROR((-0.3917+SQRT(0.3917^2-(4*-0.0008*-(B36-37.714))))/(2*-0.0008),-0.3917/(2*-0.0008)) -> 5.90737206 | F36: =ROUND(IF(SUM(D36-$F$2)<0,0,SUM(D36-$F$2)),0) -> 0
B37: 45 | D37: =IFERROR((-0.3917+SQRT(0.3917^2-(4*-0.0008*-(B37-37.714))))/(2*-0.0008),-0.3917/(2*-0.0008)) -> 19.36702953 | F37: =ROUND(IF(SUM(D37-$F$2)<0,0,SUM(D37-$F$2)),0) -> 0
B38: 50 | D38: 33.6830133 | F38: 4
B39: 55 | D39: 49.04309443 | F39: 19
B40: 60 | D40: 65.71571009 | F40: 36
B41: 65 | D41: 84.10885923 | F41: 54
B42: 70 | D42: 104.899455 | F42: 75
B43: 75 | D43: 129.3756768 | F43: 99
B44: 80 | D44: 160.6955567 | F44: 131
B45: 85 | D45: 216.0781972 | F45: 186
B46: 85 | D46: 216.0781972 | F46: 186
A48: Comparision of old and new formulas
D49: OLD FORMULA | H49: NEW FORMULA | M49: Difference
B50: Wheat | D50: lbs total n req'd | H50: lbs total n req'd
B51: yield | D51: (applied + residual) | E51: ="N Rate applied (req'd minus "&F2&" lb soil test)" -> N Rate applied (req'd minus 30 lb soil test) | H51: (applied + residual) | I51: ="N Rate applied (req'd minus "&F2&" lb soil test)" -> N Rate applied (req'd minus 30 lb soil test) | M51: ="N Rate applied (req'd minus "&F2&" lb soil test)" -> N Rate applied (req'd minus 30 lb soil test)
B52: 40 | D52: =IFERROR((-0.4902+SQRT(0.4902^2-(4*-0.0015*-(B52-24.75))))/(2*-0.0015),-0.4902/(2*-0.0015)) -> 34.81970084 | F52: =ROUND(IF(SUM(D52-$F$2)<0,0,SUM(D52-$F$2)),0) -> 5 | H52: =IFERROR((-0.3917+SQRT(0.3917^2-(4*-0.0008*-(B52-37.714))))/(2*-0.0008),-0.3917/(2*-0.0008)) -> 5.90737206 | J52: =ROUND(IF(SUM(H52-$F$2)<0,0,SUM(H52-$F$2)),0) -> 0 | M52: =SUM(J52-F52) -> -5
B53: 45 | D53: =IFERROR((-0.4902+SQRT(0.4902^2-(4*-0.0015*-(B53-24.75))))/(2*-0.0015),-0.4902/(2*-0.0015)) -> 48.51066194 | F53: 19 | H53: 19.36702953 | J53: =ROUND(IF(SUM(H53-$F$2)<0,0,SUM(H53-$F$2)),0) -> 0 | M53: =SUM(J53-F53) -> -19
B54: 50 | D54: 64.07111867 | F54: 34 | H54: 33.6830133 | J54: 4 | M54: -30
B55: 55 | D55: 82.57368415 | F55: 53 | H55: 49.04309443 | J55: 19 | M55: -34
B56: 60 | D56: 106.8353467 | F56: 77 | H56: 65.71571009 | J56: 36 | M56: -41
B57: 65 | D57: 163.4 | F57: 133 | H57: 84.10885923 | J57: 54 | M57: -79
B58: 70 | D58: 163.4 | F58: 133 | H58: 104.899455 | J58: 75 | M58: -58
B59: 75 | D59: 163.4 | F59: 133 | H59: 129.3756768 | J59: 99 | M59: -34
B60: 80 | D60: 163.4 | F60: 133 | H60: =IFERROR((-0.3917+SQRT(0.3917^2-(4*-0.0008*-(B60-37.714))))/(2*-0.0008),-0.3917/(2*-0.0008)) -> 160.6955567 | J60: 131 | M60: -2
B61: 85 | D61: 163.4 | F61: 133 | H61: 216.0781972 | J61: 186 | M61: 53
B62: 90 | D62: 163.4 | F62: 133 | H62: 244.8125 | J62: 215 | M62: 82
F67: N after soil
A68: Wheat | C68: Yield | F68: test | H68: N Preseed | I68: N | L68: Actual N
A69: Moist | B69: 65 | C69: 1 | D69: =IFERROR((-0.4902+SQRT(0.4902^2-(4*-0.0015*-(B69-24.75))))/(2*-0.0015),-0.4902/(2*-0.0015)) -> 163.4 | F69: =ROUND(IF(SUM(D69-$F$2)<0,0,SUM(D69-$F$2)),0) -> 133 | H69: 65 | I69: Fall broadcast 80% | L69: =SUM(H69*(1/VLOOKUP(I69,A82:B85,2,FALSE))) -> 52
A70: Dry | B70: 48.75 | C70: =SUM(B70/B69) -> 0.75 | D70: =IFERROR((-0.4159+SQRT(0.4159^2-(4*-0.0013*-(B70-14.22))))/(2*-0.0013),-0.4159/(2*-0.0013)) -> 159.9615385 | F70: =ROUND(IF(SUM(D70-$F$2)<0,0,SUM(D70-$F$2)),0) -> 130
A71: Arid | B71: 32.5 | C71: =SUM(B71/B69) -> 0.5 | D71: =IFERROR((-0.5464+SQRT(0.5464^2-(4*-0.0038*-(B71-14.22))))/(2*-0.0038),-0.5464/(2*-0.0038)) -> 52.96521308 | F71: =ROUND(IF(SUM(D71-$F$2)<0,0,SUM(D71-$F$2)),0) -> 23
A72: Barley
A73: Moist | B73: 120 | C73: 1 | D73: =IFERROR((-1.152+SQRT(1.152^2-(4*-0.0037*-(B73-34.75))))/(2*-0.0037),-1.152/(2*-0.0037)) -> 121.1159382 | F73: =ROUND(IF(SUM(D73-$F$2)<0,0,SUM(D73-$F$2)),0) -> 91
A74: Dry | B74: 80 | C74: =SUM(B74/B73) -> 0.6666666667 | D74: =IFERROR((-1.556+SQRT(1.556^2-(4*-0.0082*-(B74-31.73))))/(2*-0.0082),-1.556/(2*-0.0082)) -> 39.06354552 | F74: =ROUND(IF(SUM(D74-$F$2)<0,0,SUM(D74-$F$2)),0) -> 9
A75: Arid | B75: 40 | C75: =SUM(B75/B73) -> 0.3333333333 | D75: =IFERROR((-0.671+SQRT(0.671^2-(4*-0.0032*-(B75-23.93))))/(2*-0.0032),-0.671/(2*-0.0032)) -> 27.57579471 | F75: =ROUND(IF(SUM(D75-$F$2)<0,0,SUM(D75-$F$2)),0) -> 0
A76: Canola
A77: Moist | B77: 50 | C77: 1 | D77: =IFERROR((-0.232+SQRT(0.232^2-(4*-0.0005*-(B77-25.9))))/(2*-0.0005),-0.232/(2*-0.0005)) -> 157.006667 | F77: =ROUND(IF(SUM(D77-$F$2)<0,0,SUM(D77-$F$2)),0) -> 127
A78: Dry | B78: 33 | C78: =SUM(B78/B77) -> 0.66 | D78: =IFERROR((-0.232+SQRT(0.232^2-(4*-0.0005*-(B78-25.9))))/(2*-0.0005),-0.232/(2*-0.0005)) -> 32.94221944 | F78: =ROUND(IF(SUM(D78-$F$2)<0,0,SUM(D78-$F$2)),0) -> 3
A79: Arid | B79: 16.5 | C79: =SUM(B79/B77) -> 0.33 | D79: -37.4884042 | F79: 0
J80: (linked to Calculator page)
A81: N Efficiency | B81: Factor | D81: P Efficiency | E81: Factor | G81: S Efficiency | H81: Factor | K81: Spring | L81: Fall | M81: P | N81: K | O81: S
A82: ="Spring broadcast "&K82*100&"%" -> Spring broadcast 100% | B82: =1/K82 -> 1 | C82: =K82 -> 1 | D82: ="Broadcast "&M82*100&"%" -> Broadcast 50% | E82: =1/M82 -> 2 | G82: ="Broadcast "&O82*100&"%" -> Broadcast 100% | H82: =1/O82 -> 1 | J82: Broadcast | K82: =Calculator!D49 -> 1 | L82: =Calculator!E49 -> 0.8 | M82: =Calculator!F49 -> 0.5 | N82: =Calculator!G49 -> 0.5 | O82: =Calculator!H49 -> 1
A83: ="Spring banded "&K83*100&"%" -> Spring banded 120% | B83: =1/K83 -> 0.8333333333 | C83: =K83 -> 1.2 | D83: ="Banded "&M83*100&"%" -> Banded 100% | E83: =1/M83 -> 1 | G83: ="Banded "&O83*100&"%" -> Banded 100% | H83: =1/O83 -> 1 | J83: Banded | K83: =Calculator!D50 -> 1.2 | L83: =Calculator!E50 -> 1 | M83: =Calculator!F50 -> 1 | N83: =Calculator!G50 -> 1 | O83: =Calculator!H50 -> 1
A84: ="Fall broadcast "&L82*100&"%" -> Fall broadcast 80% | B84: =1/L82 -> 1.25 | C84: =L82 -> 0.8 | D84: K Efficiency | E84: Factor
A85: ="Fall banded "&L83*100&"%" -> Fall banded 100% | B85: =1/L83 -> 1 | C85: =L83 -> 1 | D85: ="Broadcast "&N82*100&"%" -> Broadcast 50% | E85: =1/N82 -> 2
D86: ="Banded "&N83*100&"%" -> Banded 100% | E86: =1/N83 -> 1
A87: (Select Crop) | B87: (Select Growing Condition) | E87: (Select Phos Test) | J87: (Select EEN)
A88: Wheat | B88: Ideal | E88: Olsen Test | G88: Spring | H88: Broadcast | J88: Yes
A89: Canola | B89: Moist | E89: Bray Test | G89: Fall | H89: Banded | J89: No
A90: Soybeans | B90: Dry
A91: Oats | B91: Arid | J91: Phos Risk Reduction
A92: Corn | K92: Spring | L92: Fall | P92: factor
A93: Barley | J93: Broadcast | K93: 0.6 | L93: 0.2 | N93: Spring broadcast | O93: 0.6 | P93: =SUM(1/O93) -> 1.666666667
J94: Banded | K94: 1 | L94: 0.8 | N94: Spring banded | O94: 1 | P94: =SUM(1/O94) -> 1
A95: (Select Fertilizer) | F95: low | G95: high | N95: Fall broadcast | O95: 0.2 | P95: 5
A96: =Calculator!B11 -> Nitrogen (46-0-0-0) | D96: Ideal | E96: 2 | F96: 6 | G96: 7 | I96: app1 | J96: =IF(Calculator!E58="Spring",VLOOKUP(Calculator!E59,'Formula (HIDE)'!$J$93:$L$94,2,FALSE),VLOOKUP(Calculator!E59,'Formula (HIDE)'!$J$93:$L$94,3,FALSE)) -> 0.8 | N96: Fall banded | O96: 0.8 | P96: 1.25
A97: =Calculator!B12 -> Nitrogen (82-0-0-0) | D97: Moist | E97: 3 | F97: 8 | G97: 9 | I97: app2 | J97: =IF(Calculator!E80="Spring",VLOOKUP(Calculator!E81,'Formula (HIDE)'!$J$93:$L$94,2,FALSE),VLOOKUP(Calculator!E81,'Formula (HIDE)'!$J$93:$L$94,3,FALSE)) -> 1
A98: =Calculator!B13 -> Nitrogen (28-0-0-0) | D98: Dry | E98: 4 | F98: 10 | G98: 11 | I98: app3 | J98: =IF(Calculator!E102="Spring",VLOOKUP(Calculator!E103,'Formula (HIDE)'!$J$93:$L$94,2,FALSE),VLOOKUP(Calculator!E103,'Formula (HIDE)'!$J$93:$L$94,3,FALSE)) -> 1
A99: =Calculator!B14 -> Phosphate (11-52-0-0) | D99: Arid | E99: 5 | F99: 12 | G99: 13
A100: =Calculator!B15 -> Potash (0-0-60-0) | D100: industry
A101: =Calculator!B16 -> Sulphur (20.5-0-0-24)
A102: =Calculator!#REF! -> 
B103: 2 | C103: 3 | D103: 4 | E103: 5 | F103: 6 | G103: 7 | H103: 8 | I103: 9 | J103: 10 | K103: 11 | L103: 12 | M103: 13
A104: Crop | B104: Ideal | C104: Moist | D104: Dry | E104: Arid | F104: ideal-low | G104: ideal-hi | H104: moist-low | I104: moi-hi | J104: dry-low | K104: dry-hi | L104: arid-low | M104: arid-hi
A105: Wheat | B105: 80 | C105: 60 | D105: 35 | E105: 25 | F105: 65 | G105: 85 | H105: 50 | I105: 64 | J105: 35 | K105: 49 | L105: 30 | M105: 34
A106: Barley | B106: 120 | C106: 120 | D106: 80 | E106: 40 | F106: 101 | G106: 125 | H106: 101 | I106: 125 | J106: 65 | K106: 100 | L106: 50 | M106: 64
A107: Canola | B107: 50 | C107: 45 | D107: 30 | E107: 20 | F107: 45 | G107: 55 | H107: 35 | I107: 45 | J107: 30 | K107: 34 | L107: 25 | M107: 29
A108: Oats | F108: 75 | G108: 130 | H108: 75 | I108: 130 | J108: 75 | K108: 130 | L108: 75 | M108: 130
A109: Corn | F109: 150 | G109: 175 | H109: 130 | I109: 149 | J109: 90 | K109: 129 | L109: 90 | M109: 129
A110: Soybeans | F110: 30 | G110: 50 | H110: 30 | I110: 50 | J110: 30 | K110: 50 | L110: 30 | M110: 50
B112: N REC | C112: Ideal | D112: Moist | E112: Dry | F112: Arid
B113: Wheat | C113: 2 | D113: 3 | E113: 4 | F113: 5
B114: Barley | C114: 6 | D114: 6 | E114: 7 | F114: 8
B115: Canola | C115: 9 | D115: 9 | E115: 9 | F115: 9 | M115: app1 | N115: =VLOOKUP(Calculator!E58,'Formula (HIDE)'!$O$115:$P$116,2,0) -> 2 | O115: Spring | P115: 3
B116: Oats | C116: 10 | D116: 10 | E116: 10 | F116: 10 | M116: app2 | N116: =VLOOKUP(Calculator!E80,'Formula (HIDE)'!$O$115:$P$116,2,0) -> 3 | O116: Fall | P116: 2
B117: Corn | C117: 11 | D117: 12 | E117: 13 | F117: 13 | M117: app2 | N117: =VLOOKUP(Calculator!E102,'Formula (HIDE)'!$O$115:$P$116,2,0) -> 3
B118: Soybeans | C118: 14 | D118: 14 | E118: 14 | F118: 14
P119: No EFF
A120: ToDo List | P120: Fall | Q120: Spring | R120: In Season Split
B121: 2 | C121: 3 | D121: 4 | E121: 5 | F121: 6 | G121: 7 | H121: 8 | I121: 9 | J121: 10 | K121: 11 | L121: 12 | M121: 13 | O121: Broadcast | P121: 2 | Q121: 4 | R121: 6
B122: No EEF | H122: EEF | O122: Banded | P122: 3 | Q122: 5 | R122: 7
B123: Fall | D123: Spring | F123: In Season Split | H123: Fall | J123: Spring | L123: In Season Split
B124: Broadcast | C124: Band | D124: Broadcast | E124: Band | F124: Broadcast | G124: Band | H124: Broadcast | I124: Band | J124: Broadcast | K124: Band | L124: Broadcast | M124: Band | P124: EEF
A125: =Calculator!B11 -> Nitrogen (46-0-0-0) | B125: 1 | C125: 2.5 | D125: 2.5 | E125: 3 | F125: 3.5 | G125: 4 | H125: 2 | I125: 3 | J125: 3 | K125: 3.5 | L125: 3.5 | M125: 4 | P125: Fall | Q125: Spring | R125: In Season Split
A126: =Calculator!B12 -> Nitrogen (82-0-0-0) | C126: 3 | E126: 3.5 | G126: 4 | I126: 3.5 | K126: 4 | M126: 4 | O126: Broadcast | P126: 8 | Q126: 10 | R126: 12
A127: =Calculator!B13 -> Nitrogen (28-0-0-0) | B127: 1 | C127: 1 | D127: 2 | E127: 3 | F127: 3.5 | G127: 4 | H127: 1.5 | I127: 1.5 | J127: 3 | K127: 3.5 | L127: 3.5 | M127: 4 | O127: Banded | P127: 9 | Q127: 11 | R127: 13
A131: PHOSSafety score | E131: column | F131: score | G131: lbs | H131: factored
B132: Fall | C132: Spring | D132: app1 | E132: =VLOOKUP(Calculator!E58,'Formula (HIDE)'!$O$115:$P$116,2,0) -> 2 | F132: =VLOOKUP(Calculator!E59,$A$132:$C$134,E132,0) -> 0.75 | G132: =Calculator!F66 -> 0 | H132: =SUM(F132*G132) -> 0
A133: Broadcast | B133: 0 | C133: 0.5 | D133: app2 | E133: =VLOOKUP(Calculator!E80,'Formula (HIDE)'!$O$115:$P$116,2,0) -> 3 | F133: =VLOOKUP(Calculator!E81,$A$132:$C$134,E133,0) -> 1 | G133: =Calculator!F88 -> 30 | H133: =SUM(F133*G133) -> 30
A134: Banded | B134: 0.75 | C134: 1 | D134: app2 | E134: =VLOOKUP(Calculator!E102,'Formula (HIDE)'!$O$115:$P$116,2,0) -> 3 | F134: =VLOOKUP(Calculator!E103,$A$132:$C$134,E134,0) -> 1 | G134: =Calculator!F110 -> 0 | H134: 0
G135: =SUM(G132:G134) -> 30 | H135: =SUM(H132:H134) -> 30 | J135: =SUM(H135/G135) -> 1

Sheet P (IGNORE) (hidden)
B1: Phosphorous | L1: Notes
A2: Yield | B2: Wheat | C2: Barley | D2: Canola | E2: Oats | F2: Corn | G2: Peas | H2: Soybeans | I2: Fall Rye | J2: Flax | L2: Agvise recommendation (in between the highlighted cells are extrapolated)
A3: 10 | B3: 15 | C3: 15 | D3: 10 | E3: 15 | F3: 15 | G3: 5 | H3: 10 | I3: 15 | J3: 10 | L3: Agvise band recommendations used (which is the same as Agvise band with maintenance)
A4: 11 | B4: 15.5 | C4: 15 | D4: 11.5 | E4: 15 | F4: 15 | G4: 6 | H4: 11 | I4: 15.5 | J4: 11 | L4: No Agvise data (estimations used)
A5: 12 | B5: 16 | C5: 15 | D5: 13 | E5: 15 | F5: 15 | G5: 7 | H5: 12 | I5: 16 | J5: 12 | L5: **Canola, Soybeans, Flax - minimum 10 lbs/ac regardless of soil test
A6: 13 | B6: 16.5 | C6: 15 | D6: 14.5 | E6: 15 | F6: 15 | G6: 8 | H6: 13 | I6: 16.5 | J6: 13 | L6: **Wheat, Barley, Oats, Corn, Fall Rye - minimum 15 lbs/ac regardless of soil test
A7: 14 | B7: 17 | C7: 15 | D7: 16 | E7: 15 | F7: 15 | G7: 9 | H7: 14 | I7: 17 | J7: 14
A8: 15 | B8: 17.5 | C8: 15 | D8: 17.5 | E8: 15 | F8: 15 | G8: 10 | H8: 15 | I8: 17.5 | J8: 15
A9: 16 | B9: 18 | C9: 15 | D9: 19 | E9: 15 | F9: 15 | G9: 11 | H9: 16 | I9: 18 | J9: 16
A10: 17 | B10: 18.5 | C10: 15 | D10: 20.5 | E10: 15 | F10: 15 | G10: 12 | H10: 17 | I10: 18.5 | J10: 17
A11: 18 | B11: 19 | C11: 15 | D11: 22 | E11: 15 | F11: 15 | G11: 13 | H11: 18 | I11: 19 | J11: 18
A12: 19 | B12: 19.5 | C12: 15 | D12: 23.5 | E12: 15 | F12: 15 | G12: 14 | H12: 19 | I12: 19.5 | J12: 19
A13: 20 | B13: 20 | C13: 15 | D13: 25 | E13: 15 | F13: 15 | G13: 15 | H13: 20 | I13: 20 | J13: 20
A14: 21 | B14: 20.5 | C14: 15 | D14: 26 | E14: 15 | F14: 15 | G14: 16 | H14: 21 | I14: 20.5 | J14: 21.5
A15: 22 | B15: 21 | C15: 15 | D15: 27 | E15: 15 | F15: 15 | G15: 17 | H15: 22 | I15: 21 | J15: 23
A16: 23 | B16: 21.5 | C16: 15 | D16: 28 | E16: 15 | F16: 15 | G16: 18 | H16: 23 | I16: 21.5 | J16: 24.5
A17: 24 | B17: 22 | C17: 15 | D17: 29 | E17: 15 | F17: 15 | G17: 19 | H17: 24 | I17: 22 | J17: 26
A18: 25 | B18: 22.5 | C18: 15 | D18: 30 | E18: 15 | F18: 15 | G18: 20 | H18: 25 | I18: 22.5 | J18: 27.5
A19: 26 | B19: 23 | C19: 15 | D19: 31 | E19: 15 | F19: 15 | G19: 21 | H19: 26 | I19: 23 | J19: 29
A20: 27 | B20: 23.5 | C20: 15 | D20: 32 | E20: 15 | F20: 15 | G20: 22 | H20: 27 | I20: 23.5 | J20: 30.5
A21: 28 | B21: 24 | C21: 15 | D21: 33 | E21: 15 | F21: 15 | G21: 23 | H21: 28 | I21: 24 | J21: 32
A22: 29 | B22: 24.5 | C22: 15 | D22: 34 | E22: 15 | F22: 15 | G22: 24 | H22: 29 | I22: 24.5 | J22: 33.5
A23: 30 | B23: 25 | C23: 15 | D23: 35 | E23: 15 | F23: 15 | G23: 25 | H23: 30 | I23: 25 | J23: 35
A24: 31 | B24: 25.5 | C24: 15.5 | D24: 36 | E24: 15 | F24: 15 | G24: 26 | H24: 31 | I24: 25.5 | J24: 36
A25: 32 | B25: 26 | C25: 16 | D25: 37 | E25: 15 | F25: 15 | G25: 27 | H25: 32 | I25: 26 | J25: 37
A26: 33 | B26: 26.5 | C26: 16.5 | D26: 38 | E26: 15 | F26: 15 | G26: 28 | H26: 33 | I26: 26.5 | J26: 38
A27: 34 | B27: 27 | C27: 17 | D27: 39 | E27: 15 | F27: 15 | G27: 29 | H27: 34 | I27: 27 | J27: 39
A28: 35 | B28: 27.5 | C28: 17.5 | D28: 40 | E28: 15 | F28: 15 | G28: 30 | H28: 35 | I28: 27.5 | J28: 40
A29: 36 | B29: 28 | C29: 18 | D29: 41 | E29: 15 | F29: 15 | G29: 31 | H29: 36 | I29: 28 | J29: 41
A30: 37 | B30: 28.5 | C30: 18.5 | D30: 42 | E30: 15 | F30: 15 | G30: 32 | H30: 37 | I30: 28.5 | J30: 42
A31: 38 | B31: 29 | C31: 19 | D31: 43 | E31: 15 | F31: 15 | G31: 33 | H31: 38 | I31: 29 | J31: 43
A32: 39 | B32: 29.5 | C32: 19.5 | D32: 44 | E32: 15 | F32: 15 | G32: 34 | H32: 39 | I32: 29.5 | J32: 44
A33: 40 | B33: 30 | C33: 20 | D33: 45 | E33: 15 | F33: 15 | G33: 35 | H33: 40 | I33: 30 | J33: 45
A34: 41 | B34: 31 | C34: 20.75 | D34: 46.5 | E34: 15.25 | F34: 15 | G34: 36 | H34: 41.5 | I34: 31 | J34: 46
A35: 42 | B35: 32 | C35: 21.5 | D35: 48 | E35: 15.5 | F35: 15.2 | G35: 37 | H35: 43 | I35: 32 | J35: 47
A36: 43 | B36: 33 | C36: 22.25 | D36: 49.5 | E36: 15.75 | F36: 15.8 | G36: 38 | H36: 44.5 | I36: 33 | J36: 48
A37: 44 | B37: 34 | C37: 23 | D37: 51 | E37: 16 | F37: 16.4 | G37: 39 | H37: 46 | I37: 34 | J37: 49
A38: 45 | B38: 35 | C38: 23.75 | D38: 52.5 | E38: 16.25 | F38: 17 | G38: 40 | H38: 47.5 | I38: 35 | J38: 50
A39: 46 | B39: 36 | C39: 24.5 | D39: 54 | E39: 16.5 | F39: 17.6 | G39: 41 | H39: 49 | I39: 36 | J39: 51
A40: 47 | B40: 37 | C40: 25.25 | D40: 55.5 | E40: 16.75 | F40: 18.2 | G40: 42 | H40: 50.5 | I40: 37 | J40: 52
A41: 48 | B41: 38 | C41: 26 | D41: 57 | E41: 17 | F41: 18.8 | G41: 43 | H41: 52 | I41: 38 | J41: 53
A42: 49 | B42: 39 | C42: 26.75 | D42: 58.5 | E42: 17.25 | F42: 19.4 | G42: 44 | H42: 53.5 | I42: 39 | J42: 54
A43: 50 | B43: 40 | C43: 27.5 | D43: 60 | E43: 17.5 | F43: 20 | G43: 45 | H43: 55 | I43: 40 | J43: 55
A44: 51 | B44: 41 | C44: 28.25 | D44: 61 | E44: 17.75 | F44: 20.6 | G44: 45.5 | H44: 56 | I44: 41 | J44: 56
A45: 52 | B45: 42 | C45: 29 | D45: 62 | E45: 18 | F45: 21.2 | G45: 46 | H45: 57 | I45: 42 | J45: 57
A46: 53 | B46: 43 | C46: 29.75 | D46: 63 | E46: 18.25 | F46: 21.8 | G46: 46.5 | H46: 58 | I46: 43 | J46: 58
A47: 54 | B47: 44 | C47: 30.5 | D47: 64 | E47: 18.5 | F47: 22.4 | G47: 47 | H47: 59 | I47: 44 | J47: 59
A48: 55 | B48: 45 | C48: 31.25 | D48: 65 | E48: 18.75 | F48: 23 | G48: 47.5 | H48: 60 | I48: 45 | J48: 60
A49: 56 | B49: 46 | C49: 32 | D49: 66 | E49: 19 | F49: 23.6 | G49: 48 | H49: 61 | I49: 46 | J49: 61
A50: 57 | B50: 47 | C50: 32.75 | D50: 67 | E50: 19.25 | F50: 24.2 | G50: 48.5 | H50: 62 | I50: 47 | J50: 62
A51: 58 | B51: 48 | C51: 33.5 | D51: 68 | E51: 19.5 | F51: 24.8 | G51: 49 | H51: 63 | I51: 48 | J51: 63
A52: 59 | B52: 49 | C52: 34.25 | D52: 69 | E52: 19.75 | F52: 25.4 | G52: 49.5 | H52: 64 | I52: 49 | J52: 64
A53: 60 | B53: 50 | C53: 35 | D53: 70 | E53: 20 | F53: 26 | G53: 50 | H53: 65 | I53: 50 | J53: 65
A54: 61 | B54: 50.5 | C54: 35.5 | D54: 71 | E54: 20.5 | F54: 26.6 | G54: 50.5 | H54: 66 | I54: 50.5 | J54: 66
A55: 62 | B55: 51 | C55: 36 | D55: 72 | E55: 21 | F55: 27.2 | G55: 51 | H55: 67 | I55: 51 | J55: 67
A56: 63 | B56: 51.5 | C56: 36.5 | D56: 73 | E56: 21.5 | F56: 27.8 | G56: 51.5 | H56: 68 | I56: 51.5 | J56: 68
A57: 64 | B57: 52 | C57: 37 | D57: 74 | E57: 22 | F57: 28.4 | G57: 52 | H57: 69 | I57: 52 | J57: 69
A58: 65 | B58: 52.5 | C58: 37.5 | D58: 75 | E58: 22.5 | F58: 29 | G58: 52.5 | H58: 70 | I58: 52.5 | J58: 70
A59: 66 | B59: 53 | C59: 38 | D59: 76 | E59: 23 | F59: 29.6 | G59: 53 | H59: 71 | I59: 53 | J59: 71
A60: 67 | B60: 53.5 | C60: 38.5 | D60: 77 | E60: 23.5 | F60: 30.2 | G60: 53.5 | H60: 72 | I60: 53.5 | J60: 72
A61: 68 | B61: 54 | C61: 39 | D61: 78 | E61: 24 | F61: 30.8 | G61: 54 | H61: 73 | I61: 54 | J61: 73
A62: 69 | B62: 54.5 | C62: 39.5 | D62: 79 | E62: 24.5 | F62: 31.4 | G62: 54.5 | H62: 74 | I62: 54.5 | J62: 74
A63: 70 | B63: 55 | C63: 40 | D63: 80 | E63: 25 | F63: 32 | G63: 55 | H63: 75 | I63: 55 | J63: 75
A64: 71 | B64: 56 | C64: 40.5 | D64: 81.5 | E64: 25.5 | F64: 32.6 | G64: 55.5 | H64: 76 | I64: 56 | J64: 76
A65: 72 | B65: 57 | C65: 41 | D65: 83 | E65: 26 | F65: 33.2 | G65: 56 | H65: 77 | I65: 57 | J65: 77
A66: 73 | B66: 58 | C66: 41.5 | D66: 84.5 | E66: 26.5 | F66: 33.8 | G66: 56.5 | H66: 78 | I66: 58 | J66: 78
A67: 74 | B67: 59 | C67: 42 | D67: 86 | E67: 27 | F67: 34.4 | G67: 57 | H67: 79 | I67: 59 | J67: 79
A68: 75 | B68: 60 | C68: 42.5 | D68: 87.5 | E68: 27.5 | F68: 35 | G68: 57.5 | H68: 80 | I68: 60 | J68: 80
A69: 76 | B69: 61 | C69: 43 | D69: 89 | E69: 28 | F69: 35.6 | G69: 58 | H69: 81 | I69: 61 | J69: 81
A70: 77 | B70: 62 | C70: 43.5 | D70: 90.5 | E70: 28.5 | F70: 36.2 | G70: 58.5 | H70: 82 | I70: 62 | J70: 82
A71: 78 | B71: 63 | C71: 44 | D71: 92 | E71: 29 | F71: 36.8 | G71: 59 | H71: 83 | I71: 63 | J71: 83
A72: 79 | B72: 64 | C72: 44.5 | D72: 93.5 | E72: 29.5 | F72: 37.4 | G72: 59.5 | H72: 84 | I72: 64 | J72: 84
A73: 80 | B73: 65 | C73: 45 | D73: 95 | E73: 30 | F73: 38 | G73: 60 | H73: 85 | I73: 65 | J73: 85
A74: 81 | B74: 65.5 | C74: 45.5 | D74: 96.5 | E74: 30.25 | F74: 38.6 | G74: 60.5 | H74: 86 | I74: 65.5 | J74: 86
A75: 82 | B75: 66 | C75: 46 | D75: 98 | E75: 30.5 | F75: 39.2 | G75: 61 | H75: 87 | I75: 66 | J75: 87
A76: 83 | B76: 66.5 | C76: 46.5 | D76: 99.5 | E76: 30.75 | F76: 39.8 | G76: 61.5 | H76: 88 | I76: 66.5 | J76: 88
A77: 84 | B77: 67 | C77: 47 | D77: 101 | E77: 31 | F77: 40.4 | G77: 62 | H77: 89 | I77: 67 | J77: 89
A78: 85 | B78: 67.5 | C78: 47.5 | D78: 102.5 | E78: 31.25 | F78: 41 | G78: 62.5 | H78: 90 | I78: 67.5 | J78: 90
A79: 86 | B79: 68 | C79: 48 | D79: 104 | E79: 31.5 | F79: 41.6 | G79: 63 | H79: 91 | I79: 68 | J79: 91
A80: 87 | B80: 68.5 | C80: 48.5 | D80: 105.5 | E80: 31.75 | F80: 42.2 | G80: 63.5 | H80: 92 | I80: 68.5 | J80: 92
A81: 88 | B81: 69 | C81: 49 | D81: 107 | E81: 32 | F81: 42.8 | G81: 64 | H81: 93 | I81: 69 | J81: 93
A82: 89 | B82: 69.5 | C82: 49.5 | D82: 108.5 | E82: 32.25 | F82: 43.4 | G82: 64.5 | H82: 94 | I82: 69.5 | J82: 94
A83: 90 | B83: 70 | C83: 50 | D83: 110 | E83: 32.5 | F83: 44 | G83: 65 | H83: 95 | I83: 70 | J83: 95
A84: 91 | B84: 71 | C84: 50.5 | D84: 111.5 | E84: 32.75 | F84: 44.6 | G84: 65.5 | H84: 96 | I84: 70.5 | J84: 96
A85: 92 | B85: 72 | C85: 51 | D85: 113 | E85: 33 | F85: 45.2 | G85: 66 | H85: 97 | I85: 71 | J85: 97
A86: 93 | B86: 73 | C86: 51.5 | D86: 114.5 | E86: 33.25 | F86: 45.8 | G86: 66.5 | H86: 98 | I86: 71.5 | J86: 98
A87: 94 | B87: 74 | C87: 52 | D87: 116 | E87: 33.5 | F87: 46.4 | G87: 67 | H87: 99 | I87: 72 | J87: 99
A88: 95 | B88: 75 | C88: 52.5 | D88: 117.5 | E88: 33.75 | F88: 47 | G88: 67.5 | H88: 100 | I88: 72.5 | J88: 100
A89: 96 | B89: 76 | C89: 53 | D89: 119 | E89: 34 | F89: 47.6 | G89: 68 | H89: 101 | I89: 73 | J89: 101
A90: 97 | B90: 77 | C90: 53.5 | D90: 120.5 | E90: 34.25 | F90: 48.2 | G90: 68.5 | H90: 102 | I90: 73.5 | J90: 102
A91: 98 | B91: 78 | C91: 54 | D91: 122 | E91: 34.5 | F91: 48.8 | G91: 69 | H91: 103 | I91: 74 | J91: 103
A92: 99 | B92: 79 | C92: 54.5 | D92: 123.5 | E92: 34.75 | F92: 49.4 | G92: 69.5 | H92: 104 | I92: 74.5 | J92: 104
A93: 100 | B93: 80 | C93: 55 | D93: 125 | E93: 35 | F93: 50 | G93: 70 | H93: 105 | I93: 75 | J93: 105
A94: 101 | B94: 81 | C94: 55.5 | D94: 126.5 | E94: 35.25 | F94: 50.6 | G94: 70.5 | H94: 106 | I94: 75.5 | J94: 106
A95: 102 | B95: 82 | C95: 56 | D95: 128 | E95: 35.5 | F95: 51.2 | G95: 71 | H95: 107 | I95: 76 | J95: 107
A96: 103 | B96: 83 | C96: 56.5 | D96: 129.5 | E96: 35.75 | F96: 51.8 | G96: 71.5 | H96: 108 | I96: 76.5 | J96: 108
A97: 104 | B97: 84 | C97: 57 | D97: 131 | E97: 36 | F97: 52.4 | G97: 72 | H97: 109 | I97: 77 | J97: 109
A98: 105 | B98: 85 | C98: 57.5 | D98: 132.5 | E98: 36.25 | F98: 53 | G98: 72.5 | H98: 110 | I98: 77.5 | J98: 110
A99: 106 | B99: 86 | C99: 58 | D99: 134 | E99: 36.5 | F99: 53.6 | G99: 73 | H99: 111 | I99: 78 | J99: 111
A100: 107 | B100: 87 | C100: 58.5 | D100: 135.5 | E100: 36.75 | F100: 54.2 | G100: 73.5 | H100: 112 | I100: 78.5 | J100: 112
A101: 108 | B101: 88 | C101: 59 | D101: 137 | E101: 37 | F101: 54.8 | G101: 74 | H101: 113 | I101: 79 | J101: 113
A102: 109 | B102: 89 | C102: 59.5 | D102: 138.5 | E102: 37.25 | F102: 55.4 | G102: 74.5 | H102: 114 | I102: 79.5 | J102: 114
A103: 110 | B103: 90 | C103: 60 | D103: 140 | E103: 37.5 | F103: 56 | G103: 75 | H103: 115 | I103: 80 | J103: 115
A104: 111 | B104: 91 | C104: 60.5 | D104: 141.5 | E104: 37.75 | F104: 56.6 | G104: 75.5 | H104: 116 | I104: 80.5 | J104: 116
A105: 112 | B105: 92 | C105: 61 | D105: 143 | E105: 38 | F105: 57.2 | G105: 76 | H105: 117 | I105: 81 | J105: 117
A106: 113 | B106: 93 | C106: 61.5 | D106: 144.5 | E106: 38.25 | F106: 57.8 | G106: 76.5 | H106: 118 | I106: 81.5 | J106: 118
A107: 114 | B107: 94 | C107: 62 | D107: 146 | E107: 38.5 | F107: 58.4 | G107: 77 | H107: 119 | I107: 82 | J107: 119
A108: 115 | B108: 95 | C108: 62.5 | D108: 147.5 | E108: 38.75 | F108: 59 | G108: 77.5 | H108: 120 | I108: 82.5 | J108: 120
A109: 116 | B109: 96 | C109: 63 | D109: 149 | E109: 39 | F109: 59.6 | G109: 78 | H109: 121 | I109: 83 | J109: 121
A110: 117 | B110: 97 | C110: 63.5 | D110: 150.5 | E110: 39.25 | F110: 60.2 | G110: 78.5 | H110: 122 | I110: 83.5 | J110: 122
A111: 118 | B111: 98 | C111: 64 | D111: 152 | E111: 39.5 | F111: 60.8 | G111: 79 | H111: 123 | I111: 84 | J111: 123
A112: 119 | B112: 99 | C112: 64.5 | D112: 153.5 | E112: 39.75 | F112: 61.4 | G112: 79.5 | H112: 124 | I112: 84.5 | J112: 124
A113: 120 | B113: 100 | C113: 65 | D113: 155 | E113: 40 | F113: 62 | G113: 80 | H113: 125 | I113: 85 | J113: 125
A114: 121 | B114: 101 | C114: 65.75 | D114: 156.5 | E114: 40.5 | F114: 62.6 | G114: 80.5 | H114: 126 | I114: 85.5 | J114: 126
A115: 122 | B115: 102 | C115: 66.5 | D115: 158 | E115: 41 | F115: 63.2 | G115: 81 | H115: 127 | I115: 86 | J115: 127
A116: 123 | B116: 103 | C116: 67.25 | D116: 159.5 | E116: 41.5 | F116: 63.8 | G116: 81.5 | H116: 128 | I116: 86.5 | J116: 128
A117: 124 | B117: 104 | C117: 68 | D117: 161 | E117: 42 | F117: 64.4 | G117: 82 | H117: 129 | I117: 87 | J117: 129
A118: 125 | B118: 105 | C118: 68.75 | D118: 162.5 | E118: 42.5 | F118: 65 | G118: 82.5 | H118: 130 | I118: 87.5 | J118: 130
A119: 126 | B119: 106 | C119: 69.5 | D119: 164 | E119: 43 | F119: 65.6 | G119: 83 | H119: 131 | I119: 88 | J119: 131
A120: 127 | B120: 107 | C120: 70.25 | D120: 165.5 | E120: 43.5 | F120: 66.2 | G120: 83.5 | H120: 132 | I120: 88.5 | J120: 132
A121: 128 | B121: 108 | C121: 71 | D121: 167 | E121: 44 | F121: 66.8 | G121: 84 | H121: 133 | I121: 89 | J121: 133
A122: 129 | B122: 109 | C122: 71.75 | D122: 168.5 | E122: 44.5 | F122: 67.4 | G122: 84.5 | H122: 134 | I122: 89.5 | J122: 134
A123: 130 | B123: 110 | C123: 72.5 | D123: 170 | E123: 45 | F123: 68 | G123: 85 | H123: 135 | I123: 90 | J123: 135
A124: 131 | B124: 111 | C124: 73.25 | D124: 171.5 | E124: 45.5 | F124: 68.6 | G124: 85.5 | H124: 136 | I124: 90.5 | J124: 136
A125: 132 | B125: 112 | C125: 74 | D125: 173 | E125: 46 | F125: 69.2 | G125: 86 | H125: 137 | I125: 91 | J125: 137
A126: 133 | B126: 113 | C126: 74.75 | D126: 174.5 | E126: 46.5 | F126: 69.8 | G126: 86.5 | H126: 138 | I126: 91.5 | J126: 138
A127: 134 | B127: 114 | C127: 75.5 | D127: 176 | E127: 47 | F127: 70.4 | G127: 87 | H127: 139 | I127: 92 | J127: 139
A128: 135 | B128: 115 | C128: 76.25 | D128: 177.5 | E128: 47.5 | F128: 71 | G128: 87.5 | H128: 140 | I128: 92.5 | J128: 140
A129: 136 | B129: 116 | C129: 77 | D129: 179 | E129: 48 | F129: 71.6 | G129: 88 | H129: 141 | I129: 93 | J129: 141
A130: 137 | B130: 117 | C130: 77.75 | D130: 180.5 | E130: 48.5 | F130: 72.2 | G130: 88.5 | H130: 142 | I130: 93.5 | J130: 142
A131: 138 | B131: 118 | C131: 78.5 | D131: 182 | E131: 49 | F131: 72.8 | G131: 89 | H131: 143 | I131: 94 | J131: 143
A132: 139 | B132: 119 | C132: 79.25 | D132: 183.5 | E132: 49.5 | F132: 73.4 | G132: 89.5 | H132: 144 | I132: 94.5 | J132: 144
A133: 140 | B133: 120 | C133: 80 | D133: 185 | E133: 50 | F133: 74 | G133: 90 | H133: 145 | I133: 95 | J133: 145
A134: 141 | B134: 121 | C134: 81 | D134: 186.5 | E134: 50.5 | F134: 74.6 | G134: 90.5 | H134: 146 | I134: 95.5 | J134: 146
A135: 142 | B135: 122 | C135: 82 | D135: 188 | E135: 51 | F135: 75.2 | G135: 91 | H135: 147 | I135: 96 | J135: 147
A136: 143 | B136: 123 | C136: 83 | D136: 189.5 | E136: 51.5 | F136: 75.8 | G136: 91.5 | H136: 148 | I136: 96.5 | J136: 148
A137: 144 | B137: 124 | C137: 84 | D137: 191 | E137: 52 | F137: 76.4 | G137: 92 | H137: 149 | I137: 97 | J137: 149
A138: 145 | B138: 125 | C138: 85 | D138: 192.5 | E138: 52.5 | F138: 77 | G138: 92.5 | H138: 150 | I138: 97.5 | J138: 150
A139: 146 | B139: 126 | C139: 86 | D139: 194 | E139: 53 | F139: 77.6 | G139: 93 | H139: 151 | I139: 98 | J139: 151
A140: 147 | B140: 127 | C140: 87 | D140: 195.5 | E140: 53.5 | F140: 78.2 | G140: 93.5 | H140: 152 | I140: 98.5 | J140: 152
A141: 148 | B141: 128 | C141: 88 | D141: 197 | E141: 54 | F141: 78.8 | G141: 94 | H141: 153 | I141: 99 | J141: 153
A142: 149 | B142: 129 | C142: 89 | D142: 198.5 | E142: 54.5 | F142: 79.4 | G142: 94.5 | H142: 154 | I142: 99.5 | J142: 154
A143: 150 | B143: 130 | C143: 90 | D143: 200 | E143: 55 | F143: 80 | G143: 95 | H143: 155 | I143: 100 | J143: 155
A144: 151 | F144: 80.4
A145: 152 | F145: 80.8
A146: 153 | F146: 81.2
A147: 154 | F147: 81.6
A148: 155 | F148: 82
A149: 156 | F149: 82.4
A150: 157 | F150: 82.8
A151: 158 | F151: 83.2
A152: 159 | F152: 83.6
A153: 160 | F153: 84
A154: 161 | F154: 84.4
A155: 162 | F155: 84.8
A156: 163 | F156: 85.2
A157: 164 | F157: 85.6
A158: 165 | F158: 86
A159: 166 | F159: 86.4
A160: 167 | F160: 86.8
A161: 168 | F161: 87.2
A162: 169 | F162: 87.6
A163: 170 | F163: 88
A164: 171 | F164: 88.4
A165: 172 | F165: 88.8
A166: 173 | F166: 89.2
A167: 174 | F167: 89.6
A168: 175 | F168: 90
A169: 176 | F169: 90.6
A170: 177 | F170: 91.2
A171: 178 | F171: 91.8
A172: 179 | F172: 92.4
A173: 180 | F173: 93
A174: 181 | F174: 93.6
A175: 182 | F175: 94.2
A176: 183 | F176: 94.8
A177: 184 | F177: 95.4
A178: 185 | F178: 96
A179: 186 | F179: 96.6
A180: 187 | F180: 97.2
A181: 188 | F181: 97.8
A182: 189 | F182: 98.4
A183: 190 | F183: 99
A184: 191 | F184: 99.6
A185: 192 | F185: 100.2
A186: 193 | F186: 100.8
A187: 194 | F187: 101.4
A188: 195 | F188: 102
A189: 196 | F189: 102.6
A190: 197 | F190: 103.2
A191: 198 | F191: 103.8
A192: 199 | F192: 104.4
A193: 200 | F193: 105
A194: 201 | F194: 105.4
A195: 202 | F195: 105.8
A196: 203 | F196: 106.2
A197: 204 | F197: 106.6
A198: 205 | F198: 107
A199: 206 | F199: 107.4
A200: 207 | F200: 107.8
... 43 more rows

Sheet K (IGNORE) (hidden)
B1: Potash | L1: Notes
A2: Yield | B2: Wheat | C2: Barley | D2: Canola | E2: Oats | F2: Corn | G2: Peas | H2: Soybeans | I2: Fall Rye | J2: Flax | L2: Agvise recommendation (in between the highlighted cells are extrapolated)
A3: 10 | B3: 15 | C3: 17.5 | D3: 15 | E3: 10 | F3: 10 | G3: 11 | H3: 15 | I3: 15 | J3: 15 | L3: Agvise band recommendations used (which is the same as Agvise band with maintenance)
A4: 11 | B4: 16 | C4: 18.25 | D4: 16.5 | E4: 10 | F4: 10 | G4: 13.5 | H4: 16 | I4: 16 | J4: 16 | L4: No Agvise data (estimations used)
A5: 12 | B5: 17 | C5: 19 | D5: 18 | E5: 10 | F5: 10 | G5: 16 | H5: 17 | I5: 17 | J5: 17
A6: 13 | B6: 18 | C6: 19.75 | D6: 19.5 | E6: 10 | F6: 10 | G6: 18.5 | H6: 18 | I6: 18 | J6: 18 | L6: **Wheat, Barley, Oats, Corn, Fall Rye - minimum 10 lbs/ac regardless of soil test
A7: 14 | B7: 19 | C7: 20.5 | D7: 21 | E7: 10.5 | F7: 10 | G7: 21 | H7: 19 | I7: 19 | J7: 19
A8: 15 | B8: 20 | C8: 21.25 | D8: 22.5 | E8: 11.25 | F8: 10 | G8: 23.5 | H8: 20 | I8: 20 | J8: 20
A9: 16 | B9: 21 | C9: 22 | D9: 24 | E9: 12 | F9: 10 | G9: 26 | H9: 21 | I9: 21 | J9: 21
A10: 17 | B10: 22 | C10: 22.75 | D10: 25.5 | E10: 12.75 | F10: 10.2 | G10: 28.5 | H10: 22 | I10: 22 | J10: 22
A11: 18 | B11: 23 | C11: 23.5 | D11: 27 | E11: 13.5 | F11: 10.8 | G11: 31 | H11: 23 | I11: 23 | J11: 23
A12: 19 | B12: 24 | C12: 24.25 | D12: 28.5 | E12: 14.25 | F12: 11.4 | G12: 33.5 | H12: 24 | I12: 24 | J12: 24
A13: 20 | B13: 25 | C13: 25 | D13: 30 | E13: 15 | F13: 12 | G13: 35 | H13: 25 | I13: 25 | J13: 25
A14: 21 | B14: 26 | C14: 25.75 | D14: 31.5 | E14: 15.75 | F14: 12.6 | G14: 36.5 | H14: 26 | I14: 26 | J14: 26.5
A15: 22 | B15: 27 | C15: 26.5 | D15: 33 | E15: 16.5 | F15: 13.2 | G15: 38 | H15: 27 | I15: 27 | J15: 28
A16: 23 | B16: 28 | C16: 27.25 | D16: 34.5 | E16: 17.25 | F16: 13.8 | G16: 39.5 | H16: 28 | I16: 28 | J16: 29.5
A17: 24 | B17: 29 | C17: 28 | D17: 36 | E17: 18 | F17: 14.4 | G17: 41 | H17: 29 | I17: 29 | J17: 31
A18: 25 | B18: 30 | C18: 28.75 | D18: 37.5 | E18: 18.75 | F18: 15 | G18: 42.5 | H18: 30 | I18: 30 | J18: 32.5
A19: 26 | B19: 31 | C19: 29.5 | D19: 39 | E19: 19.5 | F19: 15.6 | G19: 44 | H19: 31 | I19: 31 | J19: 34
A20: 27 | B20: 32 | C20: 30.25 | D20: 40.5 | E20: 20.25 | F20: 16.2 | G20: 45.5 | H20: 32 | I20: 32 | J20: 35.5
A21: 28 | B21: 33 | C21: 31 | D21: 42 | E21: 21 | F21: 16.8 | G21: 47 | H21: 33 | I21: 33 | J21: 37
A22: 29 | B22: 34 | C22: 31.75 | D22: 43.5 | E22: 21.75 | F22: 17.4 | G22: 48.5 | H22: 34 | I22: 34 | J22: 38.5
A23: 30 | B23: 35 | C23: 32.5 | D23: 45 | E23: 22.5 | F23: 18 | G23: 50 | H23: 35 | I23: 35 | J23: 40
A24: 31 | B24: 36.5 | C24: 33.25 | D24: 46.5 | E24: 23.25 | F24: 18.6 | G24: 52 | H24: 36.5 | I24: 36.5 | J24: 41
A25: 32 | B25: 38 | C25: 34 | D25: 48 | E25: 24 | F25: 19.2 | G25: 54 | H25: 38 | I25: 38 | J25: 42
A26: 33 | B26: 39.5 | C26: 34.75 | D26: 49.5 | E26: 24.75 | F26: 19.8 | G26: 56 | H26: 39.5 | I26: 39.5 | J26: 43
A27: 34 | B27: 41 | C27: 35.5 | D27: 51 | E27: 25.5 | F27: 20.4 | G27: 58 | H27: 41 | I27: 41 | J27: 44
A28: 35 | B28: 42.5 | C28: 36.25 | D28: 52.5 | E28: 26.25 | F28: 21 | G28: 60 | H28: 42.5 | I28: 42.5 | J28: 45
A29: 36 | B29: 44 | C29: 37 | D29: 54 | E29: 27 | F29: 21.6 | G29: 62 | H29: 44 | I29: 44 | J29: 46
A30: 37 | B30: 45.5 | C30: 37.75 | D30: 55.5 | E30: 27.75 | F30: 22.2 | G30: 64 | H30: 45.5 | I30: 45.5 | J30: 47
A31: 38 | B31: 47 | C31: 38.5 | D31: 57 | E31: 28.5 | F31: 22.8 | G31: 66 | H31: 47 | I31: 47 | J31: 48
A32: 39 | B32: 48.5 | C32: 39.25 | D32: 58.5 | E32: 29.25 | F32: 23.4 | G32: 68 | H32: 48.5 | I32: 48.5 | J32: 49
A33: 40 | B33: 50 | C33: 40 | D33: 60 | E33: 30 | F33: 24 | G33: 70 | H33: 50 | I33: 50 | J33: 50
A34: 41 | B34: 51.5 | C34: 40.75 | D34: 61.5 | E34: 30.75 | F34: 24.6 | G34: 72 | H34: 51 | I34: 51.5 | J34: 51.5
A35: 42 | B35: 53 | C35: 41.5 | D35: 63 | E35: 31.5 | F35: 25.2 | G35: 74 | H35: 52 | I35: 53 | J35: 53
A36: 43 | B36: 54.5 | C36: 42.25 | D36: 64.5 | E36: 32.25 | F36: 25.8 | G36: 76 | H36: 53 | I36: 54.5 | J36: 54.5
A37: 44 | B37: 56 | C37: 43 | D37: 66 | E37: 33 | F37: 26.4 | G37: 78 | H37: 54 | I37: 56 | J37: 56
A38: 45 | B38: 57.5 | C38: 43.75 | D38: 67.5 | E38: 33.75 | F38: 27 | G38: 80 | H38: 55 | I38: 57.5 | J38: 57.5
A39: 46 | B39: 59 | C39: 44.5 | D39: 69 | E39: 34.5 | F39: 27.6 | G39: 82 | H39: 56 | I39: 59 | J39: 59
A40: 47 | B40: 60.5 | C40: 45.25 | D40: 70.5 | E40: 35.25 | F40: 28.2 | G40: 84 | H40: 57 | I40: 60.5 | J40: 60.5
A41: 48 | B41: 62 | C41: 46 | D41: 72 | E41: 36 | F41: 28.8 | G41: 86 | H41: 58 | I41: 62 | J41: 62
A42: 49 | B42: 63.5 | C42: 46.75 | D42: 73.5 | E42: 36.75 | F42: 29.4 | G42: 88 | H42: 59 | I42: 63.5 | J42: 63.5
A43: 50 | B43: 65 | C43: 47.5 | D43: 75 | E43: 37.5 | F43: 30 | G43: 90 | H43: 60 | I43: 65 | J43: 65
A44: 51 | B44: 66 | C44: 48.25 | D44: 77 | E44: 38.25 | F44: 30.6 | G44: 91.5 | H44: 61 | I44: 66 | J44: 66.5
A45: 52 | B45: 67 | C45: 49 | D45: 79 | E45: 39 | F45: 31.2 | G45: 93 | H45: 62 | I45: 67 | J45: 68
A46: 53 | B46: 68 | C46: 49.75 | D46: 81 | E46: 39.75 | F46: 31.8 | G46: 94.5 | H46: 63 | I46: 68 | J46: 69.5
A47: 54 | B47: 69 | C47: 50.5 | D47: 83 | E47: 40.5 | F47: 32.4 | G47: 96 | H47: 64 | I47: 69 | J47: 71
A48: 55 | B48: 70 | C48: 51.25 | D48: 85 | E48: 41.25 | F48: 33 | G48: 97.5 | H48: 65 | I48: 70 | J48: 72.5
A49: 56 | B49: 71 | C49: 52 | D49: 87 | E49: 42 | F49: 33.6 | G49: 99 | H49: 66 | I49: 71 | J49: 74
A50: 57 | B50: 72 | C50: 52.75 | D50: 89 | E50: 42.75 | F50: 34.2 | G50: 100.5 | H50: 67 | I50: 72 | J50: 75.5
A51: 58 | B51: 73 | C51: 53.5 | D51: 91 | E51: 43.5 | F51: 34.8 | G51: 102 | H51: 68 | I51: 73 | J51: 77
A52: 59 | B52: 74 | C52: 54.25 | D52: 93 | E52: 44.25 | F52: 35.4 | G52: 103.5 | H52: 69 | I52: 74 | J52: 78.5
A53: 60 | B53: 75 | C53: 55 | D53: 95 | E53: 45 | F53: 36 | G53: 105 | H53: 70 | I53: 75 | J53: 80
A54: 61 | B54: 76.5 | C54: 56 | D54: 96.5 | E54: 45.75 | F54: 36.6 | G54: 106.5 | H54: 71.5 | I54: 76.5 | J54: 81.5
A55: 62 | B55: 78 | C55: 57 | D55: 98 | E55: 46.5 | F55: 37.2 | G55: 108 | H55: 73 | I55: 78 | J55: 83
A56: 63 | B56: 79.5 | C56: 58 | D56: 99.5 | E56: 47.25 | F56: 37.8 | G56: 109.5 | H56: 74.5 | I56: 79.5 | J56: 84.5
A57: 64 | B57: 81 | C57: 59 | D57: 101 | E57: 48 | F57: 38.4 | G57: 111 | H57: 76 | I57: 81 | J57: 86
A58: 65 | B58: 82.5 | C58: 60 | D58: 102.5 | E58: 48.75 | F58: 39 | G58: 112.5 | H58: 77.5 | I58: 82.5 | J58: 87.5
A59: 66 | B59: 84 | C59: 61 | D59: 104 | E59: 49.5 | F59: 39.6 | G59: 114 | H59: 79 | I59: 84 | J59: 89
A60: 67 | B60: 85.5 | C60: 62 | D60: 105.5 | E60: 50.25 | F60: 40.2 | G60: 115.5 | H60: 80.5 | I60: 85.5 | J60: 90.5
A61: 68 | B61: 87 | C61: 63 | D61: 107 | E61: 51 | F61: 40.8 | G61: 117 | H61: 82 | I61: 87 | J61: 92
A62: 69 | B62: 88.5 | C62: 64 | D62: 108.5 | E62: 51.75 | F62: 41.4 | G62: 118.5 | H62: 83.5 | I62: 88.5 | J62: 93.5
A63: 70 | B63: 90 | C63: 65 | D63: 110 | E63: 52.5 | F63: 42 | G63: 120 | H63: 85 | I63: 90 | J63: 95
A64: 71 | B64: 91 | C64: 66 | D64: 111.5 | E64: 53.25 | F64: 42.6 | G64: 121.5 | H64: 86.5 | I64: 91 | J64: 96.5
A65: 72 | B65: 92 | C65: 67 | D65: 113 | E65: 54 | F65: 43.2 | G65: 123 | H65: 88 | I65: 92 | J65: 98
A66: 73 | B66: 93 | C66: 68 | D66: 114.5 | E66: 54.75 | F66: 43.8 | G66: 124.5 | H66: 89.5 | I66: 93 | J66: 99.5
A67: 74 | B67: 94 | C67: 69 | D67: 116 | E67: 55.5 | F67: 44.4 | G67: 126 | H67: 91 | I67: 94 | J67: 101
A68: 75 | B68: 95 | C68: 70 | D68: 117.5 | E68: 56.25 | F68: 45 | G68: 127.5 | H68: 92.5 | I68: 95 | J68: 102.5
A69: 76 | B69: 96 | C69: 71 | D69: 119 | E69: 57 | F69: 45.6 | G69: 129 | H69: 94 | I69: 96 | J69: 104
A70: 77 | B70: 97 | C70: 72 | D70: 120.5 | E70: 57.75 | F70: 46.2 | G70: 130.5 | H70: 95.5 | I70: 97 | J70: 105.5
A71: 78 | B71: 98 | C71: 73 | D71: 122 | E71: 58.5 | F71: 46.8 | G71: 132 | H71: 97 | I71: 98 | J71: 107
A72: 79 | B72: 99 | C72: 74 | D72: 123.5 | E72: 59.25 | F72: 47.4 | G72: 133.5 | H72: 98.5 | I72: 99 | J72: 108.5
A73: 80 | B73: 100 | C73: 75 | D73: 125 | E73: 60 | F73: 48 | G73: 135 | H73: 100 | I73: 100 | J73: 110
A74: 81 | B74: 101.5 | C74: 76 | D74: 126.5 | E74: 60.75 | F74: 48.6 | G74: 136.5 | H74: 101.5 | I74: 101.5 | J74: 111.5
A75: 82 | B75: 103 | C75: 77 | D75: 128 | E75: 61.5 | F75: 49.2 | G75: 138 | H75: 103 | I75: 103 | J75: 113
A76: 83 | B76: 104.5 | C76: 78 | D76: 129.5 | E76: 62.25 | F76: 49.8 | G76: 139.5 | H76: 104.5 | I76: 104.5 | J76: 114.5
A77: 84 | B77: 106 | C77: 79 | D77: 131 | E77: 63 | F77: 50.4 | G77: 141 | H77: 106 | I77: 106 | J77: 116
A78: 85 | B78: 107.5 | C78: 80 | D78: 132.5 | E78: 63.75 | F78: 51 | G78: 142.5 | H78: 107.5 | I78: 107.5 | J78: 117.5
A79: 86 | B79: 109 | C79: 81 | D79: 134 | E79: 64.5 | F79: 51.6 | G79: 144 | H79: 109 | I79: 109 | J79: 119
A80: 87 | B80: 110.5 | C80: 82 | D80: 135.5 | E80: 65.25 | F80: 52.2 | G80: 145.5 | H80: 110.5 | I80: 110.5 | J80: 120.5
A81: 88 | B81: 112 | C81: 83 | D81: 137 | E81: 66 | F81: 52.8 | G81: 147 | H81: 112 | I81: 112 | J81: 122
A82: 89 | B82: 113.5 | C82: 84 | D82: 138.5 | E82: 66.75 | F82: 53.4 | G82: 148.5 | H82: 113.5 | I82: 113.5 | J82: 123.5
A83: 90 | B83: 115 | C83: 85 | D83: 140 | E83: 67.5 | F83: 54 | G83: 150 | H83: 115 | I83: 115 | J83: 125
A84: 91 | B84: 116.5 | C84: 86 | D84: 141.5 | E84: 68.25 | F84: 54.6 | G84: 151.5 | H84: 116.5 | I84: 116.5 | J84: 126.5
A85: 92 | B85: 118 | C85: 87 | D85: 143 | E85: 69 | F85: 55.2 | G85: 153 | H85: 118 | I85: 118 | J85: 128
A86: 93 | B86: 119.5 | C86: 88 | D86: 144.5 | E86: 69.75 | F86: 55.8 | G86: 154.5 | H86: 119.5 | I86: 119.5 | J86: 129.5
A87: 94 | B87: 121 | C87: 89 | D87: 146 | E87: 70.5 | F87: 56.4 | G87: 156 | H87: 121 | I87: 121 | J87: 131
A88: 95 | B88: 122.5 | C88: 90 | D88: 147.5 | E88: 71.25 | F88: 57 | G88: 157.5 | H88: 122.5 | I88: 122.5 | J88: 132.5
A89: 96 | B89: 124 | C89: 91 | D89: 149 | E89: 72 | F89: 57.6 | G89: 159 | H89: 124 | I89: 124 | J89: 134
A90: 97 | B90: 125.5 | C90: 92 | D90: 150.5 | E90: 72.75 | F90: 58.2 | G90: 160.5 | H90: 125.5 | I90: 125.5 | J90: 135.5
A91: 98 | B91: 127 | C91: 93 | D91: 152 | E91: 73.5 | F91: 58.8 | G91: 162 | H91: 127 | I91: 127 | J91: 137
A92: 99 | B92: 128.5 | C92: 94 | D92: 153.5 | E92: 74.25 | F92: 59.4 | G92: 163.5 | H92: 128.5 | I92: 128.5 | J92: 138.5
A93: 100 | B93: 130 | C93: 95 | D93: 155 | E93: 75 | F93: 60 | G93: 165 | H93: 130 | I93: 130 | J93: 140
A94: 101 | B94: 131.5 | C94: 96 | D94: 156.5 | E94: 75.75 | F94: 60.6 | G94: 166.5 | H94: 131.5 | I94: 131.5 | J94: 141.5
A95: 102 | B95: 133 | C95: 97 | D95: 158 | E95: 76.5 | F95: 61.2 | G95: 168 | H95: 133 | I95: 133 | J95: 143
A96: 103 | B96: 134.5 | C96: 98 | D96: 159.5 | E96: 77.25 | F96: 61.8 | G96: 169.5 | H96: 134.5 | I96: 134.5 | J96: 144.5
A97: 104 | B97: 136 | C97: 99 | D97: 161 | E97: 78 | F97: 62.4 | G97: 171 | H97: 136 | I97: 136 | J97: 146
A98: 105 | B98: 137.5 | C98: 100 | D98: 162.5 | E98: 78.75 | F98: 63 | G98: 172.5 | H98: 137.5 | I98: 137.5 | J98: 147.5
A99: 106 | B99: 139 | C99: 101 | D99: 164 | E99: 79.5 | F99: 63.6 | G99: 174 | H99: 139 | I99: 139 | J99: 149
A100: 107 | B100: 140.5 | C100: 102 | D100: 165.5 | E100: 80.25 | F100: 64.2 | G100: 175.5 | H100: 140.5 | I100: 140.5 | J100: 150.5
A101: 108 | B101: 142 | C101: 103 | D101: 167 | E101: 81 | F101: 64.8 | G101: 177 | H101: 142 | I101: 142 | J101: 152
A102: 109 | B102: 143.5 | C102: 104 | D102: 168.5 | E102: 81.75 | F102: 65.4 | G102: 178.5 | H102: 143.5 | I102: 143.5 | J102: 153.5
A103: 110 | B103: 145 | C103: 105 | D103: 170 | E103: 82.5 | F103: 66 | G103: 180 | H103: 145 | I103: 145 | J103: 155
A104: 111 | B104: 146.5 | C104: 106 | D104: 171.5 | E104: 83.25 | F104: 66.6 | G104: 181.5 | H104: 146.5 | I104: 146.5 | J104: 156.5
A105: 112 | B105: 148 | C105: 107 | D105: 173 | E105: 84 | F105: 67.2 | G105: 183 | H105: 148 | I105: 148 | J105: 158
A106: 113 | B106: 149.5 | C106: 108 | D106: 174.5 | E106: 84.75 | F106: 67.8 | G106: 184.5 | H106: 149.5 | I106: 149.5 | J106: 159.5
A107: 114 | B107: 151 | C107: 109 | D107: 176 | E107: 85.5 | F107: 68.4 | G107: 186 | H107: 151 | I107: 151 | J107: 161
A108: 115 | B108: 152.5 | C108: 110 | D108: 177.5 | E108: 86.25 | F108: 69 | G108: 187.5 | H108: 152.5 | I108: 152.5 | J108: 162.5
A109: 116 | B109: 154 | C109: 111 | D109: 179 | E109: 87 | F109: 69.6 | G109: 189 | H109: 154 | I109: 154 | J109: 164
A110: 117 | B110: 155.5 | C110: 112 | D110: 180.5 | E110: 87.75 | F110: 70.2 | G110: 190.5 | H110: 155.5 | I110: 155.5 | J110: 165.5
A111: 118 | B111: 157 | C111: 113 | D111: 182 | E111: 88.5 | F111: 70.8 | G111: 192 | H111: 157 | I111: 157 | J111: 167
A112: 119 | B112: 158.5 | C112: 114 | D112: 183.5 | E112: 89.25 | F112: 71.4 | G112: 193.5 | H112: 158.5 | I112: 158.5 | J112: 168.5
A113: 120 | B113: 160 | C113: 115 | D113: 185 | E113: 90 | F113: 72 | G113: 195 | H113: 160 | I113: 160 | J113: 170
A114: 121 | B114: 161.5 | C114: 116 | D114: 186.5 | E114: 90.75 | F114: 72.6 | G114: 196.5 | H114: 161.5 | I114: 161.5 | J114: 171.5
A115: 122 | B115: 163 | C115: 117 | D115: 188 | E115: 91.5 | F115: 73.2 | G115: 198 | H115: 163 | I115: 163 | J115: 173
A116: 123 | B116: 164.5 | C116: 118 | D116: 189.5 | E116: 92.25 | F116: 73.8 | G116: 199.5 | H116: 164.5 | I116: 164.5 | J116: 174.5
A117: 124 | B117: 166 | C117: 119 | D117: 191 | E117: 93 | F117: 74.4 | G117: 201 | H117: 166 | I117: 166 | J117: 176
A118: 125 | B118: 167.5 | C118: 120 | D118: 192.5 | E118: 93.75 | F118: 75 | G118: 202.5 | H118: 167.5 | I118: 167.5 | J118: 177.5
A119: 126 | B119: 169 | C119: 121 | D119: 194 | E119: 94.5 | F119: 75.6 | G119: 204 | H119: 169 | I119: 169 | J119: 179
A120: 127 | B120: 170.5 | C120: 122 | D120: 195.5 | E120: 95.25 | F120: 76.2 | G120: 205.5 | H120: 170.5 | I120: 170.5 | J120: 180.5
A121: 128 | B121: 172 | C121: 123 | D121: 197 | E121: 96 | F121: 76.8 | G121: 207 | H121: 172 | I121: 172 | J121: 182
A122: 129 | B122: 173.5 | C122: 124 | D122: 198.5 | E122: 96.75 | F122: 77.4 | G122: 208.5 | H122: 173.5 | I122: 173.5 | J122: 183.5
A123: 130 | B123: 175 | C123: 125 | D123: 200 | E123: 97.5 | F123: 78 | G123: 210 | H123: 175 | I123: 175 | J123: 185
A124: 131 | B124: 176.5 | C124: 126 | D124: 201.5 | E124: 98.25 | F124: 78.6 | G124: 211.5 | H124: 176.5 | I124: 176.5 | J124: 186.5
A125: 132 | B125: 178 | C125: 127 | D125: 203 | E125: 99 | F125: 79.2 | G125: 213 | H125: 178 | I125: 178 | J125: 188
A126: 133 | B126: 179.5 | C126: 128 | D126: 204.5 | E126: 99.75 | F126: 79.8 | G126: 214.5 | H126: 179.5 | I126: 179.5 | J126: 189.5
A127: 134 | B127: 181 | C127: 129 | D127: 206 | E127: 100.5 | F127: 80.4 | G127: 216 | H127: 181 | I127: 181 | J127: 191
A128: 135 | B128: 182.5 | C128: 130 | D128: 207.5 | E128: 101.25 | F128: 81 | G128: 217.5 | H128: 182.5 | I128: 182.5 | J128: 192.5
A129: 136 | B129: 184 | C129: 131 | D129: 209 | E129: 102 | F129: 81.6 | G129: 219 | H129: 184 | I129: 184 | J129: 194
A130: 137 | B130: 185.5 | C130: 132 | D130: 210.5 | E130: 102.75 | F130: 82.2 | G130: 220.5 | H130: 185.5 | I130: 185.5 | J130: 195.5
A131: 138 | B131: 187 | C131: 133 | D131: 212 | E131: 103.5 | F131: 82.8 | G131: 222 | H131: 187 | I131: 187 | J131: 197
A132: 139 | B132: 188.5 | C132: 134 | D132: 213.5 | E132: 104.25 | F132: 83.4 | G132: 223.5 | H132: 188.5 | I132: 188.5 | J132: 198.5
A133: 140 | B133: 190 | C133: 135 | D133: 215 | E133: 105 | F133: 84 | G133: 225 | H133: 190 | I133: 190 | J133: 200
A134: 141 | B134: 191.5 | C134: 136 | D134: 216.5 | E134: 105.75 | F134: 84.6 | G134: 226.5 | H134: 191.5 | I134: 191.5 | J134: 201.5
A135: 142 | B135: 193 | C135: 137 | D135: 218 | E135: 106.5 | F135: 85.2 | G135: 228 | H135: 193 | I135: 193 | J135: 203
A136: 143 | B136: 194.5 | C136: 138 | D136: 219.5 | E136: 107.25 | F136: 85.8 | G136: 229.5 | H136: 194.5 | I136: 194.5 | J136: 204.5
A137: 144 | B137: 196 | C137: 139 | D137: 221 | E137: 108 | F137: 86.4 | G137: 231 | H137: 196 | I137: 196 | J137: 206
A138: 145 | B138: 197.5 | C138: 140 | D138: 222.5 | E138: 108.75 | F138: 87 | G138: 232.5 | H138: 197.5 | I138: 197.5 | J138: 207.5
A139: 146 | B139: 199 | C139: 141 | D139: 224 | E139: 109.5 | F139: 87.6 | G139: 234 | H139: 199 | I139: 199 | J139: 209
A140: 147 | B140: 200.5 | C140: 142 | D140: 225.5 | E140: 110.25 | F140: 88.2 | G140: 235.5 | H140: 200.5 | I140: 200.5 | J140: 210.5
A141: 148 | B141: 202 | C141: 143 | D141: 227 | E141: 111 | F141: 88.8 | G141: 237 | H141: 202 | I141: 202 | J141: 212
A142: 149 | B142: 203.5 | C142: 144 | D142: 228.5 | E142: 111.75 | F142: 89.4 | G142: 238.5 | H142: 203.5 | I142: 203.5 | J142: 213.5
A143: 150 | B143: 205 | C143: 145 | D143: 230 | E143: 112.5 | F143: 90 | G143: 240 | H143: 205 | I143: 205 | J143: 215
A144: 151 | F144: 90.6
A145: 152 | F145: 91.2
A146: 153 | F146: 91.8
A147: 154 | F147: 92.4
A148: 155 | F148: 93
A149: 156 | F149: 93.6
A150: 157 | F150: 94.2
A151: 158 | F151: 94.8
A152: 159 | F152: 95.4
A153: 160 | F153: 96
A154: 161 | F154: 96.6
A155: 162 | F155: 97.2
A156: 163 | F156: 97.8
A157: 164 | F157: 98.4
A158: 165 | F158: 99
A159: 166 | F159: 99.6
A160: 167 | F160: 100.2
A161: 168 | F161: 100.8
A162: 169 | F162: 101.4
A163: 170 | F163: 102
A164: 171 | F164: 102.6
A165: 172 | F165: 103.2
A166: 173 | F166: 103.8
A167: 174 | F167: 104.4
A168: 175 | F168: 105
A169: 176 | F169: 105.6
A170: 177 | F170: 106.2
A171: 178 | F171: 106.8
A172: 179 | F172: 107.4
A173: 180 | F173: 108
A174: 181 | F174: 108.6
A175: 182 | F175: 109.2
A176: 183 | F176: 109.8
A177: 184 | F177: 110.4
A178: 185 | F178: 111
A179: 186 | F179: 111.6
A180: 187 | F180: 112.2
A181: 188 | F181: 112.8
A182: 189 | F182: 113.4
A183: 190 | F183: 114
A184: 191 | F184: 114.6
A185: 192 | F185: 115.2
A186: 193 | F186: 115.8
A187: 194 | F187: 116.4
A188: 195 | F188: 117
A189: 196 | F189: 117.6
A190: 197 | F190: 118.2
A191: 198 | F191: 118.8
A192: 199 | F192: 119.4
A193: 200 | F193: 120
A194: 201 | F194: 120.6
A195: 202 | F195: 121.2
A196: 203 | F196: 121.8
A197: 204 | F197: 122.4
A198: 205 | F198: 123
A199: 206 | F199: 123.6
A200: 207 | F200: 124.2
... 43 more rows

Sheet S (IGNORE) (hidden)
B1: Sulphur | L1: Notes
A2: Yield | B2: Wheat | C2: Barley | D2: Canola | E2: Oats | F2: Corn | G2: Peas | H2: Soybeans | I2: Fall Rye | J2: Flax | L2: Agvise recommendation (in between the highlighted cells are extrapolated)
A3: 10 | B3: 10 | C3: 10 | D3: 20 | E3: 10 | F3: 10 | G3: 10 | H3: 10 | I3: 10 | J3: 10 | L3: Agvise band recommendations used (which is the same as Agvise band with maintenance)
A4: 11 | B4: 10 | C4: 10 | D4: 20 | E4: 10 | F4: 10 | G4: 10 | H4: 10 | I4: 10 | J4: 10 | L4: No Agvise data (estimations used)
A5: 12 | B5: 10 | C5: 10 | D5: 20 | E5: 10 | F5: 10 | G5: 10 | H5: 10 | I5: 10 | J5: 10
A6: 13 | B6: 10 | C6: 10 | D6: 20 | E6: 10 | F6: 10 | G6: 10 | H6: 10 | I6: 10 | J6: 10 | L6: **Canola - broadcast to band factor 1.5
A7: 14 | B7: 10 | C7: 10 | D7: 20 | E7: 10 | F7: 10 | G7: 10 | H7: 10 | I7: 10 | J7: 10 | L7: All other crops - broadcast to band factor 2.0
A8: 15 | B8: 10 | C8: 10 | D8: 20 | E8: 10 | F8: 10 | G8: 10 | H8: 10 | I8: 10 | J8: 10
A9: 16 | B9: 10 | C9: 10 | D9: 20 | E9: 10 | F9: 10 | G9: 10 | H9: 10 | I9: 10 | J9: 10 | L9: ** Minimum sulphur application is 5 lbs/ac regardless of soils reserves for all crops
A10: 17 | B10: 10 | C10: 10 | D10: 20 | E10: 10 | F10: 10 | G10: 10 | H10: 10 | I10: 10 | J10: 10
A11: 18 | B11: 10 | C11: 10 | D11: 20 | E11: 10 | F11: 10 | G11: 10 | H11: 10 | I11: 10 | J11: 10
A12: 19 | B12: 10 | C12: 10 | D12: 20 | E12: 10 | F12: 10 | G12: 10 | H12: 10 | I12: 10 | J12: 10
A13: 20 | B13: 10 | C13: 10 | D13: 20 | E13: 10 | F13: 10 | G13: 10 | H13: 10 | I13: 10 | J13: 10
A14: 21 | B14: 10 | C14: 10 | D14: 20 | E14: 10 | F14: 10 | G14: 10 | H14: 10 | I14: 10 | J14: 10
A15: 22 | B15: 10 | C15: 10 | D15: 20 | E15: 10 | F15: 10 | G15: 10 | H15: 10 | I15: 10 | J15: 10
A16: 23 | B16: 10 | C16: 10 | D16: 20 | E16: 10 | F16: 10 | G16: 10 | H16: 10 | I16: 10 | J16: 10
A17: 24 | B17: 10 | C17: 10 | D17: 20 | E17: 10 | F17: 10 | G17: 10 | H17: 10 | I17: 10 | J17: 10
A18: 25 | B18: 10 | C18: 10 | D18: 20 | E18: 10 | F18: 10 | G18: 10 | H18: 10 | I18: 10 | J18: 10
A19: 26 | B19: 10 | C19: 10 | D19: 20 | E19: 10 | F19: 10 | G19: 10 | H19: 10 | I19: 10 | J19: 10
A20: 27 | B20: 10 | C20: 10 | D20: 20 | E20: 10 | F20: 10 | G20: 10 | H20: 10 | I20: 10 | J20: 10
A21: 28 | B21: 10 | C21: 10 | D21: 20 | E21: 10 | F21: 10 | G21: 10 | H21: 10 | I21: 10 | J21: 10
A22: 29 | B22: 10 | C22: 10 | D22: 20 | E22: 10 | F22: 10 | G22: 10 | H22: 10 | I22: 10 | J22: 10
A23: 30 | B23: 10 | C23: 10 | D23: 20 | E23: 10 | F23: 10 | G23: 10 | H23: 10 | I23: 10 | J23: 10
A24: 31 | B24: 10 | C24: 10 | D24: 20 | E24: 10 | F24: 10 | G24: 10 | H24: 10 | I24: 10 | J24: 10
A25: 32 | B25: 10 | C25: 10 | D25: 20 | E25: 10 | F25: 10 | G25: 10 | H25: 10 | I25: 10 | J25: 10
A26: 33 | B26: 10 | C26: 10 | D26: 20 | E26: 10 | F26: 10 | G26: 10 | H26: 10 | I26: 10 | J26: 10
A27: 34 | B27: 10 | C27: 10 | D27: 20 | E27: 10 | F27: 10 | G27: 10 | H27: 10 | I27: 10 | J27: 10
A28: 35 | B28: 10 | C28: 10 | D28: 20 | E28: 10 | F28: 10 | G28: 10 | H28: 10 | I28: 10 | J28: 10
A29: 36 | B29: 10 | C29: 10 | D29: 20 | E29: 10 | F29: 10 | G29: 10 | H29: 10 | I29: 10 | J29: 10
A30: 37 | B30: 10 | C30: 10 | D30: 20 | E30: 10 | F30: 10 | G30: 10 | H30: 10 | I30: 10 | J30: 10
A31: 38 | B31: 10 | C31: 10 | D31: 20 | E31: 10 | F31: 10 | G31: 10 | H31: 10 | I31: 10 | J31: 10
A32: 39 | B32: 10 | C32: 10 | D32: 20 | E32: 10 | F32: 10 | G32: 10 | H32: 10 | I32: 10 | J32: 10
A33: 40 | B33: 10 | C33: 10 | D33: 20 | E33: 10 | F33: 10 | G33: 10 | H33: 10 | I33: 10 | J33: 10
A34: 41 | B34: 10 | C34: 10 | D34: 20 | E34: 10 | F34: 10 | G34: 10 | H34: 10 | I34: 10 | J34: 10
A35: 42 | B35: 10 | C35: 10 | D35: 20 | E35: 10 | F35: 10 | G35: 10 | H35: 10 | I35: 10 | J35: 10
A36: 43 | B36: 10 | C36: 10 | D36: 20 | E36: 10 | F36: 10 | G36: 10 | H36: 10 | I36: 10 | J36: 10
A37: 44 | B37: 10 | C37: 10 | D37: 20 | E37: 10 | F37: 10 | G37: 10 | H37: 10 | I37: 10 | J37: 10
A38: 45 | B38: 10 | C38: 10 | D38: 20 | E38: 10 | F38: 10 | G38: 10 | H38: 10 | I38: 10 | J38: 10
A39: 46 | B39: 10 | C39: 10 | D39: 20 | E39: 10 | F39: 10 | G39: 10 | H39: 10 | I39: 10 | J39: 10
A40: 47 | B40: 10 | C40: 10 | D40: 20 | E40: 10 | F40: 10 | G40: 10 | H40: 10 | I40: 10 | J40: 10
A41: 48 | B41: 10 | C41: 10 | D41: 20 | E41: 10 | F41: 10 | G41: 10 | H41: 10 | I41: 10 | J41: 10
A42: 49 | B42: 10 | C42: 10 | D42: 20 | E42: 10 | F42: 10 | G42: 10 | H42: 10 | I42: 10 | J42: 10
A43: 50 | B43: 10 | C43: 10 | D43: 20 | E43: 10 | F43: 10 | G43: 10 | H43: 10 | I43: 10 | J43: 10
A44: 51 | B44: 10 | C44: 10 | D44: 20 | E44: 10 | F44: 10 | G44: 10 | H44: 10 | I44: 10 | J44: 10
A45: 52 | B45: 10 | C45: 10 | D45: 20 | E45: 10 | F45: 10 | G45: 10 | H45: 10 | I45: 10 | J45: 10
A46: 53 | B46: 10 | C46: 10 | D46: 20 | E46: 10 | F46: 10 | G46: 10 | H46: 10 | I46: 10 | J46: 10
A47: 54 | B47: 10 | C47: 10 | D47: 20 | E47: 10 | F47: 10 | G47: 10 | H47: 10 | I47: 10 | J47: 10
A48: 55 | B48: 10 | C48: 10 | D48: 20 | E48: 10 | F48: 10 | G48: 10 | H48: 10 | I48: 10 | J48: 10
A49: 56 | B49: 10 | C49: 10 | D49: 20 | E49: 10 | F49: 10 | G49: 10 | H49: 10 | I49: 10 | J49: 10
A50: 57 | B50: 10 | C50: 10 | D50: 20 | E50: 10 | F50: 10 | G50: 10 | H50: 10 | I50: 10 | J50: 10
A51: 58 | B51: 10 | C51: 10 | D51: 20 | E51: 10 | F51: 10 | G51: 10 | H51: 10 | I51: 10 | J51: 10
A52: 59 | B52: 10 | C52: 10 | D52: 20 | E52: 10 | F52: 10 | G52: 10 | H52: 10 | I52: 10 | J52: 10
A53: 60 | B53: 10 | C53: 10 | D53: 20 | E53: 10 | F53: 10 | G53: 10 | H53: 10 | I53: 10 | J53: 10
A54: 61 | B54: 10 | C54: 10 | D54: 20 | E54: 10 | F54: 10 | G54: 10 | H54: 10 | I54: 10 | J54: 10
A55: 62 | B55: 10 | C55: 10 | D55: 20 | E55: 10 | F55: 10 | G55: 10 | H55: 10 | I55: 10 | J55: 10
A56: 63 | B56: 10 | C56: 10 | D56: 20 | E56: 10 | F56: 10 | G56: 10 | H56: 10 | I56: 10 | J56: 10
A57: 64 | B57: 10 | C57: 10 | D57: 20 | E57: 10 | F57: 10 | G57: 10 | H57: 10 | I57: 10 | J57: 10
A58: 65 | B58: 10 | C58: 10 | D58: 20 | E58: 10 | F58: 10 | G58: 10 | H58: 10 | I58: 10 | J58: 10
A59: 66 | B59: 10 | C59: 10 | D59: 20 | E59: 10 | F59: 10 | G59: 10 | H59: 10 | I59: 10 | J59: 10
A60: 67 | B60: 10 | C60: 10 | D60: 20 | E60: 10 | F60: 10 | G60: 10 | H60: 10 | I60: 10 | J60: 10
A61: 68 | B61: 10 | C61: 10 | D61: 20 | E61: 10 | F61: 10 | G61: 10 | H61: 10 | I61: 10 | J61: 10
A62: 69 | B62: 10 | C62: 10 | D62: 20 | E62: 10 | F62: 10 | G62: 10 | H62: 10 | I62: 10 | J62: 10
A63: 70 | B63: 10 | C63: 10 | D63: 20 | E63: 10 | F63: 10 | G63: 10 | H63: 10 | I63: 10 | J63: 10
A64: 71 | B64: 10 | C64: 10 | D64: 20 | E64: 10 | F64: 10 | G64: 10 | H64: 10 | I64: 10 | J64: 10
A65: 72 | B65: 10 | C65: 10 | D65: 20 | E65: 10 | F65: 10 | G65: 10 | H65: 10 | I65: 10 | J65: 10
A66: 73 | B66: 10 | C66: 10 | D66: 20 | E66: 10 | F66: 10 | G66: 10 | H66: 10 | I66: 10 | J66: 10
A67: 74 | B67: 10 | C67: 10 | D67: 20 | E67: 10 | F67: 10 | G67: 10 | H67: 10 | I67: 10 | J67: 10
A68: 75 | B68: 10 | C68: 10 | D68: 20 | E68: 10 | F68: 10 | G68: 10 | H68: 10 | I68: 10 | J68: 10
A69: 76 | B69: 10 | C69: 10 | D69: 20 | E69: 10 | F69: 10 | G69: 10 | H69: 10 | I69: 10 | J69: 10
A70: 77 | B70: 10 | C70: 10 | D70: 20 | E70: 10 | F70: 10 | G70: 10 | H70: 10 | I70: 10 | J70: 10
A71: 78 | B71: 10 | C71: 10 | D71: 20 | E71: 10 | F71: 10 | G71: 10 | H71: 10 | I71: 10 | J71: 10
A72: 79 | B72: 10 | C72: 10 | D72: 20 | E72: 10 | F72: 10 | G72: 10 | H72: 10 | I72: 10 | J72: 10
A73: 80 | B73: 10 | C73: 10 | D73: 20 | E73: 10 | F73: 10 | G73: 10 | H73: 10 | I73: 10 | J73: 10
A74: 81 | B74: 10 | C74: 10 | D74: 20 | E74: 10 | F74: 10 | G74: 10 | H74: 10 | I74: 10 | J74: 10
A75: 82 | B75: 10 | C75: 10 | D75: 20 | E75: 10 | F75: 10 | G75: 10 | H75: 10 | I75: 10 | J75: 10
A76: 83 | B76: 10 | C76: 10 | D76: 20 | E76: 10 | F76: 10 | G76: 10 | H76: 10 | I76: 10 | J76: 10
A77: 84 | B77: 10 | C77: 10 | D77: 20 | E77: 10 | F77: 10 | G77: 10 | H77: 10 | I77: 10 | J77: 10
A78: 85 | B78: 10 | C78: 10 | D78: 20 | E78: 10 | F78: 10 | G78: 10 | H78: 10 | I78: 10 | J78: 10
A79: 86 | B79: 10 | C79: 10 | D79: 20 | E79: 10 | F79: 10 | G79: 10 | H79: 10 | I79: 10 | J79: 10
A80: 87 | B80: 10 | C80: 10 | D80: 20 | E80: 10 | F80: 10 | G80: 10 | H80: 10 | I80: 10 | J80: 10
A81: 88 | B81: 10 | C81: 10 | D81: 20 | E81: 10 | F81: 10 | G81: 10 | H81: 10 | I81: 10 | J81: 10
A82: 89 | B82: 10 | C82: 10 | D82: 20 | E82: 10 | F82: 10 | G82: 10 | H82: 10 | I82: 10 | J82: 10
A83: 90 | B83: 10 | C83: 10 | D83: 20 | E83: 10 | F83: 10 | G83: 10 | H83: 10 | I83: 10 | J83: 10
A84: 91 | B84: 10 | C84: 10 | D84: 20 | E84: 10 | F84: 10 | G84: 10 | H84: 10 | I84: 10 | J84: 10
A85: 92 | B85: 10 | C85: 10 | D85: 20 | E85: 10 | F85: 10 | G85: 10 | H85: 10 | I85: 10 | J85: 10
A86: 93 | B86: 10 | C86: 10 | D86: 20 | E86: 10 | F86: 10 | G86: 10 | H86: 10 | I86: 10 | J86: 10
A87: 94 | B87: 10 | C87: 10 | D87: 20 | E87: 10 | F87: 10 | G87: 10 | H87: 10 | I87: 10 | J87: 10
A88: 95 | B88: 10 | C88: 10 | D88: 20 | E88: 10 | F88: 10 | G88: 10 | H88: 10 | I88: 10 | J88: 10
A89: 96 | B89: 10 | C89: 10 | D89: 20 | E89: 10 | F89: 10 | G89: 10 | H89: 10 | I89: 10 | J89: 10
A90: 97 | B90: 10 | C90: 10 | D90: 20 | E90: 10 | F90: 10 | G90: 10 | H90: 10 | I90: 10 | J90: 10
A91: 98 | B91: 10 | C91: 10 | D91: 20 | E91: 10 | F91: 10 | G91: 10 | H91: 10 | I91: 10 | J91: 10
A92: 99 | B92: 10 | C92: 10 | D92: 20 | E92: 10 | F92: 10 | G92: 10 | H92: 10 | I92: 10 | J92: 10
A93: 100 | B93: 10 | C93: 10 | D93: 20 | E93: 10 | F93: 10 | G93: 10 | H93: 10 | I93: 10 | J93: 10
A94: 101 | B94: 10 | C94: 10 | D94: 20 | E94: 10 | F94: 10 | G94: 10 | H94: 10 | I94: 10 | J94: 10
A95: 102 | B95: 10 | C95: 10 | D95: 20 | E95: 10 | F95: 10 | G95: 10 | H95: 10 | I95: 10 | J95: 10
A96: 103 | B96: 10 | C96: 10 | D96: 20 | E96: 10 | F96: 10 | G96: 10 | H96: 10 | I96: 10 | J96: 10
A97: 104 | B97: 10 | C97: 10 | D97: 20 | E97: 10 | F97: 10 | G97: 10 | H97: 10 | I97: 10 | J97: 10
A98: 105 | B98: 10 | C98: 10 | D98: 20 | E98: 10 | F98: 10 | G98: 10 | H98: 10 | I98: 10 | J98: 10
A99: 106 | B99: 10 | C99: 10 | D99: 20 | E99: 10 | F99: 10 | G99: 10 | H99: 10 | I99: 10 | J99: 10
A100: 107 | B100: 10 | C100: 10 | D100: 20 | E100: 10 | F100: 10 | G100: 10 | H100: 10 | I100: 10 | J100: 10
A101: 108 | B101: 10 | C101: 10 | D101: 20 | E101: 10 | F101: 10 | G101: 10 | H101: 10 | I101: 10 | J101: 10
A102: 109 | B102: 10 | C102: 10 | D102: 20 | E102: 10 | F102: 10 | G102: 10 | H102: 10 | I102: 10 | J102: 10
A103: 110 | B103: 10 | C103: 10 | D103: 20 | E103: 10 | F103: 10 | G103: 10 | H103: 10 | I103: 10 | J103: 10
A104: 111 | B104: 10 | C104: 10 | D104: 20 | E104: 10 | F104: 10 | G104: 10 | H104: 10 | I104: 10 | J104: 10
A105: 112 | B105: 10 | C105: 10 | D105: 20 | E105: 10 | F105: 10 | G105: 10 | H105: 10 | I105: 10 | J105: 10
A106: 113 | B106: 10 | C106: 10 | D106: 20 | E106: 10 | F106: 10 | G106: 10 | H106: 10 | I106: 10 | J106: 10
A107: 114 | B107: 10 | C107: 10 | D107: 20 | E107: 10 | F107: 10 | G107: 10 | H107: 10 | I107: 10 | J107: 10
A108: 115 | B108: 10 | C108: 10 | D108: 20 | E108: 10 | F108: 10 | G108: 10 | H108: 10 | I108: 10 | J108: 10
A109: 116 | B109: 10 | C109: 10 | D109: 20 | E109: 10 | F109: 10 | G109: 10 | H109: 10 | I109: 10 | J109: 10
A110: 117 | B110: 10 | C110: 10 | D110: 20 | E110: 10 | F110: 10 | G110: 10 | H110: 10 | I110: 10 | J110: 10
A111: 118 | B111: 10 | C111: 10 | D111: 20 | E111: 10 | F111: 10 | G111: 10 | H111: 10 | I111: 10 | J111: 10
A112: 119 | B112: 10 | C112: 10 | D112: 20 | E112: 10 | F112: 10 | G112: 10 | H112: 10 | I112: 10 | J112: 10
A113: 120 | B113: 10 | C113: 10 | D113: 20 | E113: 10 | F113: 10 | G113: 10 | H113: 10 | I113: 10 | J113: 10
A114: 121 | B114: 10 | C114: 10 | D114: 20 | E114: 10 | F114: 10 | G114: 10 | H114: 10 | I114: 10 | J114: 10
A115: 122 | B115: 10 | C115: 10 | D115: 20 | E115: 10 | F115: 10 | G115: 10 | H115: 10 | I115: 10 | J115: 10
A116: 123 | B116: 10 | C116: 10 | D116: 20 | E116: 10 | F116: 10 | G116: 10 | H116: 10 | I116: 10 | J116: 10
A117: 124 | B117: 10 | C117: 10 | D117: 20 | E117: 10 | F117: 10 | G117: 10 | H117: 10 | I117: 10 | J117: 10
A118: 125 | B118: 10 | C118: 10 | D118: 20 | E118: 10 | F118: 10 | G118: 10 | H118: 10 | I118: 10 | J118: 10
A119: 126 | B119: 10 | C119: 10 | D119: 20 | E119: 10 | F119: 10 | G119: 10 | H119: 10 | I119: 10 | J119: 10
A120: 127 | B120: 10 | C120: 10 | D120: 20 | E120: 10 | F120: 10 | G120: 10 | H120: 10 | I120: 10 | J120: 10
A121: 128 | B121: 10 | C121: 10 | D121: 20 | E121: 10 | F121: 10 | G121: 10 | H121: 10 | I121: 10 | J121: 10
A122: 129 | B122: 10 | C122: 10 | D122: 20 | E122: 10 | F122: 10 | G122: 10 | H122: 10 | I122: 10 | J122: 10
A123: 130 | B123: 10 | C123: 10 | D123: 20 | E123: 10 | F123: 10 | G123: 10 | H123: 10 | I123: 10 | J123: 10
A124: 131 | B124: 10 | C124: 10 | D124: 20 | E124: 10 | F124: 10 | G124: 10 | H124: 10 | I124: 10 | J124: 10
A125: 132 | B125: 10 | C125: 10 | D125: 20 | E125: 10 | F125: 10 | G125: 10 | H125: 10 | I125: 10 | J125: 10
A126: 133 | B126: 10 | C126: 10 | D126: 20 | E126: 10 | F126: 10 | G126: 10 | H126: 10 | I126: 10 | J126: 10
A127: 134 | B127: 10 | C127: 10 | D127: 20 | E127: 10 | F127: 10 | G127: 10 | H127: 10 | I127: 10 | J127: 10
A128: 135 | B128: 10 | C128: 10 | D128: 20 | E128: 10 | F128: 10 | G128: 10 | H128: 10 | I128: 10 | J128: 10
A129: 136 | B129: 10 | C129: 10 | D129: 20 | E129: 10 | F129: 10 | G129: 10 | H129: 10 | I129: 10 | J129: 10
A130: 137 | B130: 10 | C130: 10 | D130: 20 | E130: 10 | F130: 10 | G130: 10 | H130: 10 | I130: 10 | J130: 10
A131: 138 | B131: 10 | C131: 10 | D131: 20 | E131: 10 | F131: 10 | G131: 10 | H131: 10 | I131: 10 | J131: 10
A132: 139 | B132: 10 | C132: 10 | D132: 20 | E132: 10 | F132: 10 | G132: 10 | H132: 10 | I132: 10 | J132: 10
A133: 140 | B133: 10 | C133: 10 | D133: 20 | E133: 10 | F133: 10 | G133: 10 | H133: 10 | I133: 10 | J133: 10
A134: 141 | B134: 10 | C134: 10 | D134: 20 | E134: 10 | F134: 10 | G134: 10 | H134: 10 | I134: 10 | J134: 10
A135: 142 | B135: 10 | C135: 10 | D135: 20 | E135: 10 | F135: 10 | G135: 10 | H135: 10 | I135: 10 | J135: 10
A136: 143 | B136: 10 | C136: 10 | D136: 20 | E136: 10 | F136: 10 | G136: 10 | H136: 10 | I136: 10 | J136: 10
A137: 144 | B137: 10 | C137: 10 | D137: 20 | E137: 10 | F137: 10 | G137: 10 | H137: 10 | I137: 10 | J137: 10
A138: 145 | B138: 10 | C138: 10 | D138: 20 | E138: 10 | F138: 10 | G138: 10 | H138: 10 | I138: 10 | J138: 10
A139: 146 | B139: 10 | C139: 10 | D139: 20 | E139: 10 | F139: 10 | G139: 10 | H139: 10 | I139: 10 | J139: 10
A140: 147 | B140: 10 | C140: 10 | D140: 20 | E140: 10 | F140: 10 | G140: 10 | H140: 10 | I140: 10 | J140: 10
A141: 148 | B141: 10 | C141: 10 | D141: 20 | E141: 10 | F141: 10 | G141: 10 | H141: 10 | I141: 10 | J141: 10
A142: 149 | B142: 10 | C142: 10 | D142: 20 | E142: 10 | F142: 10 | G142: 10 | H142: 10 | I142: 10 | J142: 10
A143: 150 | B143: 10 | C143: 10 | D143: 20 | E143: 10 | F143: 10 | G143: 10 | H143: 10 | I143: 10 | J143: 10
A144: 151 | F144: 10
A145: 152 | F145: 10
A146: 153 | F146: 10
A147: 154 | F147: 10
A148: 155 | F148: 10
A149: 156 | F149: 10
A150: 157 | F150: 10
A151: 158 | F151: 10
A152: 159 | F152: 10
A153: 160 | F153: 10
A154: 161 | F154: 10
A155: 162 | F155: 10
A156: 163 | F156: 10
A157: 164 | F157: 10
A158: 165 | F158: 10
A159: 166 | F159: 10
A160: 167 | F160: 10
A161: 168 | F161: 10
A162: 169 | F162: 10
A163: 170 | F163: 10
A164: 171 | F164: 10
A165: 172 | F165: 10
A166: 173 | F166: 10
A167: 174 | F167: 10
A168: 175 | F168: 10
A169: 176 | F169: 10
A170: 177 | F170: 10
A171: 178 | F171: 10
A172: 179 | F172: 10
A173: 180 | F173: 10
A174: 181 | F174: 10
A175: 182 | F175: 10
A176: 183 | F176: 10
A177: 184 | F177: 10
A178: 185 | F178: 10
A179: 186 | F179: 10
A180: 187 | F180: 10
A181: 188 | F181: 10
A182: 189 | F182: 10
A183: 190 | F183: 10
A184: 191 | F184: 10
A185: 192 | F185: 10
A186: 193 | F186: 10
A187: 194 | F187: 10
A188: 195 | F188: 10
A189: 196 | F189: 10
A190: 197 | F190: 10
A191: 198 | F191: 10
A192: 199 | F192: 10
A193: 200 | F193: 10
A194: 201 | F194: 10
A195: 202 | F195: 10
A196: 203 | F196: 10
A197: 204 | F197: 10
A198: 205 | F198: 10
A199: 206 | F199: 10
A200: 207 | F200: 10
... 43 more rows

Sheet Wheat P - Olson test MB AG (hidden)
B1: PPM Range | D1: 0 to 76
A2: Yield | B2: 0 | C2: 1 | D2: 2 | E2: 3 | F2: 4 | G2: 5 | H2: 6 | I2: 7 | J2: 8 | K2: 9 | L2: 10 | M2: 11 | N2: 12 | O2: 13 | P2: 14 | Q2: 15 | R2: 16 | S2: 17 | T2: 18 | U2: 19 | V2: 20 | W2: 21 | X2: 22 | Y2: 23 | Z2: 24 | AA2: 25 | AB2: 26 | AC2: 27 | AD2: 28 | AE2: 29 | AF2: 30 | AG2: 31 | AH2: 32 | AI2: 33 | AJ2: 34 | AK2: 35 | AL2: 36 | AM2: 37 | AN2: 38 | AO2: 39 | AP2: 40 | AQ2: 41 | AR2: 42 | AS2: 43 | AT2: 44 | AU2: 45 | AV2: 46 | AW2: 47 | AX2: 48 | AY2: 49 | AZ2: 50 | BA2: 51 | BB2: 52 | BC2: 53 | BD2: 54 | BE2: 55 | BF2: 56 | BG2: 57 | BH2: 58 | BI2: 59 | BJ2: 60 | BK2: 61 | BL2: 62 | BM2: 63 | BN2: 64 | BO2: 65 | BP2: 66 | BQ2: 67 | BR2: 68 | BS2: 69 | BT2: 70 | BU2: 71 | BV2: 72 | BW2: 73 | BX2: 74 | BY2: 75 | BZ2: 76
A3: 10 | B3: 40 | C3: 40 | D3: 40 | E3: 40 | F3: 40 | G3: 40 | H3: 35 | I3: 35 | J3: 35 | K3: 35 | L3: 30 | M3: 30 | N3: 30 | O3: 20 | P3: 20 | Q3: 15 | R3: 15 | S3: 15 | T3: 10 | U3: 10 | V3: 10 | W3: 10 | X3: 10 | Y3: 10 | Z3: 10 | AA3: 10 | AB3: 10 | AC3: 10 | AD3: 10 | AE3: 10 | AF3: 10 | AG3: 10 | AH3: 10 | AI3: 10 | AJ3: 10 | AK3: 10 | AL3: 10 | AM3: 10 | AN3: 10 | AO3: 10 | AP3: 10 | AQ3: 10 | AR3: 10 | AS3: 10 | AT3: 10 | AU3: 10 | AV3: 10 | AW3: 10 | AX3: 10 | AY3: 10 | AZ3: 10 | BA3: 10 | BB3: 10 | BC3: 10 | BD3: 10 | BE3: 10 | BF3: 10 | BG3: 10 | BH3: 10 | BI3: 10 | BJ3: 10 | BK3: 10 | BL3: 10 | BM3: 10 | BN3: 10 | BO3: 10 | BP3: 10 | BQ3: 10 | BR3: 10 | BS3: 10 | BT3: 10 | BU3: 10 | BV3: 10 | BW3: 10 | BX3: 10 | BY3: 10 | BZ3: 10
A4: 11 | B4: 40 | C4: 40 | D4: 40 | E4: 40 | F4: 40 | G4: 40 | H4: 35 | I4: 35 | J4: 35 | K4: 35 | L4: 30 | M4: 30 | N4: 30 | O4: 20 | P4: 20 | Q4: 15 | R4: 15 | S4: 15 | T4: 10 | U4: 10 | V4: 10 | W4: 10 | X4: 10 | Y4: 10 | Z4: 10 | AA4: 10 | AB4: 10 | AC4: 10 | AD4: 10 | AE4: 10 | AF4: 10 | AG4: 10 | AH4: 10 | AI4: 10 | AJ4: 10 | AK4: 10 | AL4: 10 | AM4: 10 | AN4: 10 | AO4: 10 | AP4: 10 | AQ4: 10 | AR4: 10 | AS4: 10 | AT4: 10 | AU4: 10 | AV4: 10 | AW4: 10 | AX4: 10 | AY4: 10 | AZ4: 10 | BA4: 10 | BB4: 10 | BC4: 10 | BD4: 10 | BE4: 10 | BF4: 10 | BG4: 10 | BH4: 10 | BI4: 10 | BJ4: 10 | BK4: 10 | BL4: 10 | BM4: 10 | BN4: 10 | BO4: 10 | BP4: 10 | BQ4: 10 | BR4: 10 | BS4: 10 | BT4: 10 | BU4: 10 | BV4: 10 | BW4: 10 | BX4: 10 | BY4: 10 | BZ4: 10
A5: 12 | B5: 40 | C5: 40 | D5: 40 | E5: 40 | F5: 40 | G5: 40 | H5: 35 | I5: 35 | J5: 35 | K5: 35 | L5: 30 | M5: 30 | N5: 30 | O5: 20 | P5: 20 | Q5: 15 | R5: 15 | S5: 15 | T5: 10 | U5: 10 | V5: 10 | W5: 10 | X5: 10 | Y5: 10 | Z5: 10 | AA5: 10 | AB5: 10 | AC5: 10 | AD5: 10 | AE5: 10 | AF5: 10 | AG5: 10 | AH5: 10 | AI5: 10 | AJ5: 10 | AK5: 10 | AL5: 10 | AM5: 10 | AN5: 10 | AO5: 10 | AP5: 10 | AQ5: 10 | AR5: 10 | AS5: 10 | AT5: 10 | AU5: 10 | AV5: 10 | AW5: 10 | AX5: 10 | AY5: 10 | AZ5: 10 | BA5: 10 | BB5: 10 | BC5: 10 | BD5: 10 | BE5: 10 | BF5: 10 | BG5: 10 | BH5: 10 | BI5: 10 | BJ5: 10 | BK5: 10 | BL5: 10 | BM5: 10 | BN5: 10 | BO5: 10 | BP5: 10 | BQ5: 10 | BR5: 10 | BS5: 10 | BT5: 10 | BU5: 10 | BV5: 10 | BW5: 10 | BX5: 10 | BY5: 10 | BZ5: 10
A6: 13 | B6: 40 | C6: 40 | D6: 40 | E6: 40 | F6: 40 | G6: 40 | H6: 35 | I6: 35 | J6: 35 | K6: 35 | L6: 30 | M6: 30 | N6: 30 | O6: 20 | P6: 20 | Q6: 15 | R6: 15 | S6: 15 | T6: 10 | U6: 10 | V6: 10 | W6: 10 | X6: 10 | Y6: 10 | Z6: 10 | AA6: 10 | AB6: 10 | AC6: 10 | AD6: 10 | AE6: 10 | AF6: 10 | AG6: 10 | AH6: 10 | AI6: 10 | AJ6: 10 | AK6: 10 | AL6: 10 | AM6: 10 | AN6: 10 | AO6: 10 | AP6: 10 | AQ6: 10 | AR6: 10 | AS6: 10 | AT6: 10 | AU6: 10 | AV6: 10 | AW6: 10 | AX6: 10 | AY6: 10 | AZ6: 10 | BA6: 10 | BB6: 10 | BC6: 10 | BD6: 10 | BE6: 10 | BF6: 10 | BG6: 10 | BH6: 10 | BI6: 10 | BJ6: 10 | BK6: 10 | BL6: 10 | BM6: 10 | BN6: 10 | BO6: 10 | BP6: 10 | BQ6: 10 | BR6: 10 | BS6: 10 | BT6: 10 | BU6: 10 | BV6: 10 | BW6: 10 | BX6: 10 | BY6: 10 | BZ6: 10
